{"text_format":"1","workbook":"xlsx","n_sheets":9,"sheets":["Intro","Project Info & Results","Luminaire Schedule","Interior - Building Area Method","Interior - Space-By-Space","Exterior","ASHRAE","NECB","Basic Lists"],"not_rendered":{"charts":2,"images":6,"macros":1,"external_links":2,"defined_names":61,"comments":3,"pivot_tables":0},"unopened":[],"bounds":{"document_bytes":16777216,"sheet_cells":100000,"rows_first":2000,"rows_last":500,"rows_between":2000,"halvings":0,"cell_chars":16384,"cell_head_chars":4096},"cells_cut":0,"cells_raw":0,"read":"whole","date_system":"1900"}

{"sheet":"Intro","index":0,"n_rows":3,"n_cols":1,"rows_kept":3,"cut":false,"hidden":false,"merged":[[1,0,1,12]]}
["BC Hydro Power Smart Commercial New Construction Program"]
[]
[{"$f":"'Basic Lists'!A100","v":"BC Hydro Power Smart CNC LC v.3.1"}]

{"sheet":"Project Info & Results","index":1,"n_rows":24,"n_cols":8,"rows_kept":24,"cut":false,"hidden":false,"merged":[[0,1,0,4],[1,1,1,4],[3,4,3,7],[18,5,18,7],[19,5,19,7]]}
[null,"BC Hydro Power Smart Commercial New Construction Program"]
[null,"New Construction Lighting Calculator"]
[null,{"$f":"'Basic Lists'!A100","v":"BC Hydro Power Smart CNC LC v.3.1"}]
[null,"Project Information",null,null,"Project Totals"]
[]
[null,"Project Name",null,null,null,"Interior","Exterior","Total"]
[null,"Project Site Address",null,null,"Baseline Demand, kW",{"$f":"IF(ProjectMethod=SBS,'Interior - Space-By-Space'!$AV$65,IF(ProjectMethod=BAM,'Interior - Building Area Method'!$O$59,0))","v":0},{"$f":"IF(ISNUMBER(Exterior!$AB$54),Exterior!$AB$54,0)","v":0},{"$f":"F7+G7","v":0}]
[null,"Customer Contact Name",null,null,"Baseline Energy Consumption, kWh",{"$f":"IF(ProjectMethod=SBS,'Interior - Space-By-Space'!$AT$65,IF(ProjectMethod=BAM,'Interior - Building Area Method'!$O$60,0))","v":0},{"$f":"IF(ISNUMBER(Exterior!$Z$54),Exterior!$Z$54,0)","v":0},{"$f":"F8+G8","v":0}]
[null,"Customer Contact Tel. #",null,null,"Design Demand, kW",{"$f":"IF(ProjectMethod=SBS,'Interior - Space-By-Space'!$AW$65,IF(ProjectMethod=BAM,'Interior - Building Area Method'!$O$61,0))","v":0},{"$f":"Exterior!$AC$54","v":0},0]
[null,"Consultant Company",null,null,"Design Energy Consumption, kWh",{"$f":"IF(ProjectMethod=SBS,'Interior - Space-By-Space'!$AU$65,IF(ProjectMethod=BAM,'Interior - Building Area Method'!$O$62,0))","v":0},{"$f":"Exterior!$AA$54","v":0},0]
[null,"Consultant Name",null,null,"Demand Savings, kW",{"$f":"F7-F9","v":0},{"$f":"G7-G9","v":0},0]
[null,"Consultant Tel. #",null,null,"Energy Savings, kWh",{"$f":"F8-F10","v":0},{"$f":"G8-G10","v":0},0]
[null,"Project Type*"]
[null,"Compliance Method*",null,null,"Energy Concervation Measure","Demand Savings, kW",null,"Energy Savings, kWh"]
[null,"Compliance Code*",null,null,"LPD reduction - Interior",{"$f":"IF(ProjectMethod=SBS,'Interior - Space-By-Space'!$AY$65,IF(ProjectMethod=BAM,'Interior - Building Area Method'!$O$59-'Interior - Building Area Method'!$O$61,0))","v":0},null,{"$f":"IF(ProjectMethod=SBS,'Interior - Space-By-Space'!$AZ$65,IF(ProjectMethod=BAM,'Interior - Building Area Method'!$O$60-'Interior - Building Area Method'!$O$62,0))","v":0}]
[null,"Project Design Date",null,null,"Lighting Controls - Interior",null,null,{"$f":"IF(ProjectMethod=SBS,'Interior - Space-By-Space'!$BA$65,0)","v":0}]
[null,"Estimated Completion Date",null,null,"LPD  reduction  - Exterior",{"$f":"IF(ISNUMBER(Exterior!$AE$54),Exterior!$AE$54,0)","v":0},null,{"$f":"IF(ISNUMBER(Exterior!$AF$54),Exterior!$AF$54,0)","v":0}]
[null,"Unit System*",null,null,"Lighting Controls - Exterior",null,null,{"$f":"Exterior!$AG$54","v":0}]
[null,"Primary Building Type*",null,null,"Total Project Energy Savings, kWh",{"$f":"H12","v":0}]
[null,"* REQUIRED INFO",null,null,"Estimated Capital Incentive",{"$f":"IF(ProjectType<>\"Energy-Efficient Lighting Design\",\"N/A\",IF($H$12>10000,MIN(-0.0457*(PV(8%,10,(H15+H17))+PV(8%,8,(H16+H18))),F22*0.03*10),\"Does not meet savings threshold.\"))","v":"N/A"}]
[null,"Data for Chart",null,null,"Data for incentive calculation"]
[null,"Design Energy Consumption",{"$f":"H10","v":0},null,"Project interior area (sqft)",{"$f":"IF(ProjectUnits=\"Imperial\",1,10.736)*IF(ProjectMethod=SBS,'Interior - Space-By-Space'!J65,IF(ProjectMethod=BAM,SUM('Interior - Building Area Method'!C14,'Interior - Building Area Method'!E14,'Interior - Building Area Method'!G14,'Interior - Building Area Method'!I14,'Interior - Building Area Method'!K14),0))","v":0}]
[null,"LPD Reduction",{"$f":"IF((H15+H17)<0,0,H15+H17)","v":0},null,"Project total area (active units)",{"$f":"IF(ProjectMethod=SBS,'Interior - Space-By-Space'!$J$65,IF(ProjectMethod=BAM,SUM('Interior - Building Area Method'!$C$14,'Interior - Building Area Method'!$E$14,'Interior - Building Area Method'!$G$14,'Interior - Building Area Method'!$I$14,'Interior - Building Area Method'!$K$14),0))+Exterior!$G$54","v":0}]
[null,"Lighting Controls",{"$f":"IF((H16+H18)<0,0,H16+H18)","v":0}]

{"sheet":"Luminaire Schedule","index":2,"n_rows":157,"n_cols":9,"rows_kept":157,"cut":false,"hidden":false,"merged":[[3,1,3,2],[0,1,0,8],[1,1,1,8]]}
[null,"BC Hydro Power Smart Commercial New Construction Program"]
[null,"New Construction Lighting Calculator"]
[null,{"$f":"'Basic Lists'!A100","v":"BC Hydro Power Smart CNC LC v.3.1"}]
[null,"Luminaire Schedule"]
["Example","A1","4' suspended ",28,2,"T8 Fluor linear ","HE-PrS-NBF",48,100]
[null,"Luminaire Type","Luminaire Description","Lamp Wattage","Number of Lamps","Technology Type","Ballast Type","Total Wattage","# of Luminaires"]
[null,null,null,null,null,null,null,null,{"$f":"IF(ProjectMethod=SBS,SUM(SUMIF('Interior - Space-By-Space'!$M$16:OFFSET('Interior - Space-By-Space'!$M$65,-1,0),$B7,'Interior - Space-By-Space'!$O$16:OFFSET('Interior - Space-By-Space'!$O$65,-1,0)),SUMIF('Interior - Space-By-Space'!$Q$16:OFFSET('Interior - Space-By-Space'!$Q$65,-1,0),$B7,'Interior - Space-By-Space'!$S$16:OFFSET('Interior - Space-By-Space'!$S$65,-1,0)),SUMIF('Interior - Space-By-Space'!$U$16:OFFSET('Interior - Space-By-Space'!$U$65,-1,0),$B7,'Interior - Space-By-Space'!$W$16:OFFSET('Interior - Space-By-Space'!$W$65,-1,0)),SUMIF('Interior - Space-By-Space'!$Y$16:OFFSET('Interior - Space-By-Space'!$Y$65,-1,0),$B7,'Interior - Space-By-Space'!$AA$16:OFFSET('Interior - Space-By-Space'!$AA$65,-1,0)),SUMIF('Interior - Space-By-Space'!$AC$16:OFFSET('Interior - Space-By-Space'!$AC$65,-1,0),$B7,'Interior - Space-By-Space'!$AE$16:OFFSET('Interior - Space-By-Space'!$AE$65,-1,0)),SUMIF('Interior - Space-By-Space'!$AG$16:OFFSET('Interior - Space-By-Space'!$AG$65,-1,0),$B7,'Interior - Space-By-Space'!$AI$16:OFFSET('Interior - Space-By-Space'!$AI$65,-1,0)),SUMIF('Interior - Space-By-Space'!$AK$16:OFFSET('Interior - Space-By-Space'!$AK$65,-1,0),$B7,'Interior - Space-By-Space'!$AM$16:OFFSET('Interior - Space-By-Space'!$AM$65,-1,0)),SUMIF('Interior - Space-By-Space'!$AO$16:OFFSET('Interior - Space-By-Space'!$AO$65,-1,0),$B7,'Interior - Space-By-Space'!$AQ$16:OFFSET('Interior - Space-By-Space'!$AQ$65,-1,0))),IF(ProjectMethod=BAM,SUM('Interior - Building Area Method'!$C18,'Interior - Building Area Method'!$E18,'Interior - Building Area Method'!$G18,'Interior - Building Area Method'!$I18,'Interior - Building Area Method'!$K18),0))+SUM(SUMIF(Exterior!$J$19:$J$53,$B7,Exterior!$K$19:$K$53),SUMIF(Exterior!$M$19:$M$53,$B7,Exterior!$N$19:$N$53),SUMIF(Exterior!$P$19:$P$53,$B7,Exterior!$Q$19:$Q$53),SUMIF(Exterior!$S$19:$S$53,$B7,Exterior!$T$19:$T$53),SUMIF(Exterior!$V$19:$V$53,$B7,Exterior!$W$19:$W$53))","v":0}]
[null,null,null,null,null,null,null,null,{"$f":"IF(ProjectMethod=SBS,SUM(SUMIF('Interior - Space-By-Space'!$M$16:OFFSET('Interior - Space-By-Space'!$M$65,-1,0),$B8,'Interior - Space-By-Space'!$O$16:OFFSET('Interior - Space-By-Space'!$O$65,-1,0)),SUMIF('Interior - Space-By-Space'!$Q$16:OFFSET('Interior - Space-By-Space'!$Q$65,-1,0),$B8,'Interior - Space-By-Space'!$S$16:OFFSET('Interior - Space-By-Space'!$S$65,-1,0)),SUMIF('Interior - Space-By-Space'!$U$16:OFFSET('Interior - Space-By-Space'!$U$65,-1,0),$B8,'Interior - Space-By-Space'!$W$16:OFFSET('Interior - Space-By-Space'!$W$65,-1,0)),SUMIF('Interior - Space-By-Space'!$Y$16:OFFSET('Interior - Space-By-Space'!$Y$65,-1,0),$B8,'Interior - Space-By-Space'!$AA$16:OFFSET('Interior - Space-By-Space'!$AA$65,-1,0)),SUMIF('Interior - Space-By-Space'!$AC$16:OFFSET('Interior - Space-By-Space'!$AC$65,-1,0),$B8,'Interior - Space-By-Space'!$AE$16:OFFSET('Interior - Space-By-Space'!$AE$65,-1,0)),SUMIF('Interior - Space-By-Space'!$AG$16:OFFSET('Interior - Space-By-Space'!$AG$65,-1,0),$B8,'Interior - Space-By-Space'!$AI$16:OFFSET('Interior - Space-By-Space'!$AI$65,-1,0)),SUMIF('Interior - Space-By-Space'!$AK$16:OFFSET('Interior - Space-By-Space'!$AK$65,-1,0),$B8,'Interior - Space-By-Space'!$AM$16:OFFSET('Interior - Space-By-Space'!$AM$65,-1,0)),SUMIF('Interior - Space-By-Space'!$AO$16:OFFSET('Interior - Space-By-Space'!$AO$65,-1,0),$B8,'Interior - Space-By-Space'!$AQ$16:OFFSET('Interior - Space-By-Space'!$AQ$65,-1,0))),IF(ProjectMethod=BAM,SUM('Interior - Building Area Method'!$C19,'Interior - Building Area Method'!$E19,'Interior - Building Area Method'!$G19,'Interior - Building Area Method'!$I19,'Interior - Building Area Method'!$K19),0))+SUM(SUMIF(Exterior!$J$19:$J$53,$B8,Exterior!$K$19:$K$53),SUMIF(Exterior!$M$19:$M$53,$B8,Exterior!$N$19:$N$53),SUMIF(Exterior!$P$19:$P$53,$B8,Exterior!$Q$19:$Q$53),SUMIF(Exterior!$S$19:$S$53,$B8,Exterior!$T$19:$T$53),SUMIF(Exterior!$V$19:$V$53,$B8,Exterior!$W$19:$W$53))","v":0}]
[null,null,null,null,null,null,null,null,{"$f":"IF(ProjectMethod=SBS,SUM(SUMIF('Interior - Space-By-Space'!$M$16:OFFSET('Interior - Space-By-Space'!$M$65,-1,0),$B9,'Interior - Space-By-Space'!$O$16:OFFSET('Interior - Space-By-Space'!$O$65,-1,0)),SUMIF('Interior - Space-By-Space'!$Q$16:OFFSET('Interior - Space-By-Space'!$Q$65,-1,0),$B9,'Interior - Space-By-Space'!$S$16:OFFSET('Interior - Space-By-Space'!$S$65,-1,0)),SUMIF('Interior - Space-By-Space'!$U$16:OFFSET('Interior - Space-By-Space'!$U$65,-1,0),$B9,'Interior - Space-By-Space'!$W$16:OFFSET('Interior - Space-By-Space'!$W$65,-1,0)),SUMIF('Interior - Space-By-Space'!$Y$16:OFFSET('Interior - Space-By-Space'!$Y$65,-1,0),$B9,'Interior - Space-By-Space'!$AA$16:OFFSET('Interior - Space-By-Space'!$AA$65,-1,0)),SUMIF('Interior - Space-By-Space'!$AC$16:OFFSET('Interior - Space-By-Space'!$AC$65,-1,0),$B9,'Interior - Space-By-Space'!$AE$16:OFFSET('Interior - Space-By-Space'!$AE$65,-1,0)),SUMIF('Interior - Space-By-Space'!$AG$16:OFFSET('Interior - Space-By-Space'!$AG$65,-1,0),$B9,'Interior - Space-By-Space'!$AI$16:OFFSET('Interior - Space-By-Space'!$AI$65,-1,0)),SUMIF('Interior - Space-By-Space'!$AK$16:OFFSET('Interior - Space-By-Space'!$AK$65,-1,0),$B9,'Interior - Space-By-Space'!$AM$16:OFFSET('Interior - Space-By-Space'!$AM$65,-1,0)),SUMIF('Interior - Space-By-Space'!$AO$16:OFFSET('Interior - Space-By-Space'!$AO$65,-1,0),$B9,'Interior - Space-By-Space'!$AQ$16:OFFSET('Interior - Space-By-Space'!$AQ$65,-1,0))),IF(ProjectMethod=BAM,SUM('Interior - Building Area Method'!$C20,'Interior - Building Area Method'!$E20,'Interior - Building Area Method'!$G20,'Interior - Building Area Method'!$I20,'Interior - Building Area Method'!$K20),0))+SUM(SUMIF(Exterior!$J$19:$J$53,$B9,Exterior!$K$19:$K$53),SUMIF(Exterior!$M$19:$M$53,$B9,Exterior!$N$19:$N$53),SUMIF(Exterior!$P$19:$P$53,$B9,Exterior!$Q$19:$Q$53),SUMIF(Exterior!$S$19:$S$53,$B9,Exterior!$T$19:$T$53),SUMIF(Exterior!$V$19:$V$53,$B9,Exterior!$W$19:$W$53))","v":0}]
[null,null,null,null,null,null,null,null,{"$f":"IF(ProjectMethod=SBS,SUM(SUMIF('Interior - Space-By-Space'!$M$16:OFFSET('Interior - Space-By-Space'!$M$65,-1,0),$B10,'Interior - Space-By-Space'!$O$16:OFFSET('Interior - Space-By-Space'!$O$65,-1,0)),SUMIF('Interior - Space-By-Space'!$Q$16:OFFSET('Interior - Space-By-Space'!$Q$65,-1,0),$B10,'Interior - Space-By-Space'!$S$16:OFFSET('Interior - Space-By-Space'!$S$65,-1,0)),SUMIF('Interior - Space-By-Space'!$U$16:OFFSET('Interior - Space-By-Space'!$U$65,-1,0),$B10,'Interior - Space-By-Space'!$W$16:OFFSET('Interior - Space-By-Space'!$W$65,-1,0)),SUMIF('Interior - Space-By-Space'!$Y$16:OFFSET('Interior - Space-By-Space'!$Y$65,-1,0),$B10,'Interior - Space-By-Space'!$AA$16:OFFSET('Interior - Space-By-Space'!$AA$65,-1,0)),SUMIF('Interior - Space-By-Space'!$AC$16:OFFSET('Interior - Space-By-Space'!$AC$65,-1,0),$B10,'Interior - Space-By-Space'!$AE$16:OFFSET('Interior - Space-By-Space'!$AE$65,-1,0)),SUMIF('Interior - Space-By-Space'!$AG$16:OFFSET('Interior - Space-By-Space'!$AG$65,-1,0),$B10,'Interior - Space-By-Space'!$AI$16:OFFSET('Interior - Space-By-Space'!$AI$65,-1,0)),SUMIF('Interior - Space-By-Space'!$AK$16:OFFSET('Interior - Space-By-Space'!$AK$65,-1,0),$B10,'Interior - Space-By-Space'!$AM$16:OFFSET('Interior - Space-By-Space'!$AM$65,-1,0)),SUMIF('Interior - Space-By-Space'!$AO$16:OFFSET('Interior - Space-By-Space'!$AO$65,-1,0),$B10,'Interior - Space-By-Space'!$AQ$16:OFFSET('Interior - Space-By-Space'!$AQ$65,-1,0))),IF(ProjectMethod=BAM,SUM('Interior - Building Area Method'!$C21,'Interior - Building Area Method'!$E21,'Interior - Building Area Method'!$G21,'Interior - Building Area Method'!$I21,'Interior - Building Area Method'!$K21),0))+SUM(SUMIF(Exterior!$J$19:$J$53,$B10,Exterior!$K$19:$K$53),SUMIF(Exterior!$M$19:$M$53,$B10,Exterior!$N$19:$N$53),SUMIF(Exterior!$P$19:$P$53,$B10,Exterior!$Q$19:$Q$53),SUMIF(Exterior!$S$19:$S$53,$B10,Exterior!$T$19:$T$53),SUMIF(Exterior!$V$19:$V$53,$B10,Exterior!$W$19:$W$53))","v":0}]
[null,null,null,null,null,null,null,null,{"$f":"IF(ProjectMethod=SBS,SUM(SUMIF('Interior - Space-By-Space'!$M$16:OFFSET('Interior - Space-By-Space'!$M$65,-1,0),$B11,'Interior - Space-By-Space'!$O$16:OFFSET('Interior - Space-By-Space'!$O$65,-1,0)),SUMIF('Interior - Space-By-Space'!$Q$16:OFFSET('Interior - Space-By-Space'!$Q$65,-1,0),$B11,'Interior - Space-By-Space'!$S$16:OFFSET('Interior - Space-By-Space'!$S$65,-1,0)),SUMIF('Interior - Space-By-Space'!$U$16:OFFSET('Interior - Space-By-Space'!$U$65,-1,0),$B11,'Interior - Space-By-Space'!$W$16:OFFSET('Interior - Space-By-Space'!$W$65,-1,0)),SUMIF('Interior - Space-By-Space'!$Y$16:OFFSET('Interior - Space-By-Space'!$Y$65,-1,0),$B11,'Interior - Space-By-Space'!$AA$16:OFFSET('Interior - Space-By-Space'!$AA$65,-1,0)),SUMIF('Interior - Space-By-Space'!$AC$16:OFFSET('Interior - Space-By-Space'!$AC$65,-1,0),$B11,'Interior - Space-By-Space'!$AE$16:OFFSET('Interior - Space-By-Space'!$AE$65,-1,0)),SUMIF('Interior - Space-By-Space'!$AG$16:OFFSET('Interior - Space-By-Space'!$AG$65,-1,0),$B11,'Interior - Space-By-Space'!$AI$16:OFFSET('Interior - Space-By-Space'!$AI$65,-1,0)),SUMIF('Interior - Space-By-Space'!$AK$16:OFFSET('Interior - Space-By-Space'!$AK$65,-1,0),$B11,'Interior - Space-By-Space'!$AM$16:OFFSET('Interior - Space-By-Space'!$AM$65,-1,0)),SUMIF('Interior - Space-By-Space'!$AO$16:OFFSET('Interior - Space-By-Space'!$AO$65,-1,0),$B11,'Interior - Space-By-Space'!$AQ$16:OFFSET('Interior - Space-By-Space'!$AQ$65,-1,0))),IF(ProjectMethod=BAM,SUM('Interior - Building Area Method'!$C22,'Interior - Building Area Method'!$E22,'Interior - Building Area Method'!$G22,'Interior - Building Area Method'!$I22,'Interior - Building Area Method'!$K22),0))+SUM(SUMIF(Exterior!$J$19:$J$53,$B11,Exterior!$K$19:$K$53),SUMIF(Exterior!$M$19:$M$53,$B11,Exterior!$N$19:$N$53),SUMIF(Exterior!$P$19:$P$53,$B11,Exterior!$Q$19:$Q$53),SUMIF(Exterior!$S$19:$S$53,$B11,Exterior!$T$19:$T$53),SUMIF(Exterior!$V$19:$V$53,$B11,Exterior!$W$19:$W$53))","v":0}]
[null,null,null,null,null,null,null,null,{"$f":"IF(ProjectMethod=SBS,SUM(SUMIF('Interior - Space-By-Space'!$M$16:OFFSET('Interior - Space-By-Space'!$M$65,-1,0),$B12,'Interior - Space-By-Space'!$O$16:OFFSET('Interior - Space-By-Space'!$O$65,-1,0)),SUMIF('Interior - Space-By-Space'!$Q$16:OFFSET('Interior - Space-By-Space'!$Q$65,-1,0),$B12,'Interior - Space-By-Space'!$S$16:OFFSET('Interior - Space-By-Space'!$S$65,-1,0)),SUMIF('Interior - Space-By-Space'!$U$16:OFFSET('Interior - Space-By-Space'!$U$65,-1,0),$B12,'Interior - Space-By-Space'!$W$16:OFFSET('Interior - Space-By-Space'!$W$65,-1,0)),SUMIF('Interior - Space-By-Space'!$Y$16:OFFSET('Interior - Space-By-Space'!$Y$65,-1,0),$B12,'Interior - Space-By-Space'!$AA$16:OFFSET('Interior - Space-By-Space'!$AA$65,-1,0)),SUMIF('Interior - Space-By-Space'!$AC$16:OFFSET('Interior - Space-By-Space'!$AC$65,-1,0),$B12,'Interior - Space-By-Space'!$AE$16:OFFSET('Interior - Space-By-Space'!$AE$65,-1,0)),SUMIF('Interior - Space-By-Space'!$AG$16:OFFSET('Interior - Space-By-Space'!$AG$65,-1,0),$B12,'Interior - Space-By-Space'!$AI$16:OFFSET('Interior - Space-By-Space'!$AI$65,-1,0)),SUMIF('Interior - Space-By-Space'!$AK$16:OFFSET('Interior - Space-By-Space'!$AK$65,-1,0),$B12,'Interior - Space-By-Space'!$AM$16:OFFSET('Interior - Space-By-Space'!$AM$65,-1,0)),SUMIF('Interior - Space-By-Space'!$AO$16:OFFSET('Interior - Space-By-Space'!$AO$65,-1,0),$B12,'Interior - Space-By-Space'!$AQ$16:OFFSET('Interior - Space-By-Space'!$AQ$65,-1,0))),IF(ProjectMethod=BAM,SUM('Interior - Building Area Method'!$C23,'Interior - Building Area Method'!$E23,'Interior - Building Area Method'!$G23,'Interior - Building Area Method'!$I23,'Interior - Building Area Method'!$K23),0))+SUM(SUMIF(Exterior!$J$19:$J$53,$B12,Exterior!$K$19:$K$53),SUMIF(Exterior!$M$19:$M$53,$B12,Exterior!$N$19:$N$53),SUMIF(Exterior!$P$19:$P$53,$B12,Exterior!$Q$19:$Q$53),SUMIF(Exterior!$S$19:$S$53,$B12,Exterior!$T$19:$T$53),SUMIF(Exterior!$V$19:$V$53,$B12,Exterior!$W$19:$W$53))","v":0}]
[null,null,null,null,null,null,null,null,{"$f":"IF(ProjectMethod=SBS,SUM(SUMIF('Interior - Space-By-Space'!$M$16:OFFSET('Interior - Space-By-Space'!$M$65,-1,0),$B13,'Interior - Space-By-Space'!$O$16:OFFSET('Interior - Space-By-Space'!$O$65,-1,0)),SUMIF('Interior - Space-By-Space'!$Q$16:OFFSET('Interior - Space-By-Space'!$Q$65,-1,0),$B13,'Interior - Space-By-Space'!$S$16:OFFSET('Interior - Space-By-Space'!$S$65,-1,0)),SUMIF('Interior - Space-By-Space'!$U$16:OFFSET('Interior - Space-By-Space'!$U$65,-1,0),$B13,'Interior - Space-By-Space'!$W$16:OFFSET('Interior - Space-By-Space'!$W$65,-1,0)),SUMIF('Interior - Space-By-Space'!$Y$16:OFFSET('Interior - Space-By-Space'!$Y$65,-1,0),$B13,'Interior - Space-By-Space'!$AA$16:OFFSET('Interior - Space-By-Space'!$AA$65,-1,0)),SUMIF('Interior - Space-By-Space'!$AC$16:OFFSET('Interior - Space-By-Space'!$AC$65,-1,0),$B13,'Interior - Space-By-Space'!$AE$16:OFFSET('Interior - Space-By-Space'!$AE$65,-1,0)),SUMIF('Interior - Space-By-Space'!$AG$16:OFFSET('Interior - Space-By-Space'!$AG$65,-1,0),$B13,'Interior - Space-By-Space'!$AI$16:OFFSET('Interior - Space-By-Space'!$AI$65,-1,0)),SUMIF('Interior - Space-By-Space'!$AK$16:OFFSET('Interior - Space-By-Space'!$AK$65,-1,0),$B13,'Interior - Space-By-Space'!$AM$16:OFFSET('Interior - Space-By-Space'!$AM$65,-1,0)),SUMIF('Interior - Space-By-Space'!$AO$16:OFFSET('Interior - Space-By-Space'!$AO$65,-1,0),$B13,'Interior - Space-By-Space'!$AQ$16:OFFSET('Interior - Space-By-Space'!$AQ$65,-1,0))),IF(ProjectMethod=BAM,SUM('Interior - Building Area Method'!$C24,'Interior - Building Area Method'!$E24,'Interior - Building Area Method'!$G24,'Interior - Building Area Method'!$I24,'Interior - Building Area Method'!$K24),0))+SUM(SUMIF(Exterior!$J$19:$J$53,$B13,Exterior!$K$19:$K$53),SUMIF(Exterior!$M$19:$M$53,$B13,Exterior!$N$19:$N$53),SUMIF(Exterior!$P$19:$P$53,$B13,Exterior!$Q$19:$Q$53),SUMIF(Exterior!$S$19:$S$53,$B13,Exterior!$T$19:$T$53),SUMIF(Exterior!$V$19:$V$53,$B13,Exterior!$W$19:$W$53))","v":0}]
[null,null,null,null,null,null,null,null,{"$f":"IF(ProjectMethod=SBS,SUM(SUMIF('Interior - Space-By-Space'!$M$16:OFFSET('Interior - Space-By-Space'!$M$65,-1,0),$B14,'Interior - Space-By-Space'!$O$16:OFFSET('Interior - Space-By-Space'!$O$65,-1,0)),SUMIF('Interior - Space-By-Space'!$Q$16:OFFSET('Interior - Space-By-Space'!$Q$65,-1,0),$B14,'Interior - Space-By-Space'!$S$16:OFFSET('Interior - Space-By-Space'!$S$65,-1,0)),SUMIF('Interior - Space-By-Space'!$U$16:OFFSET('Interior - Space-By-Space'!$U$65,-1,0),$B14,'Interior - Space-By-Space'!$W$16:OFFSET('Interior - Space-By-Space'!$W$65,-1,0)),SUMIF('Interior - Space-By-Space'!$Y$16:OFFSET('Interior - Space-By-Space'!$Y$65,-1,0),$B14,'Interior - Space-By-Space'!$AA$16:OFFSET('Interior - Space-By-Space'!$AA$65,-1,0)),SUMIF('Interior - Space-By-Space'!$AC$16:OFFSET('Interior - Space-By-Space'!$AC$65,-1,0),$B14,'Interior - Space-By-Space'!$AE$16:OFFSET('Interior - Space-By-Space'!$AE$65,-1,0)),SUMIF('Interior - Space-By-Space'!$AG$16:OFFSET('Interior - Space-By-Space'!$AG$65,-1,0),$B14,'Interior - Space-By-Space'!$AI$16:OFFSET('Interior - Space-By-Space'!$AI$65,-1,0)),SUMIF('Interior - Space-By-Space'!$AK$16:OFFSET('Interior - Space-By-Space'!$AK$65,-1,0),$B14,'Interior - Space-By-Space'!$AM$16:OFFSET('Interior - Space-By-Space'!$AM$65,-1,0)),SUMIF('Interior - Space-By-Space'!$AO$16:OFFSET('Interior - Space-By-Space'!$AO$65,-1,0),$B14,'Interior - Space-By-Space'!$AQ$16:OFFSET('Interior - Space-By-Space'!$AQ$65,-1,0))),IF(ProjectMethod=BAM,SUM('Interior - Building Area Method'!$C25,'Interior - Building Area Method'!$E25,'Interior - Building Area Method'!$G25,'Interior - Building Area Method'!$I25,'Interior - Building Area Method'!$K25),0))+SUM(SUMIF(Exterior!$J$19:$J$53,$B14,Exterior!$K$19:$K$53),SUMIF(Exterior!$M$19:$M$53,$B14,Exterior!$N$19:$N$53),SUMIF(Exterior!$P$19:$P$53,$B14,Exterior!$Q$19:$Q$53),SUMIF(Exterior!$S$19:$S$53,$B14,Exterior!$T$19:$T$53),SUMIF(Exterior!$V$19:$V$53,$B14,Exterior!$W$19:$W$53))","v":0}]
[null,null,null,null,null,null,null,null,{"$f":"IF(ProjectMethod=SBS,SUM(SUMIF('Interior - Space-By-Space'!$M$16:OFFSET('Interior - Space-By-Space'!$M$65,-1,0),$B15,'Interior - Space-By-Space'!$O$16:OFFSET('Interior - Space-By-Space'!$O$65,-1,0)),SUMIF('Interior - Space-By-Space'!$Q$16:OFFSET('Interior - Space-By-Space'!$Q$65,-1,0),$B15,'Interior - Space-By-Space'!$S$16:OFFSET('Interior - Space-By-Space'!$S$65,-1,0)),SUMIF('Interior - Space-By-Space'!$U$16:OFFSET('Interior - Space-By-Space'!$U$65,-1,0),$B15,'Interior - Space-By-Space'!$W$16:OFFSET('Interior - Space-By-Space'!$W$65,-1,0)),SUMIF('Interior - Space-By-Space'!$Y$16:OFFSET('Interior - Space-By-Space'!$Y$65,-1,0),$B15,'Interior - Space-By-Space'!$AA$16:OFFSET('Interior - Space-By-Space'!$AA$65,-1,0)),SUMIF('Interior - Space-By-Space'!$AC$16:OFFSET('Interior - Space-By-Space'!$AC$65,-1,0),$B15,'Interior - Space-By-Space'!$AE$16:OFFSET('Interior - Space-By-Space'!$AE$65,-1,0)),SUMIF('Interior - Space-By-Space'!$AG$16:OFFSET('Interior - Space-By-Space'!$AG$65,-1,0),$B15,'Interior - Space-By-Space'!$AI$16:OFFSET('Interior - Space-By-Space'!$AI$65,-1,0)),SUMIF('Interior - Space-By-Space'!$AK$16:OFFSET('Interior - Space-By-Space'!$AK$65,-1,0),$B15,'Interior - Space-By-Space'!$AM$16:OFFSET('Interior - Space-By-Space'!$AM$65,-1,0)),SUMIF('Interior - Space-By-Space'!$AO$16:OFFSET('Interior - Space-By-Space'!$AO$65,-1,0),$B15,'Interior - Space-By-Space'!$AQ$16:OFFSET('Interior - Space-By-Space'!$AQ$65,-1,0))),IF(ProjectMethod=BAM,SUM('Interior - Building Area Method'!$C26,'Interior - Building Area Method'!$E26,'Interior - Building Area Method'!$G26,'Interior - Building Area Method'!$I26,'Interior - Building Area Method'!$K26),0))+SUM(SUMIF(Exterior!$J$19:$J$53,$B15,Exterior!$K$19:$K$53),SUMIF(Exterior!$M$19:$M$53,$B15,Exterior!$N$19:$N$53),SUMIF(Exterior!$P$19:$P$53,$B15,Exterior!$Q$19:$Q$53),SUMIF(Exterior!$S$19:$S$53,$B15,Exterior!$T$19:$T$53),SUMIF(Exterior!$V$19:$V$53,$B15,Exterior!$W$19:$W$53))","v":0}]
[null,null,null,null,null,null,null,null,{"$f":"IF(ProjectMethod=SBS,SUM(SUMIF('Interior - Space-By-Space'!$M$16:OFFSET('Interior - Space-By-Space'!$M$65,-1,0),$B16,'Interior - Space-By-Space'!$O$16:OFFSET('Interior - Space-By-Space'!$O$65,-1,0)),SUMIF('Interior - Space-By-Space'!$Q$16:OFFSET('Interior - Space-By-Space'!$Q$65,-1,0),$B16,'Interior - Space-By-Space'!$S$16:OFFSET('Interior - Space-By-Space'!$S$65,-1,0)),SUMIF('Interior - Space-By-Space'!$U$16:OFFSET('Interior - Space-By-Space'!$U$65,-1,0),$B16,'Interior - Space-By-Space'!$W$16:OFFSET('Interior - Space-By-Space'!$W$65,-1,0)),SUMIF('Interior - Space-By-Space'!$Y$16:OFFSET('Interior - Space-By-Space'!$Y$65,-1,0),$B16,'Interior - Space-By-Space'!$AA$16:OFFSET('Interior - Space-By-Space'!$AA$65,-1,0)),SUMIF('Interior - Space-By-Space'!$AC$16:OFFSET('Interior - Space-By-Space'!$AC$65,-1,0),$B16,'Interior - Space-By-Space'!$AE$16:OFFSET('Interior - Space-By-Space'!$AE$65,-1,0)),SUMIF('Interior - Space-By-Space'!$AG$16:OFFSET('Interior - Space-By-Space'!$AG$65,-1,0),$B16,'Interior - Space-By-Space'!$AI$16:OFFSET('Interior - Space-By-Space'!$AI$65,-1,0)),SUMIF('Interior - Space-By-Space'!$AK$16:OFFSET('Interior - Space-By-Space'!$AK$65,-1,0),$B16,'Interior - Space-By-Space'!$AM$16:OFFSET('Interior - Space-By-Space'!$AM$65,-1,0)),SUMIF('Interior - Space-By-Space'!$AO$16:OFFSET('Interior - Space-By-Space'!$AO$65,-1,0),$B16,'Interior - Space-By-Space'!$AQ$16:OFFSET('Interior - Space-By-Space'!$AQ$65,-1,0))),IF(ProjectMethod=BAM,SUM('Interior - Building Area Method'!$C27,'Interior - Building Area Method'!$E27,'Interior - Building Area Method'!$G27,'Interior - Building Area Method'!$I27,'Interior - Building Area Method'!$K27),0))+SUM(SUMIF(Exterior!$J$19:$J$53,$B16,Exterior!$K$19:$K$53),SUMIF(Exterior!$M$19:$M$53,$B16,Exterior!$N$19:$N$53),SUMIF(Exterior!$P$19:$P$53,$B16,Exterior!$Q$19:$Q$53),SUMIF(Exterior!$S$19:$S$53,$B16,Exterior!$T$19:$T$53),SUMIF(Exterior!$V$19:$V$53,$B16,Exterior!$W$19:$W$53))","v":0}]
[null,null,null,null,null,null,null,null,{"$f":"IF(ProjectMethod=SBS,SUM(SUMIF('Interior - Space-By-Space'!$M$16:OFFSET('Interior - Space-By-Space'!$M$65,-1,0),$B17,'Interior - Space-By-Space'!$O$16:OFFSET('Interior - Space-By-Space'!$O$65,-1,0)),SUMIF('Interior - Space-By-Space'!$Q$16:OFFSET('Interior - Space-By-Space'!$Q$65,-1,0),$B17,'Interior - Space-By-Space'!$S$16:OFFSET('Interior - Space-By-Space'!$S$65,-1,0)),SUMIF('Interior - Space-By-Space'!$U$16:OFFSET('Interior - Space-By-Space'!$U$65,-1,0),$B17,'Interior - Space-By-Space'!$W$16:OFFSET('Interior - Space-By-Space'!$W$65,-1,0)),SUMIF('Interior - Space-By-Space'!$Y$16:OFFSET('Interior - Space-By-Space'!$Y$65,-1,0),$B17,'Interior - Space-By-Space'!$AA$16:OFFSET('Interior - Space-By-Space'!$AA$65,-1,0)),SUMIF('Interior - Space-By-Space'!$AC$16:OFFSET('Interior - Space-By-Space'!$AC$65,-1,0),$B17,'Interior - Space-By-Space'!$AE$16:OFFSET('Interior - Space-By-Space'!$AE$65,-1,0)),SUMIF('Interior - Space-By-Space'!$AG$16:OFFSET('Interior - Space-By-Space'!$AG$65,-1,0),$B17,'Interior - Space-By-Space'!$AI$16:OFFSET('Interior - Space-By-Space'!$AI$65,-1,0)),SUMIF('Interior - Space-By-Space'!$AK$16:OFFSET('Interior - Space-By-Space'!$AK$65,-1,0),$B17,'Interior - Space-By-Space'!$AM$16:OFFSET('Interior - Space-By-Space'!$AM$65,-1,0)),SUMIF('Interior - Space-By-Space'!$AO$16:OFFSET('Interior - Space-By-Space'!$AO$65,-1,0),$B17,'Interior - Space-By-Space'!$AQ$16:OFFSET('Interior - Space-By-Space'!$AQ$65,-1,0))),IF(ProjectMethod=BAM,SUM('Interior - Building Area Method'!$C28,'Interior - Building Area Method'!$E28,'Interior - Building Area Method'!$G28,'Interior - Building Area Method'!$I28,'Interior - Building Area Method'!$K28),0))+SUM(SUMIF(Exterior!$J$19:$J$53,$B17,Exterior!$K$19:$K$53),SUMIF(Exterior!$M$19:$M$53,$B17,Exterior!$N$19:$N$53),SUMIF(Exterior!$P$19:$P$53,$B17,Exterior!$Q$19:$Q$53),SUMIF(Exterior!$S$19:$S$53,$B17,Exterior!$T$19:$T$53),SUMIF(Exterior!$V$19:$V$53,$B17,Exterior!$W$19:$W$53))","v":0}]
[null,null,null,null,null,null,null,null,{"$f":"IF(ProjectMethod=SBS,SUM(SUMIF('Interior - Space-By-Space'!$M$16:OFFSET('Interior - Space-By-Space'!$M$65,-1,0),$B18,'Interior - Space-By-Space'!$O$16:OFFSET('Interior - Space-By-Space'!$O$65,-1,0)),SUMIF('Interior - Space-By-Space'!$Q$16:OFFSET('Interior - Space-By-Space'!$Q$65,-1,0),$B18,'Interior - Space-By-Space'!$S$16:OFFSET('Interior - Space-By-Space'!$S$65,-1,0)),SUMIF('Interior - Space-By-Space'!$U$16:OFFSET('Interior - Space-By-Space'!$U$65,-1,0),$B18,'Interior - Space-By-Space'!$W$16:OFFSET('Interior - Space-By-Space'!$W$65,-1,0)),SUMIF('Interior - Space-By-Space'!$Y$16:OFFSET('Interior - Space-By-Space'!$Y$65,-1,0),$B18,'Interior - Space-By-Space'!$AA$16:OFFSET('Interior - Space-By-Space'!$AA$65,-1,0)),SUMIF('Interior - Space-By-Space'!$AC$16:OFFSET('Interior - Space-By-Space'!$AC$65,-1,0),$B18,'Interior - Space-By-Space'!$AE$16:OFFSET('Interior - Space-By-Space'!$AE$65,-1,0)),SUMIF('Interior - Space-By-Space'!$AG$16:OFFSET('Interior - Space-By-Space'!$AG$65,-1,0),$B18,'Interior - Space-By-Space'!$AI$16:OFFSET('Interior - Space-By-Space'!$AI$65,-1,0)),SUMIF('Interior - Space-By-Space'!$AK$16:OFFSET('Interior - Space-By-Space'!$AK$65,-1,0),$B18,'Interior - Space-By-Space'!$AM$16:OFFSET('Interior - Space-By-Space'!$AM$65,-1,0)),SUMIF('Interior - Space-By-Space'!$AO$16:OFFSET('Interior - Space-By-Space'!$AO$65,-1,0),$B18,'Interior - Space-By-Space'!$AQ$16:OFFSET('Interior - Space-By-Space'!$AQ$65,-1,0))),IF(ProjectMethod=BAM,SUM('Interior - Building Area Method'!$C29,'Interior - Building Area Method'!$E29,'Interior - Building Area Method'!$G29,'Interior - Building Area Method'!$I29,'Interior - Building Area Method'!$K29),0))+SUM(SUMIF(Exterior!$J$19:$J$53,$B18,Exterior!$K$19:$K$53),SUMIF(Exterior!$M$19:$M$53,$B18,Exterior!$N$19:$N$53),SUMIF(Exterior!$P$19:$P$53,$B18,Exterior!$Q$19:$Q$53),SUMIF(Exterior!$S$19:$S$53,$B18,Exterior!$T$19:$T$53),SUMIF(Exterior!$V$19:$V$53,$B18,Exterior!$W$19:$W$53))","v":0}]
[null,null,null,null,null,null,null,null,{"$f":"IF(ProjectMethod=SBS,SUM(SUMIF('Interior - Space-By-Space'!$M$16:OFFSET('Interior - Space-By-Space'!$M$65,-1,0),$B19,'Interior - Space-By-Space'!$O$16:OFFSET('Interior - Space-By-Space'!$O$65,-1,0)),SUMIF('Interior - Space-By-Space'!$Q$16:OFFSET('Interior - Space-By-Space'!$Q$65,-1,0),$B19,'Interior - Space-By-Space'!$S$16:OFFSET('Interior - Space-By-Space'!$S$65,-1,0)),SUMIF('Interior - Space-By-Space'!$U$16:OFFSET('Interior - Space-By-Space'!$U$65,-1,0),$B19,'Interior - Space-By-Space'!$W$16:OFFSET('Interior - Space-By-Space'!$W$65,-1,0)),SUMIF('Interior - Space-By-Space'!$Y$16:OFFSET('Interior - Space-By-Space'!$Y$65,-1,0),$B19,'Interior - Space-By-Space'!$AA$16:OFFSET('Interior - Space-By-Space'!$AA$65,-1,0)),SUMIF('Interior - Space-By-Space'!$AC$16:OFFSET('Interior - Space-By-Space'!$AC$65,-1,0),$B19,'Interior - Space-By-Space'!$AE$16:OFFSET('Interior - Space-By-Space'!$AE$65,-1,0)),SUMIF('Interior - Space-By-Space'!$AG$16:OFFSET('Interior - Space-By-Space'!$AG$65,-1,0),$B19,'Interior - Space-By-Space'!$AI$16:OFFSET('Interior - Space-By-Space'!$AI$65,-1,0)),SUMIF('Interior - Space-By-Space'!$AK$16:OFFSET('Interior - Space-By-Space'!$AK$65,-1,0),$B19,'Interior - Space-By-Space'!$AM$16:OFFSET('Interior - Space-By-Space'!$AM$65,-1,0)),SUMIF('Interior - Space-By-Space'!$AO$16:OFFSET('Interior - Space-By-Space'!$AO$65,-1,0),$B19,'Interior - Space-By-Space'!$AQ$16:OFFSET('Interior - Space-By-Space'!$AQ$65,-1,0))),IF(ProjectMethod=BAM,SUM('Interior - Building Area Method'!$C30,'Interior - Building Area Method'!$E30,'Interior - Building Area Method'!$G30,'Interior - Building Area Method'!$I30,'Interior - Building Area Method'!$K30),0))+SUM(SUMIF(Exterior!$J$19:$J$53,$B19,Exterior!$K$19:$K$53),SUMIF(Exterior!$M$19:$M$53,$B19,Exterior!$N$19:$N$53),SUMIF(Exterior!$P$19:$P$53,$B19,Exterior!$Q$19:$Q$53),SUMIF(Exterior!$S$19:$S$53,$B19,Exterior!$T$19:$T$53),SUMIF(Exterior!$V$19:$V$53,$B19,Exterior!$W$19:$W$53))","v":0}]
[null,null,null,null,null,null,null,null,{"$f":"IF(ProjectMethod=SBS,SUM(SUMIF('Interior - Space-By-Space'!$M$16:OFFSET('Interior - Space-By-Space'!$M$65,-1,0),$B20,'Interior - Space-By-Space'!$O$16:OFFSET('Interior - Space-By-Space'!$O$65,-1,0)),SUMIF('Interior - Space-By-Space'!$Q$16:OFFSET('Interior - Space-By-Space'!$Q$65,-1,0),$B20,'Interior - Space-By-Space'!$S$16:OFFSET('Interior - Space-By-Space'!$S$65,-1,0)),SUMIF('Interior - Space-By-Space'!$U$16:OFFSET('Interior - Space-By-Space'!$U$65,-1,0),$B20,'Interior - Space-By-Space'!$W$16:OFFSET('Interior - Space-By-Space'!$W$65,-1,0)),SUMIF('Interior - Space-By-Space'!$Y$16:OFFSET('Interior - Space-By-Space'!$Y$65,-1,0),$B20,'Interior - Space-By-Space'!$AA$16:OFFSET('Interior - Space-By-Space'!$AA$65,-1,0)),SUMIF('Interior - Space-By-Space'!$AC$16:OFFSET('Interior - Space-By-Space'!$AC$65,-1,0),$B20,'Interior - Space-By-Space'!$AE$16:OFFSET('Interior - Space-By-Space'!$AE$65,-1,0)),SUMIF('Interior - Space-By-Space'!$AG$16:OFFSET('Interior - Space-By-Space'!$AG$65,-1,0),$B20,'Interior - Space-By-Space'!$AI$16:OFFSET('Interior - Space-By-Space'!$AI$65,-1,0)),SUMIF('Interior - Space-By-Space'!$AK$16:OFFSET('Interior - Space-By-Space'!$AK$65,-1,0),$B20,'Interior - Space-By-Space'!$AM$16:OFFSET('Interior - Space-By-Space'!$AM$65,-1,0)),SUMIF('Interior - Space-By-Space'!$AO$16:OFFSET('Interior - Space-By-Space'!$AO$65,-1,0),$B20,'Interior - Space-By-Space'!$AQ$16:OFFSET('Interior - Space-By-Space'!$AQ$65,-1,0))),IF(ProjectMethod=BAM,SUM('Interior - Building Area Method'!$C31,'Interior - Building Area Method'!$E31,'Interior - Building Area Method'!$G31,'Interior - Building Area Method'!$I31,'Interior - Building Area Method'!$K31),0))+SUM(SUMIF(Exterior!$J$19:$J$53,$B20,Exterior!$K$19:$K$53),SUMIF(Exterior!$M$19:$M$53,$B20,Exterior!$N$19:$N$53),SUMIF(Exterior!$P$19:$P$53,$B20,Exterior!$Q$19:$Q$53),SUMIF(Exterior!$S$19:$S$53,$B20,Exterior!$T$19:$T$53),SUMIF(Exterior!$V$19:$V$53,$B20,Exterior!$W$19:$W$53))","v":0}]
[null,null,null,null,null,null,null,null,{"$f":"IF(ProjectMethod=SBS,SUM(SUMIF('Interior - Space-By-Space'!$M$16:OFFSET('Interior - Space-By-Space'!$M$65,-1,0),$B21,'Interior - Space-By-Space'!$O$16:OFFSET('Interior - Space-By-Space'!$O$65,-1,0)),SUMIF('Interior - Space-By-Space'!$Q$16:OFFSET('Interior - Space-By-Space'!$Q$65,-1,0),$B21,'Interior - Space-By-Space'!$S$16:OFFSET('Interior - Space-By-Space'!$S$65,-1,0)),SUMIF('Interior - Space-By-Space'!$U$16:OFFSET('Interior - Space-By-Space'!$U$65,-1,0),$B21,'Interior - Space-By-Space'!$W$16:OFFSET('Interior - Space-By-Space'!$W$65,-1,0)),SUMIF('Interior - Space-By-Space'!$Y$16:OFFSET('Interior - Space-By-Space'!$Y$65,-1,0),$B21,'Interior - Space-By-Space'!$AA$16:OFFSET('Interior - Space-By-Space'!$AA$65,-1,0)),SUMIF('Interior - Space-By-Space'!$AC$16:OFFSET('Interior - Space-By-Space'!$AC$65,-1,0),$B21,'Interior - Space-By-Space'!$AE$16:OFFSET('Interior - Space-By-Space'!$AE$65,-1,0)),SUMIF('Interior - Space-By-Space'!$AG$16:OFFSET('Interior - Space-By-Space'!$AG$65,-1,0),$B21,'Interior - Space-By-Space'!$AI$16:OFFSET('Interior - Space-By-Space'!$AI$65,-1,0)),SUMIF('Interior - Space-By-Space'!$AK$16:OFFSET('Interior - Space-By-Space'!$AK$65,-1,0),$B21,'Interior - Space-By-Space'!$AM$16:OFFSET('Interior - Space-By-Space'!$AM$65,-1,0)),SUMIF('Interior - Space-By-Space'!$AO$16:OFFSET('Interior - Space-By-Space'!$AO$65,-1,0),$B21,'Interior - Space-By-Space'!$AQ$16:OFFSET('Interior - Space-By-Space'!$AQ$65,-1,0))),IF(ProjectMethod=BAM,SUM('Interior - Building Area Method'!$C32,'Interior - Building Area Method'!$E32,'Interior - Building Area Method'!$G32,'Interior - Building Area Method'!$I32,'Interior - Building Area Method'!$K32),0))+SUM(SUMIF(Exterior!$J$19:$J$53,$B21,Exterior!$K$19:$K$53),SUMIF(Exterior!$M$19:$M$53,$B21,Exterior!$N$19:$N$53),SUMIF(Exterior!$P$19:$P$53,$B21,Exterior!$Q$19:$Q$53),SUMIF(Exterior!$S$19:$S$53,$B21,Exterior!$T$19:$T$53),SUMIF(Exterior!$V$19:$V$53,$B21,Exterior!$W$19:$W$53))","v":0}]
[null,null,null,null,null,null,null,null,{"$f":"IF(ProjectMethod=SBS,SUM(SUMIF('Interior - Space-By-Space'!$M$16:OFFSET('Interior - Space-By-Space'!$M$65,-1,0),$B22,'Interior - Space-By-Space'!$O$16:OFFSET('Interior - Space-By-Space'!$O$65,-1,0)),SUMIF('Interior - Space-By-Space'!$Q$16:OFFSET('Interior - Space-By-Space'!$Q$65,-1,0),$B22,'Interior - Space-By-Space'!$S$16:OFFSET('Interior - Space-By-Space'!$S$65,-1,0)),SUMIF('Interior - Space-By-Space'!$U$16:OFFSET('Interior - Space-By-Space'!$U$65,-1,0),$B22,'Interior - Space-By-Space'!$W$16:OFFSET('Interior - Space-By-Space'!$W$65,-1,0)),SUMIF('Interior - Space-By-Space'!$Y$16:OFFSET('Interior - Space-By-Space'!$Y$65,-1,0),$B22,'Interior - Space-By-Space'!$AA$16:OFFSET('Interior - Space-By-Space'!$AA$65,-1,0)),SUMIF('Interior - Space-By-Space'!$AC$16:OFFSET('Interior - Space-By-Space'!$AC$65,-1,0),$B22,'Interior - Space-By-Space'!$AE$16:OFFSET('Interior - Space-By-Space'!$AE$65,-1,0)),SUMIF('Interior - Space-By-Space'!$AG$16:OFFSET('Interior - Space-By-Space'!$AG$65,-1,0),$B22,'Interior - Space-By-Space'!$AI$16:OFFSET('Interior - Space-By-Space'!$AI$65,-1,0)),SUMIF('Interior - Space-By-Space'!$AK$16:OFFSET('Interior - Space-By-Space'!$AK$65,-1,0),$B22,'Interior - Space-By-Space'!$AM$16:OFFSET('Interior - Space-By-Space'!$AM$65,-1,0)),SUMIF('Interior - Space-By-Space'!$AO$16:OFFSET('Interior - Space-By-Space'!$AO$65,-1,0),$B22,'Interior - Space-By-Space'!$AQ$16:OFFSET('Interior - Space-By-Space'!$AQ$65,-1,0))),IF(ProjectMethod=BAM,SUM('Interior - Building Area Method'!$C33,'Interior - Building Area Method'!$E33,'Interior - Building Area Method'!$G33,'Interior - Building Area Method'!$I33,'Interior - Building Area Method'!$K33),0))+SUM(SUMIF(Exterior!$J$19:$J$53,$B22,Exterior!$K$19:$K$53),SUMIF(Exterior!$M$19:$M$53,$B22,Exterior!$N$19:$N$53),SUMIF(Exterior!$P$19:$P$53,$B22,Exterior!$Q$19:$Q$53),SUMIF(Exterior!$S$19:$S$53,$B22,Exterior!$T$19:$T$53),SUMIF(Exterior!$V$19:$V$53,$B22,Exterior!$W$19:$W$53))","v":0}]
[null,null,null,null,null,null,null,null,{"$f":"IF(ProjectMethod=SBS,SUM(SUMIF('Interior - Space-By-Space'!$M$16:OFFSET('Interior - Space-By-Space'!$M$65,-1,0),$B23,'Interior - Space-By-Space'!$O$16:OFFSET('Interior - Space-By-Space'!$O$65,-1,0)),SUMIF('Interior - Space-By-Space'!$Q$16:OFFSET('Interior - Space-By-Space'!$Q$65,-1,0),$B23,'Interior - Space-By-Space'!$S$16:OFFSET('Interior - Space-By-Space'!$S$65,-1,0)),SUMIF('Interior - Space-By-Space'!$U$16:OFFSET('Interior - Space-By-Space'!$U$65,-1,0),$B23,'Interior - Space-By-Space'!$W$16:OFFSET('Interior - Space-By-Space'!$W$65,-1,0)),SUMIF('Interior - Space-By-Space'!$Y$16:OFFSET('Interior - Space-By-Space'!$Y$65,-1,0),$B23,'Interior - Space-By-Space'!$AA$16:OFFSET('Interior - Space-By-Space'!$AA$65,-1,0)),SUMIF('Interior - Space-By-Space'!$AC$16:OFFSET('Interior - Space-By-Space'!$AC$65,-1,0),$B23,'Interior - Space-By-Space'!$AE$16:OFFSET('Interior - Space-By-Space'!$AE$65,-1,0)),SUMIF('Interior - Space-By-Space'!$AG$16:OFFSET('Interior - Space-By-Space'!$AG$65,-1,0),$B23,'Interior - Space-By-Space'!$AI$16:OFFSET('Interior - Space-By-Space'!$AI$65,-1,0)),SUMIF('Interior - Space-By-Space'!$AK$16:OFFSET('Interior - Space-By-Space'!$AK$65,-1,0),$B23,'Interior - Space-By-Space'!$AM$16:OFFSET('Interior - Space-By-Space'!$AM$65,-1,0)),SUMIF('Interior - Space-By-Space'!$AO$16:OFFSET('Interior - Space-By-Space'!$AO$65,-1,0),$B23,'Interior - Space-By-Space'!$AQ$16:OFFSET('Interior - Space-By-Space'!$AQ$65,-1,0))),IF(ProjectMethod=BAM,SUM('Interior - Building Area Method'!$C34,'Interior - Building Area Method'!$E34,'Interior - Building Area Method'!$G34,'Interior - Building Area Method'!$I34,'Interior - Building Area Method'!$K34),0))+SUM(SUMIF(Exterior!$J$19:$J$53,$B23,Exterior!$K$19:$K$53),SUMIF(Exterior!$M$19:$M$53,$B23,Exterior!$N$19:$N$53),SUMIF(Exterior!$P$19:$P$53,$B23,Exterior!$Q$19:$Q$53),SUMIF(Exterior!$S$19:$S$53,$B23,Exterior!$T$19:$T$53),SUMIF(Exterior!$V$19:$V$53,$B23,Exterior!$W$19:$W$53))","v":0}]
[null,null,null,null,null,null,null,null,{"$f":"IF(ProjectMethod=SBS,SUM(SUMIF('Interior - Space-By-Space'!$M$16:OFFSET('Interior - Space-By-Space'!$M$65,-1,0),$B24,'Interior - Space-By-Space'!$O$16:OFFSET('Interior - Space-By-Space'!$O$65,-1,0)),SUMIF('Interior - Space-By-Space'!$Q$16:OFFSET('Interior - Space-By-Space'!$Q$65,-1,0),$B24,'Interior - Space-By-Space'!$S$16:OFFSET('Interior - Space-By-Space'!$S$65,-1,0)),SUMIF('Interior - Space-By-Space'!$U$16:OFFSET('Interior - Space-By-Space'!$U$65,-1,0),$B24,'Interior - Space-By-Space'!$W$16:OFFSET('Interior - Space-By-Space'!$W$65,-1,0)),SUMIF('Interior - Space-By-Space'!$Y$16:OFFSET('Interior - Space-By-Space'!$Y$65,-1,0),$B24,'Interior - Space-By-Space'!$AA$16:OFFSET('Interior - Space-By-Space'!$AA$65,-1,0)),SUMIF('Interior - Space-By-Space'!$AC$16:OFFSET('Interior - Space-By-Space'!$AC$65,-1,0),$B24,'Interior - Space-By-Space'!$AE$16:OFFSET('Interior - Space-By-Space'!$AE$65,-1,0)),SUMIF('Interior - Space-By-Space'!$AG$16:OFFSET('Interior - Space-By-Space'!$AG$65,-1,0),$B24,'Interior - Space-By-Space'!$AI$16:OFFSET('Interior - Space-By-Space'!$AI$65,-1,0)),SUMIF('Interior - Space-By-Space'!$AK$16:OFFSET('Interior - Space-By-Space'!$AK$65,-1,0),$B24,'Interior - Space-By-Space'!$AM$16:OFFSET('Interior - Space-By-Space'!$AM$65,-1,0)),SUMIF('Interior - Space-By-Space'!$AO$16:OFFSET('Interior - Space-By-Space'!$AO$65,-1,0),$B24,'Interior - Space-By-Space'!$AQ$16:OFFSET('Interior - Space-By-Space'!$AQ$65,-1,0))),IF(ProjectMethod=BAM,SUM('Interior - Building Area Method'!$C35,'Interior - Building Area Method'!$E35,'Interior - Building Area Method'!$G35,'Interior - Building Area Method'!$I35,'Interior - Building Area Method'!$K35),0))+SUM(SUMIF(Exterior!$J$19:$J$53,$B24,Exterior!$K$19:$K$53),SUMIF(Exterior!$M$19:$M$53,$B24,Exterior!$N$19:$N$53),SUMIF(Exterior!$P$19:$P$53,$B24,Exterior!$Q$19:$Q$53),SUMIF(Exterior!$S$19:$S$53,$B24,Exterior!$T$19:$T$53),SUMIF(Exterior!$V$19:$V$53,$B24,Exterior!$W$19:$W$53))","v":0}]
[null,null,null,null,null,null,null,null,{"$f":"IF(ProjectMethod=SBS,SUM(SUMIF('Interior - Space-By-Space'!$M$16:OFFSET('Interior - Space-By-Space'!$M$65,-1,0),$B25,'Interior - Space-By-Space'!$O$16:OFFSET('Interior - Space-By-Space'!$O$65,-1,0)),SUMIF('Interior - Space-By-Space'!$Q$16:OFFSET('Interior - Space-By-Space'!$Q$65,-1,0),$B25,'Interior - Space-By-Space'!$S$16:OFFSET('Interior - Space-By-Space'!$S$65,-1,0)),SUMIF('Interior - Space-By-Space'!$U$16:OFFSET('Interior - Space-By-Space'!$U$65,-1,0),$B25,'Interior - Space-By-Space'!$W$16:OFFSET('Interior - Space-By-Space'!$W$65,-1,0)),SUMIF('Interior - Space-By-Space'!$Y$16:OFFSET('Interior - Space-By-Space'!$Y$65,-1,0),$B25,'Interior - Space-By-Space'!$AA$16:OFFSET('Interior - Space-By-Space'!$AA$65,-1,0)),SUMIF('Interior - Space-By-Space'!$AC$16:OFFSET('Interior - Space-By-Space'!$AC$65,-1,0),$B25,'Interior - Space-By-Space'!$AE$16:OFFSET('Interior - Space-By-Space'!$AE$65,-1,0)),SUMIF('Interior - Space-By-Space'!$AG$16:OFFSET('Interior - Space-By-Space'!$AG$65,-1,0),$B25,'Interior - Space-By-Space'!$AI$16:OFFSET('Interior - Space-By-Space'!$AI$65,-1,0)),SUMIF('Interior - Space-By-Space'!$AK$16:OFFSET('Interior - Space-By-Space'!$AK$65,-1,0),$B25,'Interior - Space-By-Space'!$AM$16:OFFSET('Interior - Space-By-Space'!$AM$65,-1,0)),SUMIF('Interior - Space-By-Space'!$AO$16:OFFSET('Interior - Space-By-Space'!$AO$65,-1,0),$B25,'Interior - Space-By-Space'!$AQ$16:OFFSET('Interior - Space-By-Space'!$AQ$65,-1,0))),IF(ProjectMethod=BAM,SUM('Interior - Building Area Method'!$C36,'Interior - Building Area Method'!$E36,'Interior - Building Area Method'!$G36,'Interior - Building Area Method'!$I36,'Interior - Building Area Method'!$K36),0))+SUM(SUMIF(Exterior!$J$19:$J$53,$B25,Exterior!$K$19:$K$53),SUMIF(Exterior!$M$19:$M$53,$B25,Exterior!$N$19:$N$53),SUMIF(Exterior!$P$19:$P$53,$B25,Exterior!$Q$19:$Q$53),SUMIF(Exterior!$S$19:$S$53,$B25,Exterior!$T$19:$T$53),SUMIF(Exterior!$V$19:$V$53,$B25,Exterior!$W$19:$W$53))","v":0}]
[null,null,null,null,null,null,null,null,{"$f":"IF(ProjectMethod=SBS,SUM(SUMIF('Interior - Space-By-Space'!$M$16:OFFSET('Interior - Space-By-Space'!$M$65,-1,0),$B26,'Interior - Space-By-Space'!$O$16:OFFSET('Interior - Space-By-Space'!$O$65,-1,0)),SUMIF('Interior - Space-By-Space'!$Q$16:OFFSET('Interior - Space-By-Space'!$Q$65,-1,0),$B26,'Interior - Space-By-Space'!$S$16:OFFSET('Interior - Space-By-Space'!$S$65,-1,0)),SUMIF('Interior - Space-By-Space'!$U$16:OFFSET('Interior - Space-By-Space'!$U$65,-1,0),$B26,'Interior - Space-By-Space'!$W$16:OFFSET('Interior - Space-By-Space'!$W$65,-1,0)),SUMIF('Interior - Space-By-Space'!$Y$16:OFFSET('Interior - Space-By-Space'!$Y$65,-1,0),$B26,'Interior - Space-By-Space'!$AA$16:OFFSET('Interior - Space-By-Space'!$AA$65,-1,0)),SUMIF('Interior - Space-By-Space'!$AC$16:OFFSET('Interior - Space-By-Space'!$AC$65,-1,0),$B26,'Interior - Space-By-Space'!$AE$16:OFFSET('Interior - Space-By-Space'!$AE$65,-1,0)),SUMIF('Interior - Space-By-Space'!$AG$16:OFFSET('Interior - Space-By-Space'!$AG$65,-1,0),$B26,'Interior - Space-By-Space'!$AI$16:OFFSET('Interior - Space-By-Space'!$AI$65,-1,0)),SUMIF('Interior - Space-By-Space'!$AK$16:OFFSET('Interior - Space-By-Space'!$AK$65,-1,0),$B26,'Interior - Space-By-Space'!$AM$16:OFFSET('Interior - Space-By-Space'!$AM$65,-1,0)),SUMIF('Interior - Space-By-Space'!$AO$16:OFFSET('Interior - Space-By-Space'!$AO$65,-1,0),$B26,'Interior - Space-By-Space'!$AQ$16:OFFSET('Interior - Space-By-Space'!$AQ$65,-1,0))),IF(ProjectMethod=BAM,SUM('Interior - Building Area Method'!$C37,'Interior - Building Area Method'!$E37,'Interior - Building Area Method'!$G37,'Interior - Building Area Method'!$I37,'Interior - Building Area Method'!$K37),0))+SUM(SUMIF(Exterior!$J$19:$J$53,$B26,Exterior!$K$19:$K$53),SUMIF(Exterior!$M$19:$M$53,$B26,Exterior!$N$19:$N$53),SUMIF(Exterior!$P$19:$P$53,$B26,Exterior!$Q$19:$Q$53),SUMIF(Exterior!$S$19:$S$53,$B26,Exterior!$T$19:$T$53),SUMIF(Exterior!$V$19:$V$53,$B26,Exterior!$W$19:$W$53))","v":0}]
[null,null,null,null,null,null,null,null,{"$f":"IF(ProjectMethod=SBS,SUM(SUMIF('Interior - Space-By-Space'!$M$16:OFFSET('Interior - Space-By-Space'!$M$65,-1,0),$B27,'Interior - Space-By-Space'!$O$16:OFFSET('Interior - Space-By-Space'!$O$65,-1,0)),SUMIF('Interior - Space-By-Space'!$Q$16:OFFSET('Interior - Space-By-Space'!$Q$65,-1,0),$B27,'Interior - Space-By-Space'!$S$16:OFFSET('Interior - Space-By-Space'!$S$65,-1,0)),SUMIF('Interior - Space-By-Space'!$U$16:OFFSET('Interior - Space-By-Space'!$U$65,-1,0),$B27,'Interior - Space-By-Space'!$W$16:OFFSET('Interior - Space-By-Space'!$W$65,-1,0)),SUMIF('Interior - Space-By-Space'!$Y$16:OFFSET('Interior - Space-By-Space'!$Y$65,-1,0),$B27,'Interior - Space-By-Space'!$AA$16:OFFSET('Interior - Space-By-Space'!$AA$65,-1,0)),SUMIF('Interior - Space-By-Space'!$AC$16:OFFSET('Interior - Space-By-Space'!$AC$65,-1,0),$B27,'Interior - Space-By-Space'!$AE$16:OFFSET('Interior - Space-By-Space'!$AE$65,-1,0)),SUMIF('Interior - Space-By-Space'!$AG$16:OFFSET('Interior - Space-By-Space'!$AG$65,-1,0),$B27,'Interior - Space-By-Space'!$AI$16:OFFSET('Interior - Space-By-Space'!$AI$65,-1,0)),SUMIF('Interior - Space-By-Space'!$AK$16:OFFSET('Interior - Space-By-Space'!$AK$65,-1,0),$B27,'Interior - Space-By-Space'!$AM$16:OFFSET('Interior - Space-By-Space'!$AM$65,-1,0)),SUMIF('Interior - Space-By-Space'!$AO$16:OFFSET('Interior - Space-By-Space'!$AO$65,-1,0),$B27,'Interior - Space-By-Space'!$AQ$16:OFFSET('Interior - Space-By-Space'!$AQ$65,-1,0))),IF(ProjectMethod=BAM,SUM('Interior - Building Area Method'!$C38,'Interior - Building Area Method'!$E38,'Interior - Building Area Method'!$G38,'Interior - Building Area Method'!$I38,'Interior - Building Area Method'!$K38),0))+SUM(SUMIF(Exterior!$J$19:$J$53,$B27,Exterior!$K$19:$K$53),SUMIF(Exterior!$M$19:$M$53,$B27,Exterior!$N$19:$N$53),SUMIF(Exterior!$P$19:$P$53,$B27,Exterior!$Q$19:$Q$53),SUMIF(Exterior!$S$19:$S$53,$B27,Exterior!$T$19:$T$53),SUMIF(Exterior!$V$19:$V$53,$B27,Exterior!$W$19:$W$53))","v":0}]
[null,null,null,null,null,null,null,null,{"$f":"IF(ProjectMethod=SBS,SUM(SUMIF('Interior - Space-By-Space'!$M$16:OFFSET('Interior - Space-By-Space'!$M$65,-1,0),$B28,'Interior - Space-By-Space'!$O$16:OFFSET('Interior - Space-By-Space'!$O$65,-1,0)),SUMIF('Interior - Space-By-Space'!$Q$16:OFFSET('Interior - Space-By-Space'!$Q$65,-1,0),$B28,'Interior - Space-By-Space'!$S$16:OFFSET('Interior - Space-By-Space'!$S$65,-1,0)),SUMIF('Interior - Space-By-Space'!$U$16:OFFSET('Interior - Space-By-Space'!$U$65,-1,0),$B28,'Interior - Space-By-Space'!$W$16:OFFSET('Interior - Space-By-Space'!$W$65,-1,0)),SUMIF('Interior - Space-By-Space'!$Y$16:OFFSET('Interior - Space-By-Space'!$Y$65,-1,0),$B28,'Interior - Space-By-Space'!$AA$16:OFFSET('Interior - Space-By-Space'!$AA$65,-1,0)),SUMIF('Interior - Space-By-Space'!$AC$16:OFFSET('Interior - Space-By-Space'!$AC$65,-1,0),$B28,'Interior - Space-By-Space'!$AE$16:OFFSET('Interior - Space-By-Space'!$AE$65,-1,0)),SUMIF('Interior - Space-By-Space'!$AG$16:OFFSET('Interior - Space-By-Space'!$AG$65,-1,0),$B28,'Interior - Space-By-Space'!$AI$16:OFFSET('Interior - Space-By-Space'!$AI$65,-1,0)),SUMIF('Interior - Space-By-Space'!$AK$16:OFFSET('Interior - Space-By-Space'!$AK$65,-1,0),$B28,'Interior - Space-By-Space'!$AM$16:OFFSET('Interior - Space-By-Space'!$AM$65,-1,0)),SUMIF('Interior - Space-By-Space'!$AO$16:OFFSET('Interior - Space-By-Space'!$AO$65,-1,0),$B28,'Interior - Space-By-Space'!$AQ$16:OFFSET('Interior - Space-By-Space'!$AQ$65,-1,0))),IF(ProjectMethod=BAM,SUM('Interior - Building Area Method'!$C39,'Interior - Building Area Method'!$E39,'Interior - Building Area Method'!$G39,'Interior - Building Area Method'!$I39,'Interior - Building Area Method'!$K39),0))+SUM(SUMIF(Exterior!$J$19:$J$53,$B28,Exterior!$K$19:$K$53),SUMIF(Exterior!$M$19:$M$53,$B28,Exterior!$N$19:$N$53),SUMIF(Exterior!$P$19:$P$53,$B28,Exterior!$Q$19:$Q$53),SUMIF(Exterior!$S$19:$S$53,$B28,Exterior!$T$19:$T$53),SUMIF(Exterior!$V$19:$V$53,$B28,Exterior!$W$19:$W$53))","v":0}]
[null,null,null,null,null,null,null,null,{"$f":"IF(ProjectMethod=SBS,SUM(SUMIF('Interior - Space-By-Space'!$M$16:OFFSET('Interior - Space-By-Space'!$M$65,-1,0),$B29,'Interior - Space-By-Space'!$O$16:OFFSET('Interior - Space-By-Space'!$O$65,-1,0)),SUMIF('Interior - Space-By-Space'!$Q$16:OFFSET('Interior - Space-By-Space'!$Q$65,-1,0),$B29,'Interior - Space-By-Space'!$S$16:OFFSET('Interior - Space-By-Space'!$S$65,-1,0)),SUMIF('Interior - Space-By-Space'!$U$16:OFFSET('Interior - Space-By-Space'!$U$65,-1,0),$B29,'Interior - Space-By-Space'!$W$16:OFFSET('Interior - Space-By-Space'!$W$65,-1,0)),SUMIF('Interior - Space-By-Space'!$Y$16:OFFSET('Interior - Space-By-Space'!$Y$65,-1,0),$B29,'Interior - Space-By-Space'!$AA$16:OFFSET('Interior - Space-By-Space'!$AA$65,-1,0)),SUMIF('Interior - Space-By-Space'!$AC$16:OFFSET('Interior - Space-By-Space'!$AC$65,-1,0),$B29,'Interior - Space-By-Space'!$AE$16:OFFSET('Interior - Space-By-Space'!$AE$65,-1,0)),SUMIF('Interior - Space-By-Space'!$AG$16:OFFSET('Interior - Space-By-Space'!$AG$65,-1,0),$B29,'Interior - Space-By-Space'!$AI$16:OFFSET('Interior - Space-By-Space'!$AI$65,-1,0)),SUMIF('Interior - Space-By-Space'!$AK$16:OFFSET('Interior - Space-By-Space'!$AK$65,-1,0),$B29,'Interior - Space-By-Space'!$AM$16:OFFSET('Interior - Space-By-Space'!$AM$65,-1,0)),SUMIF('Interior - Space-By-Space'!$AO$16:OFFSET('Interior - Space-By-Space'!$AO$65,-1,0),$B29,'Interior - Space-By-Space'!$AQ$16:OFFSET('Interior - Space-By-Space'!$AQ$65,-1,0))),IF(ProjectMethod=BAM,SUM('Interior - Building Area Method'!$C40,'Interior - Building Area Method'!$E40,'Interior - Building Area Method'!$G40,'Interior - Building Area Method'!$I40,'Interior - Building Area Method'!$K40),0))+SUM(SUMIF(Exterior!$J$19:$J$53,$B29,Exterior!$K$19:$K$53),SUMIF(Exterior!$M$19:$M$53,$B29,Exterior!$N$19:$N$53),SUMIF(Exterior!$P$19:$P$53,$B29,Exterior!$Q$19:$Q$53),SUMIF(Exterior!$S$19:$S$53,$B29,Exterior!$T$19:$T$53),SUMIF(Exterior!$V$19:$V$53,$B29,Exterior!$W$19:$W$53))","v":0}]
[null,null,null,null,null,null,null,null,{"$f":"IF(ProjectMethod=SBS,SUM(SUMIF('Interior - Space-By-Space'!$M$16:OFFSET('Interior - Space-By-Space'!$M$65,-1,0),$B30,'Interior - Space-By-Space'!$O$16:OFFSET('Interior - Space-By-Space'!$O$65,-1,0)),SUMIF('Interior - Space-By-Space'!$Q$16:OFFSET('Interior - Space-By-Space'!$Q$65,-1,0),$B30,'Interior - Space-By-Space'!$S$16:OFFSET('Interior - Space-By-Space'!$S$65,-1,0)),SUMIF('Interior - Space-By-Space'!$U$16:OFFSET('Interior - Space-By-Space'!$U$65,-1,0),$B30,'Interior - Space-By-Space'!$W$16:OFFSET('Interior - Space-By-Space'!$W$65,-1,0)),SUMIF('Interior - Space-By-Space'!$Y$16:OFFSET('Interior - Space-By-Space'!$Y$65,-1,0),$B30,'Interior - Space-By-Space'!$AA$16:OFFSET('Interior - Space-By-Space'!$AA$65,-1,0)),SUMIF('Interior - Space-By-Space'!$AC$16:OFFSET('Interior - Space-By-Space'!$AC$65,-1,0),$B30,'Interior - Space-By-Space'!$AE$16:OFFSET('Interior - Space-By-Space'!$AE$65,-1,0)),SUMIF('Interior - Space-By-Space'!$AG$16:OFFSET('Interior - Space-By-Space'!$AG$65,-1,0),$B30,'Interior - Space-By-Space'!$AI$16:OFFSET('Interior - Space-By-Space'!$AI$65,-1,0)),SUMIF('Interior - Space-By-Space'!$AK$16:OFFSET('Interior - Space-By-Space'!$AK$65,-1,0),$B30,'Interior - Space-By-Space'!$AM$16:OFFSET('Interior - Space-By-Space'!$AM$65,-1,0)),SUMIF('Interior - Space-By-Space'!$AO$16:OFFSET('Interior - Space-By-Space'!$AO$65,-1,0),$B30,'Interior - Space-By-Space'!$AQ$16:OFFSET('Interior - Space-By-Space'!$AQ$65,-1,0))),IF(ProjectMethod=BAM,SUM('Interior - Building Area Method'!$C41,'Interior - Building Area Method'!$E41,'Interior - Building Area Method'!$G41,'Interior - Building Area Method'!$I41,'Interior - Building Area Method'!$K41),0))+SUM(SUMIF(Exterior!$J$19:$J$53,$B30,Exterior!$K$19:$K$53),SUMIF(Exterior!$M$19:$M$53,$B30,Exterior!$N$19:$N$53),SUMIF(Exterior!$P$19:$P$53,$B30,Exterior!$Q$19:$Q$53),SUMIF(Exterior!$S$19:$S$53,$B30,Exterior!$T$19:$T$53),SUMIF(Exterior!$V$19:$V$53,$B30,Exterior!$W$19:$W$53))","v":0}]
[null,null,null,null,null,null,null,null,{"$f":"IF(ProjectMethod=SBS,SUM(SUMIF('Interior - Space-By-Space'!$M$16:OFFSET('Interior - Space-By-Space'!$M$65,-1,0),$B31,'Interior - Space-By-Space'!$O$16:OFFSET('Interior - Space-By-Space'!$O$65,-1,0)),SUMIF('Interior - Space-By-Space'!$Q$16:OFFSET('Interior - Space-By-Space'!$Q$65,-1,0),$B31,'Interior - Space-By-Space'!$S$16:OFFSET('Interior - Space-By-Space'!$S$65,-1,0)),SUMIF('Interior - Space-By-Space'!$U$16:OFFSET('Interior - Space-By-Space'!$U$65,-1,0),$B31,'Interior - Space-By-Space'!$W$16:OFFSET('Interior - Space-By-Space'!$W$65,-1,0)),SUMIF('Interior - Space-By-Space'!$Y$16:OFFSET('Interior - Space-By-Space'!$Y$65,-1,0),$B31,'Interior - Space-By-Space'!$AA$16:OFFSET('Interior - Space-By-Space'!$AA$65,-1,0)),SUMIF('Interior - Space-By-Space'!$AC$16:OFFSET('Interior - Space-By-Space'!$AC$65,-1,0),$B31,'Interior - Space-By-Space'!$AE$16:OFFSET('Interior - Space-By-Space'!$AE$65,-1,0)),SUMIF('Interior - Space-By-Space'!$AG$16:OFFSET('Interior - Space-By-Space'!$AG$65,-1,0),$B31,'Interior - Space-By-Space'!$AI$16:OFFSET('Interior - Space-By-Space'!$AI$65,-1,0)),SUMIF('Interior - Space-By-Space'!$AK$16:OFFSET('Interior - Space-By-Space'!$AK$65,-1,0),$B31,'Interior - Space-By-Space'!$AM$16:OFFSET('Interior - Space-By-Space'!$AM$65,-1,0)),SUMIF('Interior - Space-By-Space'!$AO$16:OFFSET('Interior - Space-By-Space'!$AO$65,-1,0),$B31,'Interior - Space-By-Space'!$AQ$16:OFFSET('Interior - Space-By-Space'!$AQ$65,-1,0))),IF(ProjectMethod=BAM,SUM('Interior - Building Area Method'!$C42,'Interior - Building Area Method'!$E42,'Interior - Building Area Method'!$G42,'Interior - Building Area Method'!$I42,'Interior - Building Area Method'!$K42),0))+SUM(SUMIF(Exterior!$J$19:$J$53,$B31,Exterior!$K$19:$K$53),SUMIF(Exterior!$M$19:$M$53,$B31,Exterior!$N$19:$N$53),SUMIF(Exterior!$P$19:$P$53,$B31,Exterior!$Q$19:$Q$53),SUMIF(Exterior!$S$19:$S$53,$B31,Exterior!$T$19:$T$53),SUMIF(Exterior!$V$19:$V$53,$B31,Exterior!$W$19:$W$53))","v":0}]
[null,null,null,null,null,null,null,null,{"$f":"IF(ProjectMethod=SBS,SUM(SUMIF('Interior - Space-By-Space'!$M$16:OFFSET('Interior - Space-By-Space'!$M$65,-1,0),$B32,'Interior - Space-By-Space'!$O$16:OFFSET('Interior - Space-By-Space'!$O$65,-1,0)),SUMIF('Interior - Space-By-Space'!$Q$16:OFFSET('Interior - Space-By-Space'!$Q$65,-1,0),$B32,'Interior - Space-By-Space'!$S$16:OFFSET('Interior - Space-By-Space'!$S$65,-1,0)),SUMIF('Interior - Space-By-Space'!$U$16:OFFSET('Interior - Space-By-Space'!$U$65,-1,0),$B32,'Interior - Space-By-Space'!$W$16:OFFSET('Interior - Space-By-Space'!$W$65,-1,0)),SUMIF('Interior - Space-By-Space'!$Y$16:OFFSET('Interior - Space-By-Space'!$Y$65,-1,0),$B32,'Interior - Space-By-Space'!$AA$16:OFFSET('Interior - Space-By-Space'!$AA$65,-1,0)),SUMIF('Interior - Space-By-Space'!$AC$16:OFFSET('Interior - Space-By-Space'!$AC$65,-1,0),$B32,'Interior - Space-By-Space'!$AE$16:OFFSET('Interior - Space-By-Space'!$AE$65,-1,0)),SUMIF('Interior - Space-By-Space'!$AG$16:OFFSET('Interior - Space-By-Space'!$AG$65,-1,0),$B32,'Interior - Space-By-Space'!$AI$16:OFFSET('Interior - Space-By-Space'!$AI$65,-1,0)),SUMIF('Interior - Space-By-Space'!$AK$16:OFFSET('Interior - Space-By-Space'!$AK$65,-1,0),$B32,'Interior - Space-By-Space'!$AM$16:OFFSET('Interior - Space-By-Space'!$AM$65,-1,0)),SUMIF('Interior - Space-By-Space'!$AO$16:OFFSET('Interior - Space-By-Space'!$AO$65,-1,0),$B32,'Interior - Space-By-Space'!$AQ$16:OFFSET('Interior - Space-By-Space'!$AQ$65,-1,0))),IF(ProjectMethod=BAM,SUM('Interior - Building Area Method'!$C43,'Interior - Building Area Method'!$E43,'Interior - Building Area Method'!$G43,'Interior - Building Area Method'!$I43,'Interior - Building Area Method'!$K43),0))+SUM(SUMIF(Exterior!$J$19:$J$53,$B32,Exterior!$K$19:$K$53),SUMIF(Exterior!$M$19:$M$53,$B32,Exterior!$N$19:$N$53),SUMIF(Exterior!$P$19:$P$53,$B32,Exterior!$Q$19:$Q$53),SUMIF(Exterior!$S$19:$S$53,$B32,Exterior!$T$19:$T$53),SUMIF(Exterior!$V$19:$V$53,$B32,Exterior!$W$19:$W$53))","v":0}]
[null,null,null,null,null,null,null,null,{"$f":"IF(ProjectMethod=SBS,SUM(SUMIF('Interior - Space-By-Space'!$M$16:OFFSET('Interior - Space-By-Space'!$M$65,-1,0),$B33,'Interior - Space-By-Space'!$O$16:OFFSET('Interior - Space-By-Space'!$O$65,-1,0)),SUMIF('Interior - Space-By-Space'!$Q$16:OFFSET('Interior - Space-By-Space'!$Q$65,-1,0),$B33,'Interior - Space-By-Space'!$S$16:OFFSET('Interior - Space-By-Space'!$S$65,-1,0)),SUMIF('Interior - Space-By-Space'!$U$16:OFFSET('Interior - Space-By-Space'!$U$65,-1,0),$B33,'Interior - Space-By-Space'!$W$16:OFFSET('Interior - Space-By-Space'!$W$65,-1,0)),SUMIF('Interior - Space-By-Space'!$Y$16:OFFSET('Interior - Space-By-Space'!$Y$65,-1,0),$B33,'Interior - Space-By-Space'!$AA$16:OFFSET('Interior - Space-By-Space'!$AA$65,-1,0)),SUMIF('Interior - Space-By-Space'!$AC$16:OFFSET('Interior - Space-By-Space'!$AC$65,-1,0),$B33,'Interior - Space-By-Space'!$AE$16:OFFSET('Interior - Space-By-Space'!$AE$65,-1,0)),SUMIF('Interior - Space-By-Space'!$AG$16:OFFSET('Interior - Space-By-Space'!$AG$65,-1,0),$B33,'Interior - Space-By-Space'!$AI$16:OFFSET('Interior - Space-By-Space'!$AI$65,-1,0)),SUMIF('Interior - Space-By-Space'!$AK$16:OFFSET('Interior - Space-By-Space'!$AK$65,-1,0),$B33,'Interior - Space-By-Space'!$AM$16:OFFSET('Interior - Space-By-Space'!$AM$65,-1,0)),SUMIF('Interior - Space-By-Space'!$AO$16:OFFSET('Interior - Space-By-Space'!$AO$65,-1,0),$B33,'Interior - Space-By-Space'!$AQ$16:OFFSET('Interior - Space-By-Space'!$AQ$65,-1,0))),IF(ProjectMethod=BAM,SUM('Interior - Building Area Method'!$C44,'Interior - Building Area Method'!$E44,'Interior - Building Area Method'!$G44,'Interior - Building Area Method'!$I44,'Interior - Building Area Method'!$K44),0))+SUM(SUMIF(Exterior!$J$19:$J$53,$B33,Exterior!$K$19:$K$53),SUMIF(Exterior!$M$19:$M$53,$B33,Exterior!$N$19:$N$53),SUMIF(Exterior!$P$19:$P$53,$B33,Exterior!$Q$19:$Q$53),SUMIF(Exterior!$S$19:$S$53,$B33,Exterior!$T$19:$T$53),SUMIF(Exterior!$V$19:$V$53,$B33,Exterior!$W$19:$W$53))","v":0}]
[null,null,null,null,null,null,null,null,{"$f":"IF(ProjectMethod=SBS,SUM(SUMIF('Interior - Space-By-Space'!$M$16:OFFSET('Interior - Space-By-Space'!$M$65,-1,0),$B34,'Interior - Space-By-Space'!$O$16:OFFSET('Interior - Space-By-Space'!$O$65,-1,0)),SUMIF('Interior - Space-By-Space'!$Q$16:OFFSET('Interior - Space-By-Space'!$Q$65,-1,0),$B34,'Interior - Space-By-Space'!$S$16:OFFSET('Interior - Space-By-Space'!$S$65,-1,0)),SUMIF('Interior - Space-By-Space'!$U$16:OFFSET('Interior - Space-By-Space'!$U$65,-1,0),$B34,'Interior - Space-By-Space'!$W$16:OFFSET('Interior - Space-By-Space'!$W$65,-1,0)),SUMIF('Interior - Space-By-Space'!$Y$16:OFFSET('Interior - Space-By-Space'!$Y$65,-1,0),$B34,'Interior - Space-By-Space'!$AA$16:OFFSET('Interior - Space-By-Space'!$AA$65,-1,0)),SUMIF('Interior - Space-By-Space'!$AC$16:OFFSET('Interior - Space-By-Space'!$AC$65,-1,0),$B34,'Interior - Space-By-Space'!$AE$16:OFFSET('Interior - Space-By-Space'!$AE$65,-1,0)),SUMIF('Interior - Space-By-Space'!$AG$16:OFFSET('Interior - Space-By-Space'!$AG$65,-1,0),$B34,'Interior - Space-By-Space'!$AI$16:OFFSET('Interior - Space-By-Space'!$AI$65,-1,0)),SUMIF('Interior - Space-By-Space'!$AK$16:OFFSET('Interior - Space-By-Space'!$AK$65,-1,0),$B34,'Interior - Space-By-Space'!$AM$16:OFFSET('Interior - Space-By-Space'!$AM$65,-1,0)),SUMIF('Interior - Space-By-Space'!$AO$16:OFFSET('Interior - Space-By-Space'!$AO$65,-1,0),$B34,'Interior - Space-By-Space'!$AQ$16:OFFSET('Interior - Space-By-Space'!$AQ$65,-1,0))),IF(ProjectMethod=BAM,SUM('Interior - Building Area Method'!$C45,'Interior - Building Area Method'!$E45,'Interior - Building Area Method'!$G45,'Interior - Building Area Method'!$I45,'Interior - Building Area Method'!$K45),0))+SUM(SUMIF(Exterior!$J$19:$J$53,$B34,Exterior!$K$19:$K$53),SUMIF(Exterior!$M$19:$M$53,$B34,Exterior!$N$19:$N$53),SUMIF(Exterior!$P$19:$P$53,$B34,Exterior!$Q$19:$Q$53),SUMIF(Exterior!$S$19:$S$53,$B34,Exterior!$T$19:$T$53),SUMIF(Exterior!$V$19:$V$53,$B34,Exterior!$W$19:$W$53))","v":0}]
[null,null,null,null,null,null,null,null,{"$f":"IF(ProjectMethod=SBS,SUM(SUMIF('Interior - Space-By-Space'!$M$16:OFFSET('Interior - Space-By-Space'!$M$65,-1,0),$B35,'Interior - Space-By-Space'!$O$16:OFFSET('Interior - Space-By-Space'!$O$65,-1,0)),SUMIF('Interior - Space-By-Space'!$Q$16:OFFSET('Interior - Space-By-Space'!$Q$65,-1,0),$B35,'Interior - Space-By-Space'!$S$16:OFFSET('Interior - Space-By-Space'!$S$65,-1,0)),SUMIF('Interior - Space-By-Space'!$U$16:OFFSET('Interior - Space-By-Space'!$U$65,-1,0),$B35,'Interior - Space-By-Space'!$W$16:OFFSET('Interior - Space-By-Space'!$W$65,-1,0)),SUMIF('Interior - Space-By-Space'!$Y$16:OFFSET('Interior - Space-By-Space'!$Y$65,-1,0),$B35,'Interior - Space-By-Space'!$AA$16:OFFSET('Interior - Space-By-Space'!$AA$65,-1,0)),SUMIF('Interior - Space-By-Space'!$AC$16:OFFSET('Interior - Space-By-Space'!$AC$65,-1,0),$B35,'Interior - Space-By-Space'!$AE$16:OFFSET('Interior - Space-By-Space'!$AE$65,-1,0)),SUMIF('Interior - Space-By-Space'!$AG$16:OFFSET('Interior - Space-By-Space'!$AG$65,-1,0),$B35,'Interior - Space-By-Space'!$AI$16:OFFSET('Interior - Space-By-Space'!$AI$65,-1,0)),SUMIF('Interior - Space-By-Space'!$AK$16:OFFSET('Interior - Space-By-Space'!$AK$65,-1,0),$B35,'Interior - Space-By-Space'!$AM$16:OFFSET('Interior - Space-By-Space'!$AM$65,-1,0)),SUMIF('Interior - Space-By-Space'!$AO$16:OFFSET('Interior - Space-By-Space'!$AO$65,-1,0),$B35,'Interior - Space-By-Space'!$AQ$16:OFFSET('Interior - Space-By-Space'!$AQ$65,-1,0))),IF(ProjectMethod=BAM,SUM('Interior - Building Area Method'!$C46,'Interior - Building Area Method'!$E46,'Interior - Building Area Method'!$G46,'Interior - Building Area Method'!$I46,'Interior - Building Area Method'!$K46),0))+SUM(SUMIF(Exterior!$J$19:$J$53,$B35,Exterior!$K$19:$K$53),SUMIF(Exterior!$M$19:$M$53,$B35,Exterior!$N$19:$N$53),SUMIF(Exterior!$P$19:$P$53,$B35,Exterior!$Q$19:$Q$53),SUMIF(Exterior!$S$19:$S$53,$B35,Exterior!$T$19:$T$53),SUMIF(Exterior!$V$19:$V$53,$B35,Exterior!$W$19:$W$53))","v":0}]
[null,null,null,null,null,null,null,null,{"$f":"IF(ProjectMethod=SBS,SUM(SUMIF('Interior - Space-By-Space'!$M$16:OFFSET('Interior - Space-By-Space'!$M$65,-1,0),$B36,'Interior - Space-By-Space'!$O$16:OFFSET('Interior - Space-By-Space'!$O$65,-1,0)),SUMIF('Interior - Space-By-Space'!$Q$16:OFFSET('Interior - Space-By-Space'!$Q$65,-1,0),$B36,'Interior - Space-By-Space'!$S$16:OFFSET('Interior - Space-By-Space'!$S$65,-1,0)),SUMIF('Interior - Space-By-Space'!$U$16:OFFSET('Interior - Space-By-Space'!$U$65,-1,0),$B36,'Interior - Space-By-Space'!$W$16:OFFSET('Interior - Space-By-Space'!$W$65,-1,0)),SUMIF('Interior - Space-By-Space'!$Y$16:OFFSET('Interior - Space-By-Space'!$Y$65,-1,0),$B36,'Interior - Space-By-Space'!$AA$16:OFFSET('Interior - Space-By-Space'!$AA$65,-1,0)),SUMIF('Interior - Space-By-Space'!$AC$16:OFFSET('Interior - Space-By-Space'!$AC$65,-1,0),$B36,'Interior - Space-By-Space'!$AE$16:OFFSET('Interior - Space-By-Space'!$AE$65,-1,0)),SUMIF('Interior - Space-By-Space'!$AG$16:OFFSET('Interior - Space-By-Space'!$AG$65,-1,0),$B36,'Interior - Space-By-Space'!$AI$16:OFFSET('Interior - Space-By-Space'!$AI$65,-1,0)),SUMIF('Interior - Space-By-Space'!$AK$16:OFFSET('Interior - Space-By-Space'!$AK$65,-1,0),$B36,'Interior - Space-By-Space'!$AM$16:OFFSET('Interior - Space-By-Space'!$AM$65,-1,0)),SUMIF('Interior - Space-By-Space'!$AO$16:OFFSET('Interior - Space-By-Space'!$AO$65,-1,0),$B36,'Interior - Space-By-Space'!$AQ$16:OFFSET('Interior - Space-By-Space'!$AQ$65,-1,0))),IF(ProjectMethod=BAM,SUM('Interior - Building Area Method'!$C47,'Interior - Building Area Method'!$E47,'Interior - Building Area Method'!$G47,'Interior - Building Area Method'!$I47,'Interior - Building Area Method'!$K47),0))+SUM(SUMIF(Exterior!$J$19:$J$53,$B36,Exterior!$K$19:$K$53),SUMIF(Exterior!$M$19:$M$53,$B36,Exterior!$N$19:$N$53),SUMIF(Exterior!$P$19:$P$53,$B36,Exterior!$Q$19:$Q$53),SUMIF(Exterior!$S$19:$S$53,$B36,Exterior!$T$19:$T$53),SUMIF(Exterior!$V$19:$V$53,$B36,Exterior!$W$19:$W$53))","v":0}]
[null,null,null,null,null,null,null,null,{"$f":"IF(ProjectMethod=SBS,SUM(SUMIF('Interior - Space-By-Space'!$M$16:OFFSET('Interior - Space-By-Space'!$M$65,-1,0),$B37,'Interior - Space-By-Space'!$O$16:OFFSET('Interior - Space-By-Space'!$O$65,-1,0)),SUMIF('Interior - Space-By-Space'!$Q$16:OFFSET('Interior - Space-By-Space'!$Q$65,-1,0),$B37,'Interior - Space-By-Space'!$S$16:OFFSET('Interior - Space-By-Space'!$S$65,-1,0)),SUMIF('Interior - Space-By-Space'!$U$16:OFFSET('Interior - Space-By-Space'!$U$65,-1,0),$B37,'Interior - Space-By-Space'!$W$16:OFFSET('Interior - Space-By-Space'!$W$65,-1,0)),SUMIF('Interior - Space-By-Space'!$Y$16:OFFSET('Interior - Space-By-Space'!$Y$65,-1,0),$B37,'Interior - Space-By-Space'!$AA$16:OFFSET('Interior - Space-By-Space'!$AA$65,-1,0)),SUMIF('Interior - Space-By-Space'!$AC$16:OFFSET('Interior - Space-By-Space'!$AC$65,-1,0),$B37,'Interior - Space-By-Space'!$AE$16:OFFSET('Interior - Space-By-Space'!$AE$65,-1,0)),SUMIF('Interior - Space-By-Space'!$AG$16:OFFSET('Interior - Space-By-Space'!$AG$65,-1,0),$B37,'Interior - Space-By-Space'!$AI$16:OFFSET('Interior - Space-By-Space'!$AI$65,-1,0)),SUMIF('Interior - Space-By-Space'!$AK$16:OFFSET('Interior - Space-By-Space'!$AK$65,-1,0),$B37,'Interior - Space-By-Space'!$AM$16:OFFSET('Interior - Space-By-Space'!$AM$65,-1,0)),SUMIF('Interior - Space-By-Space'!$AO$16:OFFSET('Interior - Space-By-Space'!$AO$65,-1,0),$B37,'Interior - Space-By-Space'!$AQ$16:OFFSET('Interior - Space-By-Space'!$AQ$65,-1,0))),IF(ProjectMethod=BAM,SUM('Interior - Building Area Method'!$C48,'Interior - Building Area Method'!$E48,'Interior - Building Area Method'!$G48,'Interior - Building Area Method'!$I48,'Interior - Building Area Method'!$K48),0))+SUM(SUMIF(Exterior!$J$19:$J$53,$B37,Exterior!$K$19:$K$53),SUMIF(Exterior!$M$19:$M$53,$B37,Exterior!$N$19:$N$53),SUMIF(Exterior!$P$19:$P$53,$B37,Exterior!$Q$19:$Q$53),SUMIF(Exterior!$S$19:$S$53,$B37,Exterior!$T$19:$T$53),SUMIF(Exterior!$V$19:$V$53,$B37,Exterior!$W$19:$W$53))","v":0}]
[null,null,null,null,null,null,null,null,{"$f":"IF(ProjectMethod=SBS,SUM(SUMIF('Interior - Space-By-Space'!$M$16:OFFSET('Interior - Space-By-Space'!$M$65,-1,0),$B38,'Interior - Space-By-Space'!$O$16:OFFSET('Interior - Space-By-Space'!$O$65,-1,0)),SUMIF('Interior - Space-By-Space'!$Q$16:OFFSET('Interior - Space-By-Space'!$Q$65,-1,0),$B38,'Interior - Space-By-Space'!$S$16:OFFSET('Interior - Space-By-Space'!$S$65,-1,0)),SUMIF('Interior - Space-By-Space'!$U$16:OFFSET('Interior - Space-By-Space'!$U$65,-1,0),$B38,'Interior - Space-By-Space'!$W$16:OFFSET('Interior - Space-By-Space'!$W$65,-1,0)),SUMIF('Interior - Space-By-Space'!$Y$16:OFFSET('Interior - Space-By-Space'!$Y$65,-1,0),$B38,'Interior - Space-By-Space'!$AA$16:OFFSET('Interior - Space-By-Space'!$AA$65,-1,0)),SUMIF('Interior - Space-By-Space'!$AC$16:OFFSET('Interior - Space-By-Space'!$AC$65,-1,0),$B38,'Interior - Space-By-Space'!$AE$16:OFFSET('Interior - Space-By-Space'!$AE$65,-1,0)),SUMIF('Interior - Space-By-Space'!$AG$16:OFFSET('Interior - Space-By-Space'!$AG$65,-1,0),$B38,'Interior - Space-By-Space'!$AI$16:OFFSET('Interior - Space-By-Space'!$AI$65,-1,0)),SUMIF('Interior - Space-By-Space'!$AK$16:OFFSET('Interior - Space-By-Space'!$AK$65,-1,0),$B38,'Interior - Space-By-Space'!$AM$16:OFFSET('Interior - Space-By-Space'!$AM$65,-1,0)),SUMIF('Interior - Space-By-Space'!$AO$16:OFFSET('Interior - Space-By-Space'!$AO$65,-1,0),$B38,'Interior - Space-By-Space'!$AQ$16:OFFSET('Interior - Space-By-Space'!$AQ$65,-1,0))),IF(ProjectMethod=BAM,SUM('Interior - Building Area Method'!$C49,'Interior - Building Area Method'!$E49,'Interior - Building Area Method'!$G49,'Interior - Building Area Method'!$I49,'Interior - Building Area Method'!$K49),0))+SUM(SUMIF(Exterior!$J$19:$J$53,$B38,Exterior!$K$19:$K$53),SUMIF(Exterior!$M$19:$M$53,$B38,Exterior!$N$19:$N$53),SUMIF(Exterior!$P$19:$P$53,$B38,Exterior!$Q$19:$Q$53),SUMIF(Exterior!$S$19:$S$53,$B38,Exterior!$T$19:$T$53),SUMIF(Exterior!$V$19:$V$53,$B38,Exterior!$W$19:$W$53))","v":0}]
[null,null,null,null,null,null,null,null,{"$f":"IF(ProjectMethod=SBS,SUM(SUMIF('Interior - Space-By-Space'!$M$16:OFFSET('Interior - Space-By-Space'!$M$65,-1,0),$B39,'Interior - Space-By-Space'!$O$16:OFFSET('Interior - Space-By-Space'!$O$65,-1,0)),SUMIF('Interior - Space-By-Space'!$Q$16:OFFSET('Interior - Space-By-Space'!$Q$65,-1,0),$B39,'Interior - Space-By-Space'!$S$16:OFFSET('Interior - Space-By-Space'!$S$65,-1,0)),SUMIF('Interior - Space-By-Space'!$U$16:OFFSET('Interior - Space-By-Space'!$U$65,-1,0),$B39,'Interior - Space-By-Space'!$W$16:OFFSET('Interior - Space-By-Space'!$W$65,-1,0)),SUMIF('Interior - Space-By-Space'!$Y$16:OFFSET('Interior - Space-By-Space'!$Y$65,-1,0),$B39,'Interior - Space-By-Space'!$AA$16:OFFSET('Interior - Space-By-Space'!$AA$65,-1,0)),SUMIF('Interior - Space-By-Space'!$AC$16:OFFSET('Interior - Space-By-Space'!$AC$65,-1,0),$B39,'Interior - Space-By-Space'!$AE$16:OFFSET('Interior - Space-By-Space'!$AE$65,-1,0)),SUMIF('Interior - Space-By-Space'!$AG$16:OFFSET('Interior - Space-By-Space'!$AG$65,-1,0),$B39,'Interior - Space-By-Space'!$AI$16:OFFSET('Interior - Space-By-Space'!$AI$65,-1,0)),SUMIF('Interior - Space-By-Space'!$AK$16:OFFSET('Interior - Space-By-Space'!$AK$65,-1,0),$B39,'Interior - Space-By-Space'!$AM$16:OFFSET('Interior - Space-By-Space'!$AM$65,-1,0)),SUMIF('Interior - Space-By-Space'!$AO$16:OFFSET('Interior - Space-By-Space'!$AO$65,-1,0),$B39,'Interior - Space-By-Space'!$AQ$16:OFFSET('Interior - Space-By-Space'!$AQ$65,-1,0))),IF(ProjectMethod=BAM,SUM('Interior - Building Area Method'!$C50,'Interior - Building Area Method'!$E50,'Interior - Building Area Method'!$G50,'Interior - Building Area Method'!$I50,'Interior - Building Area Method'!$K50),0))+SUM(SUMIF(Exterior!$J$19:$J$53,$B39,Exterior!$K$19:$K$53),SUMIF(Exterior!$M$19:$M$53,$B39,Exterior!$N$19:$N$53),SUMIF(Exterior!$P$19:$P$53,$B39,Exterior!$Q$19:$Q$53),SUMIF(Exterior!$S$19:$S$53,$B39,Exterior!$T$19:$T$53),SUMIF(Exterior!$V$19:$V$53,$B39,Exterior!$W$19:$W$53))","v":0}]
[null,null,null,null,null,null,null,null,{"$f":"IF(ProjectMethod=SBS,SUM(SUMIF('Interior - Space-By-Space'!$M$16:OFFSET('Interior - Space-By-Space'!$M$65,-1,0),$B40,'Interior - Space-By-Space'!$O$16:OFFSET('Interior - Space-By-Space'!$O$65,-1,0)),SUMIF('Interior - Space-By-Space'!$Q$16:OFFSET('Interior - Space-By-Space'!$Q$65,-1,0),$B40,'Interior - Space-By-Space'!$S$16:OFFSET('Interior - Space-By-Space'!$S$65,-1,0)),SUMIF('Interior - Space-By-Space'!$U$16:OFFSET('Interior - Space-By-Space'!$U$65,-1,0),$B40,'Interior - Space-By-Space'!$W$16:OFFSET('Interior - Space-By-Space'!$W$65,-1,0)),SUMIF('Interior - Space-By-Space'!$Y$16:OFFSET('Interior - Space-By-Space'!$Y$65,-1,0),$B40,'Interior - Space-By-Space'!$AA$16:OFFSET('Interior - Space-By-Space'!$AA$65,-1,0)),SUMIF('Interior - Space-By-Space'!$AC$16:OFFSET('Interior - Space-By-Space'!$AC$65,-1,0),$B40,'Interior - Space-By-Space'!$AE$16:OFFSET('Interior - Space-By-Space'!$AE$65,-1,0)),SUMIF('Interior - Space-By-Space'!$AG$16:OFFSET('Interior - Space-By-Space'!$AG$65,-1,0),$B40,'Interior - Space-By-Space'!$AI$16:OFFSET('Interior - Space-By-Space'!$AI$65,-1,0)),SUMIF('Interior - Space-By-Space'!$AK$16:OFFSET('Interior - Space-By-Space'!$AK$65,-1,0),$B40,'Interior - Space-By-Space'!$AM$16:OFFSET('Interior - Space-By-Space'!$AM$65,-1,0)),SUMIF('Interior - Space-By-Space'!$AO$16:OFFSET('Interior - Space-By-Space'!$AO$65,-1,0),$B40,'Interior - Space-By-Space'!$AQ$16:OFFSET('Interior - Space-By-Space'!$AQ$65,-1,0))),IF(ProjectMethod=BAM,SUM('Interior - Building Area Method'!$C51,'Interior - Building Area Method'!$E51,'Interior - Building Area Method'!$G51,'Interior - Building Area Method'!$I51,'Interior - Building Area Method'!$K51),0))+SUM(SUMIF(Exterior!$J$19:$J$53,$B40,Exterior!$K$19:$K$53),SUMIF(Exterior!$M$19:$M$53,$B40,Exterior!$N$19:$N$53),SUMIF(Exterior!$P$19:$P$53,$B40,Exterior!$Q$19:$Q$53),SUMIF(Exterior!$S$19:$S$53,$B40,Exterior!$T$19:$T$53),SUMIF(Exterior!$V$19:$V$53,$B40,Exterior!$W$19:$W$53))","v":0}]
[null,null,null,null,null,null,null,null,{"$f":"IF(ProjectMethod=SBS,SUM(SUMIF('Interior - Space-By-Space'!$M$16:OFFSET('Interior - Space-By-Space'!$M$65,-1,0),$B41,'Interior - Space-By-Space'!$O$16:OFFSET('Interior - Space-By-Space'!$O$65,-1,0)),SUMIF('Interior - Space-By-Space'!$Q$16:OFFSET('Interior - Space-By-Space'!$Q$65,-1,0),$B41,'Interior - Space-By-Space'!$S$16:OFFSET('Interior - Space-By-Space'!$S$65,-1,0)),SUMIF('Interior - Space-By-Space'!$U$16:OFFSET('Interior - Space-By-Space'!$U$65,-1,0),$B41,'Interior - Space-By-Space'!$W$16:OFFSET('Interior - Space-By-Space'!$W$65,-1,0)),SUMIF('Interior - Space-By-Space'!$Y$16:OFFSET('Interior - Space-By-Space'!$Y$65,-1,0),$B41,'Interior - Space-By-Space'!$AA$16:OFFSET('Interior - Space-By-Space'!$AA$65,-1,0)),SUMIF('Interior - Space-By-Space'!$AC$16:OFFSET('Interior - Space-By-Space'!$AC$65,-1,0),$B41,'Interior - Space-By-Space'!$AE$16:OFFSET('Interior - Space-By-Space'!$AE$65,-1,0)),SUMIF('Interior - Space-By-Space'!$AG$16:OFFSET('Interior - Space-By-Space'!$AG$65,-1,0),$B41,'Interior - Space-By-Space'!$AI$16:OFFSET('Interior - Space-By-Space'!$AI$65,-1,0)),SUMIF('Interior - Space-By-Space'!$AK$16:OFFSET('Interior - Space-By-Space'!$AK$65,-1,0),$B41,'Interior - Space-By-Space'!$AM$16:OFFSET('Interior - Space-By-Space'!$AM$65,-1,0)),SUMIF('Interior - Space-By-Space'!$AO$16:OFFSET('Interior - Space-By-Space'!$AO$65,-1,0),$B41,'Interior - Space-By-Space'!$AQ$16:OFFSET('Interior - Space-By-Space'!$AQ$65,-1,0))),IF(ProjectMethod=BAM,SUM('Interior - Building Area Method'!$C52,'Interior - Building Area Method'!$E52,'Interior - Building Area Method'!$G52,'Interior - Building Area Method'!$I52,'Interior - Building Area Method'!$K52),0))+SUM(SUMIF(Exterior!$J$19:$J$53,$B41,Exterior!$K$19:$K$53),SUMIF(Exterior!$M$19:$M$53,$B41,Exterior!$N$19:$N$53),SUMIF(Exterior!$P$19:$P$53,$B41,Exterior!$Q$19:$Q$53),SUMIF(Exterior!$S$19:$S$53,$B41,Exterior!$T$19:$T$53),SUMIF(Exterior!$V$19:$V$53,$B41,Exterior!$W$19:$W$53))","v":0}]
[null,null,null,null,null,null,null,null,{"$f":"IF(ProjectMethod=SBS,SUM(SUMIF('Interior - Space-By-Space'!$M$16:OFFSET('Interior - Space-By-Space'!$M$65,-1,0),$B42,'Interior - Space-By-Space'!$O$16:OFFSET('Interior - Space-By-Space'!$O$65,-1,0)),SUMIF('Interior - Space-By-Space'!$Q$16:OFFSET('Interior - Space-By-Space'!$Q$65,-1,0),$B42,'Interior - Space-By-Space'!$S$16:OFFSET('Interior - Space-By-Space'!$S$65,-1,0)),SUMIF('Interior - Space-By-Space'!$U$16:OFFSET('Interior - Space-By-Space'!$U$65,-1,0),$B42,'Interior - Space-By-Space'!$W$16:OFFSET('Interior - Space-By-Space'!$W$65,-1,0)),SUMIF('Interior - Space-By-Space'!$Y$16:OFFSET('Interior - Space-By-Space'!$Y$65,-1,0),$B42,'Interior - Space-By-Space'!$AA$16:OFFSET('Interior - Space-By-Space'!$AA$65,-1,0)),SUMIF('Interior - Space-By-Space'!$AC$16:OFFSET('Interior - Space-By-Space'!$AC$65,-1,0),$B42,'Interior - Space-By-Space'!$AE$16:OFFSET('Interior - Space-By-Space'!$AE$65,-1,0)),SUMIF('Interior - Space-By-Space'!$AG$16:OFFSET('Interior - Space-By-Space'!$AG$65,-1,0),$B42,'Interior - Space-By-Space'!$AI$16:OFFSET('Interior - Space-By-Space'!$AI$65,-1,0)),SUMIF('Interior - Space-By-Space'!$AK$16:OFFSET('Interior - Space-By-Space'!$AK$65,-1,0),$B42,'Interior - Space-By-Space'!$AM$16:OFFSET('Interior - Space-By-Space'!$AM$65,-1,0)),SUMIF('Interior - Space-By-Space'!$AO$16:OFFSET('Interior - Space-By-Space'!$AO$65,-1,0),$B42,'Interior - Space-By-Space'!$AQ$16:OFFSET('Interior - Space-By-Space'!$AQ$65,-1,0))),IF(ProjectMethod=BAM,SUM('Interior - Building Area Method'!$C53,'Interior - Building Area Method'!$E53,'Interior - Building Area Method'!$G53,'Interior - Building Area Method'!$I53,'Interior - Building Area Method'!$K53),0))+SUM(SUMIF(Exterior!$J$19:$J$53,$B42,Exterior!$K$19:$K$53),SUMIF(Exterior!$M$19:$M$53,$B42,Exterior!$N$19:$N$53),SUMIF(Exterior!$P$19:$P$53,$B42,Exterior!$Q$19:$Q$53),SUMIF(Exterior!$S$19:$S$53,$B42,Exterior!$T$19:$T$53),SUMIF(Exterior!$V$19:$V$53,$B42,Exterior!$W$19:$W$53))","v":0}]
[null,null,null,null,null,null,null,null,{"$f":"IF(ProjectMethod=SBS,SUM(SUMIF('Interior - Space-By-Space'!$M$16:OFFSET('Interior - Space-By-Space'!$M$65,-1,0),$B43,'Interior - Space-By-Space'!$O$16:OFFSET('Interior - Space-By-Space'!$O$65,-1,0)),SUMIF('Interior - Space-By-Space'!$Q$16:OFFSET('Interior - Space-By-Space'!$Q$65,-1,0),$B43,'Interior - Space-By-Space'!$S$16:OFFSET('Interior - Space-By-Space'!$S$65,-1,0)),SUMIF('Interior - Space-By-Space'!$U$16:OFFSET('Interior - Space-By-Space'!$U$65,-1,0),$B43,'Interior - Space-By-Space'!$W$16:OFFSET('Interior - Space-By-Space'!$W$65,-1,0)),SUMIF('Interior - Space-By-Space'!$Y$16:OFFSET('Interior - Space-By-Space'!$Y$65,-1,0),$B43,'Interior - Space-By-Space'!$AA$16:OFFSET('Interior - Space-By-Space'!$AA$65,-1,0)),SUMIF('Interior - Space-By-Space'!$AC$16:OFFSET('Interior - Space-By-Space'!$AC$65,-1,0),$B43,'Interior - Space-By-Space'!$AE$16:OFFSET('Interior - Space-By-Space'!$AE$65,-1,0)),SUMIF('Interior - Space-By-Space'!$AG$16:OFFSET('Interior - Space-By-Space'!$AG$65,-1,0),$B43,'Interior - Space-By-Space'!$AI$16:OFFSET('Interior - Space-By-Space'!$AI$65,-1,0)),SUMIF('Interior - Space-By-Space'!$AK$16:OFFSET('Interior - Space-By-Space'!$AK$65,-1,0),$B43,'Interior - Space-By-Space'!$AM$16:OFFSET('Interior - Space-By-Space'!$AM$65,-1,0)),SUMIF('Interior - Space-By-Space'!$AO$16:OFFSET('Interior - Space-By-Space'!$AO$65,-1,0),$B43,'Interior - Space-By-Space'!$AQ$16:OFFSET('Interior - Space-By-Space'!$AQ$65,-1,0))),IF(ProjectMethod=BAM,SUM('Interior - Building Area Method'!$C54,'Interior - Building Area Method'!$E54,'Interior - Building Area Method'!$G54,'Interior - Building Area Method'!$I54,'Interior - Building Area Method'!$K54),0))+SUM(SUMIF(Exterior!$J$19:$J$53,$B43,Exterior!$K$19:$K$53),SUMIF(Exterior!$M$19:$M$53,$B43,Exterior!$N$19:$N$53),SUMIF(Exterior!$P$19:$P$53,$B43,Exterior!$Q$19:$Q$53),SUMIF(Exterior!$S$19:$S$53,$B43,Exterior!$T$19:$T$53),SUMIF(Exterior!$V$19:$V$53,$B43,Exterior!$W$19:$W$53))","v":0}]
[null,null,null,null,null,null,null,null,{"$f":"IF(ProjectMethod=SBS,SUM(SUMIF('Interior - Space-By-Space'!$M$16:OFFSET('Interior - Space-By-Space'!$M$65,-1,0),$B44,'Interior - Space-By-Space'!$O$16:OFFSET('Interior - Space-By-Space'!$O$65,-1,0)),SUMIF('Interior - Space-By-Space'!$Q$16:OFFSET('Interior - Space-By-Space'!$Q$65,-1,0),$B44,'Interior - Space-By-Space'!$S$16:OFFSET('Interior - Space-By-Space'!$S$65,-1,0)),SUMIF('Interior - Space-By-Space'!$U$16:OFFSET('Interior - Space-By-Space'!$U$65,-1,0),$B44,'Interior - Space-By-Space'!$W$16:OFFSET('Interior - Space-By-Space'!$W$65,-1,0)),SUMIF('Interior - Space-By-Space'!$Y$16:OFFSET('Interior - Space-By-Space'!$Y$65,-1,0),$B44,'Interior - Space-By-Space'!$AA$16:OFFSET('Interior - Space-By-Space'!$AA$65,-1,0)),SUMIF('Interior - Space-By-Space'!$AC$16:OFFSET('Interior - Space-By-Space'!$AC$65,-1,0),$B44,'Interior - Space-By-Space'!$AE$16:OFFSET('Interior - Space-By-Space'!$AE$65,-1,0)),SUMIF('Interior - Space-By-Space'!$AG$16:OFFSET('Interior - Space-By-Space'!$AG$65,-1,0),$B44,'Interior - Space-By-Space'!$AI$16:OFFSET('Interior - Space-By-Space'!$AI$65,-1,0)),SUMIF('Interior - Space-By-Space'!$AK$16:OFFSET('Interior - Space-By-Space'!$AK$65,-1,0),$B44,'Interior - Space-By-Space'!$AM$16:OFFSET('Interior - Space-By-Space'!$AM$65,-1,0)),SUMIF('Interior - Space-By-Space'!$AO$16:OFFSET('Interior - Space-By-Space'!$AO$65,-1,0),$B44,'Interior - Space-By-Space'!$AQ$16:OFFSET('Interior - Space-By-Space'!$AQ$65,-1,0))),IF(ProjectMethod=BAM,SUM('Interior - Building Area Method'!$C55,'Interior - Building Area Method'!$E55,'Interior - Building Area Method'!$G55,'Interior - Building Area Method'!$I55,'Interior - Building Area Method'!$K55),0))+SUM(SUMIF(Exterior!$J$19:$J$53,$B44,Exterior!$K$19:$K$53),SUMIF(Exterior!$M$19:$M$53,$B44,Exterior!$N$19:$N$53),SUMIF(Exterior!$P$19:$P$53,$B44,Exterior!$Q$19:$Q$53),SUMIF(Exterior!$S$19:$S$53,$B44,Exterior!$T$19:$T$53),SUMIF(Exterior!$V$19:$V$53,$B44,Exterior!$W$19:$W$53))","v":0}]
[null,null,null,null,null,null,null,null,{"$f":"IF(ProjectMethod=SBS,SUM(SUMIF('Interior - Space-By-Space'!$M$16:OFFSET('Interior - Space-By-Space'!$M$65,-1,0),$B45,'Interior - Space-By-Space'!$O$16:OFFSET('Interior - Space-By-Space'!$O$65,-1,0)),SUMIF('Interior - Space-By-Space'!$Q$16:OFFSET('Interior - Space-By-Space'!$Q$65,-1,0),$B45,'Interior - Space-By-Space'!$S$16:OFFSET('Interior - Space-By-Space'!$S$65,-1,0)),SUMIF('Interior - Space-By-Space'!$U$16:OFFSET('Interior - Space-By-Space'!$U$65,-1,0),$B45,'Interior - Space-By-Space'!$W$16:OFFSET('Interior - Space-By-Space'!$W$65,-1,0)),SUMIF('Interior - Space-By-Space'!$Y$16:OFFSET('Interior - Space-By-Space'!$Y$65,-1,0),$B45,'Interior - Space-By-Space'!$AA$16:OFFSET('Interior - Space-By-Space'!$AA$65,-1,0)),SUMIF('Interior - Space-By-Space'!$AC$16:OFFSET('Interior - Space-By-Space'!$AC$65,-1,0),$B45,'Interior - Space-By-Space'!$AE$16:OFFSET('Interior - Space-By-Space'!$AE$65,-1,0)),SUMIF('Interior - Space-By-Space'!$AG$16:OFFSET('Interior - Space-By-Space'!$AG$65,-1,0),$B45,'Interior - Space-By-Space'!$AI$16:OFFSET('Interior - Space-By-Space'!$AI$65,-1,0)),SUMIF('Interior - Space-By-Space'!$AK$16:OFFSET('Interior - Space-By-Space'!$AK$65,-1,0),$B45,'Interior - Space-By-Space'!$AM$16:OFFSET('Interior - Space-By-Space'!$AM$65,-1,0)),SUMIF('Interior - Space-By-Space'!$AO$16:OFFSET('Interior - Space-By-Space'!$AO$65,-1,0),$B45,'Interior - Space-By-Space'!$AQ$16:OFFSET('Interior - Space-By-Space'!$AQ$65,-1,0))),IF(ProjectMethod=BAM,SUM('Interior - Building Area Method'!$C56,'Interior - Building Area Method'!$E56,'Interior - Building Area Method'!$G56,'Interior - Building Area Method'!$I56,'Interior - Building Area Method'!$K56),0))+SUM(SUMIF(Exterior!$J$19:$J$53,$B45,Exterior!$K$19:$K$53),SUMIF(Exterior!$M$19:$M$53,$B45,Exterior!$N$19:$N$53),SUMIF(Exterior!$P$19:$P$53,$B45,Exterior!$Q$19:$Q$53),SUMIF(Exterior!$S$19:$S$53,$B45,Exterior!$T$19:$T$53),SUMIF(Exterior!$V$19:$V$53,$B45,Exterior!$W$19:$W$53))","v":0}]
[null,null,null,null,null,null,null,null,{"$f":"IF(ProjectMethod=SBS,SUM(SUMIF('Interior - Space-By-Space'!$M$16:OFFSET('Interior - Space-By-Space'!$M$65,-1,0),$B46,'Interior - Space-By-Space'!$O$16:OFFSET('Interior - Space-By-Space'!$O$65,-1,0)),SUMIF('Interior - Space-By-Space'!$Q$16:OFFSET('Interior - Space-By-Space'!$Q$65,-1,0),$B46,'Interior - Space-By-Space'!$S$16:OFFSET('Interior - Space-By-Space'!$S$65,-1,0)),SUMIF('Interior - Space-By-Space'!$U$16:OFFSET('Interior - Space-By-Space'!$U$65,-1,0),$B46,'Interior - Space-By-Space'!$W$16:OFFSET('Interior - Space-By-Space'!$W$65,-1,0)),SUMIF('Interior - Space-By-Space'!$Y$16:OFFSET('Interior - Space-By-Space'!$Y$65,-1,0),$B46,'Interior - Space-By-Space'!$AA$16:OFFSET('Interior - Space-By-Space'!$AA$65,-1,0)),SUMIF('Interior - Space-By-Space'!$AC$16:OFFSET('Interior - Space-By-Space'!$AC$65,-1,0),$B46,'Interior - Space-By-Space'!$AE$16:OFFSET('Interior - Space-By-Space'!$AE$65,-1,0)),SUMIF('Interior - Space-By-Space'!$AG$16:OFFSET('Interior - Space-By-Space'!$AG$65,-1,0),$B46,'Interior - Space-By-Space'!$AI$16:OFFSET('Interior - Space-By-Space'!$AI$65,-1,0)),SUMIF('Interior - Space-By-Space'!$AK$16:OFFSET('Interior - Space-By-Space'!$AK$65,-1,0),$B46,'Interior - Space-By-Space'!$AM$16:OFFSET('Interior - Space-By-Space'!$AM$65,-1,0)),SUMIF('Interior - Space-By-Space'!$AO$16:OFFSET('Interior - Space-By-Space'!$AO$65,-1,0),$B46,'Interior - Space-By-Space'!$AQ$16:OFFSET('Interior - Space-By-Space'!$AQ$65,-1,0))),IF(ProjectMethod=BAM,SUM('Interior - Building Area Method'!$C57,'Interior - Building Area Method'!$E57,'Interior - Building Area Method'!$G57,'Interior - Building Area Method'!$I57,'Interior - Building Area Method'!$K57),0))+SUM(SUMIF(Exterior!$J$19:$J$53,$B46,Exterior!$K$19:$K$53),SUMIF(Exterior!$M$19:$M$53,$B46,Exterior!$N$19:$N$53),SUMIF(Exterior!$P$19:$P$53,$B46,Exterior!$Q$19:$Q$53),SUMIF(Exterior!$S$19:$S$53,$B46,Exterior!$T$19:$T$53),SUMIF(Exterior!$V$19:$V$53,$B46,Exterior!$W$19:$W$53))","v":0}]
[null,null,null,null,null,null,null,null,{"$f":"IF(ProjectMethod=SBS,SUM(SUMIF('Interior - Space-By-Space'!$M$16:OFFSET('Interior - Space-By-Space'!$M$65,-1,0),$B47,'Interior - Space-By-Space'!$O$16:OFFSET('Interior - Space-By-Space'!$O$65,-1,0)),SUMIF('Interior - Space-By-Space'!$Q$16:OFFSET('Interior - Space-By-Space'!$Q$65,-1,0),$B47,'Interior - Space-By-Space'!$S$16:OFFSET('Interior - Space-By-Space'!$S$65,-1,0)),SUMIF('Interior - Space-By-Space'!$U$16:OFFSET('Interior - Space-By-Space'!$U$65,-1,0),$B47,'Interior - Space-By-Space'!$W$16:OFFSET('Interior - Space-By-Space'!$W$65,-1,0)),SUMIF('Interior - Space-By-Space'!$Y$16:OFFSET('Interior - Space-By-Space'!$Y$65,-1,0),$B47,'Interior - Space-By-Space'!$AA$16:OFFSET('Interior - Space-By-Space'!$AA$65,-1,0)),SUMIF('Interior - Space-By-Space'!$AC$16:OFFSET('Interior - Space-By-Space'!$AC$65,-1,0),$B47,'Interior - Space-By-Space'!$AE$16:OFFSET('Interior - Space-By-Space'!$AE$65,-1,0)),SUMIF('Interior - Space-By-Space'!$AG$16:OFFSET('Interior - Space-By-Space'!$AG$65,-1,0),$B47,'Interior - Space-By-Space'!$AI$16:OFFSET('Interior - Space-By-Space'!$AI$65,-1,0)),SUMIF('Interior - Space-By-Space'!$AK$16:OFFSET('Interior - Space-By-Space'!$AK$65,-1,0),$B47,'Interior - Space-By-Space'!$AM$16:OFFSET('Interior - Space-By-Space'!$AM$65,-1,0)),SUMIF('Interior - Space-By-Space'!$AO$16:OFFSET('Interior - Space-By-Space'!$AO$65,-1,0),$B47,'Interior - Space-By-Space'!$AQ$16:OFFSET('Interior - Space-By-Space'!$AQ$65,-1,0))),IF(ProjectMethod=BAM,SUM('Interior - Building Area Method'!$C58,'Interior - Building Area Method'!$E58,'Interior - Building Area Method'!$G58,'Interior - Building Area Method'!$I58,'Interior - Building Area Method'!$K58),0))+SUM(SUMIF(Exterior!$J$19:$J$53,$B47,Exterior!$K$19:$K$53),SUMIF(Exterior!$M$19:$M$53,$B47,Exterior!$N$19:$N$53),SUMIF(Exterior!$P$19:$P$53,$B47,Exterior!$Q$19:$Q$53),SUMIF(Exterior!$S$19:$S$53,$B47,Exterior!$T$19:$T$53),SUMIF(Exterior!$V$19:$V$53,$B47,Exterior!$W$19:$W$53))","v":0}]
[null,null,null,null,null,null,null,null,{"$f":"IF(ProjectMethod=SBS,SUM(SUMIF('Interior - Space-By-Space'!$M$16:OFFSET('Interior - Space-By-Space'!$M$65,-1,0),$B48,'Interior - Space-By-Space'!$O$16:OFFSET('Interior - Space-By-Space'!$O$65,-1,0)),SUMIF('Interior - Space-By-Space'!$Q$16:OFFSET('Interior - Space-By-Space'!$Q$65,-1,0),$B48,'Interior - Space-By-Space'!$S$16:OFFSET('Interior - Space-By-Space'!$S$65,-1,0)),SUMIF('Interior - Space-By-Space'!$U$16:OFFSET('Interior - Space-By-Space'!$U$65,-1,0),$B48,'Interior - Space-By-Space'!$W$16:OFFSET('Interior - Space-By-Space'!$W$65,-1,0)),SUMIF('Interior - Space-By-Space'!$Y$16:OFFSET('Interior - Space-By-Space'!$Y$65,-1,0),$B48,'Interior - Space-By-Space'!$AA$16:OFFSET('Interior - Space-By-Space'!$AA$65,-1,0)),SUMIF('Interior - Space-By-Space'!$AC$16:OFFSET('Interior - Space-By-Space'!$AC$65,-1,0),$B48,'Interior - Space-By-Space'!$AE$16:OFFSET('Interior - Space-By-Space'!$AE$65,-1,0)),SUMIF('Interior - Space-By-Space'!$AG$16:OFFSET('Interior - Space-By-Space'!$AG$65,-1,0),$B48,'Interior - Space-By-Space'!$AI$16:OFFSET('Interior - Space-By-Space'!$AI$65,-1,0)),SUMIF('Interior - Space-By-Space'!$AK$16:OFFSET('Interior - Space-By-Space'!$AK$65,-1,0),$B48,'Interior - Space-By-Space'!$AM$16:OFFSET('Interior - Space-By-Space'!$AM$65,-1,0)),SUMIF('Interior - Space-By-Space'!$AO$16:OFFSET('Interior - Space-By-Space'!$AO$65,-1,0),$B48,'Interior - Space-By-Space'!$AQ$16:OFFSET('Interior - Space-By-Space'!$AQ$65,-1,0))),IF(ProjectMethod=BAM,SUM('Interior - Building Area Method'!$C59,'Interior - Building Area Method'!$E59,'Interior - Building Area Method'!$G59,'Interior - Building Area Method'!$I59,'Interior - Building Area Method'!$K59),0))+SUM(SUMIF(Exterior!$J$19:$J$53,$B48,Exterior!$K$19:$K$53),SUMIF(Exterior!$M$19:$M$53,$B48,Exterior!$N$19:$N$53),SUMIF(Exterior!$P$19:$P$53,$B48,Exterior!$Q$19:$Q$53),SUMIF(Exterior!$S$19:$S$53,$B48,Exterior!$T$19:$T$53),SUMIF(Exterior!$V$19:$V$53,$B48,Exterior!$W$19:$W$53))","v":0}]
[null,null,null,null,null,null,null,null,{"$f":"IF(ProjectMethod=SBS,SUM(SUMIF('Interior - Space-By-Space'!$M$16:OFFSET('Interior - Space-By-Space'!$M$65,-1,0),$B49,'Interior - Space-By-Space'!$O$16:OFFSET('Interior - Space-By-Space'!$O$65,-1,0)),SUMIF('Interior - Space-By-Space'!$Q$16:OFFSET('Interior - Space-By-Space'!$Q$65,-1,0),$B49,'Interior - Space-By-Space'!$S$16:OFFSET('Interior - Space-By-Space'!$S$65,-1,0)),SUMIF('Interior - Space-By-Space'!$U$16:OFFSET('Interior - Space-By-Space'!$U$65,-1,0),$B49,'Interior - Space-By-Space'!$W$16:OFFSET('Interior - Space-By-Space'!$W$65,-1,0)),SUMIF('Interior - Space-By-Space'!$Y$16:OFFSET('Interior - Space-By-Space'!$Y$65,-1,0),$B49,'Interior - Space-By-Space'!$AA$16:OFFSET('Interior - Space-By-Space'!$AA$65,-1,0)),SUMIF('Interior - Space-By-Space'!$AC$16:OFFSET('Interior - Space-By-Space'!$AC$65,-1,0),$B49,'Interior - Space-By-Space'!$AE$16:OFFSET('Interior - Space-By-Space'!$AE$65,-1,0)),SUMIF('Interior - Space-By-Space'!$AG$16:OFFSET('Interior - Space-By-Space'!$AG$65,-1,0),$B49,'Interior - Space-By-Space'!$AI$16:OFFSET('Interior - Space-By-Space'!$AI$65,-1,0)),SUMIF('Interior - Space-By-Space'!$AK$16:OFFSET('Interior - Space-By-Space'!$AK$65,-1,0),$B49,'Interior - Space-By-Space'!$AM$16:OFFSET('Interior - Space-By-Space'!$AM$65,-1,0)),SUMIF('Interior - Space-By-Space'!$AO$16:OFFSET('Interior - Space-By-Space'!$AO$65,-1,0),$B49,'Interior - Space-By-Space'!$AQ$16:OFFSET('Interior - Space-By-Space'!$AQ$65,-1,0))),IF(ProjectMethod=BAM,SUM('Interior - Building Area Method'!$C60,'Interior - Building Area Method'!$E60,'Interior - Building Area Method'!$G60,'Interior - Building Area Method'!$I60,'Interior - Building Area Method'!$K60),0))+SUM(SUMIF(Exterior!$J$19:$J$53,$B49,Exterior!$K$19:$K$53),SUMIF(Exterior!$M$19:$M$53,$B49,Exterior!$N$19:$N$53),SUMIF(Exterior!$P$19:$P$53,$B49,Exterior!$Q$19:$Q$53),SUMIF(Exterior!$S$19:$S$53,$B49,Exterior!$T$19:$T$53),SUMIF(Exterior!$V$19:$V$53,$B49,Exterior!$W$19:$W$53))","v":0}]
[null,null,null,null,null,null,null,null,{"$f":"IF(ProjectMethod=SBS,SUM(SUMIF('Interior - Space-By-Space'!$M$16:OFFSET('Interior - Space-By-Space'!$M$65,-1,0),$B50,'Interior - Space-By-Space'!$O$16:OFFSET('Interior - Space-By-Space'!$O$65,-1,0)),SUMIF('Interior - Space-By-Space'!$Q$16:OFFSET('Interior - Space-By-Space'!$Q$65,-1,0),$B50,'Interior - Space-By-Space'!$S$16:OFFSET('Interior - Space-By-Space'!$S$65,-1,0)),SUMIF('Interior - Space-By-Space'!$U$16:OFFSET('Interior - Space-By-Space'!$U$65,-1,0),$B50,'Interior - Space-By-Space'!$W$16:OFFSET('Interior - Space-By-Space'!$W$65,-1,0)),SUMIF('Interior - Space-By-Space'!$Y$16:OFFSET('Interior - Space-By-Space'!$Y$65,-1,0),$B50,'Interior - Space-By-Space'!$AA$16:OFFSET('Interior - Space-By-Space'!$AA$65,-1,0)),SUMIF('Interior - Space-By-Space'!$AC$16:OFFSET('Interior - Space-By-Space'!$AC$65,-1,0),$B50,'Interior - Space-By-Space'!$AE$16:OFFSET('Interior - Space-By-Space'!$AE$65,-1,0)),SUMIF('Interior - Space-By-Space'!$AG$16:OFFSET('Interior - Space-By-Space'!$AG$65,-1,0),$B50,'Interior - Space-By-Space'!$AI$16:OFFSET('Interior - Space-By-Space'!$AI$65,-1,0)),SUMIF('Interior - Space-By-Space'!$AK$16:OFFSET('Interior - Space-By-Space'!$AK$65,-1,0),$B50,'Interior - Space-By-Space'!$AM$16:OFFSET('Interior - Space-By-Space'!$AM$65,-1,0)),SUMIF('Interior - Space-By-Space'!$AO$16:OFFSET('Interior - Space-By-Space'!$AO$65,-1,0),$B50,'Interior - Space-By-Space'!$AQ$16:OFFSET('Interior - Space-By-Space'!$AQ$65,-1,0))),IF(ProjectMethod=BAM,SUM('Interior - Building Area Method'!$C61,'Interior - Building Area Method'!$E61,'Interior - Building Area Method'!$G61,'Interior - Building Area Method'!$I61,'Interior - Building Area Method'!$K61),0))+SUM(SUMIF(Exterior!$J$19:$J$53,$B50,Exterior!$K$19:$K$53),SUMIF(Exterior!$M$19:$M$53,$B50,Exterior!$N$19:$N$53),SUMIF(Exterior!$P$19:$P$53,$B50,Exterior!$Q$19:$Q$53),SUMIF(Exterior!$S$19:$S$53,$B50,Exterior!$T$19:$T$53),SUMIF(Exterior!$V$19:$V$53,$B50,Exterior!$W$19:$W$53))","v":0}]
[null,null,null,null,null,null,null,null,{"$f":"IF(ProjectMethod=SBS,SUM(SUMIF('Interior - Space-By-Space'!$M$16:OFFSET('Interior - Space-By-Space'!$M$65,-1,0),$B51,'Interior - Space-By-Space'!$O$16:OFFSET('Interior - Space-By-Space'!$O$65,-1,0)),SUMIF('Interior - Space-By-Space'!$Q$16:OFFSET('Interior - Space-By-Space'!$Q$65,-1,0),$B51,'Interior - Space-By-Space'!$S$16:OFFSET('Interior - Space-By-Space'!$S$65,-1,0)),SUMIF('Interior - Space-By-Space'!$U$16:OFFSET('Interior - Space-By-Space'!$U$65,-1,0),$B51,'Interior - Space-By-Space'!$W$16:OFFSET('Interior - Space-By-Space'!$W$65,-1,0)),SUMIF('Interior - Space-By-Space'!$Y$16:OFFSET('Interior - Space-By-Space'!$Y$65,-1,0),$B51,'Interior - Space-By-Space'!$AA$16:OFFSET('Interior - Space-By-Space'!$AA$65,-1,0)),SUMIF('Interior - Space-By-Space'!$AC$16:OFFSET('Interior - Space-By-Space'!$AC$65,-1,0),$B51,'Interior - Space-By-Space'!$AE$16:OFFSET('Interior - Space-By-Space'!$AE$65,-1,0)),SUMIF('Interior - Space-By-Space'!$AG$16:OFFSET('Interior - Space-By-Space'!$AG$65,-1,0),$B51,'Interior - Space-By-Space'!$AI$16:OFFSET('Interior - Space-By-Space'!$AI$65,-1,0)),SUMIF('Interior - Space-By-Space'!$AK$16:OFFSET('Interior - Space-By-Space'!$AK$65,-1,0),$B51,'Interior - Space-By-Space'!$AM$16:OFFSET('Interior - Space-By-Space'!$AM$65,-1,0)),SUMIF('Interior - Space-By-Space'!$AO$16:OFFSET('Interior - Space-By-Space'!$AO$65,-1,0),$B51,'Interior - Space-By-Space'!$AQ$16:OFFSET('Interior - Space-By-Space'!$AQ$65,-1,0))),IF(ProjectMethod=BAM,SUM('Interior - Building Area Method'!$C62,'Interior - Building Area Method'!$E62,'Interior - Building Area Method'!$G62,'Interior - Building Area Method'!$I62,'Interior - Building Area Method'!$K62),0))+SUM(SUMIF(Exterior!$J$19:$J$53,$B51,Exterior!$K$19:$K$53),SUMIF(Exterior!$M$19:$M$53,$B51,Exterior!$N$19:$N$53),SUMIF(Exterior!$P$19:$P$53,$B51,Exterior!$Q$19:$Q$53),SUMIF(Exterior!$S$19:$S$53,$B51,Exterior!$T$19:$T$53),SUMIF(Exterior!$V$19:$V$53,$B51,Exterior!$W$19:$W$53))","v":0}]
[null,null,null,null,null,null,null,null,{"$f":"IF(ProjectMethod=SBS,SUM(SUMIF('Interior - Space-By-Space'!$M$16:OFFSET('Interior - Space-By-Space'!$M$65,-1,0),$B52,'Interior - Space-By-Space'!$O$16:OFFSET('Interior - Space-By-Space'!$O$65,-1,0)),SUMIF('Interior - Space-By-Space'!$Q$16:OFFSET('Interior - Space-By-Space'!$Q$65,-1,0),$B52,'Interior - Space-By-Space'!$S$16:OFFSET('Interior - Space-By-Space'!$S$65,-1,0)),SUMIF('Interior - Space-By-Space'!$U$16:OFFSET('Interior - Space-By-Space'!$U$65,-1,0),$B52,'Interior - Space-By-Space'!$W$16:OFFSET('Interior - Space-By-Space'!$W$65,-1,0)),SUMIF('Interior - Space-By-Space'!$Y$16:OFFSET('Interior - Space-By-Space'!$Y$65,-1,0),$B52,'Interior - Space-By-Space'!$AA$16:OFFSET('Interior - Space-By-Space'!$AA$65,-1,0)),SUMIF('Interior - Space-By-Space'!$AC$16:OFFSET('Interior - Space-By-Space'!$AC$65,-1,0),$B52,'Interior - Space-By-Space'!$AE$16:OFFSET('Interior - Space-By-Space'!$AE$65,-1,0)),SUMIF('Interior - Space-By-Space'!$AG$16:OFFSET('Interior - Space-By-Space'!$AG$65,-1,0),$B52,'Interior - Space-By-Space'!$AI$16:OFFSET('Interior - Space-By-Space'!$AI$65,-1,0)),SUMIF('Interior - Space-By-Space'!$AK$16:OFFSET('Interior - Space-By-Space'!$AK$65,-1,0),$B52,'Interior - Space-By-Space'!$AM$16:OFFSET('Interior - Space-By-Space'!$AM$65,-1,0)),SUMIF('Interior - Space-By-Space'!$AO$16:OFFSET('Interior - Space-By-Space'!$AO$65,-1,0),$B52,'Interior - Space-By-Space'!$AQ$16:OFFSET('Interior - Space-By-Space'!$AQ$65,-1,0))),IF(ProjectMethod=BAM,SUM('Interior - Building Area Method'!$C63,'Interior - Building Area Method'!$E63,'Interior - Building Area Method'!$G63,'Interior - Building Area Method'!$I63,'Interior - Building Area Method'!$K63),0))+SUM(SUMIF(Exterior!$J$19:$J$53,$B52,Exterior!$K$19:$K$53),SUMIF(Exterior!$M$19:$M$53,$B52,Exterior!$N$19:$N$53),SUMIF(Exterior!$P$19:$P$53,$B52,Exterior!$Q$19:$Q$53),SUMIF(Exterior!$S$19:$S$53,$B52,Exterior!$T$19:$T$53),SUMIF(Exterior!$V$19:$V$53,$B52,Exterior!$W$19:$W$53))","v":0}]
[null,null,null,null,null,null,null,null,{"$f":"IF(ProjectMethod=SBS,SUM(SUMIF('Interior - Space-By-Space'!$M$16:OFFSET('Interior - Space-By-Space'!$M$65,-1,0),$B53,'Interior - Space-By-Space'!$O$16:OFFSET('Interior - Space-By-Space'!$O$65,-1,0)),SUMIF('Interior - Space-By-Space'!$Q$16:OFFSET('Interior - Space-By-Space'!$Q$65,-1,0),$B53,'Interior - Space-By-Space'!$S$16:OFFSET('Interior - Space-By-Space'!$S$65,-1,0)),SUMIF('Interior - Space-By-Space'!$U$16:OFFSET('Interior - Space-By-Space'!$U$65,-1,0),$B53,'Interior - Space-By-Space'!$W$16:OFFSET('Interior - Space-By-Space'!$W$65,-1,0)),SUMIF('Interior - Space-By-Space'!$Y$16:OFFSET('Interior - Space-By-Space'!$Y$65,-1,0),$B53,'Interior - Space-By-Space'!$AA$16:OFFSET('Interior - Space-By-Space'!$AA$65,-1,0)),SUMIF('Interior - Space-By-Space'!$AC$16:OFFSET('Interior - Space-By-Space'!$AC$65,-1,0),$B53,'Interior - Space-By-Space'!$AE$16:OFFSET('Interior - Space-By-Space'!$AE$65,-1,0)),SUMIF('Interior - Space-By-Space'!$AG$16:OFFSET('Interior - Space-By-Space'!$AG$65,-1,0),$B53,'Interior - Space-By-Space'!$AI$16:OFFSET('Interior - Space-By-Space'!$AI$65,-1,0)),SUMIF('Interior - Space-By-Space'!$AK$16:OFFSET('Interior - Space-By-Space'!$AK$65,-1,0),$B53,'Interior - Space-By-Space'!$AM$16:OFFSET('Interior - Space-By-Space'!$AM$65,-1,0)),SUMIF('Interior - Space-By-Space'!$AO$16:OFFSET('Interior - Space-By-Space'!$AO$65,-1,0),$B53,'Interior - Space-By-Space'!$AQ$16:OFFSET('Interior - Space-By-Space'!$AQ$65,-1,0))),IF(ProjectMethod=BAM,SUM('Interior - Building Area Method'!$C64,'Interior - Building Area Method'!$E64,'Interior - Building Area Method'!$G64,'Interior - Building Area Method'!$I64,'Interior - Building Area Method'!$K64),0))+SUM(SUMIF(Exterior!$J$19:$J$53,$B53,Exterior!$K$19:$K$53),SUMIF(Exterior!$M$19:$M$53,$B53,Exterior!$N$19:$N$53),SUMIF(Exterior!$P$19:$P$53,$B53,Exterior!$Q$19:$Q$53),SUMIF(Exterior!$S$19:$S$53,$B53,Exterior!$T$19:$T$53),SUMIF(Exterior!$V$19:$V$53,$B53,Exterior!$W$19:$W$53))","v":0}]
[null,null,null,null,null,null,null,null,{"$f":"IF(ProjectMethod=SBS,SUM(SUMIF('Interior - Space-By-Space'!$M$16:OFFSET('Interior - Space-By-Space'!$M$65,-1,0),$B54,'Interior - Space-By-Space'!$O$16:OFFSET('Interior - Space-By-Space'!$O$65,-1,0)),SUMIF('Interior - Space-By-Space'!$Q$16:OFFSET('Interior - Space-By-Space'!$Q$65,-1,0),$B54,'Interior - Space-By-Space'!$S$16:OFFSET('Interior - Space-By-Space'!$S$65,-1,0)),SUMIF('Interior - Space-By-Space'!$U$16:OFFSET('Interior - Space-By-Space'!$U$65,-1,0),$B54,'Interior - Space-By-Space'!$W$16:OFFSET('Interior - Space-By-Space'!$W$65,-1,0)),SUMIF('Interior - Space-By-Space'!$Y$16:OFFSET('Interior - Space-By-Space'!$Y$65,-1,0),$B54,'Interior - Space-By-Space'!$AA$16:OFFSET('Interior - Space-By-Space'!$AA$65,-1,0)),SUMIF('Interior - Space-By-Space'!$AC$16:OFFSET('Interior - Space-By-Space'!$AC$65,-1,0),$B54,'Interior - Space-By-Space'!$AE$16:OFFSET('Interior - Space-By-Space'!$AE$65,-1,0)),SUMIF('Interior - Space-By-Space'!$AG$16:OFFSET('Interior - Space-By-Space'!$AG$65,-1,0),$B54,'Interior - Space-By-Space'!$AI$16:OFFSET('Interior - Space-By-Space'!$AI$65,-1,0)),SUMIF('Interior - Space-By-Space'!$AK$16:OFFSET('Interior - Space-By-Space'!$AK$65,-1,0),$B54,'Interior - Space-By-Space'!$AM$16:OFFSET('Interior - Space-By-Space'!$AM$65,-1,0)),SUMIF('Interior - Space-By-Space'!$AO$16:OFFSET('Interior - Space-By-Space'!$AO$65,-1,0),$B54,'Interior - Space-By-Space'!$AQ$16:OFFSET('Interior - Space-By-Space'!$AQ$65,-1,0))),IF(ProjectMethod=BAM,SUM('Interior - Building Area Method'!$C65,'Interior - Building Area Method'!$E65,'Interior - Building Area Method'!$G65,'Interior - Building Area Method'!$I65,'Interior - Building Area Method'!$K65),0))+SUM(SUMIF(Exterior!$J$19:$J$53,$B54,Exterior!$K$19:$K$53),SUMIF(Exterior!$M$19:$M$53,$B54,Exterior!$N$19:$N$53),SUMIF(Exterior!$P$19:$P$53,$B54,Exterior!$Q$19:$Q$53),SUMIF(Exterior!$S$19:$S$53,$B54,Exterior!$T$19:$T$53),SUMIF(Exterior!$V$19:$V$53,$B54,Exterior!$W$19:$W$53))","v":0}]
[null,null,null,null,null,null,null,null,{"$f":"IF(ProjectMethod=SBS,SUM(SUMIF('Interior - Space-By-Space'!$M$16:OFFSET('Interior - Space-By-Space'!$M$65,-1,0),$B55,'Interior - Space-By-Space'!$O$16:OFFSET('Interior - Space-By-Space'!$O$65,-1,0)),SUMIF('Interior - Space-By-Space'!$Q$16:OFFSET('Interior - Space-By-Space'!$Q$65,-1,0),$B55,'Interior - Space-By-Space'!$S$16:OFFSET('Interior - Space-By-Space'!$S$65,-1,0)),SUMIF('Interior - Space-By-Space'!$U$16:OFFSET('Interior - Space-By-Space'!$U$65,-1,0),$B55,'Interior - Space-By-Space'!$W$16:OFFSET('Interior - Space-By-Space'!$W$65,-1,0)),SUMIF('Interior - Space-By-Space'!$Y$16:OFFSET('Interior - Space-By-Space'!$Y$65,-1,0),$B55,'Interior - Space-By-Space'!$AA$16:OFFSET('Interior - Space-By-Space'!$AA$65,-1,0)),SUMIF('Interior - Space-By-Space'!$AC$16:OFFSET('Interior - Space-By-Space'!$AC$65,-1,0),$B55,'Interior - Space-By-Space'!$AE$16:OFFSET('Interior - Space-By-Space'!$AE$65,-1,0)),SUMIF('Interior - Space-By-Space'!$AG$16:OFFSET('Interior - Space-By-Space'!$AG$65,-1,0),$B55,'Interior - Space-By-Space'!$AI$16:OFFSET('Interior - Space-By-Space'!$AI$65,-1,0)),SUMIF('Interior - Space-By-Space'!$AK$16:OFFSET('Interior - Space-By-Space'!$AK$65,-1,0),$B55,'Interior - Space-By-Space'!$AM$16:OFFSET('Interior - Space-By-Space'!$AM$65,-1,0)),SUMIF('Interior - Space-By-Space'!$AO$16:OFFSET('Interior - Space-By-Space'!$AO$65,-1,0),$B55,'Interior - Space-By-Space'!$AQ$16:OFFSET('Interior - Space-By-Space'!$AQ$65,-1,0))),IF(ProjectMethod=BAM,SUM('Interior - Building Area Method'!$C66,'Interior - Building Area Method'!$E66,'Interior - Building Area Method'!$G66,'Interior - Building Area Method'!$I66,'Interior - Building Area Method'!$K66),0))+SUM(SUMIF(Exterior!$J$19:$J$53,$B55,Exterior!$K$19:$K$53),SUMIF(Exterior!$M$19:$M$53,$B55,Exterior!$N$19:$N$53),SUMIF(Exterior!$P$19:$P$53,$B55,Exterior!$Q$19:$Q$53),SUMIF(Exterior!$S$19:$S$53,$B55,Exterior!$T$19:$T$53),SUMIF(Exterior!$V$19:$V$53,$B55,Exterior!$W$19:$W$53))","v":0}]
[null,null,null,null,null,null,null,null,{"$f":"IF(ProjectMethod=SBS,SUM(SUMIF('Interior - Space-By-Space'!$M$16:OFFSET('Interior - Space-By-Space'!$M$65,-1,0),$B56,'Interior - Space-By-Space'!$O$16:OFFSET('Interior - Space-By-Space'!$O$65,-1,0)),SUMIF('Interior - Space-By-Space'!$Q$16:OFFSET('Interior - Space-By-Space'!$Q$65,-1,0),$B56,'Interior - Space-By-Space'!$S$16:OFFSET('Interior - Space-By-Space'!$S$65,-1,0)),SUMIF('Interior - Space-By-Space'!$U$16:OFFSET('Interior - Space-By-Space'!$U$65,-1,0),$B56,'Interior - Space-By-Space'!$W$16:OFFSET('Interior - Space-By-Space'!$W$65,-1,0)),SUMIF('Interior - Space-By-Space'!$Y$16:OFFSET('Interior - Space-By-Space'!$Y$65,-1,0),$B56,'Interior - Space-By-Space'!$AA$16:OFFSET('Interior - Space-By-Space'!$AA$65,-1,0)),SUMIF('Interior - Space-By-Space'!$AC$16:OFFSET('Interior - Space-By-Space'!$AC$65,-1,0),$B56,'Interior - Space-By-Space'!$AE$16:OFFSET('Interior - Space-By-Space'!$AE$65,-1,0)),SUMIF('Interior - Space-By-Space'!$AG$16:OFFSET('Interior - Space-By-Space'!$AG$65,-1,0),$B56,'Interior - Space-By-Space'!$AI$16:OFFSET('Interior - Space-By-Space'!$AI$65,-1,0)),SUMIF('Interior - Space-By-Space'!$AK$16:OFFSET('Interior - Space-By-Space'!$AK$65,-1,0),$B56,'Interior - Space-By-Space'!$AM$16:OFFSET('Interior - Space-By-Space'!$AM$65,-1,0)),SUMIF('Interior - Space-By-Space'!$AO$16:OFFSET('Interior - Space-By-Space'!$AO$65,-1,0),$B56,'Interior - Space-By-Space'!$AQ$16:OFFSET('Interior - Space-By-Space'!$AQ$65,-1,0))),IF(ProjectMethod=BAM,SUM('Interior - Building Area Method'!$C67,'Interior - Building Area Method'!$E67,'Interior - Building Area Method'!$G67,'Interior - Building Area Method'!$I67,'Interior - Building Area Method'!$K67),0))+SUM(SUMIF(Exterior!$J$19:$J$53,$B56,Exterior!$K$19:$K$53),SUMIF(Exterior!$M$19:$M$53,$B56,Exterior!$N$19:$N$53),SUMIF(Exterior!$P$19:$P$53,$B56,Exterior!$Q$19:$Q$53),SUMIF(Exterior!$S$19:$S$53,$B56,Exterior!$T$19:$T$53),SUMIF(Exterior!$V$19:$V$53,$B56,Exterior!$W$19:$W$53))","v":0}]
[null,null,null,null,null,null,null,null,{"$f":"IF(ProjectMethod=SBS,SUM(SUMIF('Interior - Space-By-Space'!$M$16:OFFSET('Interior - Space-By-Space'!$M$65,-1,0),$B57,'Interior - Space-By-Space'!$O$16:OFFSET('Interior - Space-By-Space'!$O$65,-1,0)),SUMIF('Interior - Space-By-Space'!$Q$16:OFFSET('Interior - Space-By-Space'!$Q$65,-1,0),$B57,'Interior - Space-By-Space'!$S$16:OFFSET('Interior - Space-By-Space'!$S$65,-1,0)),SUMIF('Interior - Space-By-Space'!$U$16:OFFSET('Interior - Space-By-Space'!$U$65,-1,0),$B57,'Interior - Space-By-Space'!$W$16:OFFSET('Interior - Space-By-Space'!$W$65,-1,0)),SUMIF('Interior - Space-By-Space'!$Y$16:OFFSET('Interior - Space-By-Space'!$Y$65,-1,0),$B57,'Interior - Space-By-Space'!$AA$16:OFFSET('Interior - Space-By-Space'!$AA$65,-1,0)),SUMIF('Interior - Space-By-Space'!$AC$16:OFFSET('Interior - Space-By-Space'!$AC$65,-1,0),$B57,'Interior - Space-By-Space'!$AE$16:OFFSET('Interior - Space-By-Space'!$AE$65,-1,0)),SUMIF('Interior - Space-By-Space'!$AG$16:OFFSET('Interior - Space-By-Space'!$AG$65,-1,0),$B57,'Interior - Space-By-Space'!$AI$16:OFFSET('Interior - Space-By-Space'!$AI$65,-1,0)),SUMIF('Interior - Space-By-Space'!$AK$16:OFFSET('Interior - Space-By-Space'!$AK$65,-1,0),$B57,'Interior - Space-By-Space'!$AM$16:OFFSET('Interior - Space-By-Space'!$AM$65,-1,0)),SUMIF('Interior - Space-By-Space'!$AO$16:OFFSET('Interior - Space-By-Space'!$AO$65,-1,0),$B57,'Interior - Space-By-Space'!$AQ$16:OFFSET('Interior - Space-By-Space'!$AQ$65,-1,0))),IF(ProjectMethod=BAM,SUM('Interior - Building Area Method'!$C68,'Interior - Building Area Method'!$E68,'Interior - Building Area Method'!$G68,'Interior - Building Area Method'!$I68,'Interior - Building Area Method'!$K68),0))+SUM(SUMIF(Exterior!$J$19:$J$53,$B57,Exterior!$K$19:$K$53),SUMIF(Exterior!$M$19:$M$53,$B57,Exterior!$N$19:$N$53),SUMIF(Exterior!$P$19:$P$53,$B57,Exterior!$Q$19:$Q$53),SUMIF(Exterior!$S$19:$S$53,$B57,Exterior!$T$19:$T$53),SUMIF(Exterior!$V$19:$V$53,$B57,Exterior!$W$19:$W$53))","v":0}]
[null,null,null,null,null,null,null,null,{"$f":"IF(ProjectMethod=SBS,SUM(SUMIF('Interior - Space-By-Space'!$M$16:OFFSET('Interior - Space-By-Space'!$M$65,-1,0),$B58,'Interior - Space-By-Space'!$O$16:OFFSET('Interior - Space-By-Space'!$O$65,-1,0)),SUMIF('Interior - Space-By-Space'!$Q$16:OFFSET('Interior - Space-By-Space'!$Q$65,-1,0),$B58,'Interior - Space-By-Space'!$S$16:OFFSET('Interior - Space-By-Space'!$S$65,-1,0)),SUMIF('Interior - Space-By-Space'!$U$16:OFFSET('Interior - Space-By-Space'!$U$65,-1,0),$B58,'Interior - Space-By-Space'!$W$16:OFFSET('Interior - Space-By-Space'!$W$65,-1,0)),SUMIF('Interior - Space-By-Space'!$Y$16:OFFSET('Interior - Space-By-Space'!$Y$65,-1,0),$B58,'Interior - Space-By-Space'!$AA$16:OFFSET('Interior - Space-By-Space'!$AA$65,-1,0)),SUMIF('Interior - Space-By-Space'!$AC$16:OFFSET('Interior - Space-By-Space'!$AC$65,-1,0),$B58,'Interior - Space-By-Space'!$AE$16:OFFSET('Interior - Space-By-Space'!$AE$65,-1,0)),SUMIF('Interior - Space-By-Space'!$AG$16:OFFSET('Interior - Space-By-Space'!$AG$65,-1,0),$B58,'Interior - Space-By-Space'!$AI$16:OFFSET('Interior - Space-By-Space'!$AI$65,-1,0)),SUMIF('Interior - Space-By-Space'!$AK$16:OFFSET('Interior - Space-By-Space'!$AK$65,-1,0),$B58,'Interior - Space-By-Space'!$AM$16:OFFSET('Interior - Space-By-Space'!$AM$65,-1,0)),SUMIF('Interior - Space-By-Space'!$AO$16:OFFSET('Interior - Space-By-Space'!$AO$65,-1,0),$B58,'Interior - Space-By-Space'!$AQ$16:OFFSET('Interior - Space-By-Space'!$AQ$65,-1,0))),IF(ProjectMethod=BAM,SUM('Interior - Building Area Method'!$C69,'Interior - Building Area Method'!$E69,'Interior - Building Area Method'!$G69,'Interior - Building Area Method'!$I69,'Interior - Building Area Method'!$K69),0))+SUM(SUMIF(Exterior!$J$19:$J$53,$B58,Exterior!$K$19:$K$53),SUMIF(Exterior!$M$19:$M$53,$B58,Exterior!$N$19:$N$53),SUMIF(Exterior!$P$19:$P$53,$B58,Exterior!$Q$19:$Q$53),SUMIF(Exterior!$S$19:$S$53,$B58,Exterior!$T$19:$T$53),SUMIF(Exterior!$V$19:$V$53,$B58,Exterior!$W$19:$W$53))","v":0}]
[null,null,null,null,null,null,null,null,{"$f":"IF(ProjectMethod=SBS,SUM(SUMIF('Interior - Space-By-Space'!$M$16:OFFSET('Interior - Space-By-Space'!$M$65,-1,0),$B59,'Interior - Space-By-Space'!$O$16:OFFSET('Interior - Space-By-Space'!$O$65,-1,0)),SUMIF('Interior - Space-By-Space'!$Q$16:OFFSET('Interior - Space-By-Space'!$Q$65,-1,0),$B59,'Interior - Space-By-Space'!$S$16:OFFSET('Interior - Space-By-Space'!$S$65,-1,0)),SUMIF('Interior - Space-By-Space'!$U$16:OFFSET('Interior - Space-By-Space'!$U$65,-1,0),$B59,'Interior - Space-By-Space'!$W$16:OFFSET('Interior - Space-By-Space'!$W$65,-1,0)),SUMIF('Interior - Space-By-Space'!$Y$16:OFFSET('Interior - Space-By-Space'!$Y$65,-1,0),$B59,'Interior - Space-By-Space'!$AA$16:OFFSET('Interior - Space-By-Space'!$AA$65,-1,0)),SUMIF('Interior - Space-By-Space'!$AC$16:OFFSET('Interior - Space-By-Space'!$AC$65,-1,0),$B59,'Interior - Space-By-Space'!$AE$16:OFFSET('Interior - Space-By-Space'!$AE$65,-1,0)),SUMIF('Interior - Space-By-Space'!$AG$16:OFFSET('Interior - Space-By-Space'!$AG$65,-1,0),$B59,'Interior - Space-By-Space'!$AI$16:OFFSET('Interior - Space-By-Space'!$AI$65,-1,0)),SUMIF('Interior - Space-By-Space'!$AK$16:OFFSET('Interior - Space-By-Space'!$AK$65,-1,0),$B59,'Interior - Space-By-Space'!$AM$16:OFFSET('Interior - Space-By-Space'!$AM$65,-1,0)),SUMIF('Interior - Space-By-Space'!$AO$16:OFFSET('Interior - Space-By-Space'!$AO$65,-1,0),$B59,'Interior - Space-By-Space'!$AQ$16:OFFSET('Interior - Space-By-Space'!$AQ$65,-1,0))),IF(ProjectMethod=BAM,SUM('Interior - Building Area Method'!$C70,'Interior - Building Area Method'!$E70,'Interior - Building Area Method'!$G70,'Interior - Building Area Method'!$I70,'Interior - Building Area Method'!$K70),0))+SUM(SUMIF(Exterior!$J$19:$J$53,$B59,Exterior!$K$19:$K$53),SUMIF(Exterior!$M$19:$M$53,$B59,Exterior!$N$19:$N$53),SUMIF(Exterior!$P$19:$P$53,$B59,Exterior!$Q$19:$Q$53),SUMIF(Exterior!$S$19:$S$53,$B59,Exterior!$T$19:$T$53),SUMIF(Exterior!$V$19:$V$53,$B59,Exterior!$W$19:$W$53))","v":0}]
[null,null,null,null,null,null,null,null,{"$f":"IF(ProjectMethod=SBS,SUM(SUMIF('Interior - Space-By-Space'!$M$16:OFFSET('Interior - Space-By-Space'!$M$65,-1,0),$B60,'Interior - Space-By-Space'!$O$16:OFFSET('Interior - Space-By-Space'!$O$65,-1,0)),SUMIF('Interior - Space-By-Space'!$Q$16:OFFSET('Interior - Space-By-Space'!$Q$65,-1,0),$B60,'Interior - Space-By-Space'!$S$16:OFFSET('Interior - Space-By-Space'!$S$65,-1,0)),SUMIF('Interior - Space-By-Space'!$U$16:OFFSET('Interior - Space-By-Space'!$U$65,-1,0),$B60,'Interior - Space-By-Space'!$W$16:OFFSET('Interior - Space-By-Space'!$W$65,-1,0)),SUMIF('Interior - Space-By-Space'!$Y$16:OFFSET('Interior - Space-By-Space'!$Y$65,-1,0),$B60,'Interior - Space-By-Space'!$AA$16:OFFSET('Interior - Space-By-Space'!$AA$65,-1,0)),SUMIF('Interior - Space-By-Space'!$AC$16:OFFSET('Interior - Space-By-Space'!$AC$65,-1,0),$B60,'Interior - Space-By-Space'!$AE$16:OFFSET('Interior - Space-By-Space'!$AE$65,-1,0)),SUMIF('Interior - Space-By-Space'!$AG$16:OFFSET('Interior - Space-By-Space'!$AG$65,-1,0),$B60,'Interior - Space-By-Space'!$AI$16:OFFSET('Interior - Space-By-Space'!$AI$65,-1,0)),SUMIF('Interior - Space-By-Space'!$AK$16:OFFSET('Interior - Space-By-Space'!$AK$65,-1,0),$B60,'Interior - Space-By-Space'!$AM$16:OFFSET('Interior - Space-By-Space'!$AM$65,-1,0)),SUMIF('Interior - Space-By-Space'!$AO$16:OFFSET('Interior - Space-By-Space'!$AO$65,-1,0),$B60,'Interior - Space-By-Space'!$AQ$16:OFFSET('Interior - Space-By-Space'!$AQ$65,-1,0))),IF(ProjectMethod=BAM,SUM('Interior - Building Area Method'!$C71,'Interior - Building Area Method'!$E71,'Interior - Building Area Method'!$G71,'Interior - Building Area Method'!$I71,'Interior - Building Area Method'!$K71),0))+SUM(SUMIF(Exterior!$J$19:$J$53,$B60,Exterior!$K$19:$K$53),SUMIF(Exterior!$M$19:$M$53,$B60,Exterior!$N$19:$N$53),SUMIF(Exterior!$P$19:$P$53,$B60,Exterior!$Q$19:$Q$53),SUMIF(Exterior!$S$19:$S$53,$B60,Exterior!$T$19:$T$53),SUMIF(Exterior!$V$19:$V$53,$B60,Exterior!$W$19:$W$53))","v":0}]
[null,null,null,null,null,null,null,null,{"$f":"IF(ProjectMethod=SBS,SUM(SUMIF('Interior - Space-By-Space'!$M$16:OFFSET('Interior - Space-By-Space'!$M$65,-1,0),$B61,'Interior - Space-By-Space'!$O$16:OFFSET('Interior - Space-By-Space'!$O$65,-1,0)),SUMIF('Interior - Space-By-Space'!$Q$16:OFFSET('Interior - Space-By-Space'!$Q$65,-1,0),$B61,'Interior - Space-By-Space'!$S$16:OFFSET('Interior - Space-By-Space'!$S$65,-1,0)),SUMIF('Interior - Space-By-Space'!$U$16:OFFSET('Interior - Space-By-Space'!$U$65,-1,0),$B61,'Interior - Space-By-Space'!$W$16:OFFSET('Interior - Space-By-Space'!$W$65,-1,0)),SUMIF('Interior - Space-By-Space'!$Y$16:OFFSET('Interior - Space-By-Space'!$Y$65,-1,0),$B61,'Interior - Space-By-Space'!$AA$16:OFFSET('Interior - Space-By-Space'!$AA$65,-1,0)),SUMIF('Interior - Space-By-Space'!$AC$16:OFFSET('Interior - Space-By-Space'!$AC$65,-1,0),$B61,'Interior - Space-By-Space'!$AE$16:OFFSET('Interior - Space-By-Space'!$AE$65,-1,0)),SUMIF('Interior - Space-By-Space'!$AG$16:OFFSET('Interior - Space-By-Space'!$AG$65,-1,0),$B61,'Interior - Space-By-Space'!$AI$16:OFFSET('Interior - Space-By-Space'!$AI$65,-1,0)),SUMIF('Interior - Space-By-Space'!$AK$16:OFFSET('Interior - Space-By-Space'!$AK$65,-1,0),$B61,'Interior - Space-By-Space'!$AM$16:OFFSET('Interior - Space-By-Space'!$AM$65,-1,0)),SUMIF('Interior - Space-By-Space'!$AO$16:OFFSET('Interior - Space-By-Space'!$AO$65,-1,0),$B61,'Interior - Space-By-Space'!$AQ$16:OFFSET('Interior - Space-By-Space'!$AQ$65,-1,0))),IF(ProjectMethod=BAM,SUM('Interior - Building Area Method'!$C72,'Interior - Building Area Method'!$E72,'Interior - Building Area Method'!$G72,'Interior - Building Area Method'!$I72,'Interior - Building Area Method'!$K72),0))+SUM(SUMIF(Exterior!$J$19:$J$53,$B61,Exterior!$K$19:$K$53),SUMIF(Exterior!$M$19:$M$53,$B61,Exterior!$N$19:$N$53),SUMIF(Exterior!$P$19:$P$53,$B61,Exterior!$Q$19:$Q$53),SUMIF(Exterior!$S$19:$S$53,$B61,Exterior!$T$19:$T$53),SUMIF(Exterior!$V$19:$V$53,$B61,Exterior!$W$19:$W$53))","v":0}]
[null,null,null,null,null,null,null,null,{"$f":"IF(ProjectMethod=SBS,SUM(SUMIF('Interior - Space-By-Space'!$M$16:OFFSET('Interior - Space-By-Space'!$M$65,-1,0),$B62,'Interior - Space-By-Space'!$O$16:OFFSET('Interior - Space-By-Space'!$O$65,-1,0)),SUMIF('Interior - Space-By-Space'!$Q$16:OFFSET('Interior - Space-By-Space'!$Q$65,-1,0),$B62,'Interior - Space-By-Space'!$S$16:OFFSET('Interior - Space-By-Space'!$S$65,-1,0)),SUMIF('Interior - Space-By-Space'!$U$16:OFFSET('Interior - Space-By-Space'!$U$65,-1,0),$B62,'Interior - Space-By-Space'!$W$16:OFFSET('Interior - Space-By-Space'!$W$65,-1,0)),SUMIF('Interior - Space-By-Space'!$Y$16:OFFSET('Interior - Space-By-Space'!$Y$65,-1,0),$B62,'Interior - Space-By-Space'!$AA$16:OFFSET('Interior - Space-By-Space'!$AA$65,-1,0)),SUMIF('Interior - Space-By-Space'!$AC$16:OFFSET('Interior - Space-By-Space'!$AC$65,-1,0),$B62,'Interior - Space-By-Space'!$AE$16:OFFSET('Interior - Space-By-Space'!$AE$65,-1,0)),SUMIF('Interior - Space-By-Space'!$AG$16:OFFSET('Interior - Space-By-Space'!$AG$65,-1,0),$B62,'Interior - Space-By-Space'!$AI$16:OFFSET('Interior - Space-By-Space'!$AI$65,-1,0)),SUMIF('Interior - Space-By-Space'!$AK$16:OFFSET('Interior - Space-By-Space'!$AK$65,-1,0),$B62,'Interior - Space-By-Space'!$AM$16:OFFSET('Interior - Space-By-Space'!$AM$65,-1,0)),SUMIF('Interior - Space-By-Space'!$AO$16:OFFSET('Interior - Space-By-Space'!$AO$65,-1,0),$B62,'Interior - Space-By-Space'!$AQ$16:OFFSET('Interior - Space-By-Space'!$AQ$65,-1,0))),IF(ProjectMethod=BAM,SUM('Interior - Building Area Method'!$C73,'Interior - Building Area Method'!$E73,'Interior - Building Area Method'!$G73,'Interior - Building Area Method'!$I73,'Interior - Building Area Method'!$K73),0))+SUM(SUMIF(Exterior!$J$19:$J$53,$B62,Exterior!$K$19:$K$53),SUMIF(Exterior!$M$19:$M$53,$B62,Exterior!$N$19:$N$53),SUMIF(Exterior!$P$19:$P$53,$B62,Exterior!$Q$19:$Q$53),SUMIF(Exterior!$S$19:$S$53,$B62,Exterior!$T$19:$T$53),SUMIF(Exterior!$V$19:$V$53,$B62,Exterior!$W$19:$W$53))","v":0}]
[null,null,null,null,null,null,null,null,{"$f":"IF(ProjectMethod=SBS,SUM(SUMIF('Interior - Space-By-Space'!$M$16:OFFSET('Interior - Space-By-Space'!$M$65,-1,0),$B63,'Interior - Space-By-Space'!$O$16:OFFSET('Interior - Space-By-Space'!$O$65,-1,0)),SUMIF('Interior - Space-By-Space'!$Q$16:OFFSET('Interior - Space-By-Space'!$Q$65,-1,0),$B63,'Interior - Space-By-Space'!$S$16:OFFSET('Interior - Space-By-Space'!$S$65,-1,0)),SUMIF('Interior - Space-By-Space'!$U$16:OFFSET('Interior - Space-By-Space'!$U$65,-1,0),$B63,'Interior - Space-By-Space'!$W$16:OFFSET('Interior - Space-By-Space'!$W$65,-1,0)),SUMIF('Interior - Space-By-Space'!$Y$16:OFFSET('Interior - Space-By-Space'!$Y$65,-1,0),$B63,'Interior - Space-By-Space'!$AA$16:OFFSET('Interior - Space-By-Space'!$AA$65,-1,0)),SUMIF('Interior - Space-By-Space'!$AC$16:OFFSET('Interior - Space-By-Space'!$AC$65,-1,0),$B63,'Interior - Space-By-Space'!$AE$16:OFFSET('Interior - Space-By-Space'!$AE$65,-1,0)),SUMIF('Interior - Space-By-Space'!$AG$16:OFFSET('Interior - Space-By-Space'!$AG$65,-1,0),$B63,'Interior - Space-By-Space'!$AI$16:OFFSET('Interior - Space-By-Space'!$AI$65,-1,0)),SUMIF('Interior - Space-By-Space'!$AK$16:OFFSET('Interior - Space-By-Space'!$AK$65,-1,0),$B63,'Interior - Space-By-Space'!$AM$16:OFFSET('Interior - Space-By-Space'!$AM$65,-1,0)),SUMIF('Interior - Space-By-Space'!$AO$16:OFFSET('Interior - Space-By-Space'!$AO$65,-1,0),$B63,'Interior - Space-By-Space'!$AQ$16:OFFSET('Interior - Space-By-Space'!$AQ$65,-1,0))),IF(ProjectMethod=BAM,SUM('Interior - Building Area Method'!$C74,'Interior - Building Area Method'!$E74,'Interior - Building Area Method'!$G74,'Interior - Building Area Method'!$I74,'Interior - Building Area Method'!$K74),0))+SUM(SUMIF(Exterior!$J$19:$J$53,$B63,Exterior!$K$19:$K$53),SUMIF(Exterior!$M$19:$M$53,$B63,Exterior!$N$19:$N$53),SUMIF(Exterior!$P$19:$P$53,$B63,Exterior!$Q$19:$Q$53),SUMIF(Exterior!$S$19:$S$53,$B63,Exterior!$T$19:$T$53),SUMIF(Exterior!$V$19:$V$53,$B63,Exterior!$W$19:$W$53))","v":0}]
[null,null,null,null,null,null,null,null,{"$f":"IF(ProjectMethod=SBS,SUM(SUMIF('Interior - Space-By-Space'!$M$16:OFFSET('Interior - Space-By-Space'!$M$65,-1,0),$B64,'Interior - Space-By-Space'!$O$16:OFFSET('Interior - Space-By-Space'!$O$65,-1,0)),SUMIF('Interior - Space-By-Space'!$Q$16:OFFSET('Interior - Space-By-Space'!$Q$65,-1,0),$B64,'Interior - Space-By-Space'!$S$16:OFFSET('Interior - Space-By-Space'!$S$65,-1,0)),SUMIF('Interior - Space-By-Space'!$U$16:OFFSET('Interior - Space-By-Space'!$U$65,-1,0),$B64,'Interior - Space-By-Space'!$W$16:OFFSET('Interior - Space-By-Space'!$W$65,-1,0)),SUMIF('Interior - Space-By-Space'!$Y$16:OFFSET('Interior - Space-By-Space'!$Y$65,-1,0),$B64,'Interior - Space-By-Space'!$AA$16:OFFSET('Interior - Space-By-Space'!$AA$65,-1,0)),SUMIF('Interior - Space-By-Space'!$AC$16:OFFSET('Interior - Space-By-Space'!$AC$65,-1,0),$B64,'Interior - Space-By-Space'!$AE$16:OFFSET('Interior - Space-By-Space'!$AE$65,-1,0)),SUMIF('Interior - Space-By-Space'!$AG$16:OFFSET('Interior - Space-By-Space'!$AG$65,-1,0),$B64,'Interior - Space-By-Space'!$AI$16:OFFSET('Interior - Space-By-Space'!$AI$65,-1,0)),SUMIF('Interior - Space-By-Space'!$AK$16:OFFSET('Interior - Space-By-Space'!$AK$65,-1,0),$B64,'Interior - Space-By-Space'!$AM$16:OFFSET('Interior - Space-By-Space'!$AM$65,-1,0)),SUMIF('Interior - Space-By-Space'!$AO$16:OFFSET('Interior - Space-By-Space'!$AO$65,-1,0),$B64,'Interior - Space-By-Space'!$AQ$16:OFFSET('Interior - Space-By-Space'!$AQ$65,-1,0))),IF(ProjectMethod=BAM,SUM('Interior - Building Area Method'!$C75,'Interior - Building Area Method'!$E75,'Interior - Building Area Method'!$G75,'Interior - Building Area Method'!$I75,'Interior - Building Area Method'!$K75),0))+SUM(SUMIF(Exterior!$J$19:$J$53,$B64,Exterior!$K$19:$K$53),SUMIF(Exterior!$M$19:$M$53,$B64,Exterior!$N$19:$N$53),SUMIF(Exterior!$P$19:$P$53,$B64,Exterior!$Q$19:$Q$53),SUMIF(Exterior!$S$19:$S$53,$B64,Exterior!$T$19:$T$53),SUMIF(Exterior!$V$19:$V$53,$B64,Exterior!$W$19:$W$53))","v":0}]
[null,null,null,null,null,null,null,null,{"$f":"IF(ProjectMethod=SBS,SUM(SUMIF('Interior - Space-By-Space'!$M$16:OFFSET('Interior - Space-By-Space'!$M$65,-1,0),$B65,'Interior - Space-By-Space'!$O$16:OFFSET('Interior - Space-By-Space'!$O$65,-1,0)),SUMIF('Interior - Space-By-Space'!$Q$16:OFFSET('Interior - Space-By-Space'!$Q$65,-1,0),$B65,'Interior - Space-By-Space'!$S$16:OFFSET('Interior - Space-By-Space'!$S$65,-1,0)),SUMIF('Interior - Space-By-Space'!$U$16:OFFSET('Interior - Space-By-Space'!$U$65,-1,0),$B65,'Interior - Space-By-Space'!$W$16:OFFSET('Interior - Space-By-Space'!$W$65,-1,0)),SUMIF('Interior - Space-By-Space'!$Y$16:OFFSET('Interior - Space-By-Space'!$Y$65,-1,0),$B65,'Interior - Space-By-Space'!$AA$16:OFFSET('Interior - Space-By-Space'!$AA$65,-1,0)),SUMIF('Interior - Space-By-Space'!$AC$16:OFFSET('Interior - Space-By-Space'!$AC$65,-1,0),$B65,'Interior - Space-By-Space'!$AE$16:OFFSET('Interior - Space-By-Space'!$AE$65,-1,0)),SUMIF('Interior - Space-By-Space'!$AG$16:OFFSET('Interior - Space-By-Space'!$AG$65,-1,0),$B65,'Interior - Space-By-Space'!$AI$16:OFFSET('Interior - Space-By-Space'!$AI$65,-1,0)),SUMIF('Interior - Space-By-Space'!$AK$16:OFFSET('Interior - Space-By-Space'!$AK$65,-1,0),$B65,'Interior - Space-By-Space'!$AM$16:OFFSET('Interior - Space-By-Space'!$AM$65,-1,0)),SUMIF('Interior - Space-By-Space'!$AO$16:OFFSET('Interior - Space-By-Space'!$AO$65,-1,0),$B65,'Interior - Space-By-Space'!$AQ$16:OFFSET('Interior - Space-By-Space'!$AQ$65,-1,0))),IF(ProjectMethod=BAM,SUM('Interior - Building Area Method'!$C76,'Interior - Building Area Method'!$E76,'Interior - Building Area Method'!$G76,'Interior - Building Area Method'!$I76,'Interior - Building Area Method'!$K76),0))+SUM(SUMIF(Exterior!$J$19:$J$53,$B65,Exterior!$K$19:$K$53),SUMIF(Exterior!$M$19:$M$53,$B65,Exterior!$N$19:$N$53),SUMIF(Exterior!$P$19:$P$53,$B65,Exterior!$Q$19:$Q$53),SUMIF(Exterior!$S$19:$S$53,$B65,Exterior!$T$19:$T$53),SUMIF(Exterior!$V$19:$V$53,$B65,Exterior!$W$19:$W$53))","v":0}]
[null,null,null,null,null,null,null,null,{"$f":"IF(ProjectMethod=SBS,SUM(SUMIF('Interior - Space-By-Space'!$M$16:OFFSET('Interior - Space-By-Space'!$M$65,-1,0),$B66,'Interior - Space-By-Space'!$O$16:OFFSET('Interior - Space-By-Space'!$O$65,-1,0)),SUMIF('Interior - Space-By-Space'!$Q$16:OFFSET('Interior - Space-By-Space'!$Q$65,-1,0),$B66,'Interior - Space-By-Space'!$S$16:OFFSET('Interior - Space-By-Space'!$S$65,-1,0)),SUMIF('Interior - Space-By-Space'!$U$16:OFFSET('Interior - Space-By-Space'!$U$65,-1,0),$B66,'Interior - Space-By-Space'!$W$16:OFFSET('Interior - Space-By-Space'!$W$65,-1,0)),SUMIF('Interior - Space-By-Space'!$Y$16:OFFSET('Interior - Space-By-Space'!$Y$65,-1,0),$B66,'Interior - Space-By-Space'!$AA$16:OFFSET('Interior - Space-By-Space'!$AA$65,-1,0)),SUMIF('Interior - Space-By-Space'!$AC$16:OFFSET('Interior - Space-By-Space'!$AC$65,-1,0),$B66,'Interior - Space-By-Space'!$AE$16:OFFSET('Interior - Space-By-Space'!$AE$65,-1,0)),SUMIF('Interior - Space-By-Space'!$AG$16:OFFSET('Interior - Space-By-Space'!$AG$65,-1,0),$B66,'Interior - Space-By-Space'!$AI$16:OFFSET('Interior - Space-By-Space'!$AI$65,-1,0)),SUMIF('Interior - Space-By-Space'!$AK$16:OFFSET('Interior - Space-By-Space'!$AK$65,-1,0),$B66,'Interior - Space-By-Space'!$AM$16:OFFSET('Interior - Space-By-Space'!$AM$65,-1,0)),SUMIF('Interior - Space-By-Space'!$AO$16:OFFSET('Interior - Space-By-Space'!$AO$65,-1,0),$B66,'Interior - Space-By-Space'!$AQ$16:OFFSET('Interior - Space-By-Space'!$AQ$65,-1,0))),IF(ProjectMethod=BAM,SUM('Interior - Building Area Method'!$C77,'Interior - Building Area Method'!$E77,'Interior - Building Area Method'!$G77,'Interior - Building Area Method'!$I77,'Interior - Building Area Method'!$K77),0))+SUM(SUMIF(Exterior!$J$19:$J$53,$B66,Exterior!$K$19:$K$53),SUMIF(Exterior!$M$19:$M$53,$B66,Exterior!$N$19:$N$53),SUMIF(Exterior!$P$19:$P$53,$B66,Exterior!$Q$19:$Q$53),SUMIF(Exterior!$S$19:$S$53,$B66,Exterior!$T$19:$T$53),SUMIF(Exterior!$V$19:$V$53,$B66,Exterior!$W$19:$W$53))","v":0}]
[null,null,null,null,null,null,null,null,{"$f":"IF(ProjectMethod=SBS,SUM(SUMIF('Interior - Space-By-Space'!$M$16:OFFSET('Interior - Space-By-Space'!$M$65,-1,0),$B67,'Interior - Space-By-Space'!$O$16:OFFSET('Interior - Space-By-Space'!$O$65,-1,0)),SUMIF('Interior - Space-By-Space'!$Q$16:OFFSET('Interior - Space-By-Space'!$Q$65,-1,0),$B67,'Interior - Space-By-Space'!$S$16:OFFSET('Interior - Space-By-Space'!$S$65,-1,0)),SUMIF('Interior - Space-By-Space'!$U$16:OFFSET('Interior - Space-By-Space'!$U$65,-1,0),$B67,'Interior - Space-By-Space'!$W$16:OFFSET('Interior - Space-By-Space'!$W$65,-1,0)),SUMIF('Interior - Space-By-Space'!$Y$16:OFFSET('Interior - Space-By-Space'!$Y$65,-1,0),$B67,'Interior - Space-By-Space'!$AA$16:OFFSET('Interior - Space-By-Space'!$AA$65,-1,0)),SUMIF('Interior - Space-By-Space'!$AC$16:OFFSET('Interior - Space-By-Space'!$AC$65,-1,0),$B67,'Interior - Space-By-Space'!$AE$16:OFFSET('Interior - Space-By-Space'!$AE$65,-1,0)),SUMIF('Interior - Space-By-Space'!$AG$16:OFFSET('Interior - Space-By-Space'!$AG$65,-1,0),$B67,'Interior - Space-By-Space'!$AI$16:OFFSET('Interior - Space-By-Space'!$AI$65,-1,0)),SUMIF('Interior - Space-By-Space'!$AK$16:OFFSET('Interior - Space-By-Space'!$AK$65,-1,0),$B67,'Interior - Space-By-Space'!$AM$16:OFFSET('Interior - Space-By-Space'!$AM$65,-1,0)),SUMIF('Interior - Space-By-Space'!$AO$16:OFFSET('Interior - Space-By-Space'!$AO$65,-1,0),$B67,'Interior - Space-By-Space'!$AQ$16:OFFSET('Interior - Space-By-Space'!$AQ$65,-1,0))),IF(ProjectMethod=BAM,SUM('Interior - Building Area Method'!$C78,'Interior - Building Area Method'!$E78,'Interior - Building Area Method'!$G78,'Interior - Building Area Method'!$I78,'Interior - Building Area Method'!$K78),0))+SUM(SUMIF(Exterior!$J$19:$J$53,$B67,Exterior!$K$19:$K$53),SUMIF(Exterior!$M$19:$M$53,$B67,Exterior!$N$19:$N$53),SUMIF(Exterior!$P$19:$P$53,$B67,Exterior!$Q$19:$Q$53),SUMIF(Exterior!$S$19:$S$53,$B67,Exterior!$T$19:$T$53),SUMIF(Exterior!$V$19:$V$53,$B67,Exterior!$W$19:$W$53))","v":0}]
[null,null,null,null,null,null,null,null,{"$f":"IF(ProjectMethod=SBS,SUM(SUMIF('Interior - Space-By-Space'!$M$16:OFFSET('Interior - Space-By-Space'!$M$65,-1,0),$B68,'Interior - Space-By-Space'!$O$16:OFFSET('Interior - Space-By-Space'!$O$65,-1,0)),SUMIF('Interior - Space-By-Space'!$Q$16:OFFSET('Interior - Space-By-Space'!$Q$65,-1,0),$B68,'Interior - Space-By-Space'!$S$16:OFFSET('Interior - Space-By-Space'!$S$65,-1,0)),SUMIF('Interior - Space-By-Space'!$U$16:OFFSET('Interior - Space-By-Space'!$U$65,-1,0),$B68,'Interior - Space-By-Space'!$W$16:OFFSET('Interior - Space-By-Space'!$W$65,-1,0)),SUMIF('Interior - Space-By-Space'!$Y$16:OFFSET('Interior - Space-By-Space'!$Y$65,-1,0),$B68,'Interior - Space-By-Space'!$AA$16:OFFSET('Interior - Space-By-Space'!$AA$65,-1,0)),SUMIF('Interior - Space-By-Space'!$AC$16:OFFSET('Interior - Space-By-Space'!$AC$65,-1,0),$B68,'Interior - Space-By-Space'!$AE$16:OFFSET('Interior - Space-By-Space'!$AE$65,-1,0)),SUMIF('Interior - Space-By-Space'!$AG$16:OFFSET('Interior - Space-By-Space'!$AG$65,-1,0),$B68,'Interior - Space-By-Space'!$AI$16:OFFSET('Interior - Space-By-Space'!$AI$65,-1,0)),SUMIF('Interior - Space-By-Space'!$AK$16:OFFSET('Interior - Space-By-Space'!$AK$65,-1,0),$B68,'Interior - Space-By-Space'!$AM$16:OFFSET('Interior - Space-By-Space'!$AM$65,-1,0)),SUMIF('Interior - Space-By-Space'!$AO$16:OFFSET('Interior - Space-By-Space'!$AO$65,-1,0),$B68,'Interior - Space-By-Space'!$AQ$16:OFFSET('Interior - Space-By-Space'!$AQ$65,-1,0))),IF(ProjectMethod=BAM,SUM('Interior - Building Area Method'!$C79,'Interior - Building Area Method'!$E79,'Interior - Building Area Method'!$G79,'Interior - Building Area Method'!$I79,'Interior - Building Area Method'!$K79),0))+SUM(SUMIF(Exterior!$J$19:$J$53,$B68,Exterior!$K$19:$K$53),SUMIF(Exterior!$M$19:$M$53,$B68,Exterior!$N$19:$N$53),SUMIF(Exterior!$P$19:$P$53,$B68,Exterior!$Q$19:$Q$53),SUMIF(Exterior!$S$19:$S$53,$B68,Exterior!$T$19:$T$53),SUMIF(Exterior!$V$19:$V$53,$B68,Exterior!$W$19:$W$53))","v":0}]
[null,null,null,null,null,null,null,null,{"$f":"IF(ProjectMethod=SBS,SUM(SUMIF('Interior - Space-By-Space'!$M$16:OFFSET('Interior - Space-By-Space'!$M$65,-1,0),$B69,'Interior - Space-By-Space'!$O$16:OFFSET('Interior - Space-By-Space'!$O$65,-1,0)),SUMIF('Interior - Space-By-Space'!$Q$16:OFFSET('Interior - Space-By-Space'!$Q$65,-1,0),$B69,'Interior - Space-By-Space'!$S$16:OFFSET('Interior - Space-By-Space'!$S$65,-1,0)),SUMIF('Interior - Space-By-Space'!$U$16:OFFSET('Interior - Space-By-Space'!$U$65,-1,0),$B69,'Interior - Space-By-Space'!$W$16:OFFSET('Interior - Space-By-Space'!$W$65,-1,0)),SUMIF('Interior - Space-By-Space'!$Y$16:OFFSET('Interior - Space-By-Space'!$Y$65,-1,0),$B69,'Interior - Space-By-Space'!$AA$16:OFFSET('Interior - Space-By-Space'!$AA$65,-1,0)),SUMIF('Interior - Space-By-Space'!$AC$16:OFFSET('Interior - Space-By-Space'!$AC$65,-1,0),$B69,'Interior - Space-By-Space'!$AE$16:OFFSET('Interior - Space-By-Space'!$AE$65,-1,0)),SUMIF('Interior - Space-By-Space'!$AG$16:OFFSET('Interior - Space-By-Space'!$AG$65,-1,0),$B69,'Interior - Space-By-Space'!$AI$16:OFFSET('Interior - Space-By-Space'!$AI$65,-1,0)),SUMIF('Interior - Space-By-Space'!$AK$16:OFFSET('Interior - Space-By-Space'!$AK$65,-1,0),$B69,'Interior - Space-By-Space'!$AM$16:OFFSET('Interior - Space-By-Space'!$AM$65,-1,0)),SUMIF('Interior - Space-By-Space'!$AO$16:OFFSET('Interior - Space-By-Space'!$AO$65,-1,0),$B69,'Interior - Space-By-Space'!$AQ$16:OFFSET('Interior - Space-By-Space'!$AQ$65,-1,0))),IF(ProjectMethod=BAM,SUM('Interior - Building Area Method'!$C80,'Interior - Building Area Method'!$E80,'Interior - Building Area Method'!$G80,'Interior - Building Area Method'!$I80,'Interior - Building Area Method'!$K80),0))+SUM(SUMIF(Exterior!$J$19:$J$53,$B69,Exterior!$K$19:$K$53),SUMIF(Exterior!$M$19:$M$53,$B69,Exterior!$N$19:$N$53),SUMIF(Exterior!$P$19:$P$53,$B69,Exterior!$Q$19:$Q$53),SUMIF(Exterior!$S$19:$S$53,$B69,Exterior!$T$19:$T$53),SUMIF(Exterior!$V$19:$V$53,$B69,Exterior!$W$19:$W$53))","v":0}]
[null,null,null,null,null,null,null,null,{"$f":"IF(ProjectMethod=SBS,SUM(SUMIF('Interior - Space-By-Space'!$M$16:OFFSET('Interior - Space-By-Space'!$M$65,-1,0),$B70,'Interior - Space-By-Space'!$O$16:OFFSET('Interior - Space-By-Space'!$O$65,-1,0)),SUMIF('Interior - Space-By-Space'!$Q$16:OFFSET('Interior - Space-By-Space'!$Q$65,-1,0),$B70,'Interior - Space-By-Space'!$S$16:OFFSET('Interior - Space-By-Space'!$S$65,-1,0)),SUMIF('Interior - Space-By-Space'!$U$16:OFFSET('Interior - Space-By-Space'!$U$65,-1,0),$B70,'Interior - Space-By-Space'!$W$16:OFFSET('Interior - Space-By-Space'!$W$65,-1,0)),SUMIF('Interior - Space-By-Space'!$Y$16:OFFSET('Interior - Space-By-Space'!$Y$65,-1,0),$B70,'Interior - Space-By-Space'!$AA$16:OFFSET('Interior - Space-By-Space'!$AA$65,-1,0)),SUMIF('Interior - Space-By-Space'!$AC$16:OFFSET('Interior - Space-By-Space'!$AC$65,-1,0),$B70,'Interior - Space-By-Space'!$AE$16:OFFSET('Interior - Space-By-Space'!$AE$65,-1,0)),SUMIF('Interior - Space-By-Space'!$AG$16:OFFSET('Interior - Space-By-Space'!$AG$65,-1,0),$B70,'Interior - Space-By-Space'!$AI$16:OFFSET('Interior - Space-By-Space'!$AI$65,-1,0)),SUMIF('Interior - Space-By-Space'!$AK$16:OFFSET('Interior - Space-By-Space'!$AK$65,-1,0),$B70,'Interior - Space-By-Space'!$AM$16:OFFSET('Interior - Space-By-Space'!$AM$65,-1,0)),SUMIF('Interior - Space-By-Space'!$AO$16:OFFSET('Interior - Space-By-Space'!$AO$65,-1,0),$B70,'Interior - Space-By-Space'!$AQ$16:OFFSET('Interior - Space-By-Space'!$AQ$65,-1,0))),IF(ProjectMethod=BAM,SUM('Interior - Building Area Method'!$C81,'Interior - Building Area Method'!$E81,'Interior - Building Area Method'!$G81,'Interior - Building Area Method'!$I81,'Interior - Building Area Method'!$K81),0))+SUM(SUMIF(Exterior!$J$19:$J$53,$B70,Exterior!$K$19:$K$53),SUMIF(Exterior!$M$19:$M$53,$B70,Exterior!$N$19:$N$53),SUMIF(Exterior!$P$19:$P$53,$B70,Exterior!$Q$19:$Q$53),SUMIF(Exterior!$S$19:$S$53,$B70,Exterior!$T$19:$T$53),SUMIF(Exterior!$V$19:$V$53,$B70,Exterior!$W$19:$W$53))","v":0}]
[null,null,null,null,null,null,null,null,{"$f":"IF(ProjectMethod=SBS,SUM(SUMIF('Interior - Space-By-Space'!$M$16:OFFSET('Interior - Space-By-Space'!$M$65,-1,0),$B71,'Interior - Space-By-Space'!$O$16:OFFSET('Interior - Space-By-Space'!$O$65,-1,0)),SUMIF('Interior - Space-By-Space'!$Q$16:OFFSET('Interior - Space-By-Space'!$Q$65,-1,0),$B71,'Interior - Space-By-Space'!$S$16:OFFSET('Interior - Space-By-Space'!$S$65,-1,0)),SUMIF('Interior - Space-By-Space'!$U$16:OFFSET('Interior - Space-By-Space'!$U$65,-1,0),$B71,'Interior - Space-By-Space'!$W$16:OFFSET('Interior - Space-By-Space'!$W$65,-1,0)),SUMIF('Interior - Space-By-Space'!$Y$16:OFFSET('Interior - Space-By-Space'!$Y$65,-1,0),$B71,'Interior - Space-By-Space'!$AA$16:OFFSET('Interior - Space-By-Space'!$AA$65,-1,0)),SUMIF('Interior - Space-By-Space'!$AC$16:OFFSET('Interior - Space-By-Space'!$AC$65,-1,0),$B71,'Interior - Space-By-Space'!$AE$16:OFFSET('Interior - Space-By-Space'!$AE$65,-1,0)),SUMIF('Interior - Space-By-Space'!$AG$16:OFFSET('Interior - Space-By-Space'!$AG$65,-1,0),$B71,'Interior - Space-By-Space'!$AI$16:OFFSET('Interior - Space-By-Space'!$AI$65,-1,0)),SUMIF('Interior - Space-By-Space'!$AK$16:OFFSET('Interior - Space-By-Space'!$AK$65,-1,0),$B71,'Interior - Space-By-Space'!$AM$16:OFFSET('Interior - Space-By-Space'!$AM$65,-1,0)),SUMIF('Interior - Space-By-Space'!$AO$16:OFFSET('Interior - Space-By-Space'!$AO$65,-1,0),$B71,'Interior - Space-By-Space'!$AQ$16:OFFSET('Interior - Space-By-Space'!$AQ$65,-1,0))),IF(ProjectMethod=BAM,SUM('Interior - Building Area Method'!$C82,'Interior - Building Area Method'!$E82,'Interior - Building Area Method'!$G82,'Interior - Building Area Method'!$I82,'Interior - Building Area Method'!$K82),0))+SUM(SUMIF(Exterior!$J$19:$J$53,$B71,Exterior!$K$19:$K$53),SUMIF(Exterior!$M$19:$M$53,$B71,Exterior!$N$19:$N$53),SUMIF(Exterior!$P$19:$P$53,$B71,Exterior!$Q$19:$Q$53),SUMIF(Exterior!$S$19:$S$53,$B71,Exterior!$T$19:$T$53),SUMIF(Exterior!$V$19:$V$53,$B71,Exterior!$W$19:$W$53))","v":0}]
[null,null,null,null,null,null,null,null,{"$f":"IF(ProjectMethod=SBS,SUM(SUMIF('Interior - Space-By-Space'!$M$16:OFFSET('Interior - Space-By-Space'!$M$65,-1,0),$B72,'Interior - Space-By-Space'!$O$16:OFFSET('Interior - Space-By-Space'!$O$65,-1,0)),SUMIF('Interior - Space-By-Space'!$Q$16:OFFSET('Interior - Space-By-Space'!$Q$65,-1,0),$B72,'Interior - Space-By-Space'!$S$16:OFFSET('Interior - Space-By-Space'!$S$65,-1,0)),SUMIF('Interior - Space-By-Space'!$U$16:OFFSET('Interior - Space-By-Space'!$U$65,-1,0),$B72,'Interior - Space-By-Space'!$W$16:OFFSET('Interior - Space-By-Space'!$W$65,-1,0)),SUMIF('Interior - Space-By-Space'!$Y$16:OFFSET('Interior - Space-By-Space'!$Y$65,-1,0),$B72,'Interior - Space-By-Space'!$AA$16:OFFSET('Interior - Space-By-Space'!$AA$65,-1,0)),SUMIF('Interior - Space-By-Space'!$AC$16:OFFSET('Interior - Space-By-Space'!$AC$65,-1,0),$B72,'Interior - Space-By-Space'!$AE$16:OFFSET('Interior - Space-By-Space'!$AE$65,-1,0)),SUMIF('Interior - Space-By-Space'!$AG$16:OFFSET('Interior - Space-By-Space'!$AG$65,-1,0),$B72,'Interior - Space-By-Space'!$AI$16:OFFSET('Interior - Space-By-Space'!$AI$65,-1,0)),SUMIF('Interior - Space-By-Space'!$AK$16:OFFSET('Interior - Space-By-Space'!$AK$65,-1,0),$B72,'Interior - Space-By-Space'!$AM$16:OFFSET('Interior - Space-By-Space'!$AM$65,-1,0)),SUMIF('Interior - Space-By-Space'!$AO$16:OFFSET('Interior - Space-By-Space'!$AO$65,-1,0),$B72,'Interior - Space-By-Space'!$AQ$16:OFFSET('Interior - Space-By-Space'!$AQ$65,-1,0))),IF(ProjectMethod=BAM,SUM('Interior - Building Area Method'!$C83,'Interior - Building Area Method'!$E83,'Interior - Building Area Method'!$G83,'Interior - Building Area Method'!$I83,'Interior - Building Area Method'!$K83),0))+SUM(SUMIF(Exterior!$J$19:$J$53,$B72,Exterior!$K$19:$K$53),SUMIF(Exterior!$M$19:$M$53,$B72,Exterior!$N$19:$N$53),SUMIF(Exterior!$P$19:$P$53,$B72,Exterior!$Q$19:$Q$53),SUMIF(Exterior!$S$19:$S$53,$B72,Exterior!$T$19:$T$53),SUMIF(Exterior!$V$19:$V$53,$B72,Exterior!$W$19:$W$53))","v":0}]
[null,null,null,null,null,null,null,null,{"$f":"IF(ProjectMethod=SBS,SUM(SUMIF('Interior - Space-By-Space'!$M$16:OFFSET('Interior - Space-By-Space'!$M$65,-1,0),$B73,'Interior - Space-By-Space'!$O$16:OFFSET('Interior - Space-By-Space'!$O$65,-1,0)),SUMIF('Interior - Space-By-Space'!$Q$16:OFFSET('Interior - Space-By-Space'!$Q$65,-1,0),$B73,'Interior - Space-By-Space'!$S$16:OFFSET('Interior - Space-By-Space'!$S$65,-1,0)),SUMIF('Interior - Space-By-Space'!$U$16:OFFSET('Interior - Space-By-Space'!$U$65,-1,0),$B73,'Interior - Space-By-Space'!$W$16:OFFSET('Interior - Space-By-Space'!$W$65,-1,0)),SUMIF('Interior - Space-By-Space'!$Y$16:OFFSET('Interior - Space-By-Space'!$Y$65,-1,0),$B73,'Interior - Space-By-Space'!$AA$16:OFFSET('Interior - Space-By-Space'!$AA$65,-1,0)),SUMIF('Interior - Space-By-Space'!$AC$16:OFFSET('Interior - Space-By-Space'!$AC$65,-1,0),$B73,'Interior - Space-By-Space'!$AE$16:OFFSET('Interior - Space-By-Space'!$AE$65,-1,0)),SUMIF('Interior - Space-By-Space'!$AG$16:OFFSET('Interior - Space-By-Space'!$AG$65,-1,0),$B73,'Interior - Space-By-Space'!$AI$16:OFFSET('Interior - Space-By-Space'!$AI$65,-1,0)),SUMIF('Interior - Space-By-Space'!$AK$16:OFFSET('Interior - Space-By-Space'!$AK$65,-1,0),$B73,'Interior - Space-By-Space'!$AM$16:OFFSET('Interior - Space-By-Space'!$AM$65,-1,0)),SUMIF('Interior - Space-By-Space'!$AO$16:OFFSET('Interior - Space-By-Space'!$AO$65,-1,0),$B73,'Interior - Space-By-Space'!$AQ$16:OFFSET('Interior - Space-By-Space'!$AQ$65,-1,0))),IF(ProjectMethod=BAM,SUM('Interior - Building Area Method'!$C84,'Interior - Building Area Method'!$E84,'Interior - Building Area Method'!$G84,'Interior - Building Area Method'!$I84,'Interior - Building Area Method'!$K84),0))+SUM(SUMIF(Exterior!$J$19:$J$53,$B73,Exterior!$K$19:$K$53),SUMIF(Exterior!$M$19:$M$53,$B73,Exterior!$N$19:$N$53),SUMIF(Exterior!$P$19:$P$53,$B73,Exterior!$Q$19:$Q$53),SUMIF(Exterior!$S$19:$S$53,$B73,Exterior!$T$19:$T$53),SUMIF(Exterior!$V$19:$V$53,$B73,Exterior!$W$19:$W$53))","v":0}]
[null,null,null,null,null,null,null,null,{"$f":"IF(ProjectMethod=SBS,SUM(SUMIF('Interior - Space-By-Space'!$M$16:OFFSET('Interior - Space-By-Space'!$M$65,-1,0),$B74,'Interior - Space-By-Space'!$O$16:OFFSET('Interior - Space-By-Space'!$O$65,-1,0)),SUMIF('Interior - Space-By-Space'!$Q$16:OFFSET('Interior - Space-By-Space'!$Q$65,-1,0),$B74,'Interior - Space-By-Space'!$S$16:OFFSET('Interior - Space-By-Space'!$S$65,-1,0)),SUMIF('Interior - Space-By-Space'!$U$16:OFFSET('Interior - Space-By-Space'!$U$65,-1,0),$B74,'Interior - Space-By-Space'!$W$16:OFFSET('Interior - Space-By-Space'!$W$65,-1,0)),SUMIF('Interior - Space-By-Space'!$Y$16:OFFSET('Interior - Space-By-Space'!$Y$65,-1,0),$B74,'Interior - Space-By-Space'!$AA$16:OFFSET('Interior - Space-By-Space'!$AA$65,-1,0)),SUMIF('Interior - Space-By-Space'!$AC$16:OFFSET('Interior - Space-By-Space'!$AC$65,-1,0),$B74,'Interior - Space-By-Space'!$AE$16:OFFSET('Interior - Space-By-Space'!$AE$65,-1,0)),SUMIF('Interior - Space-By-Space'!$AG$16:OFFSET('Interior - Space-By-Space'!$AG$65,-1,0),$B74,'Interior - Space-By-Space'!$AI$16:OFFSET('Interior - Space-By-Space'!$AI$65,-1,0)),SUMIF('Interior - Space-By-Space'!$AK$16:OFFSET('Interior - Space-By-Space'!$AK$65,-1,0),$B74,'Interior - Space-By-Space'!$AM$16:OFFSET('Interior - Space-By-Space'!$AM$65,-1,0)),SUMIF('Interior - Space-By-Space'!$AO$16:OFFSET('Interior - Space-By-Space'!$AO$65,-1,0),$B74,'Interior - Space-By-Space'!$AQ$16:OFFSET('Interior - Space-By-Space'!$AQ$65,-1,0))),IF(ProjectMethod=BAM,SUM('Interior - Building Area Method'!$C85,'Interior - Building Area Method'!$E85,'Interior - Building Area Method'!$G85,'Interior - Building Area Method'!$I85,'Interior - Building Area Method'!$K85),0))+SUM(SUMIF(Exterior!$J$19:$J$53,$B74,Exterior!$K$19:$K$53),SUMIF(Exterior!$M$19:$M$53,$B74,Exterior!$N$19:$N$53),SUMIF(Exterior!$P$19:$P$53,$B74,Exterior!$Q$19:$Q$53),SUMIF(Exterior!$S$19:$S$53,$B74,Exterior!$T$19:$T$53),SUMIF(Exterior!$V$19:$V$53,$B74,Exterior!$W$19:$W$53))","v":0}]
[null,null,null,null,null,null,null,null,{"$f":"IF(ProjectMethod=SBS,SUM(SUMIF('Interior - Space-By-Space'!$M$16:OFFSET('Interior - Space-By-Space'!$M$65,-1,0),$B75,'Interior - Space-By-Space'!$O$16:OFFSET('Interior - Space-By-Space'!$O$65,-1,0)),SUMIF('Interior - Space-By-Space'!$Q$16:OFFSET('Interior - Space-By-Space'!$Q$65,-1,0),$B75,'Interior - Space-By-Space'!$S$16:OFFSET('Interior - Space-By-Space'!$S$65,-1,0)),SUMIF('Interior - Space-By-Space'!$U$16:OFFSET('Interior - Space-By-Space'!$U$65,-1,0),$B75,'Interior - Space-By-Space'!$W$16:OFFSET('Interior - Space-By-Space'!$W$65,-1,0)),SUMIF('Interior - Space-By-Space'!$Y$16:OFFSET('Interior - Space-By-Space'!$Y$65,-1,0),$B75,'Interior - Space-By-Space'!$AA$16:OFFSET('Interior - Space-By-Space'!$AA$65,-1,0)),SUMIF('Interior - Space-By-Space'!$AC$16:OFFSET('Interior - Space-By-Space'!$AC$65,-1,0),$B75,'Interior - Space-By-Space'!$AE$16:OFFSET('Interior - Space-By-Space'!$AE$65,-1,0)),SUMIF('Interior - Space-By-Space'!$AG$16:OFFSET('Interior - Space-By-Space'!$AG$65,-1,0),$B75,'Interior - Space-By-Space'!$AI$16:OFFSET('Interior - Space-By-Space'!$AI$65,-1,0)),SUMIF('Interior - Space-By-Space'!$AK$16:OFFSET('Interior - Space-By-Space'!$AK$65,-1,0),$B75,'Interior - Space-By-Space'!$AM$16:OFFSET('Interior - Space-By-Space'!$AM$65,-1,0)),SUMIF('Interior - Space-By-Space'!$AO$16:OFFSET('Interior - Space-By-Space'!$AO$65,-1,0),$B75,'Interior - Space-By-Space'!$AQ$16:OFFSET('Interior - Space-By-Space'!$AQ$65,-1,0))),IF(ProjectMethod=BAM,SUM('Interior - Building Area Method'!$C86,'Interior - Building Area Method'!$E86,'Interior - Building Area Method'!$G86,'Interior - Building Area Method'!$I86,'Interior - Building Area Method'!$K86),0))+SUM(SUMIF(Exterior!$J$19:$J$53,$B75,Exterior!$K$19:$K$53),SUMIF(Exterior!$M$19:$M$53,$B75,Exterior!$N$19:$N$53),SUMIF(Exterior!$P$19:$P$53,$B75,Exterior!$Q$19:$Q$53),SUMIF(Exterior!$S$19:$S$53,$B75,Exterior!$T$19:$T$53),SUMIF(Exterior!$V$19:$V$53,$B75,Exterior!$W$19:$W$53))","v":0}]
[null,null,null,null,null,null,null,null,{"$f":"IF(ProjectMethod=SBS,SUM(SUMIF('Interior - Space-By-Space'!$M$16:OFFSET('Interior - Space-By-Space'!$M$65,-1,0),$B76,'Interior - Space-By-Space'!$O$16:OFFSET('Interior - Space-By-Space'!$O$65,-1,0)),SUMIF('Interior - Space-By-Space'!$Q$16:OFFSET('Interior - Space-By-Space'!$Q$65,-1,0),$B76,'Interior - Space-By-Space'!$S$16:OFFSET('Interior - Space-By-Space'!$S$65,-1,0)),SUMIF('Interior - Space-By-Space'!$U$16:OFFSET('Interior - Space-By-Space'!$U$65,-1,0),$B76,'Interior - Space-By-Space'!$W$16:OFFSET('Interior - Space-By-Space'!$W$65,-1,0)),SUMIF('Interior - Space-By-Space'!$Y$16:OFFSET('Interior - Space-By-Space'!$Y$65,-1,0),$B76,'Interior - Space-By-Space'!$AA$16:OFFSET('Interior - Space-By-Space'!$AA$65,-1,0)),SUMIF('Interior - Space-By-Space'!$AC$16:OFFSET('Interior - Space-By-Space'!$AC$65,-1,0),$B76,'Interior - Space-By-Space'!$AE$16:OFFSET('Interior - Space-By-Space'!$AE$65,-1,0)),SUMIF('Interior - Space-By-Space'!$AG$16:OFFSET('Interior - Space-By-Space'!$AG$65,-1,0),$B76,'Interior - Space-By-Space'!$AI$16:OFFSET('Interior - Space-By-Space'!$AI$65,-1,0)),SUMIF('Interior - Space-By-Space'!$AK$16:OFFSET('Interior - Space-By-Space'!$AK$65,-1,0),$B76,'Interior - Space-By-Space'!$AM$16:OFFSET('Interior - Space-By-Space'!$AM$65,-1,0)),SUMIF('Interior - Space-By-Space'!$AO$16:OFFSET('Interior - Space-By-Space'!$AO$65,-1,0),$B76,'Interior - Space-By-Space'!$AQ$16:OFFSET('Interior - Space-By-Space'!$AQ$65,-1,0))),IF(ProjectMethod=BAM,SUM('Interior - Building Area Method'!$C87,'Interior - Building Area Method'!$E87,'Interior - Building Area Method'!$G87,'Interior - Building Area Method'!$I87,'Interior - Building Area Method'!$K87),0))+SUM(SUMIF(Exterior!$J$19:$J$53,$B76,Exterior!$K$19:$K$53),SUMIF(Exterior!$M$19:$M$53,$B76,Exterior!$N$19:$N$53),SUMIF(Exterior!$P$19:$P$53,$B76,Exterior!$Q$19:$Q$53),SUMIF(Exterior!$S$19:$S$53,$B76,Exterior!$T$19:$T$53),SUMIF(Exterior!$V$19:$V$53,$B76,Exterior!$W$19:$W$53))","v":0}]
[null,null,null,null,null,null,null,null,{"$f":"IF(ProjectMethod=SBS,SUM(SUMIF('Interior - Space-By-Space'!$M$16:OFFSET('Interior - Space-By-Space'!$M$65,-1,0),$B77,'Interior - Space-By-Space'!$O$16:OFFSET('Interior - Space-By-Space'!$O$65,-1,0)),SUMIF('Interior - Space-By-Space'!$Q$16:OFFSET('Interior - Space-By-Space'!$Q$65,-1,0),$B77,'Interior - Space-By-Space'!$S$16:OFFSET('Interior - Space-By-Space'!$S$65,-1,0)),SUMIF('Interior - Space-By-Space'!$U$16:OFFSET('Interior - Space-By-Space'!$U$65,-1,0),$B77,'Interior - Space-By-Space'!$W$16:OFFSET('Interior - Space-By-Space'!$W$65,-1,0)),SUMIF('Interior - Space-By-Space'!$Y$16:OFFSET('Interior - Space-By-Space'!$Y$65,-1,0),$B77,'Interior - Space-By-Space'!$AA$16:OFFSET('Interior - Space-By-Space'!$AA$65,-1,0)),SUMIF('Interior - Space-By-Space'!$AC$16:OFFSET('Interior - Space-By-Space'!$AC$65,-1,0),$B77,'Interior - Space-By-Space'!$AE$16:OFFSET('Interior - Space-By-Space'!$AE$65,-1,0)),SUMIF('Interior - Space-By-Space'!$AG$16:OFFSET('Interior - Space-By-Space'!$AG$65,-1,0),$B77,'Interior - Space-By-Space'!$AI$16:OFFSET('Interior - Space-By-Space'!$AI$65,-1,0)),SUMIF('Interior - Space-By-Space'!$AK$16:OFFSET('Interior - Space-By-Space'!$AK$65,-1,0),$B77,'Interior - Space-By-Space'!$AM$16:OFFSET('Interior - Space-By-Space'!$AM$65,-1,0)),SUMIF('Interior - Space-By-Space'!$AO$16:OFFSET('Interior - Space-By-Space'!$AO$65,-1,0),$B77,'Interior - Space-By-Space'!$AQ$16:OFFSET('Interior - Space-By-Space'!$AQ$65,-1,0))),IF(ProjectMethod=BAM,SUM('Interior - Building Area Method'!$C88,'Interior - Building Area Method'!$E88,'Interior - Building Area Method'!$G88,'Interior - Building Area Method'!$I88,'Interior - Building Area Method'!$K88),0))+SUM(SUMIF(Exterior!$J$19:$J$53,$B77,Exterior!$K$19:$K$53),SUMIF(Exterior!$M$19:$M$53,$B77,Exterior!$N$19:$N$53),SUMIF(Exterior!$P$19:$P$53,$B77,Exterior!$Q$19:$Q$53),SUMIF(Exterior!$S$19:$S$53,$B77,Exterior!$T$19:$T$53),SUMIF(Exterior!$V$19:$V$53,$B77,Exterior!$W$19:$W$53))","v":0}]
[null,null,null,null,null,null,null,null,{"$f":"IF(ProjectMethod=SBS,SUM(SUMIF('Interior - Space-By-Space'!$M$16:OFFSET('Interior - Space-By-Space'!$M$65,-1,0),$B78,'Interior - Space-By-Space'!$O$16:OFFSET('Interior - Space-By-Space'!$O$65,-1,0)),SUMIF('Interior - Space-By-Space'!$Q$16:OFFSET('Interior - Space-By-Space'!$Q$65,-1,0),$B78,'Interior - Space-By-Space'!$S$16:OFFSET('Interior - Space-By-Space'!$S$65,-1,0)),SUMIF('Interior - Space-By-Space'!$U$16:OFFSET('Interior - Space-By-Space'!$U$65,-1,0),$B78,'Interior - Space-By-Space'!$W$16:OFFSET('Interior - Space-By-Space'!$W$65,-1,0)),SUMIF('Interior - Space-By-Space'!$Y$16:OFFSET('Interior - Space-By-Space'!$Y$65,-1,0),$B78,'Interior - Space-By-Space'!$AA$16:OFFSET('Interior - Space-By-Space'!$AA$65,-1,0)),SUMIF('Interior - Space-By-Space'!$AC$16:OFFSET('Interior - Space-By-Space'!$AC$65,-1,0),$B78,'Interior - Space-By-Space'!$AE$16:OFFSET('Interior - Space-By-Space'!$AE$65,-1,0)),SUMIF('Interior - Space-By-Space'!$AG$16:OFFSET('Interior - Space-By-Space'!$AG$65,-1,0),$B78,'Interior - Space-By-Space'!$AI$16:OFFSET('Interior - Space-By-Space'!$AI$65,-1,0)),SUMIF('Interior - Space-By-Space'!$AK$16:OFFSET('Interior - Space-By-Space'!$AK$65,-1,0),$B78,'Interior - Space-By-Space'!$AM$16:OFFSET('Interior - Space-By-Space'!$AM$65,-1,0)),SUMIF('Interior - Space-By-Space'!$AO$16:OFFSET('Interior - Space-By-Space'!$AO$65,-1,0),$B78,'Interior - Space-By-Space'!$AQ$16:OFFSET('Interior - Space-By-Space'!$AQ$65,-1,0))),IF(ProjectMethod=BAM,SUM('Interior - Building Area Method'!$C89,'Interior - Building Area Method'!$E89,'Interior - Building Area Method'!$G89,'Interior - Building Area Method'!$I89,'Interior - Building Area Method'!$K89),0))+SUM(SUMIF(Exterior!$J$19:$J$53,$B78,Exterior!$K$19:$K$53),SUMIF(Exterior!$M$19:$M$53,$B78,Exterior!$N$19:$N$53),SUMIF(Exterior!$P$19:$P$53,$B78,Exterior!$Q$19:$Q$53),SUMIF(Exterior!$S$19:$S$53,$B78,Exterior!$T$19:$T$53),SUMIF(Exterior!$V$19:$V$53,$B78,Exterior!$W$19:$W$53))","v":0}]
[null,null,null,null,null,null,null,null,{"$f":"IF(ProjectMethod=SBS,SUM(SUMIF('Interior - Space-By-Space'!$M$16:OFFSET('Interior - Space-By-Space'!$M$65,-1,0),$B79,'Interior - Space-By-Space'!$O$16:OFFSET('Interior - Space-By-Space'!$O$65,-1,0)),SUMIF('Interior - Space-By-Space'!$Q$16:OFFSET('Interior - Space-By-Space'!$Q$65,-1,0),$B79,'Interior - Space-By-Space'!$S$16:OFFSET('Interior - Space-By-Space'!$S$65,-1,0)),SUMIF('Interior - Space-By-Space'!$U$16:OFFSET('Interior - Space-By-Space'!$U$65,-1,0),$B79,'Interior - Space-By-Space'!$W$16:OFFSET('Interior - Space-By-Space'!$W$65,-1,0)),SUMIF('Interior - Space-By-Space'!$Y$16:OFFSET('Interior - Space-By-Space'!$Y$65,-1,0),$B79,'Interior - Space-By-Space'!$AA$16:OFFSET('Interior - Space-By-Space'!$AA$65,-1,0)),SUMIF('Interior - Space-By-Space'!$AC$16:OFFSET('Interior - Space-By-Space'!$AC$65,-1,0),$B79,'Interior - Space-By-Space'!$AE$16:OFFSET('Interior - Space-By-Space'!$AE$65,-1,0)),SUMIF('Interior - Space-By-Space'!$AG$16:OFFSET('Interior - Space-By-Space'!$AG$65,-1,0),$B79,'Interior - Space-By-Space'!$AI$16:OFFSET('Interior - Space-By-Space'!$AI$65,-1,0)),SUMIF('Interior - Space-By-Space'!$AK$16:OFFSET('Interior - Space-By-Space'!$AK$65,-1,0),$B79,'Interior - Space-By-Space'!$AM$16:OFFSET('Interior - Space-By-Space'!$AM$65,-1,0)),SUMIF('Interior - Space-By-Space'!$AO$16:OFFSET('Interior - Space-By-Space'!$AO$65,-1,0),$B79,'Interior - Space-By-Space'!$AQ$16:OFFSET('Interior - Space-By-Space'!$AQ$65,-1,0))),IF(ProjectMethod=BAM,SUM('Interior - Building Area Method'!$C90,'Interior - Building Area Method'!$E90,'Interior - Building Area Method'!$G90,'Interior - Building Area Method'!$I90,'Interior - Building Area Method'!$K90),0))+SUM(SUMIF(Exterior!$J$19:$J$53,$B79,Exterior!$K$19:$K$53),SUMIF(Exterior!$M$19:$M$53,$B79,Exterior!$N$19:$N$53),SUMIF(Exterior!$P$19:$P$53,$B79,Exterior!$Q$19:$Q$53),SUMIF(Exterior!$S$19:$S$53,$B79,Exterior!$T$19:$T$53),SUMIF(Exterior!$V$19:$V$53,$B79,Exterior!$W$19:$W$53))","v":0}]
[null,null,null,null,null,null,null,null,{"$f":"IF(ProjectMethod=SBS,SUM(SUMIF('Interior - Space-By-Space'!$M$16:OFFSET('Interior - Space-By-Space'!$M$65,-1,0),$B80,'Interior - Space-By-Space'!$O$16:OFFSET('Interior - Space-By-Space'!$O$65,-1,0)),SUMIF('Interior - Space-By-Space'!$Q$16:OFFSET('Interior - Space-By-Space'!$Q$65,-1,0),$B80,'Interior - Space-By-Space'!$S$16:OFFSET('Interior - Space-By-Space'!$S$65,-1,0)),SUMIF('Interior - Space-By-Space'!$U$16:OFFSET('Interior - Space-By-Space'!$U$65,-1,0),$B80,'Interior - Space-By-Space'!$W$16:OFFSET('Interior - Space-By-Space'!$W$65,-1,0)),SUMIF('Interior - Space-By-Space'!$Y$16:OFFSET('Interior - Space-By-Space'!$Y$65,-1,0),$B80,'Interior - Space-By-Space'!$AA$16:OFFSET('Interior - Space-By-Space'!$AA$65,-1,0)),SUMIF('Interior - Space-By-Space'!$AC$16:OFFSET('Interior - Space-By-Space'!$AC$65,-1,0),$B80,'Interior - Space-By-Space'!$AE$16:OFFSET('Interior - Space-By-Space'!$AE$65,-1,0)),SUMIF('Interior - Space-By-Space'!$AG$16:OFFSET('Interior - Space-By-Space'!$AG$65,-1,0),$B80,'Interior - Space-By-Space'!$AI$16:OFFSET('Interior - Space-By-Space'!$AI$65,-1,0)),SUMIF('Interior - Space-By-Space'!$AK$16:OFFSET('Interior - Space-By-Space'!$AK$65,-1,0),$B80,'Interior - Space-By-Space'!$AM$16:OFFSET('Interior - Space-By-Space'!$AM$65,-1,0)),SUMIF('Interior - Space-By-Space'!$AO$16:OFFSET('Interior - Space-By-Space'!$AO$65,-1,0),$B80,'Interior - Space-By-Space'!$AQ$16:OFFSET('Interior - Space-By-Space'!$AQ$65,-1,0))),IF(ProjectMethod=BAM,SUM('Interior - Building Area Method'!$C91,'Interior - Building Area Method'!$E91,'Interior - Building Area Method'!$G91,'Interior - Building Area Method'!$I91,'Interior - Building Area Method'!$K91),0))+SUM(SUMIF(Exterior!$J$19:$J$53,$B80,Exterior!$K$19:$K$53),SUMIF(Exterior!$M$19:$M$53,$B80,Exterior!$N$19:$N$53),SUMIF(Exterior!$P$19:$P$53,$B80,Exterior!$Q$19:$Q$53),SUMIF(Exterior!$S$19:$S$53,$B80,Exterior!$T$19:$T$53),SUMIF(Exterior!$V$19:$V$53,$B80,Exterior!$W$19:$W$53))","v":0}]
[null,null,null,null,null,null,null,null,{"$f":"IF(ProjectMethod=SBS,SUM(SUMIF('Interior - Space-By-Space'!$M$16:OFFSET('Interior - Space-By-Space'!$M$65,-1,0),$B81,'Interior - Space-By-Space'!$O$16:OFFSET('Interior - Space-By-Space'!$O$65,-1,0)),SUMIF('Interior - Space-By-Space'!$Q$16:OFFSET('Interior - Space-By-Space'!$Q$65,-1,0),$B81,'Interior - Space-By-Space'!$S$16:OFFSET('Interior - Space-By-Space'!$S$65,-1,0)),SUMIF('Interior - Space-By-Space'!$U$16:OFFSET('Interior - Space-By-Space'!$U$65,-1,0),$B81,'Interior - Space-By-Space'!$W$16:OFFSET('Interior - Space-By-Space'!$W$65,-1,0)),SUMIF('Interior - Space-By-Space'!$Y$16:OFFSET('Interior - Space-By-Space'!$Y$65,-1,0),$B81,'Interior - Space-By-Space'!$AA$16:OFFSET('Interior - Space-By-Space'!$AA$65,-1,0)),SUMIF('Interior - Space-By-Space'!$AC$16:OFFSET('Interior - Space-By-Space'!$AC$65,-1,0),$B81,'Interior - Space-By-Space'!$AE$16:OFFSET('Interior - Space-By-Space'!$AE$65,-1,0)),SUMIF('Interior - Space-By-Space'!$AG$16:OFFSET('Interior - Space-By-Space'!$AG$65,-1,0),$B81,'Interior - Space-By-Space'!$AI$16:OFFSET('Interior - Space-By-Space'!$AI$65,-1,0)),SUMIF('Interior - Space-By-Space'!$AK$16:OFFSET('Interior - Space-By-Space'!$AK$65,-1,0),$B81,'Interior - Space-By-Space'!$AM$16:OFFSET('Interior - Space-By-Space'!$AM$65,-1,0)),SUMIF('Interior - Space-By-Space'!$AO$16:OFFSET('Interior - Space-By-Space'!$AO$65,-1,0),$B81,'Interior - Space-By-Space'!$AQ$16:OFFSET('Interior - Space-By-Space'!$AQ$65,-1,0))),IF(ProjectMethod=BAM,SUM('Interior - Building Area Method'!$C92,'Interior - Building Area Method'!$E92,'Interior - Building Area Method'!$G92,'Interior - Building Area Method'!$I92,'Interior - Building Area Method'!$K92),0))+SUM(SUMIF(Exterior!$J$19:$J$53,$B81,Exterior!$K$19:$K$53),SUMIF(Exterior!$M$19:$M$53,$B81,Exterior!$N$19:$N$53),SUMIF(Exterior!$P$19:$P$53,$B81,Exterior!$Q$19:$Q$53),SUMIF(Exterior!$S$19:$S$53,$B81,Exterior!$T$19:$T$53),SUMIF(Exterior!$V$19:$V$53,$B81,Exterior!$W$19:$W$53))","v":0}]
[null,null,null,null,null,null,null,null,{"$f":"IF(ProjectMethod=SBS,SUM(SUMIF('Interior - Space-By-Space'!$M$16:OFFSET('Interior - Space-By-Space'!$M$65,-1,0),$B82,'Interior - Space-By-Space'!$O$16:OFFSET('Interior - Space-By-Space'!$O$65,-1,0)),SUMIF('Interior - Space-By-Space'!$Q$16:OFFSET('Interior - Space-By-Space'!$Q$65,-1,0),$B82,'Interior - Space-By-Space'!$S$16:OFFSET('Interior - Space-By-Space'!$S$65,-1,0)),SUMIF('Interior - Space-By-Space'!$U$16:OFFSET('Interior - Space-By-Space'!$U$65,-1,0),$B82,'Interior - Space-By-Space'!$W$16:OFFSET('Interior - Space-By-Space'!$W$65,-1,0)),SUMIF('Interior - Space-By-Space'!$Y$16:OFFSET('Interior - Space-By-Space'!$Y$65,-1,0),$B82,'Interior - Space-By-Space'!$AA$16:OFFSET('Interior - Space-By-Space'!$AA$65,-1,0)),SUMIF('Interior - Space-By-Space'!$AC$16:OFFSET('Interior - Space-By-Space'!$AC$65,-1,0),$B82,'Interior - Space-By-Space'!$AE$16:OFFSET('Interior - Space-By-Space'!$AE$65,-1,0)),SUMIF('Interior - Space-By-Space'!$AG$16:OFFSET('Interior - Space-By-Space'!$AG$65,-1,0),$B82,'Interior - Space-By-Space'!$AI$16:OFFSET('Interior - Space-By-Space'!$AI$65,-1,0)),SUMIF('Interior - Space-By-Space'!$AK$16:OFFSET('Interior - Space-By-Space'!$AK$65,-1,0),$B82,'Interior - Space-By-Space'!$AM$16:OFFSET('Interior - Space-By-Space'!$AM$65,-1,0)),SUMIF('Interior - Space-By-Space'!$AO$16:OFFSET('Interior - Space-By-Space'!$AO$65,-1,0),$B82,'Interior - Space-By-Space'!$AQ$16:OFFSET('Interior - Space-By-Space'!$AQ$65,-1,0))),IF(ProjectMethod=BAM,SUM('Interior - Building Area Method'!$C93,'Interior - Building Area Method'!$E93,'Interior - Building Area Method'!$G93,'Interior - Building Area Method'!$I93,'Interior - Building Area Method'!$K93),0))+SUM(SUMIF(Exterior!$J$19:$J$53,$B82,Exterior!$K$19:$K$53),SUMIF(Exterior!$M$19:$M$53,$B82,Exterior!$N$19:$N$53),SUMIF(Exterior!$P$19:$P$53,$B82,Exterior!$Q$19:$Q$53),SUMIF(Exterior!$S$19:$S$53,$B82,Exterior!$T$19:$T$53),SUMIF(Exterior!$V$19:$V$53,$B82,Exterior!$W$19:$W$53))","v":0}]
[null,null,null,null,null,null,null,null,{"$f":"IF(ProjectMethod=SBS,SUM(SUMIF('Interior - Space-By-Space'!$M$16:OFFSET('Interior - Space-By-Space'!$M$65,-1,0),$B83,'Interior - Space-By-Space'!$O$16:OFFSET('Interior - Space-By-Space'!$O$65,-1,0)),SUMIF('Interior - Space-By-Space'!$Q$16:OFFSET('Interior - Space-By-Space'!$Q$65,-1,0),$B83,'Interior - Space-By-Space'!$S$16:OFFSET('Interior - Space-By-Space'!$S$65,-1,0)),SUMIF('Interior - Space-By-Space'!$U$16:OFFSET('Interior - Space-By-Space'!$U$65,-1,0),$B83,'Interior - Space-By-Space'!$W$16:OFFSET('Interior - Space-By-Space'!$W$65,-1,0)),SUMIF('Interior - Space-By-Space'!$Y$16:OFFSET('Interior - Space-By-Space'!$Y$65,-1,0),$B83,'Interior - Space-By-Space'!$AA$16:OFFSET('Interior - Space-By-Space'!$AA$65,-1,0)),SUMIF('Interior - Space-By-Space'!$AC$16:OFFSET('Interior - Space-By-Space'!$AC$65,-1,0),$B83,'Interior - Space-By-Space'!$AE$16:OFFSET('Interior - Space-By-Space'!$AE$65,-1,0)),SUMIF('Interior - Space-By-Space'!$AG$16:OFFSET('Interior - Space-By-Space'!$AG$65,-1,0),$B83,'Interior - Space-By-Space'!$AI$16:OFFSET('Interior - Space-By-Space'!$AI$65,-1,0)),SUMIF('Interior - Space-By-Space'!$AK$16:OFFSET('Interior - Space-By-Space'!$AK$65,-1,0),$B83,'Interior - Space-By-Space'!$AM$16:OFFSET('Interior - Space-By-Space'!$AM$65,-1,0)),SUMIF('Interior - Space-By-Space'!$AO$16:OFFSET('Interior - Space-By-Space'!$AO$65,-1,0),$B83,'Interior - Space-By-Space'!$AQ$16:OFFSET('Interior - Space-By-Space'!$AQ$65,-1,0))),IF(ProjectMethod=BAM,SUM('Interior - Building Area Method'!$C94,'Interior - Building Area Method'!$E94,'Interior - Building Area Method'!$G94,'Interior - Building Area Method'!$I94,'Interior - Building Area Method'!$K94),0))+SUM(SUMIF(Exterior!$J$19:$J$53,$B83,Exterior!$K$19:$K$53),SUMIF(Exterior!$M$19:$M$53,$B83,Exterior!$N$19:$N$53),SUMIF(Exterior!$P$19:$P$53,$B83,Exterior!$Q$19:$Q$53),SUMIF(Exterior!$S$19:$S$53,$B83,Exterior!$T$19:$T$53),SUMIF(Exterior!$V$19:$V$53,$B83,Exterior!$W$19:$W$53))","v":0}]
[null,null,null,null,null,null,null,null,{"$f":"IF(ProjectMethod=SBS,SUM(SUMIF('Interior - Space-By-Space'!$M$16:OFFSET('Interior - Space-By-Space'!$M$65,-1,0),$B84,'Interior - Space-By-Space'!$O$16:OFFSET('Interior - Space-By-Space'!$O$65,-1,0)),SUMIF('Interior - Space-By-Space'!$Q$16:OFFSET('Interior - Space-By-Space'!$Q$65,-1,0),$B84,'Interior - Space-By-Space'!$S$16:OFFSET('Interior - Space-By-Space'!$S$65,-1,0)),SUMIF('Interior - Space-By-Space'!$U$16:OFFSET('Interior - Space-By-Space'!$U$65,-1,0),$B84,'Interior - Space-By-Space'!$W$16:OFFSET('Interior - Space-By-Space'!$W$65,-1,0)),SUMIF('Interior - Space-By-Space'!$Y$16:OFFSET('Interior - Space-By-Space'!$Y$65,-1,0),$B84,'Interior - Space-By-Space'!$AA$16:OFFSET('Interior - Space-By-Space'!$AA$65,-1,0)),SUMIF('Interior - Space-By-Space'!$AC$16:OFFSET('Interior - Space-By-Space'!$AC$65,-1,0),$B84,'Interior - Space-By-Space'!$AE$16:OFFSET('Interior - Space-By-Space'!$AE$65,-1,0)),SUMIF('Interior - Space-By-Space'!$AG$16:OFFSET('Interior - Space-By-Space'!$AG$65,-1,0),$B84,'Interior - Space-By-Space'!$AI$16:OFFSET('Interior - Space-By-Space'!$AI$65,-1,0)),SUMIF('Interior - Space-By-Space'!$AK$16:OFFSET('Interior - Space-By-Space'!$AK$65,-1,0),$B84,'Interior - Space-By-Space'!$AM$16:OFFSET('Interior - Space-By-Space'!$AM$65,-1,0)),SUMIF('Interior - Space-By-Space'!$AO$16:OFFSET('Interior - Space-By-Space'!$AO$65,-1,0),$B84,'Interior - Space-By-Space'!$AQ$16:OFFSET('Interior - Space-By-Space'!$AQ$65,-1,0))),IF(ProjectMethod=BAM,SUM('Interior - Building Area Method'!$C95,'Interior - Building Area Method'!$E95,'Interior - Building Area Method'!$G95,'Interior - Building Area Method'!$I95,'Interior - Building Area Method'!$K95),0))+SUM(SUMIF(Exterior!$J$19:$J$53,$B84,Exterior!$K$19:$K$53),SUMIF(Exterior!$M$19:$M$53,$B84,Exterior!$N$19:$N$53),SUMIF(Exterior!$P$19:$P$53,$B84,Exterior!$Q$19:$Q$53),SUMIF(Exterior!$S$19:$S$53,$B84,Exterior!$T$19:$T$53),SUMIF(Exterior!$V$19:$V$53,$B84,Exterior!$W$19:$W$53))","v":0}]
[null,null,null,null,null,null,null,null,{"$f":"IF(ProjectMethod=SBS,SUM(SUMIF('Interior - Space-By-Space'!$M$16:OFFSET('Interior - Space-By-Space'!$M$65,-1,0),$B85,'Interior - Space-By-Space'!$O$16:OFFSET('Interior - Space-By-Space'!$O$65,-1,0)),SUMIF('Interior - Space-By-Space'!$Q$16:OFFSET('Interior - Space-By-Space'!$Q$65,-1,0),$B85,'Interior - Space-By-Space'!$S$16:OFFSET('Interior - Space-By-Space'!$S$65,-1,0)),SUMIF('Interior - Space-By-Space'!$U$16:OFFSET('Interior - Space-By-Space'!$U$65,-1,0),$B85,'Interior - Space-By-Space'!$W$16:OFFSET('Interior - Space-By-Space'!$W$65,-1,0)),SUMIF('Interior - Space-By-Space'!$Y$16:OFFSET('Interior - Space-By-Space'!$Y$65,-1,0),$B85,'Interior - Space-By-Space'!$AA$16:OFFSET('Interior - Space-By-Space'!$AA$65,-1,0)),SUMIF('Interior - Space-By-Space'!$AC$16:OFFSET('Interior - Space-By-Space'!$AC$65,-1,0),$B85,'Interior - Space-By-Space'!$AE$16:OFFSET('Interior - Space-By-Space'!$AE$65,-1,0)),SUMIF('Interior - Space-By-Space'!$AG$16:OFFSET('Interior - Space-By-Space'!$AG$65,-1,0),$B85,'Interior - Space-By-Space'!$AI$16:OFFSET('Interior - Space-By-Space'!$AI$65,-1,0)),SUMIF('Interior - Space-By-Space'!$AK$16:OFFSET('Interior - Space-By-Space'!$AK$65,-1,0),$B85,'Interior - Space-By-Space'!$AM$16:OFFSET('Interior - Space-By-Space'!$AM$65,-1,0)),SUMIF('Interior - Space-By-Space'!$AO$16:OFFSET('Interior - Space-By-Space'!$AO$65,-1,0),$B85,'Interior - Space-By-Space'!$AQ$16:OFFSET('Interior - Space-By-Space'!$AQ$65,-1,0))),IF(ProjectMethod=BAM,SUM('Interior - Building Area Method'!$C96,'Interior - Building Area Method'!$E96,'Interior - Building Area Method'!$G96,'Interior - Building Area Method'!$I96,'Interior - Building Area Method'!$K96),0))+SUM(SUMIF(Exterior!$J$19:$J$53,$B85,Exterior!$K$19:$K$53),SUMIF(Exterior!$M$19:$M$53,$B85,Exterior!$N$19:$N$53),SUMIF(Exterior!$P$19:$P$53,$B85,Exterior!$Q$19:$Q$53),SUMIF(Exterior!$S$19:$S$53,$B85,Exterior!$T$19:$T$53),SUMIF(Exterior!$V$19:$V$53,$B85,Exterior!$W$19:$W$53))","v":0}]
[null,null,null,null,null,null,null,null,{"$f":"IF(ProjectMethod=SBS,SUM(SUMIF('Interior - Space-By-Space'!$M$16:OFFSET('Interior - Space-By-Space'!$M$65,-1,0),$B86,'Interior - Space-By-Space'!$O$16:OFFSET('Interior - Space-By-Space'!$O$65,-1,0)),SUMIF('Interior - Space-By-Space'!$Q$16:OFFSET('Interior - Space-By-Space'!$Q$65,-1,0),$B86,'Interior - Space-By-Space'!$S$16:OFFSET('Interior - Space-By-Space'!$S$65,-1,0)),SUMIF('Interior - Space-By-Space'!$U$16:OFFSET('Interior - Space-By-Space'!$U$65,-1,0),$B86,'Interior - Space-By-Space'!$W$16:OFFSET('Interior - Space-By-Space'!$W$65,-1,0)),SUMIF('Interior - Space-By-Space'!$Y$16:OFFSET('Interior - Space-By-Space'!$Y$65,-1,0),$B86,'Interior - Space-By-Space'!$AA$16:OFFSET('Interior - Space-By-Space'!$AA$65,-1,0)),SUMIF('Interior - Space-By-Space'!$AC$16:OFFSET('Interior - Space-By-Space'!$AC$65,-1,0),$B86,'Interior - Space-By-Space'!$AE$16:OFFSET('Interior - Space-By-Space'!$AE$65,-1,0)),SUMIF('Interior - Space-By-Space'!$AG$16:OFFSET('Interior - Space-By-Space'!$AG$65,-1,0),$B86,'Interior - Space-By-Space'!$AI$16:OFFSET('Interior - Space-By-Space'!$AI$65,-1,0)),SUMIF('Interior - Space-By-Space'!$AK$16:OFFSET('Interior - Space-By-Space'!$AK$65,-1,0),$B86,'Interior - Space-By-Space'!$AM$16:OFFSET('Interior - Space-By-Space'!$AM$65,-1,0)),SUMIF('Interior - Space-By-Space'!$AO$16:OFFSET('Interior - Space-By-Space'!$AO$65,-1,0),$B86,'Interior - Space-By-Space'!$AQ$16:OFFSET('Interior - Space-By-Space'!$AQ$65,-1,0))),IF(ProjectMethod=BAM,SUM('Interior - Building Area Method'!$C97,'Interior - Building Area Method'!$E97,'Interior - Building Area Method'!$G97,'Interior - Building Area Method'!$I97,'Interior - Building Area Method'!$K97),0))+SUM(SUMIF(Exterior!$J$19:$J$53,$B86,Exterior!$K$19:$K$53),SUMIF(Exterior!$M$19:$M$53,$B86,Exterior!$N$19:$N$53),SUMIF(Exterior!$P$19:$P$53,$B86,Exterior!$Q$19:$Q$53),SUMIF(Exterior!$S$19:$S$53,$B86,Exterior!$T$19:$T$53),SUMIF(Exterior!$V$19:$V$53,$B86,Exterior!$W$19:$W$53))","v":0}]
[null,null,null,null,null,null,null,null,{"$f":"IF(ProjectMethod=SBS,SUM(SUMIF('Interior - Space-By-Space'!$M$16:OFFSET('Interior - Space-By-Space'!$M$65,-1,0),$B87,'Interior - Space-By-Space'!$O$16:OFFSET('Interior - Space-By-Space'!$O$65,-1,0)),SUMIF('Interior - Space-By-Space'!$Q$16:OFFSET('Interior - Space-By-Space'!$Q$65,-1,0),$B87,'Interior - Space-By-Space'!$S$16:OFFSET('Interior - Space-By-Space'!$S$65,-1,0)),SUMIF('Interior - Space-By-Space'!$U$16:OFFSET('Interior - Space-By-Space'!$U$65,-1,0),$B87,'Interior - Space-By-Space'!$W$16:OFFSET('Interior - Space-By-Space'!$W$65,-1,0)),SUMIF('Interior - Space-By-Space'!$Y$16:OFFSET('Interior - Space-By-Space'!$Y$65,-1,0),$B87,'Interior - Space-By-Space'!$AA$16:OFFSET('Interior - Space-By-Space'!$AA$65,-1,0)),SUMIF('Interior - Space-By-Space'!$AC$16:OFFSET('Interior - Space-By-Space'!$AC$65,-1,0),$B87,'Interior - Space-By-Space'!$AE$16:OFFSET('Interior - Space-By-Space'!$AE$65,-1,0)),SUMIF('Interior - Space-By-Space'!$AG$16:OFFSET('Interior - Space-By-Space'!$AG$65,-1,0),$B87,'Interior - Space-By-Space'!$AI$16:OFFSET('Interior - Space-By-Space'!$AI$65,-1,0)),SUMIF('Interior - Space-By-Space'!$AK$16:OFFSET('Interior - Space-By-Space'!$AK$65,-1,0),$B87,'Interior - Space-By-Space'!$AM$16:OFFSET('Interior - Space-By-Space'!$AM$65,-1,0)),SUMIF('Interior - Space-By-Space'!$AO$16:OFFSET('Interior - Space-By-Space'!$AO$65,-1,0),$B87,'Interior - Space-By-Space'!$AQ$16:OFFSET('Interior - Space-By-Space'!$AQ$65,-1,0))),IF(ProjectMethod=BAM,SUM('Interior - Building Area Method'!$C98,'Interior - Building Area Method'!$E98,'Interior - Building Area Method'!$G98,'Interior - Building Area Method'!$I98,'Interior - Building Area Method'!$K98),0))+SUM(SUMIF(Exterior!$J$19:$J$53,$B87,Exterior!$K$19:$K$53),SUMIF(Exterior!$M$19:$M$53,$B87,Exterior!$N$19:$N$53),SUMIF(Exterior!$P$19:$P$53,$B87,Exterior!$Q$19:$Q$53),SUMIF(Exterior!$S$19:$S$53,$B87,Exterior!$T$19:$T$53),SUMIF(Exterior!$V$19:$V$53,$B87,Exterior!$W$19:$W$53))","v":0}]
[null,null,null,null,null,null,null,null,{"$f":"IF(ProjectMethod=SBS,SUM(SUMIF('Interior - Space-By-Space'!$M$16:OFFSET('Interior - Space-By-Space'!$M$65,-1,0),$B88,'Interior - Space-By-Space'!$O$16:OFFSET('Interior - Space-By-Space'!$O$65,-1,0)),SUMIF('Interior - Space-By-Space'!$Q$16:OFFSET('Interior - Space-By-Space'!$Q$65,-1,0),$B88,'Interior - Space-By-Space'!$S$16:OFFSET('Interior - Space-By-Space'!$S$65,-1,0)),SUMIF('Interior - Space-By-Space'!$U$16:OFFSET('Interior - Space-By-Space'!$U$65,-1,0),$B88,'Interior - Space-By-Space'!$W$16:OFFSET('Interior - Space-By-Space'!$W$65,-1,0)),SUMIF('Interior - Space-By-Space'!$Y$16:OFFSET('Interior - Space-By-Space'!$Y$65,-1,0),$B88,'Interior - Space-By-Space'!$AA$16:OFFSET('Interior - Space-By-Space'!$AA$65,-1,0)),SUMIF('Interior - Space-By-Space'!$AC$16:OFFSET('Interior - Space-By-Space'!$AC$65,-1,0),$B88,'Interior - Space-By-Space'!$AE$16:OFFSET('Interior - Space-By-Space'!$AE$65,-1,0)),SUMIF('Interior - Space-By-Space'!$AG$16:OFFSET('Interior - Space-By-Space'!$AG$65,-1,0),$B88,'Interior - Space-By-Space'!$AI$16:OFFSET('Interior - Space-By-Space'!$AI$65,-1,0)),SUMIF('Interior - Space-By-Space'!$AK$16:OFFSET('Interior - Space-By-Space'!$AK$65,-1,0),$B88,'Interior - Space-By-Space'!$AM$16:OFFSET('Interior - Space-By-Space'!$AM$65,-1,0)),SUMIF('Interior - Space-By-Space'!$AO$16:OFFSET('Interior - Space-By-Space'!$AO$65,-1,0),$B88,'Interior - Space-By-Space'!$AQ$16:OFFSET('Interior - Space-By-Space'!$AQ$65,-1,0))),IF(ProjectMethod=BAM,SUM('Interior - Building Area Method'!$C99,'Interior - Building Area Method'!$E99,'Interior - Building Area Method'!$G99,'Interior - Building Area Method'!$I99,'Interior - Building Area Method'!$K99),0))+SUM(SUMIF(Exterior!$J$19:$J$53,$B88,Exterior!$K$19:$K$53),SUMIF(Exterior!$M$19:$M$53,$B88,Exterior!$N$19:$N$53),SUMIF(Exterior!$P$19:$P$53,$B88,Exterior!$Q$19:$Q$53),SUMIF(Exterior!$S$19:$S$53,$B88,Exterior!$T$19:$T$53),SUMIF(Exterior!$V$19:$V$53,$B88,Exterior!$W$19:$W$53))","v":0}]
[null,null,null,null,null,null,null,null,{"$f":"IF(ProjectMethod=SBS,SUM(SUMIF('Interior - Space-By-Space'!$M$16:OFFSET('Interior - Space-By-Space'!$M$65,-1,0),$B89,'Interior - Space-By-Space'!$O$16:OFFSET('Interior - Space-By-Space'!$O$65,-1,0)),SUMIF('Interior - Space-By-Space'!$Q$16:OFFSET('Interior - Space-By-Space'!$Q$65,-1,0),$B89,'Interior - Space-By-Space'!$S$16:OFFSET('Interior - Space-By-Space'!$S$65,-1,0)),SUMIF('Interior - Space-By-Space'!$U$16:OFFSET('Interior - Space-By-Space'!$U$65,-1,0),$B89,'Interior - Space-By-Space'!$W$16:OFFSET('Interior - Space-By-Space'!$W$65,-1,0)),SUMIF('Interior - Space-By-Space'!$Y$16:OFFSET('Interior - Space-By-Space'!$Y$65,-1,0),$B89,'Interior - Space-By-Space'!$AA$16:OFFSET('Interior - Space-By-Space'!$AA$65,-1,0)),SUMIF('Interior - Space-By-Space'!$AC$16:OFFSET('Interior - Space-By-Space'!$AC$65,-1,0),$B89,'Interior - Space-By-Space'!$AE$16:OFFSET('Interior - Space-By-Space'!$AE$65,-1,0)),SUMIF('Interior - Space-By-Space'!$AG$16:OFFSET('Interior - Space-By-Space'!$AG$65,-1,0),$B89,'Interior - Space-By-Space'!$AI$16:OFFSET('Interior - Space-By-Space'!$AI$65,-1,0)),SUMIF('Interior - Space-By-Space'!$AK$16:OFFSET('Interior - Space-By-Space'!$AK$65,-1,0),$B89,'Interior - Space-By-Space'!$AM$16:OFFSET('Interior - Space-By-Space'!$AM$65,-1,0)),SUMIF('Interior - Space-By-Space'!$AO$16:OFFSET('Interior - Space-By-Space'!$AO$65,-1,0),$B89,'Interior - Space-By-Space'!$AQ$16:OFFSET('Interior - Space-By-Space'!$AQ$65,-1,0))),IF(ProjectMethod=BAM,SUM('Interior - Building Area Method'!$C100,'Interior - Building Area Method'!$E100,'Interior - Building Area Method'!$G100,'Interior - Building Area Method'!$I100,'Interior - Building Area Method'!$K100),0))+SUM(SUMIF(Exterior!$J$19:$J$53,$B89,Exterior!$K$19:$K$53),SUMIF(Exterior!$M$19:$M$53,$B89,Exterior!$N$19:$N$53),SUMIF(Exterior!$P$19:$P$53,$B89,Exterior!$Q$19:$Q$53),SUMIF(Exterior!$S$19:$S$53,$B89,Exterior!$T$19:$T$53),SUMIF(Exterior!$V$19:$V$53,$B89,Exterior!$W$19:$W$53))","v":0}]
[null,null,null,null,null,null,null,null,{"$f":"IF(ProjectMethod=SBS,SUM(SUMIF('Interior - Space-By-Space'!$M$16:OFFSET('Interior - Space-By-Space'!$M$65,-1,0),$B90,'Interior - Space-By-Space'!$O$16:OFFSET('Interior - Space-By-Space'!$O$65,-1,0)),SUMIF('Interior - Space-By-Space'!$Q$16:OFFSET('Interior - Space-By-Space'!$Q$65,-1,0),$B90,'Interior - Space-By-Space'!$S$16:OFFSET('Interior - Space-By-Space'!$S$65,-1,0)),SUMIF('Interior - Space-By-Space'!$U$16:OFFSET('Interior - Space-By-Space'!$U$65,-1,0),$B90,'Interior - Space-By-Space'!$W$16:OFFSET('Interior - Space-By-Space'!$W$65,-1,0)),SUMIF('Interior - Space-By-Space'!$Y$16:OFFSET('Interior - Space-By-Space'!$Y$65,-1,0),$B90,'Interior - Space-By-Space'!$AA$16:OFFSET('Interior - Space-By-Space'!$AA$65,-1,0)),SUMIF('Interior - Space-By-Space'!$AC$16:OFFSET('Interior - Space-By-Space'!$AC$65,-1,0),$B90,'Interior - Space-By-Space'!$AE$16:OFFSET('Interior - Space-By-Space'!$AE$65,-1,0)),SUMIF('Interior - Space-By-Space'!$AG$16:OFFSET('Interior - Space-By-Space'!$AG$65,-1,0),$B90,'Interior - Space-By-Space'!$AI$16:OFFSET('Interior - Space-By-Space'!$AI$65,-1,0)),SUMIF('Interior - Space-By-Space'!$AK$16:OFFSET('Interior - Space-By-Space'!$AK$65,-1,0),$B90,'Interior - Space-By-Space'!$AM$16:OFFSET('Interior - Space-By-Space'!$AM$65,-1,0)),SUMIF('Interior - Space-By-Space'!$AO$16:OFFSET('Interior - Space-By-Space'!$AO$65,-1,0),$B90,'Interior - Space-By-Space'!$AQ$16:OFFSET('Interior - Space-By-Space'!$AQ$65,-1,0))),IF(ProjectMethod=BAM,SUM('Interior - Building Area Method'!$C101,'Interior - Building Area Method'!$E101,'Interior - Building Area Method'!$G101,'Interior - Building Area Method'!$I101,'Interior - Building Area Method'!$K101),0))+SUM(SUMIF(Exterior!$J$19:$J$53,$B90,Exterior!$K$19:$K$53),SUMIF(Exterior!$M$19:$M$53,$B90,Exterior!$N$19:$N$53),SUMIF(Exterior!$P$19:$P$53,$B90,Exterior!$Q$19:$Q$53),SUMIF(Exterior!$S$19:$S$53,$B90,Exterior!$T$19:$T$53),SUMIF(Exterior!$V$19:$V$53,$B90,Exterior!$W$19:$W$53))","v":0}]
[null,null,null,null,null,null,null,null,{"$f":"IF(ProjectMethod=SBS,SUM(SUMIF('Interior - Space-By-Space'!$M$16:OFFSET('Interior - Space-By-Space'!$M$65,-1,0),$B91,'Interior - Space-By-Space'!$O$16:OFFSET('Interior - Space-By-Space'!$O$65,-1,0)),SUMIF('Interior - Space-By-Space'!$Q$16:OFFSET('Interior - Space-By-Space'!$Q$65,-1,0),$B91,'Interior - Space-By-Space'!$S$16:OFFSET('Interior - Space-By-Space'!$S$65,-1,0)),SUMIF('Interior - Space-By-Space'!$U$16:OFFSET('Interior - Space-By-Space'!$U$65,-1,0),$B91,'Interior - Space-By-Space'!$W$16:OFFSET('Interior - Space-By-Space'!$W$65,-1,0)),SUMIF('Interior - Space-By-Space'!$Y$16:OFFSET('Interior - Space-By-Space'!$Y$65,-1,0),$B91,'Interior - Space-By-Space'!$AA$16:OFFSET('Interior - Space-By-Space'!$AA$65,-1,0)),SUMIF('Interior - Space-By-Space'!$AC$16:OFFSET('Interior - Space-By-Space'!$AC$65,-1,0),$B91,'Interior - Space-By-Space'!$AE$16:OFFSET('Interior - Space-By-Space'!$AE$65,-1,0)),SUMIF('Interior - Space-By-Space'!$AG$16:OFFSET('Interior - Space-By-Space'!$AG$65,-1,0),$B91,'Interior - Space-By-Space'!$AI$16:OFFSET('Interior - Space-By-Space'!$AI$65,-1,0)),SUMIF('Interior - Space-By-Space'!$AK$16:OFFSET('Interior - Space-By-Space'!$AK$65,-1,0),$B91,'Interior - Space-By-Space'!$AM$16:OFFSET('Interior - Space-By-Space'!$AM$65,-1,0)),SUMIF('Interior - Space-By-Space'!$AO$16:OFFSET('Interior - Space-By-Space'!$AO$65,-1,0),$B91,'Interior - Space-By-Space'!$AQ$16:OFFSET('Interior - Space-By-Space'!$AQ$65,-1,0))),IF(ProjectMethod=BAM,SUM('Interior - Building Area Method'!$C102,'Interior - Building Area Method'!$E102,'Interior - Building Area Method'!$G102,'Interior - Building Area Method'!$I102,'Interior - Building Area Method'!$K102),0))+SUM(SUMIF(Exterior!$J$19:$J$53,$B91,Exterior!$K$19:$K$53),SUMIF(Exterior!$M$19:$M$53,$B91,Exterior!$N$19:$N$53),SUMIF(Exterior!$P$19:$P$53,$B91,Exterior!$Q$19:$Q$53),SUMIF(Exterior!$S$19:$S$53,$B91,Exterior!$T$19:$T$53),SUMIF(Exterior!$V$19:$V$53,$B91,Exterior!$W$19:$W$53))","v":0}]
[null,null,null,null,null,null,null,null,{"$f":"IF(ProjectMethod=SBS,SUM(SUMIF('Interior - Space-By-Space'!$M$16:OFFSET('Interior - Space-By-Space'!$M$65,-1,0),$B92,'Interior - Space-By-Space'!$O$16:OFFSET('Interior - Space-By-Space'!$O$65,-1,0)),SUMIF('Interior - Space-By-Space'!$Q$16:OFFSET('Interior - Space-By-Space'!$Q$65,-1,0),$B92,'Interior - Space-By-Space'!$S$16:OFFSET('Interior - Space-By-Space'!$S$65,-1,0)),SUMIF('Interior - Space-By-Space'!$U$16:OFFSET('Interior - Space-By-Space'!$U$65,-1,0),$B92,'Interior - Space-By-Space'!$W$16:OFFSET('Interior - Space-By-Space'!$W$65,-1,0)),SUMIF('Interior - Space-By-Space'!$Y$16:OFFSET('Interior - Space-By-Space'!$Y$65,-1,0),$B92,'Interior - Space-By-Space'!$AA$16:OFFSET('Interior - Space-By-Space'!$AA$65,-1,0)),SUMIF('Interior - Space-By-Space'!$AC$16:OFFSET('Interior - Space-By-Space'!$AC$65,-1,0),$B92,'Interior - Space-By-Space'!$AE$16:OFFSET('Interior - Space-By-Space'!$AE$65,-1,0)),SUMIF('Interior - Space-By-Space'!$AG$16:OFFSET('Interior - Space-By-Space'!$AG$65,-1,0),$B92,'Interior - Space-By-Space'!$AI$16:OFFSET('Interior - Space-By-Space'!$AI$65,-1,0)),SUMIF('Interior - Space-By-Space'!$AK$16:OFFSET('Interior - Space-By-Space'!$AK$65,-1,0),$B92,'Interior - Space-By-Space'!$AM$16:OFFSET('Interior - Space-By-Space'!$AM$65,-1,0)),SUMIF('Interior - Space-By-Space'!$AO$16:OFFSET('Interior - Space-By-Space'!$AO$65,-1,0),$B92,'Interior - Space-By-Space'!$AQ$16:OFFSET('Interior - Space-By-Space'!$AQ$65,-1,0))),IF(ProjectMethod=BAM,SUM('Interior - Building Area Method'!$C103,'Interior - Building Area Method'!$E103,'Interior - Building Area Method'!$G103,'Interior - Building Area Method'!$I103,'Interior - Building Area Method'!$K103),0))+SUM(SUMIF(Exterior!$J$19:$J$53,$B92,Exterior!$K$19:$K$53),SUMIF(Exterior!$M$19:$M$53,$B92,Exterior!$N$19:$N$53),SUMIF(Exterior!$P$19:$P$53,$B92,Exterior!$Q$19:$Q$53),SUMIF(Exterior!$S$19:$S$53,$B92,Exterior!$T$19:$T$53),SUMIF(Exterior!$V$19:$V$53,$B92,Exterior!$W$19:$W$53))","v":0}]
[null,null,null,null,null,null,null,null,{"$f":"IF(ProjectMethod=SBS,SUM(SUMIF('Interior - Space-By-Space'!$M$16:OFFSET('Interior - Space-By-Space'!$M$65,-1,0),$B93,'Interior - Space-By-Space'!$O$16:OFFSET('Interior - Space-By-Space'!$O$65,-1,0)),SUMIF('Interior - Space-By-Space'!$Q$16:OFFSET('Interior - Space-By-Space'!$Q$65,-1,0),$B93,'Interior - Space-By-Space'!$S$16:OFFSET('Interior - Space-By-Space'!$S$65,-1,0)),SUMIF('Interior - Space-By-Space'!$U$16:OFFSET('Interior - Space-By-Space'!$U$65,-1,0),$B93,'Interior - Space-By-Space'!$W$16:OFFSET('Interior - Space-By-Space'!$W$65,-1,0)),SUMIF('Interior - Space-By-Space'!$Y$16:OFFSET('Interior - Space-By-Space'!$Y$65,-1,0),$B93,'Interior - Space-By-Space'!$AA$16:OFFSET('Interior - Space-By-Space'!$AA$65,-1,0)),SUMIF('Interior - Space-By-Space'!$AC$16:OFFSET('Interior - Space-By-Space'!$AC$65,-1,0),$B93,'Interior - Space-By-Space'!$AE$16:OFFSET('Interior - Space-By-Space'!$AE$65,-1,0)),SUMIF('Interior - Space-By-Space'!$AG$16:OFFSET('Interior - Space-By-Space'!$AG$65,-1,0),$B93,'Interior - Space-By-Space'!$AI$16:OFFSET('Interior - Space-By-Space'!$AI$65,-1,0)),SUMIF('Interior - Space-By-Space'!$AK$16:OFFSET('Interior - Space-By-Space'!$AK$65,-1,0),$B93,'Interior - Space-By-Space'!$AM$16:OFFSET('Interior - Space-By-Space'!$AM$65,-1,0)),SUMIF('Interior - Space-By-Space'!$AO$16:OFFSET('Interior - Space-By-Space'!$AO$65,-1,0),$B93,'Interior - Space-By-Space'!$AQ$16:OFFSET('Interior - Space-By-Space'!$AQ$65,-1,0))),IF(ProjectMethod=BAM,SUM('Interior - Building Area Method'!$C104,'Interior - Building Area Method'!$E104,'Interior - Building Area Method'!$G104,'Interior - Building Area Method'!$I104,'Interior - Building Area Method'!$K104),0))+SUM(SUMIF(Exterior!$J$19:$J$53,$B93,Exterior!$K$19:$K$53),SUMIF(Exterior!$M$19:$M$53,$B93,Exterior!$N$19:$N$53),SUMIF(Exterior!$P$19:$P$53,$B93,Exterior!$Q$19:$Q$53),SUMIF(Exterior!$S$19:$S$53,$B93,Exterior!$T$19:$T$53),SUMIF(Exterior!$V$19:$V$53,$B93,Exterior!$W$19:$W$53))","v":0}]
[null,null,null,null,null,null,null,null,{"$f":"IF(ProjectMethod=SBS,SUM(SUMIF('Interior - Space-By-Space'!$M$16:OFFSET('Interior - Space-By-Space'!$M$65,-1,0),$B94,'Interior - Space-By-Space'!$O$16:OFFSET('Interior - Space-By-Space'!$O$65,-1,0)),SUMIF('Interior - Space-By-Space'!$Q$16:OFFSET('Interior - Space-By-Space'!$Q$65,-1,0),$B94,'Interior - Space-By-Space'!$S$16:OFFSET('Interior - Space-By-Space'!$S$65,-1,0)),SUMIF('Interior - Space-By-Space'!$U$16:OFFSET('Interior - Space-By-Space'!$U$65,-1,0),$B94,'Interior - Space-By-Space'!$W$16:OFFSET('Interior - Space-By-Space'!$W$65,-1,0)),SUMIF('Interior - Space-By-Space'!$Y$16:OFFSET('Interior - Space-By-Space'!$Y$65,-1,0),$B94,'Interior - Space-By-Space'!$AA$16:OFFSET('Interior - Space-By-Space'!$AA$65,-1,0)),SUMIF('Interior - Space-By-Space'!$AC$16:OFFSET('Interior - Space-By-Space'!$AC$65,-1,0),$B94,'Interior - Space-By-Space'!$AE$16:OFFSET('Interior - Space-By-Space'!$AE$65,-1,0)),SUMIF('Interior - Space-By-Space'!$AG$16:OFFSET('Interior - Space-By-Space'!$AG$65,-1,0),$B94,'Interior - Space-By-Space'!$AI$16:OFFSET('Interior - Space-By-Space'!$AI$65,-1,0)),SUMIF('Interior - Space-By-Space'!$AK$16:OFFSET('Interior - Space-By-Space'!$AK$65,-1,0),$B94,'Interior - Space-By-Space'!$AM$16:OFFSET('Interior - Space-By-Space'!$AM$65,-1,0)),SUMIF('Interior - Space-By-Space'!$AO$16:OFFSET('Interior - Space-By-Space'!$AO$65,-1,0),$B94,'Interior - Space-By-Space'!$AQ$16:OFFSET('Interior - Space-By-Space'!$AQ$65,-1,0))),IF(ProjectMethod=BAM,SUM('Interior - Building Area Method'!$C105,'Interior - Building Area Method'!$E105,'Interior - Building Area Method'!$G105,'Interior - Building Area Method'!$I105,'Interior - Building Area Method'!$K105),0))+SUM(SUMIF(Exterior!$J$19:$J$53,$B94,Exterior!$K$19:$K$53),SUMIF(Exterior!$M$19:$M$53,$B94,Exterior!$N$19:$N$53),SUMIF(Exterior!$P$19:$P$53,$B94,Exterior!$Q$19:$Q$53),SUMIF(Exterior!$S$19:$S$53,$B94,Exterior!$T$19:$T$53),SUMIF(Exterior!$V$19:$V$53,$B94,Exterior!$W$19:$W$53))","v":0}]
[null,null,null,null,null,null,null,null,{"$f":"IF(ProjectMethod=SBS,SUM(SUMIF('Interior - Space-By-Space'!$M$16:OFFSET('Interior - Space-By-Space'!$M$65,-1,0),$B95,'Interior - Space-By-Space'!$O$16:OFFSET('Interior - Space-By-Space'!$O$65,-1,0)),SUMIF('Interior - Space-By-Space'!$Q$16:OFFSET('Interior - Space-By-Space'!$Q$65,-1,0),$B95,'Interior - Space-By-Space'!$S$16:OFFSET('Interior - Space-By-Space'!$S$65,-1,0)),SUMIF('Interior - Space-By-Space'!$U$16:OFFSET('Interior - Space-By-Space'!$U$65,-1,0),$B95,'Interior - Space-By-Space'!$W$16:OFFSET('Interior - Space-By-Space'!$W$65,-1,0)),SUMIF('Interior - Space-By-Space'!$Y$16:OFFSET('Interior - Space-By-Space'!$Y$65,-1,0),$B95,'Interior - Space-By-Space'!$AA$16:OFFSET('Interior - Space-By-Space'!$AA$65,-1,0)),SUMIF('Interior - Space-By-Space'!$AC$16:OFFSET('Interior - Space-By-Space'!$AC$65,-1,0),$B95,'Interior - Space-By-Space'!$AE$16:OFFSET('Interior - Space-By-Space'!$AE$65,-1,0)),SUMIF('Interior - Space-By-Space'!$AG$16:OFFSET('Interior - Space-By-Space'!$AG$65,-1,0),$B95,'Interior - Space-By-Space'!$AI$16:OFFSET('Interior - Space-By-Space'!$AI$65,-1,0)),SUMIF('Interior - Space-By-Space'!$AK$16:OFFSET('Interior - Space-By-Space'!$AK$65,-1,0),$B95,'Interior - Space-By-Space'!$AM$16:OFFSET('Interior - Space-By-Space'!$AM$65,-1,0)),SUMIF('Interior - Space-By-Space'!$AO$16:OFFSET('Interior - Space-By-Space'!$AO$65,-1,0),$B95,'Interior - Space-By-Space'!$AQ$16:OFFSET('Interior - Space-By-Space'!$AQ$65,-1,0))),IF(ProjectMethod=BAM,SUM('Interior - Building Area Method'!$C106,'Interior - Building Area Method'!$E106,'Interior - Building Area Method'!$G106,'Interior - Building Area Method'!$I106,'Interior - Building Area Method'!$K106),0))+SUM(SUMIF(Exterior!$J$19:$J$53,$B95,Exterior!$K$19:$K$53),SUMIF(Exterior!$M$19:$M$53,$B95,Exterior!$N$19:$N$53),SUMIF(Exterior!$P$19:$P$53,$B95,Exterior!$Q$19:$Q$53),SUMIF(Exterior!$S$19:$S$53,$B95,Exterior!$T$19:$T$53),SUMIF(Exterior!$V$19:$V$53,$B95,Exterior!$W$19:$W$53))","v":0}]
[null,null,null,null,null,null,null,null,{"$f":"IF(ProjectMethod=SBS,SUM(SUMIF('Interior - Space-By-Space'!$M$16:OFFSET('Interior - Space-By-Space'!$M$65,-1,0),$B96,'Interior - Space-By-Space'!$O$16:OFFSET('Interior - Space-By-Space'!$O$65,-1,0)),SUMIF('Interior - Space-By-Space'!$Q$16:OFFSET('Interior - Space-By-Space'!$Q$65,-1,0),$B96,'Interior - Space-By-Space'!$S$16:OFFSET('Interior - Space-By-Space'!$S$65,-1,0)),SUMIF('Interior - Space-By-Space'!$U$16:OFFSET('Interior - Space-By-Space'!$U$65,-1,0),$B96,'Interior - Space-By-Space'!$W$16:OFFSET('Interior - Space-By-Space'!$W$65,-1,0)),SUMIF('Interior - Space-By-Space'!$Y$16:OFFSET('Interior - Space-By-Space'!$Y$65,-1,0),$B96,'Interior - Space-By-Space'!$AA$16:OFFSET('Interior - Space-By-Space'!$AA$65,-1,0)),SUMIF('Interior - Space-By-Space'!$AC$16:OFFSET('Interior - Space-By-Space'!$AC$65,-1,0),$B96,'Interior - Space-By-Space'!$AE$16:OFFSET('Interior - Space-By-Space'!$AE$65,-1,0)),SUMIF('Interior - Space-By-Space'!$AG$16:OFFSET('Interior - Space-By-Space'!$AG$65,-1,0),$B96,'Interior - Space-By-Space'!$AI$16:OFFSET('Interior - Space-By-Space'!$AI$65,-1,0)),SUMIF('Interior - Space-By-Space'!$AK$16:OFFSET('Interior - Space-By-Space'!$AK$65,-1,0),$B96,'Interior - Space-By-Space'!$AM$16:OFFSET('Interior - Space-By-Space'!$AM$65,-1,0)),SUMIF('Interior - Space-By-Space'!$AO$16:OFFSET('Interior - Space-By-Space'!$AO$65,-1,0),$B96,'Interior - Space-By-Space'!$AQ$16:OFFSET('Interior - Space-By-Space'!$AQ$65,-1,0))),IF(ProjectMethod=BAM,SUM('Interior - Building Area Method'!$C107,'Interior - Building Area Method'!$E107,'Interior - Building Area Method'!$G107,'Interior - Building Area Method'!$I107,'Interior - Building Area Method'!$K107),0))+SUM(SUMIF(Exterior!$J$19:$J$53,$B96,Exterior!$K$19:$K$53),SUMIF(Exterior!$M$19:$M$53,$B96,Exterior!$N$19:$N$53),SUMIF(Exterior!$P$19:$P$53,$B96,Exterior!$Q$19:$Q$53),SUMIF(Exterior!$S$19:$S$53,$B96,Exterior!$T$19:$T$53),SUMIF(Exterior!$V$19:$V$53,$B96,Exterior!$W$19:$W$53))","v":0}]
[null,null,null,null,null,null,null,null,{"$f":"IF(ProjectMethod=SBS,SUM(SUMIF('Interior - Space-By-Space'!$M$16:OFFSET('Interior - Space-By-Space'!$M$65,-1,0),$B97,'Interior - Space-By-Space'!$O$16:OFFSET('Interior - Space-By-Space'!$O$65,-1,0)),SUMIF('Interior - Space-By-Space'!$Q$16:OFFSET('Interior - Space-By-Space'!$Q$65,-1,0),$B97,'Interior - Space-By-Space'!$S$16:OFFSET('Interior - Space-By-Space'!$S$65,-1,0)),SUMIF('Interior - Space-By-Space'!$U$16:OFFSET('Interior - Space-By-Space'!$U$65,-1,0),$B97,'Interior - Space-By-Space'!$W$16:OFFSET('Interior - Space-By-Space'!$W$65,-1,0)),SUMIF('Interior - Space-By-Space'!$Y$16:OFFSET('Interior - Space-By-Space'!$Y$65,-1,0),$B97,'Interior - Space-By-Space'!$AA$16:OFFSET('Interior - Space-By-Space'!$AA$65,-1,0)),SUMIF('Interior - Space-By-Space'!$AC$16:OFFSET('Interior - Space-By-Space'!$AC$65,-1,0),$B97,'Interior - Space-By-Space'!$AE$16:OFFSET('Interior - Space-By-Space'!$AE$65,-1,0)),SUMIF('Interior - Space-By-Space'!$AG$16:OFFSET('Interior - Space-By-Space'!$AG$65,-1,0),$B97,'Interior - Space-By-Space'!$AI$16:OFFSET('Interior - Space-By-Space'!$AI$65,-1,0)),SUMIF('Interior - Space-By-Space'!$AK$16:OFFSET('Interior - Space-By-Space'!$AK$65,-1,0),$B97,'Interior - Space-By-Space'!$AM$16:OFFSET('Interior - Space-By-Space'!$AM$65,-1,0)),SUMIF('Interior - Space-By-Space'!$AO$16:OFFSET('Interior - Space-By-Space'!$AO$65,-1,0),$B97,'Interior - Space-By-Space'!$AQ$16:OFFSET('Interior - Space-By-Space'!$AQ$65,-1,0))),IF(ProjectMethod=BAM,SUM('Interior - Building Area Method'!$C108,'Interior - Building Area Method'!$E108,'Interior - Building Area Method'!$G108,'Interior - Building Area Method'!$I108,'Interior - Building Area Method'!$K108),0))+SUM(SUMIF(Exterior!$J$19:$J$53,$B97,Exterior!$K$19:$K$53),SUMIF(Exterior!$M$19:$M$53,$B97,Exterior!$N$19:$N$53),SUMIF(Exterior!$P$19:$P$53,$B97,Exterior!$Q$19:$Q$53),SUMIF(Exterior!$S$19:$S$53,$B97,Exterior!$T$19:$T$53),SUMIF(Exterior!$V$19:$V$53,$B97,Exterior!$W$19:$W$53))","v":0}]
[null,null,null,null,null,null,null,null,{"$f":"IF(ProjectMethod=SBS,SUM(SUMIF('Interior - Space-By-Space'!$M$16:OFFSET('Interior - Space-By-Space'!$M$65,-1,0),$B98,'Interior - Space-By-Space'!$O$16:OFFSET('Interior - Space-By-Space'!$O$65,-1,0)),SUMIF('Interior - Space-By-Space'!$Q$16:OFFSET('Interior - Space-By-Space'!$Q$65,-1,0),$B98,'Interior - Space-By-Space'!$S$16:OFFSET('Interior - Space-By-Space'!$S$65,-1,0)),SUMIF('Interior - Space-By-Space'!$U$16:OFFSET('Interior - Space-By-Space'!$U$65,-1,0),$B98,'Interior - Space-By-Space'!$W$16:OFFSET('Interior - Space-By-Space'!$W$65,-1,0)),SUMIF('Interior - Space-By-Space'!$Y$16:OFFSET('Interior - Space-By-Space'!$Y$65,-1,0),$B98,'Interior - Space-By-Space'!$AA$16:OFFSET('Interior - Space-By-Space'!$AA$65,-1,0)),SUMIF('Interior - Space-By-Space'!$AC$16:OFFSET('Interior - Space-By-Space'!$AC$65,-1,0),$B98,'Interior - Space-By-Space'!$AE$16:OFFSET('Interior - Space-By-Space'!$AE$65,-1,0)),SUMIF('Interior - Space-By-Space'!$AG$16:OFFSET('Interior - Space-By-Space'!$AG$65,-1,0),$B98,'Interior - Space-By-Space'!$AI$16:OFFSET('Interior - Space-By-Space'!$AI$65,-1,0)),SUMIF('Interior - Space-By-Space'!$AK$16:OFFSET('Interior - Space-By-Space'!$AK$65,-1,0),$B98,'Interior - Space-By-Space'!$AM$16:OFFSET('Interior - Space-By-Space'!$AM$65,-1,0)),SUMIF('Interior - Space-By-Space'!$AO$16:OFFSET('Interior - Space-By-Space'!$AO$65,-1,0),$B98,'Interior - Space-By-Space'!$AQ$16:OFFSET('Interior - Space-By-Space'!$AQ$65,-1,0))),IF(ProjectMethod=BAM,SUM('Interior - Building Area Method'!$C109,'Interior - Building Area Method'!$E109,'Interior - Building Area Method'!$G109,'Interior - Building Area Method'!$I109,'Interior - Building Area Method'!$K109),0))+SUM(SUMIF(Exterior!$J$19:$J$53,$B98,Exterior!$K$19:$K$53),SUMIF(Exterior!$M$19:$M$53,$B98,Exterior!$N$19:$N$53),SUMIF(Exterior!$P$19:$P$53,$B98,Exterior!$Q$19:$Q$53),SUMIF(Exterior!$S$19:$S$53,$B98,Exterior!$T$19:$T$53),SUMIF(Exterior!$V$19:$V$53,$B98,Exterior!$W$19:$W$53))","v":0}]
[null,null,null,null,null,null,null,null,{"$f":"IF(ProjectMethod=SBS,SUM(SUMIF('Interior - Space-By-Space'!$M$16:OFFSET('Interior - Space-By-Space'!$M$65,-1,0),$B99,'Interior - Space-By-Space'!$O$16:OFFSET('Interior - Space-By-Space'!$O$65,-1,0)),SUMIF('Interior - Space-By-Space'!$Q$16:OFFSET('Interior - Space-By-Space'!$Q$65,-1,0),$B99,'Interior - Space-By-Space'!$S$16:OFFSET('Interior - Space-By-Space'!$S$65,-1,0)),SUMIF('Interior - Space-By-Space'!$U$16:OFFSET('Interior - Space-By-Space'!$U$65,-1,0),$B99,'Interior - Space-By-Space'!$W$16:OFFSET('Interior - Space-By-Space'!$W$65,-1,0)),SUMIF('Interior - Space-By-Space'!$Y$16:OFFSET('Interior - Space-By-Space'!$Y$65,-1,0),$B99,'Interior - Space-By-Space'!$AA$16:OFFSET('Interior - Space-By-Space'!$AA$65,-1,0)),SUMIF('Interior - Space-By-Space'!$AC$16:OFFSET('Interior - Space-By-Space'!$AC$65,-1,0),$B99,'Interior - Space-By-Space'!$AE$16:OFFSET('Interior - Space-By-Space'!$AE$65,-1,0)),SUMIF('Interior - Space-By-Space'!$AG$16:OFFSET('Interior - Space-By-Space'!$AG$65,-1,0),$B99,'Interior - Space-By-Space'!$AI$16:OFFSET('Interior - Space-By-Space'!$AI$65,-1,0)),SUMIF('Interior - Space-By-Space'!$AK$16:OFFSET('Interior - Space-By-Space'!$AK$65,-1,0),$B99,'Interior - Space-By-Space'!$AM$16:OFFSET('Interior - Space-By-Space'!$AM$65,-1,0)),SUMIF('Interior - Space-By-Space'!$AO$16:OFFSET('Interior - Space-By-Space'!$AO$65,-1,0),$B99,'Interior - Space-By-Space'!$AQ$16:OFFSET('Interior - Space-By-Space'!$AQ$65,-1,0))),IF(ProjectMethod=BAM,SUM('Interior - Building Area Method'!$C110,'Interior - Building Area Method'!$E110,'Interior - Building Area Method'!$G110,'Interior - Building Area Method'!$I110,'Interior - Building Area Method'!$K110),0))+SUM(SUMIF(Exterior!$J$19:$J$53,$B99,Exterior!$K$19:$K$53),SUMIF(Exterior!$M$19:$M$53,$B99,Exterior!$N$19:$N$53),SUMIF(Exterior!$P$19:$P$53,$B99,Exterior!$Q$19:$Q$53),SUMIF(Exterior!$S$19:$S$53,$B99,Exterior!$T$19:$T$53),SUMIF(Exterior!$V$19:$V$53,$B99,Exterior!$W$19:$W$53))","v":0}]
[null,null,null,null,null,null,null,null,{"$f":"IF(ProjectMethod=SBS,SUM(SUMIF('Interior - Space-By-Space'!$M$16:OFFSET('Interior - Space-By-Space'!$M$65,-1,0),$B100,'Interior - Space-By-Space'!$O$16:OFFSET('Interior - Space-By-Space'!$O$65,-1,0)),SUMIF('Interior - Space-By-Space'!$Q$16:OFFSET('Interior - Space-By-Space'!$Q$65,-1,0),$B100,'Interior - Space-By-Space'!$S$16:OFFSET('Interior - Space-By-Space'!$S$65,-1,0)),SUMIF('Interior - Space-By-Space'!$U$16:OFFSET('Interior - Space-By-Space'!$U$65,-1,0),$B100,'Interior - Space-By-Space'!$W$16:OFFSET('Interior - Space-By-Space'!$W$65,-1,0)),SUMIF('Interior - Space-By-Space'!$Y$16:OFFSET('Interior - Space-By-Space'!$Y$65,-1,0),$B100,'Interior - Space-By-Space'!$AA$16:OFFSET('Interior - Space-By-Space'!$AA$65,-1,0)),SUMIF('Interior - Space-By-Space'!$AC$16:OFFSET('Interior - Space-By-Space'!$AC$65,-1,0),$B100,'Interior - Space-By-Space'!$AE$16:OFFSET('Interior - Space-By-Space'!$AE$65,-1,0)),SUMIF('Interior - Space-By-Space'!$AG$16:OFFSET('Interior - Space-By-Space'!$AG$65,-1,0),$B100,'Interior - Space-By-Space'!$AI$16:OFFSET('Interior - Space-By-Space'!$AI$65,-1,0)),SUMIF('Interior - Space-By-Space'!$AK$16:OFFSET('Interior - Space-By-Space'!$AK$65,-1,0),$B100,'Interior - Space-By-Space'!$AM$16:OFFSET('Interior - Space-By-Space'!$AM$65,-1,0)),SUMIF('Interior - Space-By-Space'!$AO$16:OFFSET('Interior - Space-By-Space'!$AO$65,-1,0),$B100,'Interior - Space-By-Space'!$AQ$16:OFFSET('Interior - Space-By-Space'!$AQ$65,-1,0))),IF(ProjectMethod=BAM,SUM('Interior - Building Area Method'!$C111,'Interior - Building Area Method'!$E111,'Interior - Building Area Method'!$G111,'Interior - Building Area Method'!$I111,'Interior - Building Area Method'!$K111),0))+SUM(SUMIF(Exterior!$J$19:$J$53,$B100,Exterior!$K$19:$K$53),SUMIF(Exterior!$M$19:$M$53,$B100,Exterior!$N$19:$N$53),SUMIF(Exterior!$P$19:$P$53,$B100,Exterior!$Q$19:$Q$53),SUMIF(Exterior!$S$19:$S$53,$B100,Exterior!$T$19:$T$53),SUMIF(Exterior!$V$19:$V$53,$B100,Exterior!$W$19:$W$53))","v":0}]
[null,null,null,null,null,null,null,null,{"$f":"IF(ProjectMethod=SBS,SUM(SUMIF('Interior - Space-By-Space'!$M$16:OFFSET('Interior - Space-By-Space'!$M$65,-1,0),$B101,'Interior - Space-By-Space'!$O$16:OFFSET('Interior - Space-By-Space'!$O$65,-1,0)),SUMIF('Interior - Space-By-Space'!$Q$16:OFFSET('Interior - Space-By-Space'!$Q$65,-1,0),$B101,'Interior - Space-By-Space'!$S$16:OFFSET('Interior - Space-By-Space'!$S$65,-1,0)),SUMIF('Interior - Space-By-Space'!$U$16:OFFSET('Interior - Space-By-Space'!$U$65,-1,0),$B101,'Interior - Space-By-Space'!$W$16:OFFSET('Interior - Space-By-Space'!$W$65,-1,0)),SUMIF('Interior - Space-By-Space'!$Y$16:OFFSET('Interior - Space-By-Space'!$Y$65,-1,0),$B101,'Interior - Space-By-Space'!$AA$16:OFFSET('Interior - Space-By-Space'!$AA$65,-1,0)),SUMIF('Interior - Space-By-Space'!$AC$16:OFFSET('Interior - Space-By-Space'!$AC$65,-1,0),$B101,'Interior - Space-By-Space'!$AE$16:OFFSET('Interior - Space-By-Space'!$AE$65,-1,0)),SUMIF('Interior - Space-By-Space'!$AG$16:OFFSET('Interior - Space-By-Space'!$AG$65,-1,0),$B101,'Interior - Space-By-Space'!$AI$16:OFFSET('Interior - Space-By-Space'!$AI$65,-1,0)),SUMIF('Interior - Space-By-Space'!$AK$16:OFFSET('Interior - Space-By-Space'!$AK$65,-1,0),$B101,'Interior - Space-By-Space'!$AM$16:OFFSET('Interior - Space-By-Space'!$AM$65,-1,0)),SUMIF('Interior - Space-By-Space'!$AO$16:OFFSET('Interior - Space-By-Space'!$AO$65,-1,0),$B101,'Interior - Space-By-Space'!$AQ$16:OFFSET('Interior - Space-By-Space'!$AQ$65,-1,0))),IF(ProjectMethod=BAM,SUM('Interior - Building Area Method'!$C112,'Interior - Building Area Method'!$E112,'Interior - Building Area Method'!$G112,'Interior - Building Area Method'!$I112,'Interior - Building Area Method'!$K112),0))+SUM(SUMIF(Exterior!$J$19:$J$53,$B101,Exterior!$K$19:$K$53),SUMIF(Exterior!$M$19:$M$53,$B101,Exterior!$N$19:$N$53),SUMIF(Exterior!$P$19:$P$53,$B101,Exterior!$Q$19:$Q$53),SUMIF(Exterior!$S$19:$S$53,$B101,Exterior!$T$19:$T$53),SUMIF(Exterior!$V$19:$V$53,$B101,Exterior!$W$19:$W$53))","v":0}]
[null,null,null,null,null,null,null,null,{"$f":"IF(ProjectMethod=SBS,SUM(SUMIF('Interior - Space-By-Space'!$M$16:OFFSET('Interior - Space-By-Space'!$M$65,-1,0),$B102,'Interior - Space-By-Space'!$O$16:OFFSET('Interior - Space-By-Space'!$O$65,-1,0)),SUMIF('Interior - Space-By-Space'!$Q$16:OFFSET('Interior - Space-By-Space'!$Q$65,-1,0),$B102,'Interior - Space-By-Space'!$S$16:OFFSET('Interior - Space-By-Space'!$S$65,-1,0)),SUMIF('Interior - Space-By-Space'!$U$16:OFFSET('Interior - Space-By-Space'!$U$65,-1,0),$B102,'Interior - Space-By-Space'!$W$16:OFFSET('Interior - Space-By-Space'!$W$65,-1,0)),SUMIF('Interior - Space-By-Space'!$Y$16:OFFSET('Interior - Space-By-Space'!$Y$65,-1,0),$B102,'Interior - Space-By-Space'!$AA$16:OFFSET('Interior - Space-By-Space'!$AA$65,-1,0)),SUMIF('Interior - Space-By-Space'!$AC$16:OFFSET('Interior - Space-By-Space'!$AC$65,-1,0),$B102,'Interior - Space-By-Space'!$AE$16:OFFSET('Interior - Space-By-Space'!$AE$65,-1,0)),SUMIF('Interior - Space-By-Space'!$AG$16:OFFSET('Interior - Space-By-Space'!$AG$65,-1,0),$B102,'Interior - Space-By-Space'!$AI$16:OFFSET('Interior - Space-By-Space'!$AI$65,-1,0)),SUMIF('Interior - Space-By-Space'!$AK$16:OFFSET('Interior - Space-By-Space'!$AK$65,-1,0),$B102,'Interior - Space-By-Space'!$AM$16:OFFSET('Interior - Space-By-Space'!$AM$65,-1,0)),SUMIF('Interior - Space-By-Space'!$AO$16:OFFSET('Interior - Space-By-Space'!$AO$65,-1,0),$B102,'Interior - Space-By-Space'!$AQ$16:OFFSET('Interior - Space-By-Space'!$AQ$65,-1,0))),IF(ProjectMethod=BAM,SUM('Interior - Building Area Method'!$C113,'Interior - Building Area Method'!$E113,'Interior - Building Area Method'!$G113,'Interior - Building Area Method'!$I113,'Interior - Building Area Method'!$K113),0))+SUM(SUMIF(Exterior!$J$19:$J$53,$B102,Exterior!$K$19:$K$53),SUMIF(Exterior!$M$19:$M$53,$B102,Exterior!$N$19:$N$53),SUMIF(Exterior!$P$19:$P$53,$B102,Exterior!$Q$19:$Q$53),SUMIF(Exterior!$S$19:$S$53,$B102,Exterior!$T$19:$T$53),SUMIF(Exterior!$V$19:$V$53,$B102,Exterior!$W$19:$W$53))","v":0}]
[null,null,null,null,null,null,null,null,{"$f":"IF(ProjectMethod=SBS,SUM(SUMIF('Interior - Space-By-Space'!$M$16:OFFSET('Interior - Space-By-Space'!$M$65,-1,0),$B103,'Interior - Space-By-Space'!$O$16:OFFSET('Interior - Space-By-Space'!$O$65,-1,0)),SUMIF('Interior - Space-By-Space'!$Q$16:OFFSET('Interior - Space-By-Space'!$Q$65,-1,0),$B103,'Interior - Space-By-Space'!$S$16:OFFSET('Interior - Space-By-Space'!$S$65,-1,0)),SUMIF('Interior - Space-By-Space'!$U$16:OFFSET('Interior - Space-By-Space'!$U$65,-1,0),$B103,'Interior - Space-By-Space'!$W$16:OFFSET('Interior - Space-By-Space'!$W$65,-1,0)),SUMIF('Interior - Space-By-Space'!$Y$16:OFFSET('Interior - Space-By-Space'!$Y$65,-1,0),$B103,'Interior - Space-By-Space'!$AA$16:OFFSET('Interior - Space-By-Space'!$AA$65,-1,0)),SUMIF('Interior - Space-By-Space'!$AC$16:OFFSET('Interior - Space-By-Space'!$AC$65,-1,0),$B103,'Interior - Space-By-Space'!$AE$16:OFFSET('Interior - Space-By-Space'!$AE$65,-1,0)),SUMIF('Interior - Space-By-Space'!$AG$16:OFFSET('Interior - Space-By-Space'!$AG$65,-1,0),$B103,'Interior - Space-By-Space'!$AI$16:OFFSET('Interior - Space-By-Space'!$AI$65,-1,0)),SUMIF('Interior - Space-By-Space'!$AK$16:OFFSET('Interior - Space-By-Space'!$AK$65,-1,0),$B103,'Interior - Space-By-Space'!$AM$16:OFFSET('Interior - Space-By-Space'!$AM$65,-1,0)),SUMIF('Interior - Space-By-Space'!$AO$16:OFFSET('Interior - Space-By-Space'!$AO$65,-1,0),$B103,'Interior - Space-By-Space'!$AQ$16:OFFSET('Interior - Space-By-Space'!$AQ$65,-1,0))),IF(ProjectMethod=BAM,SUM('Interior - Building Area Method'!$C114,'Interior - Building Area Method'!$E114,'Interior - Building Area Method'!$G114,'Interior - Building Area Method'!$I114,'Interior - Building Area Method'!$K114),0))+SUM(SUMIF(Exterior!$J$19:$J$53,$B103,Exterior!$K$19:$K$53),SUMIF(Exterior!$M$19:$M$53,$B103,Exterior!$N$19:$N$53),SUMIF(Exterior!$P$19:$P$53,$B103,Exterior!$Q$19:$Q$53),SUMIF(Exterior!$S$19:$S$53,$B103,Exterior!$T$19:$T$53),SUMIF(Exterior!$V$19:$V$53,$B103,Exterior!$W$19:$W$53))","v":0}]
[null,null,null,null,null,null,null,null,{"$f":"IF(ProjectMethod=SBS,SUM(SUMIF('Interior - Space-By-Space'!$M$16:OFFSET('Interior - Space-By-Space'!$M$65,-1,0),$B104,'Interior - Space-By-Space'!$O$16:OFFSET('Interior - Space-By-Space'!$O$65,-1,0)),SUMIF('Interior - Space-By-Space'!$Q$16:OFFSET('Interior - Space-By-Space'!$Q$65,-1,0),$B104,'Interior - Space-By-Space'!$S$16:OFFSET('Interior - Space-By-Space'!$S$65,-1,0)),SUMIF('Interior - Space-By-Space'!$U$16:OFFSET('Interior - Space-By-Space'!$U$65,-1,0),$B104,'Interior - Space-By-Space'!$W$16:OFFSET('Interior - Space-By-Space'!$W$65,-1,0)),SUMIF('Interior - Space-By-Space'!$Y$16:OFFSET('Interior - Space-By-Space'!$Y$65,-1,0),$B104,'Interior - Space-By-Space'!$AA$16:OFFSET('Interior - Space-By-Space'!$AA$65,-1,0)),SUMIF('Interior - Space-By-Space'!$AC$16:OFFSET('Interior - Space-By-Space'!$AC$65,-1,0),$B104,'Interior - Space-By-Space'!$AE$16:OFFSET('Interior - Space-By-Space'!$AE$65,-1,0)),SUMIF('Interior - Space-By-Space'!$AG$16:OFFSET('Interior - Space-By-Space'!$AG$65,-1,0),$B104,'Interior - Space-By-Space'!$AI$16:OFFSET('Interior - Space-By-Space'!$AI$65,-1,0)),SUMIF('Interior - Space-By-Space'!$AK$16:OFFSET('Interior - Space-By-Space'!$AK$65,-1,0),$B104,'Interior - Space-By-Space'!$AM$16:OFFSET('Interior - Space-By-Space'!$AM$65,-1,0)),SUMIF('Interior - Space-By-Space'!$AO$16:OFFSET('Interior - Space-By-Space'!$AO$65,-1,0),$B104,'Interior - Space-By-Space'!$AQ$16:OFFSET('Interior - Space-By-Space'!$AQ$65,-1,0))),IF(ProjectMethod=BAM,SUM('Interior - Building Area Method'!$C115,'Interior - Building Area Method'!$E115,'Interior - Building Area Method'!$G115,'Interior - Building Area Method'!$I115,'Interior - Building Area Method'!$K115),0))+SUM(SUMIF(Exterior!$J$19:$J$53,$B104,Exterior!$K$19:$K$53),SUMIF(Exterior!$M$19:$M$53,$B104,Exterior!$N$19:$N$53),SUMIF(Exterior!$P$19:$P$53,$B104,Exterior!$Q$19:$Q$53),SUMIF(Exterior!$S$19:$S$53,$B104,Exterior!$T$19:$T$53),SUMIF(Exterior!$V$19:$V$53,$B104,Exterior!$W$19:$W$53))","v":0}]
[null,null,null,null,null,null,null,null,{"$f":"IF(ProjectMethod=SBS,SUM(SUMIF('Interior - Space-By-Space'!$M$16:OFFSET('Interior - Space-By-Space'!$M$65,-1,0),$B105,'Interior - Space-By-Space'!$O$16:OFFSET('Interior - Space-By-Space'!$O$65,-1,0)),SUMIF('Interior - Space-By-Space'!$Q$16:OFFSET('Interior - Space-By-Space'!$Q$65,-1,0),$B105,'Interior - Space-By-Space'!$S$16:OFFSET('Interior - Space-By-Space'!$S$65,-1,0)),SUMIF('Interior - Space-By-Space'!$U$16:OFFSET('Interior - Space-By-Space'!$U$65,-1,0),$B105,'Interior - Space-By-Space'!$W$16:OFFSET('Interior - Space-By-Space'!$W$65,-1,0)),SUMIF('Interior - Space-By-Space'!$Y$16:OFFSET('Interior - Space-By-Space'!$Y$65,-1,0),$B105,'Interior - Space-By-Space'!$AA$16:OFFSET('Interior - Space-By-Space'!$AA$65,-1,0)),SUMIF('Interior - Space-By-Space'!$AC$16:OFFSET('Interior - Space-By-Space'!$AC$65,-1,0),$B105,'Interior - Space-By-Space'!$AE$16:OFFSET('Interior - Space-By-Space'!$AE$65,-1,0)),SUMIF('Interior - Space-By-Space'!$AG$16:OFFSET('Interior - Space-By-Space'!$AG$65,-1,0),$B105,'Interior - Space-By-Space'!$AI$16:OFFSET('Interior - Space-By-Space'!$AI$65,-1,0)),SUMIF('Interior - Space-By-Space'!$AK$16:OFFSET('Interior - Space-By-Space'!$AK$65,-1,0),$B105,'Interior - Space-By-Space'!$AM$16:OFFSET('Interior - Space-By-Space'!$AM$65,-1,0)),SUMIF('Interior - Space-By-Space'!$AO$16:OFFSET('Interior - Space-By-Space'!$AO$65,-1,0),$B105,'Interior - Space-By-Space'!$AQ$16:OFFSET('Interior - Space-By-Space'!$AQ$65,-1,0))),IF(ProjectMethod=BAM,SUM('Interior - Building Area Method'!$C116,'Interior - Building Area Method'!$E116,'Interior - Building Area Method'!$G116,'Interior - Building Area Method'!$I116,'Interior - Building Area Method'!$K116),0))+SUM(SUMIF(Exterior!$J$19:$J$53,$B105,Exterior!$K$19:$K$53),SUMIF(Exterior!$M$19:$M$53,$B105,Exterior!$N$19:$N$53),SUMIF(Exterior!$P$19:$P$53,$B105,Exterior!$Q$19:$Q$53),SUMIF(Exterior!$S$19:$S$53,$B105,Exterior!$T$19:$T$53),SUMIF(Exterior!$V$19:$V$53,$B105,Exterior!$W$19:$W$53))","v":0}]
[null,null,null,null,null,null,null,null,{"$f":"IF(ProjectMethod=SBS,SUM(SUMIF('Interior - Space-By-Space'!$M$16:OFFSET('Interior - Space-By-Space'!$M$65,-1,0),$B106,'Interior - Space-By-Space'!$O$16:OFFSET('Interior - Space-By-Space'!$O$65,-1,0)),SUMIF('Interior - Space-By-Space'!$Q$16:OFFSET('Interior - Space-By-Space'!$Q$65,-1,0),$B106,'Interior - Space-By-Space'!$S$16:OFFSET('Interior - Space-By-Space'!$S$65,-1,0)),SUMIF('Interior - Space-By-Space'!$U$16:OFFSET('Interior - Space-By-Space'!$U$65,-1,0),$B106,'Interior - Space-By-Space'!$W$16:OFFSET('Interior - Space-By-Space'!$W$65,-1,0)),SUMIF('Interior - Space-By-Space'!$Y$16:OFFSET('Interior - Space-By-Space'!$Y$65,-1,0),$B106,'Interior - Space-By-Space'!$AA$16:OFFSET('Interior - Space-By-Space'!$AA$65,-1,0)),SUMIF('Interior - Space-By-Space'!$AC$16:OFFSET('Interior - Space-By-Space'!$AC$65,-1,0),$B106,'Interior - Space-By-Space'!$AE$16:OFFSET('Interior - Space-By-Space'!$AE$65,-1,0)),SUMIF('Interior - Space-By-Space'!$AG$16:OFFSET('Interior - Space-By-Space'!$AG$65,-1,0),$B106,'Interior - Space-By-Space'!$AI$16:OFFSET('Interior - Space-By-Space'!$AI$65,-1,0)),SUMIF('Interior - Space-By-Space'!$AK$16:OFFSET('Interior - Space-By-Space'!$AK$65,-1,0),$B106,'Interior - Space-By-Space'!$AM$16:OFFSET('Interior - Space-By-Space'!$AM$65,-1,0)),SUMIF('Interior - Space-By-Space'!$AO$16:OFFSET('Interior - Space-By-Space'!$AO$65,-1,0),$B106,'Interior - Space-By-Space'!$AQ$16:OFFSET('Interior - Space-By-Space'!$AQ$65,-1,0))),IF(ProjectMethod=BAM,SUM('Interior - Building Area Method'!$C117,'Interior - Building Area Method'!$E117,'Interior - Building Area Method'!$G117,'Interior - Building Area Method'!$I117,'Interior - Building Area Method'!$K117),0))+SUM(SUMIF(Exterior!$J$19:$J$53,$B106,Exterior!$K$19:$K$53),SUMIF(Exterior!$M$19:$M$53,$B106,Exterior!$N$19:$N$53),SUMIF(Exterior!$P$19:$P$53,$B106,Exterior!$Q$19:$Q$53),SUMIF(Exterior!$S$19:$S$53,$B106,Exterior!$T$19:$T$53),SUMIF(Exterior!$V$19:$V$53,$B106,Exterior!$W$19:$W$53))","v":0}]
[null,null,null,null,null,null,null,null,{"$f":"IF(ProjectMethod=SBS,SUM(SUMIF('Interior - Space-By-Space'!$M$16:OFFSET('Interior - Space-By-Space'!$M$65,-1,0),$B107,'Interior - Space-By-Space'!$O$16:OFFSET('Interior - Space-By-Space'!$O$65,-1,0)),SUMIF('Interior - Space-By-Space'!$Q$16:OFFSET('Interior - Space-By-Space'!$Q$65,-1,0),$B107,'Interior - Space-By-Space'!$S$16:OFFSET('Interior - Space-By-Space'!$S$65,-1,0)),SUMIF('Interior - Space-By-Space'!$U$16:OFFSET('Interior - Space-By-Space'!$U$65,-1,0),$B107,'Interior - Space-By-Space'!$W$16:OFFSET('Interior - Space-By-Space'!$W$65,-1,0)),SUMIF('Interior - Space-By-Space'!$Y$16:OFFSET('Interior - Space-By-Space'!$Y$65,-1,0),$B107,'Interior - Space-By-Space'!$AA$16:OFFSET('Interior - Space-By-Space'!$AA$65,-1,0)),SUMIF('Interior - Space-By-Space'!$AC$16:OFFSET('Interior - Space-By-Space'!$AC$65,-1,0),$B107,'Interior - Space-By-Space'!$AE$16:OFFSET('Interior - Space-By-Space'!$AE$65,-1,0)),SUMIF('Interior - Space-By-Space'!$AG$16:OFFSET('Interior - Space-By-Space'!$AG$65,-1,0),$B107,'Interior - Space-By-Space'!$AI$16:OFFSET('Interior - Space-By-Space'!$AI$65,-1,0)),SUMIF('Interior - Space-By-Space'!$AK$16:OFFSET('Interior - Space-By-Space'!$AK$65,-1,0),$B107,'Interior - Space-By-Space'!$AM$16:OFFSET('Interior - Space-By-Space'!$AM$65,-1,0)),SUMIF('Interior - Space-By-Space'!$AO$16:OFFSET('Interior - Space-By-Space'!$AO$65,-1,0),$B107,'Interior - Space-By-Space'!$AQ$16:OFFSET('Interior - Space-By-Space'!$AQ$65,-1,0))),IF(ProjectMethod=BAM,SUM('Interior - Building Area Method'!$C118,'Interior - Building Area Method'!$E118,'Interior - Building Area Method'!$G118,'Interior - Building Area Method'!$I118,'Interior - Building Area Method'!$K118),0))+SUM(SUMIF(Exterior!$J$19:$J$53,$B107,Exterior!$K$19:$K$53),SUMIF(Exterior!$M$19:$M$53,$B107,Exterior!$N$19:$N$53),SUMIF(Exterior!$P$19:$P$53,$B107,Exterior!$Q$19:$Q$53),SUMIF(Exterior!$S$19:$S$53,$B107,Exterior!$T$19:$T$53),SUMIF(Exterior!$V$19:$V$53,$B107,Exterior!$W$19:$W$53))","v":0}]
[null,null,null,null,null,null,null,null,{"$f":"IF(ProjectMethod=SBS,SUM(SUMIF('Interior - Space-By-Space'!$M$16:OFFSET('Interior - Space-By-Space'!$M$65,-1,0),$B108,'Interior - Space-By-Space'!$O$16:OFFSET('Interior - Space-By-Space'!$O$65,-1,0)),SUMIF('Interior - Space-By-Space'!$Q$16:OFFSET('Interior - Space-By-Space'!$Q$65,-1,0),$B108,'Interior - Space-By-Space'!$S$16:OFFSET('Interior - Space-By-Space'!$S$65,-1,0)),SUMIF('Interior - Space-By-Space'!$U$16:OFFSET('Interior - Space-By-Space'!$U$65,-1,0),$B108,'Interior - Space-By-Space'!$W$16:OFFSET('Interior - Space-By-Space'!$W$65,-1,0)),SUMIF('Interior - Space-By-Space'!$Y$16:OFFSET('Interior - Space-By-Space'!$Y$65,-1,0),$B108,'Interior - Space-By-Space'!$AA$16:OFFSET('Interior - Space-By-Space'!$AA$65,-1,0)),SUMIF('Interior - Space-By-Space'!$AC$16:OFFSET('Interior - Space-By-Space'!$AC$65,-1,0),$B108,'Interior - Space-By-Space'!$AE$16:OFFSET('Interior - Space-By-Space'!$AE$65,-1,0)),SUMIF('Interior - Space-By-Space'!$AG$16:OFFSET('Interior - Space-By-Space'!$AG$65,-1,0),$B108,'Interior - Space-By-Space'!$AI$16:OFFSET('Interior - Space-By-Space'!$AI$65,-1,0)),SUMIF('Interior - Space-By-Space'!$AK$16:OFFSET('Interior - Space-By-Space'!$AK$65,-1,0),$B108,'Interior - Space-By-Space'!$AM$16:OFFSET('Interior - Space-By-Space'!$AM$65,-1,0)),SUMIF('Interior - Space-By-Space'!$AO$16:OFFSET('Interior - Space-By-Space'!$AO$65,-1,0),$B108,'Interior - Space-By-Space'!$AQ$16:OFFSET('Interior - Space-By-Space'!$AQ$65,-1,0))),IF(ProjectMethod=BAM,SUM('Interior - Building Area Method'!$C119,'Interior - Building Area Method'!$E119,'Interior - Building Area Method'!$G119,'Interior - Building Area Method'!$I119,'Interior - Building Area Method'!$K119),0))+SUM(SUMIF(Exterior!$J$19:$J$53,$B108,Exterior!$K$19:$K$53),SUMIF(Exterior!$M$19:$M$53,$B108,Exterior!$N$19:$N$53),SUMIF(Exterior!$P$19:$P$53,$B108,Exterior!$Q$19:$Q$53),SUMIF(Exterior!$S$19:$S$53,$B108,Exterior!$T$19:$T$53),SUMIF(Exterior!$V$19:$V$53,$B108,Exterior!$W$19:$W$53))","v":0}]
[null,null,null,null,null,null,null,null,{"$f":"IF(ProjectMethod=SBS,SUM(SUMIF('Interior - Space-By-Space'!$M$16:OFFSET('Interior - Space-By-Space'!$M$65,-1,0),$B109,'Interior - Space-By-Space'!$O$16:OFFSET('Interior - Space-By-Space'!$O$65,-1,0)),SUMIF('Interior - Space-By-Space'!$Q$16:OFFSET('Interior - Space-By-Space'!$Q$65,-1,0),$B109,'Interior - Space-By-Space'!$S$16:OFFSET('Interior - Space-By-Space'!$S$65,-1,0)),SUMIF('Interior - Space-By-Space'!$U$16:OFFSET('Interior - Space-By-Space'!$U$65,-1,0),$B109,'Interior - Space-By-Space'!$W$16:OFFSET('Interior - Space-By-Space'!$W$65,-1,0)),SUMIF('Interior - Space-By-Space'!$Y$16:OFFSET('Interior - Space-By-Space'!$Y$65,-1,0),$B109,'Interior - Space-By-Space'!$AA$16:OFFSET('Interior - Space-By-Space'!$AA$65,-1,0)),SUMIF('Interior - Space-By-Space'!$AC$16:OFFSET('Interior - Space-By-Space'!$AC$65,-1,0),$B109,'Interior - Space-By-Space'!$AE$16:OFFSET('Interior - Space-By-Space'!$AE$65,-1,0)),SUMIF('Interior - Space-By-Space'!$AG$16:OFFSET('Interior - Space-By-Space'!$AG$65,-1,0),$B109,'Interior - Space-By-Space'!$AI$16:OFFSET('Interior - Space-By-Space'!$AI$65,-1,0)),SUMIF('Interior - Space-By-Space'!$AK$16:OFFSET('Interior - Space-By-Space'!$AK$65,-1,0),$B109,'Interior - Space-By-Space'!$AM$16:OFFSET('Interior - Space-By-Space'!$AM$65,-1,0)),SUMIF('Interior - Space-By-Space'!$AO$16:OFFSET('Interior - Space-By-Space'!$AO$65,-1,0),$B109,'Interior - Space-By-Space'!$AQ$16:OFFSET('Interior - Space-By-Space'!$AQ$65,-1,0))),IF(ProjectMethod=BAM,SUM('Interior - Building Area Method'!$C120,'Interior - Building Area Method'!$E120,'Interior - Building Area Method'!$G120,'Interior - Building Area Method'!$I120,'Interior - Building Area Method'!$K120),0))+SUM(SUMIF(Exterior!$J$19:$J$53,$B109,Exterior!$K$19:$K$53),SUMIF(Exterior!$M$19:$M$53,$B109,Exterior!$N$19:$N$53),SUMIF(Exterior!$P$19:$P$53,$B109,Exterior!$Q$19:$Q$53),SUMIF(Exterior!$S$19:$S$53,$B109,Exterior!$T$19:$T$53),SUMIF(Exterior!$V$19:$V$53,$B109,Exterior!$W$19:$W$53))","v":0}]
[null,null,null,null,null,null,null,null,{"$f":"IF(ProjectMethod=SBS,SUM(SUMIF('Interior - Space-By-Space'!$M$16:OFFSET('Interior - Space-By-Space'!$M$65,-1,0),$B110,'Interior - Space-By-Space'!$O$16:OFFSET('Interior - Space-By-Space'!$O$65,-1,0)),SUMIF('Interior - Space-By-Space'!$Q$16:OFFSET('Interior - Space-By-Space'!$Q$65,-1,0),$B110,'Interior - Space-By-Space'!$S$16:OFFSET('Interior - Space-By-Space'!$S$65,-1,0)),SUMIF('Interior - Space-By-Space'!$U$16:OFFSET('Interior - Space-By-Space'!$U$65,-1,0),$B110,'Interior - Space-By-Space'!$W$16:OFFSET('Interior - Space-By-Space'!$W$65,-1,0)),SUMIF('Interior - Space-By-Space'!$Y$16:OFFSET('Interior - Space-By-Space'!$Y$65,-1,0),$B110,'Interior - Space-By-Space'!$AA$16:OFFSET('Interior - Space-By-Space'!$AA$65,-1,0)),SUMIF('Interior - Space-By-Space'!$AC$16:OFFSET('Interior - Space-By-Space'!$AC$65,-1,0),$B110,'Interior - Space-By-Space'!$AE$16:OFFSET('Interior - Space-By-Space'!$AE$65,-1,0)),SUMIF('Interior - Space-By-Space'!$AG$16:OFFSET('Interior - Space-By-Space'!$AG$65,-1,0),$B110,'Interior - Space-By-Space'!$AI$16:OFFSET('Interior - Space-By-Space'!$AI$65,-1,0)),SUMIF('Interior - Space-By-Space'!$AK$16:OFFSET('Interior - Space-By-Space'!$AK$65,-1,0),$B110,'Interior - Space-By-Space'!$AM$16:OFFSET('Interior - Space-By-Space'!$AM$65,-1,0)),SUMIF('Interior - Space-By-Space'!$AO$16:OFFSET('Interior - Space-By-Space'!$AO$65,-1,0),$B110,'Interior - Space-By-Space'!$AQ$16:OFFSET('Interior - Space-By-Space'!$AQ$65,-1,0))),IF(ProjectMethod=BAM,SUM('Interior - Building Area Method'!$C121,'Interior - Building Area Method'!$E121,'Interior - Building Area Method'!$G121,'Interior - Building Area Method'!$I121,'Interior - Building Area Method'!$K121),0))+SUM(SUMIF(Exterior!$J$19:$J$53,$B110,Exterior!$K$19:$K$53),SUMIF(Exterior!$M$19:$M$53,$B110,Exterior!$N$19:$N$53),SUMIF(Exterior!$P$19:$P$53,$B110,Exterior!$Q$19:$Q$53),SUMIF(Exterior!$S$19:$S$53,$B110,Exterior!$T$19:$T$53),SUMIF(Exterior!$V$19:$V$53,$B110,Exterior!$W$19:$W$53))","v":0}]
[null,null,null,null,null,null,null,null,{"$f":"IF(ProjectMethod=SBS,SUM(SUMIF('Interior - Space-By-Space'!$M$16:OFFSET('Interior - Space-By-Space'!$M$65,-1,0),$B111,'Interior - Space-By-Space'!$O$16:OFFSET('Interior - Space-By-Space'!$O$65,-1,0)),SUMIF('Interior - Space-By-Space'!$Q$16:OFFSET('Interior - Space-By-Space'!$Q$65,-1,0),$B111,'Interior - Space-By-Space'!$S$16:OFFSET('Interior - Space-By-Space'!$S$65,-1,0)),SUMIF('Interior - Space-By-Space'!$U$16:OFFSET('Interior - Space-By-Space'!$U$65,-1,0),$B111,'Interior - Space-By-Space'!$W$16:OFFSET('Interior - Space-By-Space'!$W$65,-1,0)),SUMIF('Interior - Space-By-Space'!$Y$16:OFFSET('Interior - Space-By-Space'!$Y$65,-1,0),$B111,'Interior - Space-By-Space'!$AA$16:OFFSET('Interior - Space-By-Space'!$AA$65,-1,0)),SUMIF('Interior - Space-By-Space'!$AC$16:OFFSET('Interior - Space-By-Space'!$AC$65,-1,0),$B111,'Interior - Space-By-Space'!$AE$16:OFFSET('Interior - Space-By-Space'!$AE$65,-1,0)),SUMIF('Interior - Space-By-Space'!$AG$16:OFFSET('Interior - Space-By-Space'!$AG$65,-1,0),$B111,'Interior - Space-By-Space'!$AI$16:OFFSET('Interior - Space-By-Space'!$AI$65,-1,0)),SUMIF('Interior - Space-By-Space'!$AK$16:OFFSET('Interior - Space-By-Space'!$AK$65,-1,0),$B111,'Interior - Space-By-Space'!$AM$16:OFFSET('Interior - Space-By-Space'!$AM$65,-1,0)),SUMIF('Interior - Space-By-Space'!$AO$16:OFFSET('Interior - Space-By-Space'!$AO$65,-1,0),$B111,'Interior - Space-By-Space'!$AQ$16:OFFSET('Interior - Space-By-Space'!$AQ$65,-1,0))),IF(ProjectMethod=BAM,SUM('Interior - Building Area Method'!$C122,'Interior - Building Area Method'!$E122,'Interior - Building Area Method'!$G122,'Interior - Building Area Method'!$I122,'Interior - Building Area Method'!$K122),0))+SUM(SUMIF(Exterior!$J$19:$J$53,$B111,Exterior!$K$19:$K$53),SUMIF(Exterior!$M$19:$M$53,$B111,Exterior!$N$19:$N$53),SUMIF(Exterior!$P$19:$P$53,$B111,Exterior!$Q$19:$Q$53),SUMIF(Exterior!$S$19:$S$53,$B111,Exterior!$T$19:$T$53),SUMIF(Exterior!$V$19:$V$53,$B111,Exterior!$W$19:$W$53))","v":0}]
[null,null,null,null,null,null,null,null,{"$f":"IF(ProjectMethod=SBS,SUM(SUMIF('Interior - Space-By-Space'!$M$16:OFFSET('Interior - Space-By-Space'!$M$65,-1,0),$B112,'Interior - Space-By-Space'!$O$16:OFFSET('Interior - Space-By-Space'!$O$65,-1,0)),SUMIF('Interior - Space-By-Space'!$Q$16:OFFSET('Interior - Space-By-Space'!$Q$65,-1,0),$B112,'Interior - Space-By-Space'!$S$16:OFFSET('Interior - Space-By-Space'!$S$65,-1,0)),SUMIF('Interior - Space-By-Space'!$U$16:OFFSET('Interior - Space-By-Space'!$U$65,-1,0),$B112,'Interior - Space-By-Space'!$W$16:OFFSET('Interior - Space-By-Space'!$W$65,-1,0)),SUMIF('Interior - Space-By-Space'!$Y$16:OFFSET('Interior - Space-By-Space'!$Y$65,-1,0),$B112,'Interior - Space-By-Space'!$AA$16:OFFSET('Interior - Space-By-Space'!$AA$65,-1,0)),SUMIF('Interior - Space-By-Space'!$AC$16:OFFSET('Interior - Space-By-Space'!$AC$65,-1,0),$B112,'Interior - Space-By-Space'!$AE$16:OFFSET('Interior - Space-By-Space'!$AE$65,-1,0)),SUMIF('Interior - Space-By-Space'!$AG$16:OFFSET('Interior - Space-By-Space'!$AG$65,-1,0),$B112,'Interior - Space-By-Space'!$AI$16:OFFSET('Interior - Space-By-Space'!$AI$65,-1,0)),SUMIF('Interior - Space-By-Space'!$AK$16:OFFSET('Interior - Space-By-Space'!$AK$65,-1,0),$B112,'Interior - Space-By-Space'!$AM$16:OFFSET('Interior - Space-By-Space'!$AM$65,-1,0)),SUMIF('Interior - Space-By-Space'!$AO$16:OFFSET('Interior - Space-By-Space'!$AO$65,-1,0),$B112,'Interior - Space-By-Space'!$AQ$16:OFFSET('Interior - Space-By-Space'!$AQ$65,-1,0))),IF(ProjectMethod=BAM,SUM('Interior - Building Area Method'!$C123,'Interior - Building Area Method'!$E123,'Interior - Building Area Method'!$G123,'Interior - Building Area Method'!$I123,'Interior - Building Area Method'!$K123),0))+SUM(SUMIF(Exterior!$J$19:$J$53,$B112,Exterior!$K$19:$K$53),SUMIF(Exterior!$M$19:$M$53,$B112,Exterior!$N$19:$N$53),SUMIF(Exterior!$P$19:$P$53,$B112,Exterior!$Q$19:$Q$53),SUMIF(Exterior!$S$19:$S$53,$B112,Exterior!$T$19:$T$53),SUMIF(Exterior!$V$19:$V$53,$B112,Exterior!$W$19:$W$53))","v":0}]
[null,null,null,null,null,null,null,null,{"$f":"IF(ProjectMethod=SBS,SUM(SUMIF('Interior - Space-By-Space'!$M$16:OFFSET('Interior - Space-By-Space'!$M$65,-1,0),$B113,'Interior - Space-By-Space'!$O$16:OFFSET('Interior - Space-By-Space'!$O$65,-1,0)),SUMIF('Interior - Space-By-Space'!$Q$16:OFFSET('Interior - Space-By-Space'!$Q$65,-1,0),$B113,'Interior - Space-By-Space'!$S$16:OFFSET('Interior - Space-By-Space'!$S$65,-1,0)),SUMIF('Interior - Space-By-Space'!$U$16:OFFSET('Interior - Space-By-Space'!$U$65,-1,0),$B113,'Interior - Space-By-Space'!$W$16:OFFSET('Interior - Space-By-Space'!$W$65,-1,0)),SUMIF('Interior - Space-By-Space'!$Y$16:OFFSET('Interior - Space-By-Space'!$Y$65,-1,0),$B113,'Interior - Space-By-Space'!$AA$16:OFFSET('Interior - Space-By-Space'!$AA$65,-1,0)),SUMIF('Interior - Space-By-Space'!$AC$16:OFFSET('Interior - Space-By-Space'!$AC$65,-1,0),$B113,'Interior - Space-By-Space'!$AE$16:OFFSET('Interior - Space-By-Space'!$AE$65,-1,0)),SUMIF('Interior - Space-By-Space'!$AG$16:OFFSET('Interior - Space-By-Space'!$AG$65,-1,0),$B113,'Interior - Space-By-Space'!$AI$16:OFFSET('Interior - Space-By-Space'!$AI$65,-1,0)),SUMIF('Interior - Space-By-Space'!$AK$16:OFFSET('Interior - Space-By-Space'!$AK$65,-1,0),$B113,'Interior - Space-By-Space'!$AM$16:OFFSET('Interior - Space-By-Space'!$AM$65,-1,0)),SUMIF('Interior - Space-By-Space'!$AO$16:OFFSET('Interior - Space-By-Space'!$AO$65,-1,0),$B113,'Interior - Space-By-Space'!$AQ$16:OFFSET('Interior - Space-By-Space'!$AQ$65,-1,0))),IF(ProjectMethod=BAM,SUM('Interior - Building Area Method'!$C124,'Interior - Building Area Method'!$E124,'Interior - Building Area Method'!$G124,'Interior - Building Area Method'!$I124,'Interior - Building Area Method'!$K124),0))+SUM(SUMIF(Exterior!$J$19:$J$53,$B113,Exterior!$K$19:$K$53),SUMIF(Exterior!$M$19:$M$53,$B113,Exterior!$N$19:$N$53),SUMIF(Exterior!$P$19:$P$53,$B113,Exterior!$Q$19:$Q$53),SUMIF(Exterior!$S$19:$S$53,$B113,Exterior!$T$19:$T$53),SUMIF(Exterior!$V$19:$V$53,$B113,Exterior!$W$19:$W$53))","v":0}]
[null,null,null,null,null,null,null,null,{"$f":"IF(ProjectMethod=SBS,SUM(SUMIF('Interior - Space-By-Space'!$M$16:OFFSET('Interior - Space-By-Space'!$M$65,-1,0),$B114,'Interior - Space-By-Space'!$O$16:OFFSET('Interior - Space-By-Space'!$O$65,-1,0)),SUMIF('Interior - Space-By-Space'!$Q$16:OFFSET('Interior - Space-By-Space'!$Q$65,-1,0),$B114,'Interior - Space-By-Space'!$S$16:OFFSET('Interior - Space-By-Space'!$S$65,-1,0)),SUMIF('Interior - Space-By-Space'!$U$16:OFFSET('Interior - Space-By-Space'!$U$65,-1,0),$B114,'Interior - Space-By-Space'!$W$16:OFFSET('Interior - Space-By-Space'!$W$65,-1,0)),SUMIF('Interior - Space-By-Space'!$Y$16:OFFSET('Interior - Space-By-Space'!$Y$65,-1,0),$B114,'Interior - Space-By-Space'!$AA$16:OFFSET('Interior - Space-By-Space'!$AA$65,-1,0)),SUMIF('Interior - Space-By-Space'!$AC$16:OFFSET('Interior - Space-By-Space'!$AC$65,-1,0),$B114,'Interior - Space-By-Space'!$AE$16:OFFSET('Interior - Space-By-Space'!$AE$65,-1,0)),SUMIF('Interior - Space-By-Space'!$AG$16:OFFSET('Interior - Space-By-Space'!$AG$65,-1,0),$B114,'Interior - Space-By-Space'!$AI$16:OFFSET('Interior - Space-By-Space'!$AI$65,-1,0)),SUMIF('Interior - Space-By-Space'!$AK$16:OFFSET('Interior - Space-By-Space'!$AK$65,-1,0),$B114,'Interior - Space-By-Space'!$AM$16:OFFSET('Interior - Space-By-Space'!$AM$65,-1,0)),SUMIF('Interior - Space-By-Space'!$AO$16:OFFSET('Interior - Space-By-Space'!$AO$65,-1,0),$B114,'Interior - Space-By-Space'!$AQ$16:OFFSET('Interior - Space-By-Space'!$AQ$65,-1,0))),IF(ProjectMethod=BAM,SUM('Interior - Building Area Method'!$C125,'Interior - Building Area Method'!$E125,'Interior - Building Area Method'!$G125,'Interior - Building Area Method'!$I125,'Interior - Building Area Method'!$K125),0))+SUM(SUMIF(Exterior!$J$19:$J$53,$B114,Exterior!$K$19:$K$53),SUMIF(Exterior!$M$19:$M$53,$B114,Exterior!$N$19:$N$53),SUMIF(Exterior!$P$19:$P$53,$B114,Exterior!$Q$19:$Q$53),SUMIF(Exterior!$S$19:$S$53,$B114,Exterior!$T$19:$T$53),SUMIF(Exterior!$V$19:$V$53,$B114,Exterior!$W$19:$W$53))","v":0}]
[null,null,null,null,null,null,null,null,{"$f":"IF(ProjectMethod=SBS,SUM(SUMIF('Interior - Space-By-Space'!$M$16:OFFSET('Interior - Space-By-Space'!$M$65,-1,0),$B115,'Interior - Space-By-Space'!$O$16:OFFSET('Interior - Space-By-Space'!$O$65,-1,0)),SUMIF('Interior - Space-By-Space'!$Q$16:OFFSET('Interior - Space-By-Space'!$Q$65,-1,0),$B115,'Interior - Space-By-Space'!$S$16:OFFSET('Interior - Space-By-Space'!$S$65,-1,0)),SUMIF('Interior - Space-By-Space'!$U$16:OFFSET('Interior - Space-By-Space'!$U$65,-1,0),$B115,'Interior - Space-By-Space'!$W$16:OFFSET('Interior - Space-By-Space'!$W$65,-1,0)),SUMIF('Interior - Space-By-Space'!$Y$16:OFFSET('Interior - Space-By-Space'!$Y$65,-1,0),$B115,'Interior - Space-By-Space'!$AA$16:OFFSET('Interior - Space-By-Space'!$AA$65,-1,0)),SUMIF('Interior - Space-By-Space'!$AC$16:OFFSET('Interior - Space-By-Space'!$AC$65,-1,0),$B115,'Interior - Space-By-Space'!$AE$16:OFFSET('Interior - Space-By-Space'!$AE$65,-1,0)),SUMIF('Interior - Space-By-Space'!$AG$16:OFFSET('Interior - Space-By-Space'!$AG$65,-1,0),$B115,'Interior - Space-By-Space'!$AI$16:OFFSET('Interior - Space-By-Space'!$AI$65,-1,0)),SUMIF('Interior - Space-By-Space'!$AK$16:OFFSET('Interior - Space-By-Space'!$AK$65,-1,0),$B115,'Interior - Space-By-Space'!$AM$16:OFFSET('Interior - Space-By-Space'!$AM$65,-1,0)),SUMIF('Interior - Space-By-Space'!$AO$16:OFFSET('Interior - Space-By-Space'!$AO$65,-1,0),$B115,'Interior - Space-By-Space'!$AQ$16:OFFSET('Interior - Space-By-Space'!$AQ$65,-1,0))),IF(ProjectMethod=BAM,SUM('Interior - Building Area Method'!$C126,'Interior - Building Area Method'!$E126,'Interior - Building Area Method'!$G126,'Interior - Building Area Method'!$I126,'Interior - Building Area Method'!$K126),0))+SUM(SUMIF(Exterior!$J$19:$J$53,$B115,Exterior!$K$19:$K$53),SUMIF(Exterior!$M$19:$M$53,$B115,Exterior!$N$19:$N$53),SUMIF(Exterior!$P$19:$P$53,$B115,Exterior!$Q$19:$Q$53),SUMIF(Exterior!$S$19:$S$53,$B115,Exterior!$T$19:$T$53),SUMIF(Exterior!$V$19:$V$53,$B115,Exterior!$W$19:$W$53))","v":0}]
[null,null,null,null,null,null,null,null,{"$f":"IF(ProjectMethod=SBS,SUM(SUMIF('Interior - Space-By-Space'!$M$16:OFFSET('Interior - Space-By-Space'!$M$65,-1,0),$B116,'Interior - Space-By-Space'!$O$16:OFFSET('Interior - Space-By-Space'!$O$65,-1,0)),SUMIF('Interior - Space-By-Space'!$Q$16:OFFSET('Interior - Space-By-Space'!$Q$65,-1,0),$B116,'Interior - Space-By-Space'!$S$16:OFFSET('Interior - Space-By-Space'!$S$65,-1,0)),SUMIF('Interior - Space-By-Space'!$U$16:OFFSET('Interior - Space-By-Space'!$U$65,-1,0),$B116,'Interior - Space-By-Space'!$W$16:OFFSET('Interior - Space-By-Space'!$W$65,-1,0)),SUMIF('Interior - Space-By-Space'!$Y$16:OFFSET('Interior - Space-By-Space'!$Y$65,-1,0),$B116,'Interior - Space-By-Space'!$AA$16:OFFSET('Interior - Space-By-Space'!$AA$65,-1,0)),SUMIF('Interior - Space-By-Space'!$AC$16:OFFSET('Interior - Space-By-Space'!$AC$65,-1,0),$B116,'Interior - Space-By-Space'!$AE$16:OFFSET('Interior - Space-By-Space'!$AE$65,-1,0)),SUMIF('Interior - Space-By-Space'!$AG$16:OFFSET('Interior - Space-By-Space'!$AG$65,-1,0),$B116,'Interior - Space-By-Space'!$AI$16:OFFSET('Interior - Space-By-Space'!$AI$65,-1,0)),SUMIF('Interior - Space-By-Space'!$AK$16:OFFSET('Interior - Space-By-Space'!$AK$65,-1,0),$B116,'Interior - Space-By-Space'!$AM$16:OFFSET('Interior - Space-By-Space'!$AM$65,-1,0)),SUMIF('Interior - Space-By-Space'!$AO$16:OFFSET('Interior - Space-By-Space'!$AO$65,-1,0),$B116,'Interior - Space-By-Space'!$AQ$16:OFFSET('Interior - Space-By-Space'!$AQ$65,-1,0))),IF(ProjectMethod=BAM,SUM('Interior - Building Area Method'!$C127,'Interior - Building Area Method'!$E127,'Interior - Building Area Method'!$G127,'Interior - Building Area Method'!$I127,'Interior - Building Area Method'!$K127),0))+SUM(SUMIF(Exterior!$J$19:$J$53,$B116,Exterior!$K$19:$K$53),SUMIF(Exterior!$M$19:$M$53,$B116,Exterior!$N$19:$N$53),SUMIF(Exterior!$P$19:$P$53,$B116,Exterior!$Q$19:$Q$53),SUMIF(Exterior!$S$19:$S$53,$B116,Exterior!$T$19:$T$53),SUMIF(Exterior!$V$19:$V$53,$B116,Exterior!$W$19:$W$53))","v":0}]
[null,null,null,null,null,null,null,null,{"$f":"IF(ProjectMethod=SBS,SUM(SUMIF('Interior - Space-By-Space'!$M$16:OFFSET('Interior - Space-By-Space'!$M$65,-1,0),$B117,'Interior - Space-By-Space'!$O$16:OFFSET('Interior - Space-By-Space'!$O$65,-1,0)),SUMIF('Interior - Space-By-Space'!$Q$16:OFFSET('Interior - Space-By-Space'!$Q$65,-1,0),$B117,'Interior - Space-By-Space'!$S$16:OFFSET('Interior - Space-By-Space'!$S$65,-1,0)),SUMIF('Interior - Space-By-Space'!$U$16:OFFSET('Interior - Space-By-Space'!$U$65,-1,0),$B117,'Interior - Space-By-Space'!$W$16:OFFSET('Interior - Space-By-Space'!$W$65,-1,0)),SUMIF('Interior - Space-By-Space'!$Y$16:OFFSET('Interior - Space-By-Space'!$Y$65,-1,0),$B117,'Interior - Space-By-Space'!$AA$16:OFFSET('Interior - Space-By-Space'!$AA$65,-1,0)),SUMIF('Interior - Space-By-Space'!$AC$16:OFFSET('Interior - Space-By-Space'!$AC$65,-1,0),$B117,'Interior - Space-By-Space'!$AE$16:OFFSET('Interior - Space-By-Space'!$AE$65,-1,0)),SUMIF('Interior - Space-By-Space'!$AG$16:OFFSET('Interior - Space-By-Space'!$AG$65,-1,0),$B117,'Interior - Space-By-Space'!$AI$16:OFFSET('Interior - Space-By-Space'!$AI$65,-1,0)),SUMIF('Interior - Space-By-Space'!$AK$16:OFFSET('Interior - Space-By-Space'!$AK$65,-1,0),$B117,'Interior - Space-By-Space'!$AM$16:OFFSET('Interior - Space-By-Space'!$AM$65,-1,0)),SUMIF('Interior - Space-By-Space'!$AO$16:OFFSET('Interior - Space-By-Space'!$AO$65,-1,0),$B117,'Interior - Space-By-Space'!$AQ$16:OFFSET('Interior - Space-By-Space'!$AQ$65,-1,0))),IF(ProjectMethod=BAM,SUM('Interior - Building Area Method'!$C128,'Interior - Building Area Method'!$E128,'Interior - Building Area Method'!$G128,'Interior - Building Area Method'!$I128,'Interior - Building Area Method'!$K128),0))+SUM(SUMIF(Exterior!$J$19:$J$53,$B117,Exterior!$K$19:$K$53),SUMIF(Exterior!$M$19:$M$53,$B117,Exterior!$N$19:$N$53),SUMIF(Exterior!$P$19:$P$53,$B117,Exterior!$Q$19:$Q$53),SUMIF(Exterior!$S$19:$S$53,$B117,Exterior!$T$19:$T$53),SUMIF(Exterior!$V$19:$V$53,$B117,Exterior!$W$19:$W$53))","v":0}]
[null,null,null,null,null,null,null,null,{"$f":"IF(ProjectMethod=SBS,SUM(SUMIF('Interior - Space-By-Space'!$M$16:OFFSET('Interior - Space-By-Space'!$M$65,-1,0),$B118,'Interior - Space-By-Space'!$O$16:OFFSET('Interior - Space-By-Space'!$O$65,-1,0)),SUMIF('Interior - Space-By-Space'!$Q$16:OFFSET('Interior - Space-By-Space'!$Q$65,-1,0),$B118,'Interior - Space-By-Space'!$S$16:OFFSET('Interior - Space-By-Space'!$S$65,-1,0)),SUMIF('Interior - Space-By-Space'!$U$16:OFFSET('Interior - Space-By-Space'!$U$65,-1,0),$B118,'Interior - Space-By-Space'!$W$16:OFFSET('Interior - Space-By-Space'!$W$65,-1,0)),SUMIF('Interior - Space-By-Space'!$Y$16:OFFSET('Interior - Space-By-Space'!$Y$65,-1,0),$B118,'Interior - Space-By-Space'!$AA$16:OFFSET('Interior - Space-By-Space'!$AA$65,-1,0)),SUMIF('Interior - Space-By-Space'!$AC$16:OFFSET('Interior - Space-By-Space'!$AC$65,-1,0),$B118,'Interior - Space-By-Space'!$AE$16:OFFSET('Interior - Space-By-Space'!$AE$65,-1,0)),SUMIF('Interior - Space-By-Space'!$AG$16:OFFSET('Interior - Space-By-Space'!$AG$65,-1,0),$B118,'Interior - Space-By-Space'!$AI$16:OFFSET('Interior - Space-By-Space'!$AI$65,-1,0)),SUMIF('Interior - Space-By-Space'!$AK$16:OFFSET('Interior - Space-By-Space'!$AK$65,-1,0),$B118,'Interior - Space-By-Space'!$AM$16:OFFSET('Interior - Space-By-Space'!$AM$65,-1,0)),SUMIF('Interior - Space-By-Space'!$AO$16:OFFSET('Interior - Space-By-Space'!$AO$65,-1,0),$B118,'Interior - Space-By-Space'!$AQ$16:OFFSET('Interior - Space-By-Space'!$AQ$65,-1,0))),IF(ProjectMethod=BAM,SUM('Interior - Building Area Method'!$C129,'Interior - Building Area Method'!$E129,'Interior - Building Area Method'!$G129,'Interior - Building Area Method'!$I129,'Interior - Building Area Method'!$K129),0))+SUM(SUMIF(Exterior!$J$19:$J$53,$B118,Exterior!$K$19:$K$53),SUMIF(Exterior!$M$19:$M$53,$B118,Exterior!$N$19:$N$53),SUMIF(Exterior!$P$19:$P$53,$B118,Exterior!$Q$19:$Q$53),SUMIF(Exterior!$S$19:$S$53,$B118,Exterior!$T$19:$T$53),SUMIF(Exterior!$V$19:$V$53,$B118,Exterior!$W$19:$W$53))","v":0}]
[null,null,null,null,null,null,null,null,{"$f":"IF(ProjectMethod=SBS,SUM(SUMIF('Interior - Space-By-Space'!$M$16:OFFSET('Interior - Space-By-Space'!$M$65,-1,0),$B119,'Interior - Space-By-Space'!$O$16:OFFSET('Interior - Space-By-Space'!$O$65,-1,0)),SUMIF('Interior - Space-By-Space'!$Q$16:OFFSET('Interior - Space-By-Space'!$Q$65,-1,0),$B119,'Interior - Space-By-Space'!$S$16:OFFSET('Interior - Space-By-Space'!$S$65,-1,0)),SUMIF('Interior - Space-By-Space'!$U$16:OFFSET('Interior - Space-By-Space'!$U$65,-1,0),$B119,'Interior - Space-By-Space'!$W$16:OFFSET('Interior - Space-By-Space'!$W$65,-1,0)),SUMIF('Interior - Space-By-Space'!$Y$16:OFFSET('Interior - Space-By-Space'!$Y$65,-1,0),$B119,'Interior - Space-By-Space'!$AA$16:OFFSET('Interior - Space-By-Space'!$AA$65,-1,0)),SUMIF('Interior - Space-By-Space'!$AC$16:OFFSET('Interior - Space-By-Space'!$AC$65,-1,0),$B119,'Interior - Space-By-Space'!$AE$16:OFFSET('Interior - Space-By-Space'!$AE$65,-1,0)),SUMIF('Interior - Space-By-Space'!$AG$16:OFFSET('Interior - Space-By-Space'!$AG$65,-1,0),$B119,'Interior - Space-By-Space'!$AI$16:OFFSET('Interior - Space-By-Space'!$AI$65,-1,0)),SUMIF('Interior - Space-By-Space'!$AK$16:OFFSET('Interior - Space-By-Space'!$AK$65,-1,0),$B119,'Interior - Space-By-Space'!$AM$16:OFFSET('Interior - Space-By-Space'!$AM$65,-1,0)),SUMIF('Interior - Space-By-Space'!$AO$16:OFFSET('Interior - Space-By-Space'!$AO$65,-1,0),$B119,'Interior - Space-By-Space'!$AQ$16:OFFSET('Interior - Space-By-Space'!$AQ$65,-1,0))),IF(ProjectMethod=BAM,SUM('Interior - Building Area Method'!$C130,'Interior - Building Area Method'!$E130,'Interior - Building Area Method'!$G130,'Interior - Building Area Method'!$I130,'Interior - Building Area Method'!$K130),0))+SUM(SUMIF(Exterior!$J$19:$J$53,$B119,Exterior!$K$19:$K$53),SUMIF(Exterior!$M$19:$M$53,$B119,Exterior!$N$19:$N$53),SUMIF(Exterior!$P$19:$P$53,$B119,Exterior!$Q$19:$Q$53),SUMIF(Exterior!$S$19:$S$53,$B119,Exterior!$T$19:$T$53),SUMIF(Exterior!$V$19:$V$53,$B119,Exterior!$W$19:$W$53))","v":0}]
[null,null,null,null,null,null,null,null,{"$f":"IF(ProjectMethod=SBS,SUM(SUMIF('Interior - Space-By-Space'!$M$16:OFFSET('Interior - Space-By-Space'!$M$65,-1,0),$B120,'Interior - Space-By-Space'!$O$16:OFFSET('Interior - Space-By-Space'!$O$65,-1,0)),SUMIF('Interior - Space-By-Space'!$Q$16:OFFSET('Interior - Space-By-Space'!$Q$65,-1,0),$B120,'Interior - Space-By-Space'!$S$16:OFFSET('Interior - Space-By-Space'!$S$65,-1,0)),SUMIF('Interior - Space-By-Space'!$U$16:OFFSET('Interior - Space-By-Space'!$U$65,-1,0),$B120,'Interior - Space-By-Space'!$W$16:OFFSET('Interior - Space-By-Space'!$W$65,-1,0)),SUMIF('Interior - Space-By-Space'!$Y$16:OFFSET('Interior - Space-By-Space'!$Y$65,-1,0),$B120,'Interior - Space-By-Space'!$AA$16:OFFSET('Interior - Space-By-Space'!$AA$65,-1,0)),SUMIF('Interior - Space-By-Space'!$AC$16:OFFSET('Interior - Space-By-Space'!$AC$65,-1,0),$B120,'Interior - Space-By-Space'!$AE$16:OFFSET('Interior - Space-By-Space'!$AE$65,-1,0)),SUMIF('Interior - Space-By-Space'!$AG$16:OFFSET('Interior - Space-By-Space'!$AG$65,-1,0),$B120,'Interior - Space-By-Space'!$AI$16:OFFSET('Interior - Space-By-Space'!$AI$65,-1,0)),SUMIF('Interior - Space-By-Space'!$AK$16:OFFSET('Interior - Space-By-Space'!$AK$65,-1,0),$B120,'Interior - Space-By-Space'!$AM$16:OFFSET('Interior - Space-By-Space'!$AM$65,-1,0)),SUMIF('Interior - Space-By-Space'!$AO$16:OFFSET('Interior - Space-By-Space'!$AO$65,-1,0),$B120,'Interior - Space-By-Space'!$AQ$16:OFFSET('Interior - Space-By-Space'!$AQ$65,-1,0))),IF(ProjectMethod=BAM,SUM('Interior - Building Area Method'!$C131,'Interior - Building Area Method'!$E131,'Interior - Building Area Method'!$G131,'Interior - Building Area Method'!$I131,'Interior - Building Area Method'!$K131),0))+SUM(SUMIF(Exterior!$J$19:$J$53,$B120,Exterior!$K$19:$K$53),SUMIF(Exterior!$M$19:$M$53,$B120,Exterior!$N$19:$N$53),SUMIF(Exterior!$P$19:$P$53,$B120,Exterior!$Q$19:$Q$53),SUMIF(Exterior!$S$19:$S$53,$B120,Exterior!$T$19:$T$53),SUMIF(Exterior!$V$19:$V$53,$B120,Exterior!$W$19:$W$53))","v":0}]
[null,null,null,null,null,null,null,null,{"$f":"IF(ProjectMethod=SBS,SUM(SUMIF('Interior - Space-By-Space'!$M$16:OFFSET('Interior - Space-By-Space'!$M$65,-1,0),$B121,'Interior - Space-By-Space'!$O$16:OFFSET('Interior - Space-By-Space'!$O$65,-1,0)),SUMIF('Interior - Space-By-Space'!$Q$16:OFFSET('Interior - Space-By-Space'!$Q$65,-1,0),$B121,'Interior - Space-By-Space'!$S$16:OFFSET('Interior - Space-By-Space'!$S$65,-1,0)),SUMIF('Interior - Space-By-Space'!$U$16:OFFSET('Interior - Space-By-Space'!$U$65,-1,0),$B121,'Interior - Space-By-Space'!$W$16:OFFSET('Interior - Space-By-Space'!$W$65,-1,0)),SUMIF('Interior - Space-By-Space'!$Y$16:OFFSET('Interior - Space-By-Space'!$Y$65,-1,0),$B121,'Interior - Space-By-Space'!$AA$16:OFFSET('Interior - Space-By-Space'!$AA$65,-1,0)),SUMIF('Interior - Space-By-Space'!$AC$16:OFFSET('Interior - Space-By-Space'!$AC$65,-1,0),$B121,'Interior - Space-By-Space'!$AE$16:OFFSET('Interior - Space-By-Space'!$AE$65,-1,0)),SUMIF('Interior - Space-By-Space'!$AG$16:OFFSET('Interior - Space-By-Space'!$AG$65,-1,0),$B121,'Interior - Space-By-Space'!$AI$16:OFFSET('Interior - Space-By-Space'!$AI$65,-1,0)),SUMIF('Interior - Space-By-Space'!$AK$16:OFFSET('Interior - Space-By-Space'!$AK$65,-1,0),$B121,'Interior - Space-By-Space'!$AM$16:OFFSET('Interior - Space-By-Space'!$AM$65,-1,0)),SUMIF('Interior - Space-By-Space'!$AO$16:OFFSET('Interior - Space-By-Space'!$AO$65,-1,0),$B121,'Interior - Space-By-Space'!$AQ$16:OFFSET('Interior - Space-By-Space'!$AQ$65,-1,0))),IF(ProjectMethod=BAM,SUM('Interior - Building Area Method'!$C132,'Interior - Building Area Method'!$E132,'Interior - Building Area Method'!$G132,'Interior - Building Area Method'!$I132,'Interior - Building Area Method'!$K132),0))+SUM(SUMIF(Exterior!$J$19:$J$53,$B121,Exterior!$K$19:$K$53),SUMIF(Exterior!$M$19:$M$53,$B121,Exterior!$N$19:$N$53),SUMIF(Exterior!$P$19:$P$53,$B121,Exterior!$Q$19:$Q$53),SUMIF(Exterior!$S$19:$S$53,$B121,Exterior!$T$19:$T$53),SUMIF(Exterior!$V$19:$V$53,$B121,Exterior!$W$19:$W$53))","v":0}]
[null,null,null,null,null,null,null,null,{"$f":"IF(ProjectMethod=SBS,SUM(SUMIF('Interior - Space-By-Space'!$M$16:OFFSET('Interior - Space-By-Space'!$M$65,-1,0),$B122,'Interior - Space-By-Space'!$O$16:OFFSET('Interior - Space-By-Space'!$O$65,-1,0)),SUMIF('Interior - Space-By-Space'!$Q$16:OFFSET('Interior - Space-By-Space'!$Q$65,-1,0),$B122,'Interior - Space-By-Space'!$S$16:OFFSET('Interior - Space-By-Space'!$S$65,-1,0)),SUMIF('Interior - Space-By-Space'!$U$16:OFFSET('Interior - Space-By-Space'!$U$65,-1,0),$B122,'Interior - Space-By-Space'!$W$16:OFFSET('Interior - Space-By-Space'!$W$65,-1,0)),SUMIF('Interior - Space-By-Space'!$Y$16:OFFSET('Interior - Space-By-Space'!$Y$65,-1,0),$B122,'Interior - Space-By-Space'!$AA$16:OFFSET('Interior - Space-By-Space'!$AA$65,-1,0)),SUMIF('Interior - Space-By-Space'!$AC$16:OFFSET('Interior - Space-By-Space'!$AC$65,-1,0),$B122,'Interior - Space-By-Space'!$AE$16:OFFSET('Interior - Space-By-Space'!$AE$65,-1,0)),SUMIF('Interior - Space-By-Space'!$AG$16:OFFSET('Interior - Space-By-Space'!$AG$65,-1,0),$B122,'Interior - Space-By-Space'!$AI$16:OFFSET('Interior - Space-By-Space'!$AI$65,-1,0)),SUMIF('Interior - Space-By-Space'!$AK$16:OFFSET('Interior - Space-By-Space'!$AK$65,-1,0),$B122,'Interior - Space-By-Space'!$AM$16:OFFSET('Interior - Space-By-Space'!$AM$65,-1,0)),SUMIF('Interior - Space-By-Space'!$AO$16:OFFSET('Interior - Space-By-Space'!$AO$65,-1,0),$B122,'Interior - Space-By-Space'!$AQ$16:OFFSET('Interior - Space-By-Space'!$AQ$65,-1,0))),IF(ProjectMethod=BAM,SUM('Interior - Building Area Method'!$C133,'Interior - Building Area Method'!$E133,'Interior - Building Area Method'!$G133,'Interior - Building Area Method'!$I133,'Interior - Building Area Method'!$K133),0))+SUM(SUMIF(Exterior!$J$19:$J$53,$B122,Exterior!$K$19:$K$53),SUMIF(Exterior!$M$19:$M$53,$B122,Exterior!$N$19:$N$53),SUMIF(Exterior!$P$19:$P$53,$B122,Exterior!$Q$19:$Q$53),SUMIF(Exterior!$S$19:$S$53,$B122,Exterior!$T$19:$T$53),SUMIF(Exterior!$V$19:$V$53,$B122,Exterior!$W$19:$W$53))","v":0}]
[null,null,null,null,null,null,null,null,{"$f":"IF(ProjectMethod=SBS,SUM(SUMIF('Interior - Space-By-Space'!$M$16:OFFSET('Interior - Space-By-Space'!$M$65,-1,0),$B123,'Interior - Space-By-Space'!$O$16:OFFSET('Interior - Space-By-Space'!$O$65,-1,0)),SUMIF('Interior - Space-By-Space'!$Q$16:OFFSET('Interior - Space-By-Space'!$Q$65,-1,0),$B123,'Interior - Space-By-Space'!$S$16:OFFSET('Interior - Space-By-Space'!$S$65,-1,0)),SUMIF('Interior - Space-By-Space'!$U$16:OFFSET('Interior - Space-By-Space'!$U$65,-1,0),$B123,'Interior - Space-By-Space'!$W$16:OFFSET('Interior - Space-By-Space'!$W$65,-1,0)),SUMIF('Interior - Space-By-Space'!$Y$16:OFFSET('Interior - Space-By-Space'!$Y$65,-1,0),$B123,'Interior - Space-By-Space'!$AA$16:OFFSET('Interior - Space-By-Space'!$AA$65,-1,0)),SUMIF('Interior - Space-By-Space'!$AC$16:OFFSET('Interior - Space-By-Space'!$AC$65,-1,0),$B123,'Interior - Space-By-Space'!$AE$16:OFFSET('Interior - Space-By-Space'!$AE$65,-1,0)),SUMIF('Interior - Space-By-Space'!$AG$16:OFFSET('Interior - Space-By-Space'!$AG$65,-1,0),$B123,'Interior - Space-By-Space'!$AI$16:OFFSET('Interior - Space-By-Space'!$AI$65,-1,0)),SUMIF('Interior - Space-By-Space'!$AK$16:OFFSET('Interior - Space-By-Space'!$AK$65,-1,0),$B123,'Interior - Space-By-Space'!$AM$16:OFFSET('Interior - Space-By-Space'!$AM$65,-1,0)),SUMIF('Interior - Space-By-Space'!$AO$16:OFFSET('Interior - Space-By-Space'!$AO$65,-1,0),$B123,'Interior - Space-By-Space'!$AQ$16:OFFSET('Interior - Space-By-Space'!$AQ$65,-1,0))),IF(ProjectMethod=BAM,SUM('Interior - Building Area Method'!$C134,'Interior - Building Area Method'!$E134,'Interior - Building Area Method'!$G134,'Interior - Building Area Method'!$I134,'Interior - Building Area Method'!$K134),0))+SUM(SUMIF(Exterior!$J$19:$J$53,$B123,Exterior!$K$19:$K$53),SUMIF(Exterior!$M$19:$M$53,$B123,Exterior!$N$19:$N$53),SUMIF(Exterior!$P$19:$P$53,$B123,Exterior!$Q$19:$Q$53),SUMIF(Exterior!$S$19:$S$53,$B123,Exterior!$T$19:$T$53),SUMIF(Exterior!$V$19:$V$53,$B123,Exterior!$W$19:$W$53))","v":0}]
[null,null,null,null,null,null,null,null,{"$f":"IF(ProjectMethod=SBS,SUM(SUMIF('Interior - Space-By-Space'!$M$16:OFFSET('Interior - Space-By-Space'!$M$65,-1,0),$B124,'Interior - Space-By-Space'!$O$16:OFFSET('Interior - Space-By-Space'!$O$65,-1,0)),SUMIF('Interior - Space-By-Space'!$Q$16:OFFSET('Interior - Space-By-Space'!$Q$65,-1,0),$B124,'Interior - Space-By-Space'!$S$16:OFFSET('Interior - Space-By-Space'!$S$65,-1,0)),SUMIF('Interior - Space-By-Space'!$U$16:OFFSET('Interior - Space-By-Space'!$U$65,-1,0),$B124,'Interior - Space-By-Space'!$W$16:OFFSET('Interior - Space-By-Space'!$W$65,-1,0)),SUMIF('Interior - Space-By-Space'!$Y$16:OFFSET('Interior - Space-By-Space'!$Y$65,-1,0),$B124,'Interior - Space-By-Space'!$AA$16:OFFSET('Interior - Space-By-Space'!$AA$65,-1,0)),SUMIF('Interior - Space-By-Space'!$AC$16:OFFSET('Interior - Space-By-Space'!$AC$65,-1,0),$B124,'Interior - Space-By-Space'!$AE$16:OFFSET('Interior - Space-By-Space'!$AE$65,-1,0)),SUMIF('Interior - Space-By-Space'!$AG$16:OFFSET('Interior - Space-By-Space'!$AG$65,-1,0),$B124,'Interior - Space-By-Space'!$AI$16:OFFSET('Interior - Space-By-Space'!$AI$65,-1,0)),SUMIF('Interior - Space-By-Space'!$AK$16:OFFSET('Interior - Space-By-Space'!$AK$65,-1,0),$B124,'Interior - Space-By-Space'!$AM$16:OFFSET('Interior - Space-By-Space'!$AM$65,-1,0)),SUMIF('Interior - Space-By-Space'!$AO$16:OFFSET('Interior - Space-By-Space'!$AO$65,-1,0),$B124,'Interior - Space-By-Space'!$AQ$16:OFFSET('Interior - Space-By-Space'!$AQ$65,-1,0))),IF(ProjectMethod=BAM,SUM('Interior - Building Area Method'!$C135,'Interior - Building Area Method'!$E135,'Interior - Building Area Method'!$G135,'Interior - Building Area Method'!$I135,'Interior - Building Area Method'!$K135),0))+SUM(SUMIF(Exterior!$J$19:$J$53,$B124,Exterior!$K$19:$K$53),SUMIF(Exterior!$M$19:$M$53,$B124,Exterior!$N$19:$N$53),SUMIF(Exterior!$P$19:$P$53,$B124,Exterior!$Q$19:$Q$53),SUMIF(Exterior!$S$19:$S$53,$B124,Exterior!$T$19:$T$53),SUMIF(Exterior!$V$19:$V$53,$B124,Exterior!$W$19:$W$53))","v":0}]
[null,null,null,null,null,null,null,null,{"$f":"IF(ProjectMethod=SBS,SUM(SUMIF('Interior - Space-By-Space'!$M$16:OFFSET('Interior - Space-By-Space'!$M$65,-1,0),$B125,'Interior - Space-By-Space'!$O$16:OFFSET('Interior - Space-By-Space'!$O$65,-1,0)),SUMIF('Interior - Space-By-Space'!$Q$16:OFFSET('Interior - Space-By-Space'!$Q$65,-1,0),$B125,'Interior - Space-By-Space'!$S$16:OFFSET('Interior - Space-By-Space'!$S$65,-1,0)),SUMIF('Interior - Space-By-Space'!$U$16:OFFSET('Interior - Space-By-Space'!$U$65,-1,0),$B125,'Interior - Space-By-Space'!$W$16:OFFSET('Interior - Space-By-Space'!$W$65,-1,0)),SUMIF('Interior - Space-By-Space'!$Y$16:OFFSET('Interior - Space-By-Space'!$Y$65,-1,0),$B125,'Interior - Space-By-Space'!$AA$16:OFFSET('Interior - Space-By-Space'!$AA$65,-1,0)),SUMIF('Interior - Space-By-Space'!$AC$16:OFFSET('Interior - Space-By-Space'!$AC$65,-1,0),$B125,'Interior - Space-By-Space'!$AE$16:OFFSET('Interior - Space-By-Space'!$AE$65,-1,0)),SUMIF('Interior - Space-By-Space'!$AG$16:OFFSET('Interior - Space-By-Space'!$AG$65,-1,0),$B125,'Interior - Space-By-Space'!$AI$16:OFFSET('Interior - Space-By-Space'!$AI$65,-1,0)),SUMIF('Interior - Space-By-Space'!$AK$16:OFFSET('Interior - Space-By-Space'!$AK$65,-1,0),$B125,'Interior - Space-By-Space'!$AM$16:OFFSET('Interior - Space-By-Space'!$AM$65,-1,0)),SUMIF('Interior - Space-By-Space'!$AO$16:OFFSET('Interior - Space-By-Space'!$AO$65,-1,0),$B125,'Interior - Space-By-Space'!$AQ$16:OFFSET('Interior - Space-By-Space'!$AQ$65,-1,0))),IF(ProjectMethod=BAM,SUM('Interior - Building Area Method'!$C136,'Interior - Building Area Method'!$E136,'Interior - Building Area Method'!$G136,'Interior - Building Area Method'!$I136,'Interior - Building Area Method'!$K136),0))+SUM(SUMIF(Exterior!$J$19:$J$53,$B125,Exterior!$K$19:$K$53),SUMIF(Exterior!$M$19:$M$53,$B125,Exterior!$N$19:$N$53),SUMIF(Exterior!$P$19:$P$53,$B125,Exterior!$Q$19:$Q$53),SUMIF(Exterior!$S$19:$S$53,$B125,Exterior!$T$19:$T$53),SUMIF(Exterior!$V$19:$V$53,$B125,Exterior!$W$19:$W$53))","v":0}]
[null,null,null,null,null,null,null,null,{"$f":"IF(ProjectMethod=SBS,SUM(SUMIF('Interior - Space-By-Space'!$M$16:OFFSET('Interior - Space-By-Space'!$M$65,-1,0),$B126,'Interior - Space-By-Space'!$O$16:OFFSET('Interior - Space-By-Space'!$O$65,-1,0)),SUMIF('Interior - Space-By-Space'!$Q$16:OFFSET('Interior - Space-By-Space'!$Q$65,-1,0),$B126,'Interior - Space-By-Space'!$S$16:OFFSET('Interior - Space-By-Space'!$S$65,-1,0)),SUMIF('Interior - Space-By-Space'!$U$16:OFFSET('Interior - Space-By-Space'!$U$65,-1,0),$B126,'Interior - Space-By-Space'!$W$16:OFFSET('Interior - Space-By-Space'!$W$65,-1,0)),SUMIF('Interior - Space-By-Space'!$Y$16:OFFSET('Interior - Space-By-Space'!$Y$65,-1,0),$B126,'Interior - Space-By-Space'!$AA$16:OFFSET('Interior - Space-By-Space'!$AA$65,-1,0)),SUMIF('Interior - Space-By-Space'!$AC$16:OFFSET('Interior - Space-By-Space'!$AC$65,-1,0),$B126,'Interior - Space-By-Space'!$AE$16:OFFSET('Interior - Space-By-Space'!$AE$65,-1,0)),SUMIF('Interior - Space-By-Space'!$AG$16:OFFSET('Interior - Space-By-Space'!$AG$65,-1,0),$B126,'Interior - Space-By-Space'!$AI$16:OFFSET('Interior - Space-By-Space'!$AI$65,-1,0)),SUMIF('Interior - Space-By-Space'!$AK$16:OFFSET('Interior - Space-By-Space'!$AK$65,-1,0),$B126,'Interior - Space-By-Space'!$AM$16:OFFSET('Interior - Space-By-Space'!$AM$65,-1,0)),SUMIF('Interior - Space-By-Space'!$AO$16:OFFSET('Interior - Space-By-Space'!$AO$65,-1,0),$B126,'Interior - Space-By-Space'!$AQ$16:OFFSET('Interior - Space-By-Space'!$AQ$65,-1,0))),IF(ProjectMethod=BAM,SUM('Interior - Building Area Method'!$C137,'Interior - Building Area Method'!$E137,'Interior - Building Area Method'!$G137,'Interior - Building Area Method'!$I137,'Interior - Building Area Method'!$K137),0))+SUM(SUMIF(Exterior!$J$19:$J$53,$B126,Exterior!$K$19:$K$53),SUMIF(Exterior!$M$19:$M$53,$B126,Exterior!$N$19:$N$53),SUMIF(Exterior!$P$19:$P$53,$B126,Exterior!$Q$19:$Q$53),SUMIF(Exterior!$S$19:$S$53,$B126,Exterior!$T$19:$T$53),SUMIF(Exterior!$V$19:$V$53,$B126,Exterior!$W$19:$W$53))","v":0}]
[null,null,null,null,null,null,null,null,{"$f":"IF(ProjectMethod=SBS,SUM(SUMIF('Interior - Space-By-Space'!$M$16:OFFSET('Interior - Space-By-Space'!$M$65,-1,0),$B127,'Interior - Space-By-Space'!$O$16:OFFSET('Interior - Space-By-Space'!$O$65,-1,0)),SUMIF('Interior - Space-By-Space'!$Q$16:OFFSET('Interior - Space-By-Space'!$Q$65,-1,0),$B127,'Interior - Space-By-Space'!$S$16:OFFSET('Interior - Space-By-Space'!$S$65,-1,0)),SUMIF('Interior - Space-By-Space'!$U$16:OFFSET('Interior - Space-By-Space'!$U$65,-1,0),$B127,'Interior - Space-By-Space'!$W$16:OFFSET('Interior - Space-By-Space'!$W$65,-1,0)),SUMIF('Interior - Space-By-Space'!$Y$16:OFFSET('Interior - Space-By-Space'!$Y$65,-1,0),$B127,'Interior - Space-By-Space'!$AA$16:OFFSET('Interior - Space-By-Space'!$AA$65,-1,0)),SUMIF('Interior - Space-By-Space'!$AC$16:OFFSET('Interior - Space-By-Space'!$AC$65,-1,0),$B127,'Interior - Space-By-Space'!$AE$16:OFFSET('Interior - Space-By-Space'!$AE$65,-1,0)),SUMIF('Interior - Space-By-Space'!$AG$16:OFFSET('Interior - Space-By-Space'!$AG$65,-1,0),$B127,'Interior - Space-By-Space'!$AI$16:OFFSET('Interior - Space-By-Space'!$AI$65,-1,0)),SUMIF('Interior - Space-By-Space'!$AK$16:OFFSET('Interior - Space-By-Space'!$AK$65,-1,0),$B127,'Interior - Space-By-Space'!$AM$16:OFFSET('Interior - Space-By-Space'!$AM$65,-1,0)),SUMIF('Interior - Space-By-Space'!$AO$16:OFFSET('Interior - Space-By-Space'!$AO$65,-1,0),$B127,'Interior - Space-By-Space'!$AQ$16:OFFSET('Interior - Space-By-Space'!$AQ$65,-1,0))),IF(ProjectMethod=BAM,SUM('Interior - Building Area Method'!$C138,'Interior - Building Area Method'!$E138,'Interior - Building Area Method'!$G138,'Interior - Building Area Method'!$I138,'Interior - Building Area Method'!$K138),0))+SUM(SUMIF(Exterior!$J$19:$J$53,$B127,Exterior!$K$19:$K$53),SUMIF(Exterior!$M$19:$M$53,$B127,Exterior!$N$19:$N$53),SUMIF(Exterior!$P$19:$P$53,$B127,Exterior!$Q$19:$Q$53),SUMIF(Exterior!$S$19:$S$53,$B127,Exterior!$T$19:$T$53),SUMIF(Exterior!$V$19:$V$53,$B127,Exterior!$W$19:$W$53))","v":0}]
[null,null,null,null,null,null,null,null,{"$f":"IF(ProjectMethod=SBS,SUM(SUMIF('Interior - Space-By-Space'!$M$16:OFFSET('Interior - Space-By-Space'!$M$65,-1,0),$B128,'Interior - Space-By-Space'!$O$16:OFFSET('Interior - Space-By-Space'!$O$65,-1,0)),SUMIF('Interior - Space-By-Space'!$Q$16:OFFSET('Interior - Space-By-Space'!$Q$65,-1,0),$B128,'Interior - Space-By-Space'!$S$16:OFFSET('Interior - Space-By-Space'!$S$65,-1,0)),SUMIF('Interior - Space-By-Space'!$U$16:OFFSET('Interior - Space-By-Space'!$U$65,-1,0),$B128,'Interior - Space-By-Space'!$W$16:OFFSET('Interior - Space-By-Space'!$W$65,-1,0)),SUMIF('Interior - Space-By-Space'!$Y$16:OFFSET('Interior - Space-By-Space'!$Y$65,-1,0),$B128,'Interior - Space-By-Space'!$AA$16:OFFSET('Interior - Space-By-Space'!$AA$65,-1,0)),SUMIF('Interior - Space-By-Space'!$AC$16:OFFSET('Interior - Space-By-Space'!$AC$65,-1,0),$B128,'Interior - Space-By-Space'!$AE$16:OFFSET('Interior - Space-By-Space'!$AE$65,-1,0)),SUMIF('Interior - Space-By-Space'!$AG$16:OFFSET('Interior - Space-By-Space'!$AG$65,-1,0),$B128,'Interior - Space-By-Space'!$AI$16:OFFSET('Interior - Space-By-Space'!$AI$65,-1,0)),SUMIF('Interior - Space-By-Space'!$AK$16:OFFSET('Interior - Space-By-Space'!$AK$65,-1,0),$B128,'Interior - Space-By-Space'!$AM$16:OFFSET('Interior - Space-By-Space'!$AM$65,-1,0)),SUMIF('Interior - Space-By-Space'!$AO$16:OFFSET('Interior - Space-By-Space'!$AO$65,-1,0),$B128,'Interior - Space-By-Space'!$AQ$16:OFFSET('Interior - Space-By-Space'!$AQ$65,-1,0))),IF(ProjectMethod=BAM,SUM('Interior - Building Area Method'!$C139,'Interior - Building Area Method'!$E139,'Interior - Building Area Method'!$G139,'Interior - Building Area Method'!$I139,'Interior - Building Area Method'!$K139),0))+SUM(SUMIF(Exterior!$J$19:$J$53,$B128,Exterior!$K$19:$K$53),SUMIF(Exterior!$M$19:$M$53,$B128,Exterior!$N$19:$N$53),SUMIF(Exterior!$P$19:$P$53,$B128,Exterior!$Q$19:$Q$53),SUMIF(Exterior!$S$19:$S$53,$B128,Exterior!$T$19:$T$53),SUMIF(Exterior!$V$19:$V$53,$B128,Exterior!$W$19:$W$53))","v":0}]
[null,null,null,null,null,null,null,null,{"$f":"IF(ProjectMethod=SBS,SUM(SUMIF('Interior - Space-By-Space'!$M$16:OFFSET('Interior - Space-By-Space'!$M$65,-1,0),$B129,'Interior - Space-By-Space'!$O$16:OFFSET('Interior - Space-By-Space'!$O$65,-1,0)),SUMIF('Interior - Space-By-Space'!$Q$16:OFFSET('Interior - Space-By-Space'!$Q$65,-1,0),$B129,'Interior - Space-By-Space'!$S$16:OFFSET('Interior - Space-By-Space'!$S$65,-1,0)),SUMIF('Interior - Space-By-Space'!$U$16:OFFSET('Interior - Space-By-Space'!$U$65,-1,0),$B129,'Interior - Space-By-Space'!$W$16:OFFSET('Interior - Space-By-Space'!$W$65,-1,0)),SUMIF('Interior - Space-By-Space'!$Y$16:OFFSET('Interior - Space-By-Space'!$Y$65,-1,0),$B129,'Interior - Space-By-Space'!$AA$16:OFFSET('Interior - Space-By-Space'!$AA$65,-1,0)),SUMIF('Interior - Space-By-Space'!$AC$16:OFFSET('Interior - Space-By-Space'!$AC$65,-1,0),$B129,'Interior - Space-By-Space'!$AE$16:OFFSET('Interior - Space-By-Space'!$AE$65,-1,0)),SUMIF('Interior - Space-By-Space'!$AG$16:OFFSET('Interior - Space-By-Space'!$AG$65,-1,0),$B129,'Interior - Space-By-Space'!$AI$16:OFFSET('Interior - Space-By-Space'!$AI$65,-1,0)),SUMIF('Interior - Space-By-Space'!$AK$16:OFFSET('Interior - Space-By-Space'!$AK$65,-1,0),$B129,'Interior - Space-By-Space'!$AM$16:OFFSET('Interior - Space-By-Space'!$AM$65,-1,0)),SUMIF('Interior - Space-By-Space'!$AO$16:OFFSET('Interior - Space-By-Space'!$AO$65,-1,0),$B129,'Interior - Space-By-Space'!$AQ$16:OFFSET('Interior - Space-By-Space'!$AQ$65,-1,0))),IF(ProjectMethod=BAM,SUM('Interior - Building Area Method'!$C140,'Interior - Building Area Method'!$E140,'Interior - Building Area Method'!$G140,'Interior - Building Area Method'!$I140,'Interior - Building Area Method'!$K140),0))+SUM(SUMIF(Exterior!$J$19:$J$53,$B129,Exterior!$K$19:$K$53),SUMIF(Exterior!$M$19:$M$53,$B129,Exterior!$N$19:$N$53),SUMIF(Exterior!$P$19:$P$53,$B129,Exterior!$Q$19:$Q$53),SUMIF(Exterior!$S$19:$S$53,$B129,Exterior!$T$19:$T$53),SUMIF(Exterior!$V$19:$V$53,$B129,Exterior!$W$19:$W$53))","v":0}]
[null,null,null,null,null,null,null,null,{"$f":"IF(ProjectMethod=SBS,SUM(SUMIF('Interior - Space-By-Space'!$M$16:OFFSET('Interior - Space-By-Space'!$M$65,-1,0),$B130,'Interior - Space-By-Space'!$O$16:OFFSET('Interior - Space-By-Space'!$O$65,-1,0)),SUMIF('Interior - Space-By-Space'!$Q$16:OFFSET('Interior - Space-By-Space'!$Q$65,-1,0),$B130,'Interior - Space-By-Space'!$S$16:OFFSET('Interior - Space-By-Space'!$S$65,-1,0)),SUMIF('Interior - Space-By-Space'!$U$16:OFFSET('Interior - Space-By-Space'!$U$65,-1,0),$B130,'Interior - Space-By-Space'!$W$16:OFFSET('Interior - Space-By-Space'!$W$65,-1,0)),SUMIF('Interior - Space-By-Space'!$Y$16:OFFSET('Interior - Space-By-Space'!$Y$65,-1,0),$B130,'Interior - Space-By-Space'!$AA$16:OFFSET('Interior - Space-By-Space'!$AA$65,-1,0)),SUMIF('Interior - Space-By-Space'!$AC$16:OFFSET('Interior - Space-By-Space'!$AC$65,-1,0),$B130,'Interior - Space-By-Space'!$AE$16:OFFSET('Interior - Space-By-Space'!$AE$65,-1,0)),SUMIF('Interior - Space-By-Space'!$AG$16:OFFSET('Interior - Space-By-Space'!$AG$65,-1,0),$B130,'Interior - Space-By-Space'!$AI$16:OFFSET('Interior - Space-By-Space'!$AI$65,-1,0)),SUMIF('Interior - Space-By-Space'!$AK$16:OFFSET('Interior - Space-By-Space'!$AK$65,-1,0),$B130,'Interior - Space-By-Space'!$AM$16:OFFSET('Interior - Space-By-Space'!$AM$65,-1,0)),SUMIF('Interior - Space-By-Space'!$AO$16:OFFSET('Interior - Space-By-Space'!$AO$65,-1,0),$B130,'Interior - Space-By-Space'!$AQ$16:OFFSET('Interior - Space-By-Space'!$AQ$65,-1,0))),IF(ProjectMethod=BAM,SUM('Interior - Building Area Method'!$C141,'Interior - Building Area Method'!$E141,'Interior - Building Area Method'!$G141,'Interior - Building Area Method'!$I141,'Interior - Building Area Method'!$K141),0))+SUM(SUMIF(Exterior!$J$19:$J$53,$B130,Exterior!$K$19:$K$53),SUMIF(Exterior!$M$19:$M$53,$B130,Exterior!$N$19:$N$53),SUMIF(Exterior!$P$19:$P$53,$B130,Exterior!$Q$19:$Q$53),SUMIF(Exterior!$S$19:$S$53,$B130,Exterior!$T$19:$T$53),SUMIF(Exterior!$V$19:$V$53,$B130,Exterior!$W$19:$W$53))","v":0}]
[null,null,null,null,null,null,null,null,{"$f":"IF(ProjectMethod=SBS,SUM(SUMIF('Interior - Space-By-Space'!$M$16:OFFSET('Interior - Space-By-Space'!$M$65,-1,0),$B131,'Interior - Space-By-Space'!$O$16:OFFSET('Interior - Space-By-Space'!$O$65,-1,0)),SUMIF('Interior - Space-By-Space'!$Q$16:OFFSET('Interior - Space-By-Space'!$Q$65,-1,0),$B131,'Interior - Space-By-Space'!$S$16:OFFSET('Interior - Space-By-Space'!$S$65,-1,0)),SUMIF('Interior - Space-By-Space'!$U$16:OFFSET('Interior - Space-By-Space'!$U$65,-1,0),$B131,'Interior - Space-By-Space'!$W$16:OFFSET('Interior - Space-By-Space'!$W$65,-1,0)),SUMIF('Interior - Space-By-Space'!$Y$16:OFFSET('Interior - Space-By-Space'!$Y$65,-1,0),$B131,'Interior - Space-By-Space'!$AA$16:OFFSET('Interior - Space-By-Space'!$AA$65,-1,0)),SUMIF('Interior - Space-By-Space'!$AC$16:OFFSET('Interior - Space-By-Space'!$AC$65,-1,0),$B131,'Interior - Space-By-Space'!$AE$16:OFFSET('Interior - Space-By-Space'!$AE$65,-1,0)),SUMIF('Interior - Space-By-Space'!$AG$16:OFFSET('Interior - Space-By-Space'!$AG$65,-1,0),$B131,'Interior - Space-By-Space'!$AI$16:OFFSET('Interior - Space-By-Space'!$AI$65,-1,0)),SUMIF('Interior - Space-By-Space'!$AK$16:OFFSET('Interior - Space-By-Space'!$AK$65,-1,0),$B131,'Interior - Space-By-Space'!$AM$16:OFFSET('Interior - Space-By-Space'!$AM$65,-1,0)),SUMIF('Interior - Space-By-Space'!$AO$16:OFFSET('Interior - Space-By-Space'!$AO$65,-1,0),$B131,'Interior - Space-By-Space'!$AQ$16:OFFSET('Interior - Space-By-Space'!$AQ$65,-1,0))),IF(ProjectMethod=BAM,SUM('Interior - Building Area Method'!$C142,'Interior - Building Area Method'!$E142,'Interior - Building Area Method'!$G142,'Interior - Building Area Method'!$I142,'Interior - Building Area Method'!$K142),0))+SUM(SUMIF(Exterior!$J$19:$J$53,$B131,Exterior!$K$19:$K$53),SUMIF(Exterior!$M$19:$M$53,$B131,Exterior!$N$19:$N$53),SUMIF(Exterior!$P$19:$P$53,$B131,Exterior!$Q$19:$Q$53),SUMIF(Exterior!$S$19:$S$53,$B131,Exterior!$T$19:$T$53),SUMIF(Exterior!$V$19:$V$53,$B131,Exterior!$W$19:$W$53))","v":0}]
[null,null,null,null,null,null,null,null,{"$f":"IF(ProjectMethod=SBS,SUM(SUMIF('Interior - Space-By-Space'!$M$16:OFFSET('Interior - Space-By-Space'!$M$65,-1,0),$B132,'Interior - Space-By-Space'!$O$16:OFFSET('Interior - Space-By-Space'!$O$65,-1,0)),SUMIF('Interior - Space-By-Space'!$Q$16:OFFSET('Interior - Space-By-Space'!$Q$65,-1,0),$B132,'Interior - Space-By-Space'!$S$16:OFFSET('Interior - Space-By-Space'!$S$65,-1,0)),SUMIF('Interior - Space-By-Space'!$U$16:OFFSET('Interior - Space-By-Space'!$U$65,-1,0),$B132,'Interior - Space-By-Space'!$W$16:OFFSET('Interior - Space-By-Space'!$W$65,-1,0)),SUMIF('Interior - Space-By-Space'!$Y$16:OFFSET('Interior - Space-By-Space'!$Y$65,-1,0),$B132,'Interior - Space-By-Space'!$AA$16:OFFSET('Interior - Space-By-Space'!$AA$65,-1,0)),SUMIF('Interior - Space-By-Space'!$AC$16:OFFSET('Interior - Space-By-Space'!$AC$65,-1,0),$B132,'Interior - Space-By-Space'!$AE$16:OFFSET('Interior - Space-By-Space'!$AE$65,-1,0)),SUMIF('Interior - Space-By-Space'!$AG$16:OFFSET('Interior - Space-By-Space'!$AG$65,-1,0),$B132,'Interior - Space-By-Space'!$AI$16:OFFSET('Interior - Space-By-Space'!$AI$65,-1,0)),SUMIF('Interior - Space-By-Space'!$AK$16:OFFSET('Interior - Space-By-Space'!$AK$65,-1,0),$B132,'Interior - Space-By-Space'!$AM$16:OFFSET('Interior - Space-By-Space'!$AM$65,-1,0)),SUMIF('Interior - Space-By-Space'!$AO$16:OFFSET('Interior - Space-By-Space'!$AO$65,-1,0),$B132,'Interior - Space-By-Space'!$AQ$16:OFFSET('Interior - Space-By-Space'!$AQ$65,-1,0))),IF(ProjectMethod=BAM,SUM('Interior - Building Area Method'!$C143,'Interior - Building Area Method'!$E143,'Interior - Building Area Method'!$G143,'Interior - Building Area Method'!$I143,'Interior - Building Area Method'!$K143),0))+SUM(SUMIF(Exterior!$J$19:$J$53,$B132,Exterior!$K$19:$K$53),SUMIF(Exterior!$M$19:$M$53,$B132,Exterior!$N$19:$N$53),SUMIF(Exterior!$P$19:$P$53,$B132,Exterior!$Q$19:$Q$53),SUMIF(Exterior!$S$19:$S$53,$B132,Exterior!$T$19:$T$53),SUMIF(Exterior!$V$19:$V$53,$B132,Exterior!$W$19:$W$53))","v":0}]
[null,null,null,null,null,null,null,null,{"$f":"IF(ProjectMethod=SBS,SUM(SUMIF('Interior - Space-By-Space'!$M$16:OFFSET('Interior - Space-By-Space'!$M$65,-1,0),$B133,'Interior - Space-By-Space'!$O$16:OFFSET('Interior - Space-By-Space'!$O$65,-1,0)),SUMIF('Interior - Space-By-Space'!$Q$16:OFFSET('Interior - Space-By-Space'!$Q$65,-1,0),$B133,'Interior - Space-By-Space'!$S$16:OFFSET('Interior - Space-By-Space'!$S$65,-1,0)),SUMIF('Interior - Space-By-Space'!$U$16:OFFSET('Interior - Space-By-Space'!$U$65,-1,0),$B133,'Interior - Space-By-Space'!$W$16:OFFSET('Interior - Space-By-Space'!$W$65,-1,0)),SUMIF('Interior - Space-By-Space'!$Y$16:OFFSET('Interior - Space-By-Space'!$Y$65,-1,0),$B133,'Interior - Space-By-Space'!$AA$16:OFFSET('Interior - Space-By-Space'!$AA$65,-1,0)),SUMIF('Interior - Space-By-Space'!$AC$16:OFFSET('Interior - Space-By-Space'!$AC$65,-1,0),$B133,'Interior - Space-By-Space'!$AE$16:OFFSET('Interior - Space-By-Space'!$AE$65,-1,0)),SUMIF('Interior - Space-By-Space'!$AG$16:OFFSET('Interior - Space-By-Space'!$AG$65,-1,0),$B133,'Interior - Space-By-Space'!$AI$16:OFFSET('Interior - Space-By-Space'!$AI$65,-1,0)),SUMIF('Interior - Space-By-Space'!$AK$16:OFFSET('Interior - Space-By-Space'!$AK$65,-1,0),$B133,'Interior - Space-By-Space'!$AM$16:OFFSET('Interior - Space-By-Space'!$AM$65,-1,0)),SUMIF('Interior - Space-By-Space'!$AO$16:OFFSET('Interior - Space-By-Space'!$AO$65,-1,0),$B133,'Interior - Space-By-Space'!$AQ$16:OFFSET('Interior - Space-By-Space'!$AQ$65,-1,0))),IF(ProjectMethod=BAM,SUM('Interior - Building Area Method'!$C144,'Interior - Building Area Method'!$E144,'Interior - Building Area Method'!$G144,'Interior - Building Area Method'!$I144,'Interior - Building Area Method'!$K144),0))+SUM(SUMIF(Exterior!$J$19:$J$53,$B133,Exterior!$K$19:$K$53),SUMIF(Exterior!$M$19:$M$53,$B133,Exterior!$N$19:$N$53),SUMIF(Exterior!$P$19:$P$53,$B133,Exterior!$Q$19:$Q$53),SUMIF(Exterior!$S$19:$S$53,$B133,Exterior!$T$19:$T$53),SUMIF(Exterior!$V$19:$V$53,$B133,Exterior!$W$19:$W$53))","v":0}]
[null,null,null,null,null,null,null,null,{"$f":"IF(ProjectMethod=SBS,SUM(SUMIF('Interior - Space-By-Space'!$M$16:OFFSET('Interior - Space-By-Space'!$M$65,-1,0),$B134,'Interior - Space-By-Space'!$O$16:OFFSET('Interior - Space-By-Space'!$O$65,-1,0)),SUMIF('Interior - Space-By-Space'!$Q$16:OFFSET('Interior - Space-By-Space'!$Q$65,-1,0),$B134,'Interior - Space-By-Space'!$S$16:OFFSET('Interior - Space-By-Space'!$S$65,-1,0)),SUMIF('Interior - Space-By-Space'!$U$16:OFFSET('Interior - Space-By-Space'!$U$65,-1,0),$B134,'Interior - Space-By-Space'!$W$16:OFFSET('Interior - Space-By-Space'!$W$65,-1,0)),SUMIF('Interior - Space-By-Space'!$Y$16:OFFSET('Interior - Space-By-Space'!$Y$65,-1,0),$B134,'Interior - Space-By-Space'!$AA$16:OFFSET('Interior - Space-By-Space'!$AA$65,-1,0)),SUMIF('Interior - Space-By-Space'!$AC$16:OFFSET('Interior - Space-By-Space'!$AC$65,-1,0),$B134,'Interior - Space-By-Space'!$AE$16:OFFSET('Interior - Space-By-Space'!$AE$65,-1,0)),SUMIF('Interior - Space-By-Space'!$AG$16:OFFSET('Interior - Space-By-Space'!$AG$65,-1,0),$B134,'Interior - Space-By-Space'!$AI$16:OFFSET('Interior - Space-By-Space'!$AI$65,-1,0)),SUMIF('Interior - Space-By-Space'!$AK$16:OFFSET('Interior - Space-By-Space'!$AK$65,-1,0),$B134,'Interior - Space-By-Space'!$AM$16:OFFSET('Interior - Space-By-Space'!$AM$65,-1,0)),SUMIF('Interior - Space-By-Space'!$AO$16:OFFSET('Interior - Space-By-Space'!$AO$65,-1,0),$B134,'Interior - Space-By-Space'!$AQ$16:OFFSET('Interior - Space-By-Space'!$AQ$65,-1,0))),IF(ProjectMethod=BAM,SUM('Interior - Building Area Method'!$C145,'Interior - Building Area Method'!$E145,'Interior - Building Area Method'!$G145,'Interior - Building Area Method'!$I145,'Interior - Building Area Method'!$K145),0))+SUM(SUMIF(Exterior!$J$19:$J$53,$B134,Exterior!$K$19:$K$53),SUMIF(Exterior!$M$19:$M$53,$B134,Exterior!$N$19:$N$53),SUMIF(Exterior!$P$19:$P$53,$B134,Exterior!$Q$19:$Q$53),SUMIF(Exterior!$S$19:$S$53,$B134,Exterior!$T$19:$T$53),SUMIF(Exterior!$V$19:$V$53,$B134,Exterior!$W$19:$W$53))","v":0}]
[null,null,null,null,null,null,null,null,{"$f":"IF(ProjectMethod=SBS,SUM(SUMIF('Interior - Space-By-Space'!$M$16:OFFSET('Interior - Space-By-Space'!$M$65,-1,0),$B135,'Interior - Space-By-Space'!$O$16:OFFSET('Interior - Space-By-Space'!$O$65,-1,0)),SUMIF('Interior - Space-By-Space'!$Q$16:OFFSET('Interior - Space-By-Space'!$Q$65,-1,0),$B135,'Interior - Space-By-Space'!$S$16:OFFSET('Interior - Space-By-Space'!$S$65,-1,0)),SUMIF('Interior - Space-By-Space'!$U$16:OFFSET('Interior - Space-By-Space'!$U$65,-1,0),$B135,'Interior - Space-By-Space'!$W$16:OFFSET('Interior - Space-By-Space'!$W$65,-1,0)),SUMIF('Interior - Space-By-Space'!$Y$16:OFFSET('Interior - Space-By-Space'!$Y$65,-1,0),$B135,'Interior - Space-By-Space'!$AA$16:OFFSET('Interior - Space-By-Space'!$AA$65,-1,0)),SUMIF('Interior - Space-By-Space'!$AC$16:OFFSET('Interior - Space-By-Space'!$AC$65,-1,0),$B135,'Interior - Space-By-Space'!$AE$16:OFFSET('Interior - Space-By-Space'!$AE$65,-1,0)),SUMIF('Interior - Space-By-Space'!$AG$16:OFFSET('Interior - Space-By-Space'!$AG$65,-1,0),$B135,'Interior - Space-By-Space'!$AI$16:OFFSET('Interior - Space-By-Space'!$AI$65,-1,0)),SUMIF('Interior - Space-By-Space'!$AK$16:OFFSET('Interior - Space-By-Space'!$AK$65,-1,0),$B135,'Interior - Space-By-Space'!$AM$16:OFFSET('Interior - Space-By-Space'!$AM$65,-1,0)),SUMIF('Interior - Space-By-Space'!$AO$16:OFFSET('Interior - Space-By-Space'!$AO$65,-1,0),$B135,'Interior - Space-By-Space'!$AQ$16:OFFSET('Interior - Space-By-Space'!$AQ$65,-1,0))),IF(ProjectMethod=BAM,SUM('Interior - Building Area Method'!$C146,'Interior - Building Area Method'!$E146,'Interior - Building Area Method'!$G146,'Interior - Building Area Method'!$I146,'Interior - Building Area Method'!$K146),0))+SUM(SUMIF(Exterior!$J$19:$J$53,$B135,Exterior!$K$19:$K$53),SUMIF(Exterior!$M$19:$M$53,$B135,Exterior!$N$19:$N$53),SUMIF(Exterior!$P$19:$P$53,$B135,Exterior!$Q$19:$Q$53),SUMIF(Exterior!$S$19:$S$53,$B135,Exterior!$T$19:$T$53),SUMIF(Exterior!$V$19:$V$53,$B135,Exterior!$W$19:$W$53))","v":0}]
[null,null,null,null,null,null,null,null,{"$f":"IF(ProjectMethod=SBS,SUM(SUMIF('Interior - Space-By-Space'!$M$16:OFFSET('Interior - Space-By-Space'!$M$65,-1,0),$B136,'Interior - Space-By-Space'!$O$16:OFFSET('Interior - Space-By-Space'!$O$65,-1,0)),SUMIF('Interior - Space-By-Space'!$Q$16:OFFSET('Interior - Space-By-Space'!$Q$65,-1,0),$B136,'Interior - Space-By-Space'!$S$16:OFFSET('Interior - Space-By-Space'!$S$65,-1,0)),SUMIF('Interior - Space-By-Space'!$U$16:OFFSET('Interior - Space-By-Space'!$U$65,-1,0),$B136,'Interior - Space-By-Space'!$W$16:OFFSET('Interior - Space-By-Space'!$W$65,-1,0)),SUMIF('Interior - Space-By-Space'!$Y$16:OFFSET('Interior - Space-By-Space'!$Y$65,-1,0),$B136,'Interior - Space-By-Space'!$AA$16:OFFSET('Interior - Space-By-Space'!$AA$65,-1,0)),SUMIF('Interior - Space-By-Space'!$AC$16:OFFSET('Interior - Space-By-Space'!$AC$65,-1,0),$B136,'Interior - Space-By-Space'!$AE$16:OFFSET('Interior - Space-By-Space'!$AE$65,-1,0)),SUMIF('Interior - Space-By-Space'!$AG$16:OFFSET('Interior - Space-By-Space'!$AG$65,-1,0),$B136,'Interior - Space-By-Space'!$AI$16:OFFSET('Interior - Space-By-Space'!$AI$65,-1,0)),SUMIF('Interior - Space-By-Space'!$AK$16:OFFSET('Interior - Space-By-Space'!$AK$65,-1,0),$B136,'Interior - Space-By-Space'!$AM$16:OFFSET('Interior - Space-By-Space'!$AM$65,-1,0)),SUMIF('Interior - Space-By-Space'!$AO$16:OFFSET('Interior - Space-By-Space'!$AO$65,-1,0),$B136,'Interior - Space-By-Space'!$AQ$16:OFFSET('Interior - Space-By-Space'!$AQ$65,-1,0))),IF(ProjectMethod=BAM,SUM('Interior - Building Area Method'!$C147,'Interior - Building Area Method'!$E147,'Interior - Building Area Method'!$G147,'Interior - Building Area Method'!$I147,'Interior - Building Area Method'!$K147),0))+SUM(SUMIF(Exterior!$J$19:$J$53,$B136,Exterior!$K$19:$K$53),SUMIF(Exterior!$M$19:$M$53,$B136,Exterior!$N$19:$N$53),SUMIF(Exterior!$P$19:$P$53,$B136,Exterior!$Q$19:$Q$53),SUMIF(Exterior!$S$19:$S$53,$B136,Exterior!$T$19:$T$53),SUMIF(Exterior!$V$19:$V$53,$B136,Exterior!$W$19:$W$53))","v":0}]
[null,null,null,null,null,null,null,null,{"$f":"IF(ProjectMethod=SBS,SUM(SUMIF('Interior - Space-By-Space'!$M$16:OFFSET('Interior - Space-By-Space'!$M$65,-1,0),$B137,'Interior - Space-By-Space'!$O$16:OFFSET('Interior - Space-By-Space'!$O$65,-1,0)),SUMIF('Interior - Space-By-Space'!$Q$16:OFFSET('Interior - Space-By-Space'!$Q$65,-1,0),$B137,'Interior - Space-By-Space'!$S$16:OFFSET('Interior - Space-By-Space'!$S$65,-1,0)),SUMIF('Interior - Space-By-Space'!$U$16:OFFSET('Interior - Space-By-Space'!$U$65,-1,0),$B137,'Interior - Space-By-Space'!$W$16:OFFSET('Interior - Space-By-Space'!$W$65,-1,0)),SUMIF('Interior - Space-By-Space'!$Y$16:OFFSET('Interior - Space-By-Space'!$Y$65,-1,0),$B137,'Interior - Space-By-Space'!$AA$16:OFFSET('Interior - Space-By-Space'!$AA$65,-1,0)),SUMIF('Interior - Space-By-Space'!$AC$16:OFFSET('Interior - Space-By-Space'!$AC$65,-1,0),$B137,'Interior - Space-By-Space'!$AE$16:OFFSET('Interior - Space-By-Space'!$AE$65,-1,0)),SUMIF('Interior - Space-By-Space'!$AG$16:OFFSET('Interior - Space-By-Space'!$AG$65,-1,0),$B137,'Interior - Space-By-Space'!$AI$16:OFFSET('Interior - Space-By-Space'!$AI$65,-1,0)),SUMIF('Interior - Space-By-Space'!$AK$16:OFFSET('Interior - Space-By-Space'!$AK$65,-1,0),$B137,'Interior - Space-By-Space'!$AM$16:OFFSET('Interior - Space-By-Space'!$AM$65,-1,0)),SUMIF('Interior - Space-By-Space'!$AO$16:OFFSET('Interior - Space-By-Space'!$AO$65,-1,0),$B137,'Interior - Space-By-Space'!$AQ$16:OFFSET('Interior - Space-By-Space'!$AQ$65,-1,0))),IF(ProjectMethod=BAM,SUM('Interior - Building Area Method'!$C148,'Interior - Building Area Method'!$E148,'Interior - Building Area Method'!$G148,'Interior - Building Area Method'!$I148,'Interior - Building Area Method'!$K148),0))+SUM(SUMIF(Exterior!$J$19:$J$53,$B137,Exterior!$K$19:$K$53),SUMIF(Exterior!$M$19:$M$53,$B137,Exterior!$N$19:$N$53),SUMIF(Exterior!$P$19:$P$53,$B137,Exterior!$Q$19:$Q$53),SUMIF(Exterior!$S$19:$S$53,$B137,Exterior!$T$19:$T$53),SUMIF(Exterior!$V$19:$V$53,$B137,Exterior!$W$19:$W$53))","v":0}]
[null,null,null,null,null,null,null,null,{"$f":"IF(ProjectMethod=SBS,SUM(SUMIF('Interior - Space-By-Space'!$M$16:OFFSET('Interior - Space-By-Space'!$M$65,-1,0),$B138,'Interior - Space-By-Space'!$O$16:OFFSET('Interior - Space-By-Space'!$O$65,-1,0)),SUMIF('Interior - Space-By-Space'!$Q$16:OFFSET('Interior - Space-By-Space'!$Q$65,-1,0),$B138,'Interior - Space-By-Space'!$S$16:OFFSET('Interior - Space-By-Space'!$S$65,-1,0)),SUMIF('Interior - Space-By-Space'!$U$16:OFFSET('Interior - Space-By-Space'!$U$65,-1,0),$B138,'Interior - Space-By-Space'!$W$16:OFFSET('Interior - Space-By-Space'!$W$65,-1,0)),SUMIF('Interior - Space-By-Space'!$Y$16:OFFSET('Interior - Space-By-Space'!$Y$65,-1,0),$B138,'Interior - Space-By-Space'!$AA$16:OFFSET('Interior - Space-By-Space'!$AA$65,-1,0)),SUMIF('Interior - Space-By-Space'!$AC$16:OFFSET('Interior - Space-By-Space'!$AC$65,-1,0),$B138,'Interior - Space-By-Space'!$AE$16:OFFSET('Interior - Space-By-Space'!$AE$65,-1,0)),SUMIF('Interior - Space-By-Space'!$AG$16:OFFSET('Interior - Space-By-Space'!$AG$65,-1,0),$B138,'Interior - Space-By-Space'!$AI$16:OFFSET('Interior - Space-By-Space'!$AI$65,-1,0)),SUMIF('Interior - Space-By-Space'!$AK$16:OFFSET('Interior - Space-By-Space'!$AK$65,-1,0),$B138,'Interior - Space-By-Space'!$AM$16:OFFSET('Interior - Space-By-Space'!$AM$65,-1,0)),SUMIF('Interior - Space-By-Space'!$AO$16:OFFSET('Interior - Space-By-Space'!$AO$65,-1,0),$B138,'Interior - Space-By-Space'!$AQ$16:OFFSET('Interior - Space-By-Space'!$AQ$65,-1,0))),IF(ProjectMethod=BAM,SUM('Interior - Building Area Method'!$C149,'Interior - Building Area Method'!$E149,'Interior - Building Area Method'!$G149,'Interior - Building Area Method'!$I149,'Interior - Building Area Method'!$K149),0))+SUM(SUMIF(Exterior!$J$19:$J$53,$B138,Exterior!$K$19:$K$53),SUMIF(Exterior!$M$19:$M$53,$B138,Exterior!$N$19:$N$53),SUMIF(Exterior!$P$19:$P$53,$B138,Exterior!$Q$19:$Q$53),SUMIF(Exterior!$S$19:$S$53,$B138,Exterior!$T$19:$T$53),SUMIF(Exterior!$V$19:$V$53,$B138,Exterior!$W$19:$W$53))","v":0}]
[null,null,null,null,null,null,null,null,{"$f":"IF(ProjectMethod=SBS,SUM(SUMIF('Interior - Space-By-Space'!$M$16:OFFSET('Interior - Space-By-Space'!$M$65,-1,0),$B139,'Interior - Space-By-Space'!$O$16:OFFSET('Interior - Space-By-Space'!$O$65,-1,0)),SUMIF('Interior - Space-By-Space'!$Q$16:OFFSET('Interior - Space-By-Space'!$Q$65,-1,0),$B139,'Interior - Space-By-Space'!$S$16:OFFSET('Interior - Space-By-Space'!$S$65,-1,0)),SUMIF('Interior - Space-By-Space'!$U$16:OFFSET('Interior - Space-By-Space'!$U$65,-1,0),$B139,'Interior - Space-By-Space'!$W$16:OFFSET('Interior - Space-By-Space'!$W$65,-1,0)),SUMIF('Interior - Space-By-Space'!$Y$16:OFFSET('Interior - Space-By-Space'!$Y$65,-1,0),$B139,'Interior - Space-By-Space'!$AA$16:OFFSET('Interior - Space-By-Space'!$AA$65,-1,0)),SUMIF('Interior - Space-By-Space'!$AC$16:OFFSET('Interior - Space-By-Space'!$AC$65,-1,0),$B139,'Interior - Space-By-Space'!$AE$16:OFFSET('Interior - Space-By-Space'!$AE$65,-1,0)),SUMIF('Interior - Space-By-Space'!$AG$16:OFFSET('Interior - Space-By-Space'!$AG$65,-1,0),$B139,'Interior - Space-By-Space'!$AI$16:OFFSET('Interior - Space-By-Space'!$AI$65,-1,0)),SUMIF('Interior - Space-By-Space'!$AK$16:OFFSET('Interior - Space-By-Space'!$AK$65,-1,0),$B139,'Interior - Space-By-Space'!$AM$16:OFFSET('Interior - Space-By-Space'!$AM$65,-1,0)),SUMIF('Interior - Space-By-Space'!$AO$16:OFFSET('Interior - Space-By-Space'!$AO$65,-1,0),$B139,'Interior - Space-By-Space'!$AQ$16:OFFSET('Interior - Space-By-Space'!$AQ$65,-1,0))),IF(ProjectMethod=BAM,SUM('Interior - Building Area Method'!$C150,'Interior - Building Area Method'!$E150,'Interior - Building Area Method'!$G150,'Interior - Building Area Method'!$I150,'Interior - Building Area Method'!$K150),0))+SUM(SUMIF(Exterior!$J$19:$J$53,$B139,Exterior!$K$19:$K$53),SUMIF(Exterior!$M$19:$M$53,$B139,Exterior!$N$19:$N$53),SUMIF(Exterior!$P$19:$P$53,$B139,Exterior!$Q$19:$Q$53),SUMIF(Exterior!$S$19:$S$53,$B139,Exterior!$T$19:$T$53),SUMIF(Exterior!$V$19:$V$53,$B139,Exterior!$W$19:$W$53))","v":0}]
[null,null,null,null,null,null,null,null,{"$f":"IF(ProjectMethod=SBS,SUM(SUMIF('Interior - Space-By-Space'!$M$16:OFFSET('Interior - Space-By-Space'!$M$65,-1,0),$B140,'Interior - Space-By-Space'!$O$16:OFFSET('Interior - Space-By-Space'!$O$65,-1,0)),SUMIF('Interior - Space-By-Space'!$Q$16:OFFSET('Interior - Space-By-Space'!$Q$65,-1,0),$B140,'Interior - Space-By-Space'!$S$16:OFFSET('Interior - Space-By-Space'!$S$65,-1,0)),SUMIF('Interior - Space-By-Space'!$U$16:OFFSET('Interior - Space-By-Space'!$U$65,-1,0),$B140,'Interior - Space-By-Space'!$W$16:OFFSET('Interior - Space-By-Space'!$W$65,-1,0)),SUMIF('Interior - Space-By-Space'!$Y$16:OFFSET('Interior - Space-By-Space'!$Y$65,-1,0),$B140,'Interior - Space-By-Space'!$AA$16:OFFSET('Interior - Space-By-Space'!$AA$65,-1,0)),SUMIF('Interior - Space-By-Space'!$AC$16:OFFSET('Interior - Space-By-Space'!$AC$65,-1,0),$B140,'Interior - Space-By-Space'!$AE$16:OFFSET('Interior - Space-By-Space'!$AE$65,-1,0)),SUMIF('Interior - Space-By-Space'!$AG$16:OFFSET('Interior - Space-By-Space'!$AG$65,-1,0),$B140,'Interior - Space-By-Space'!$AI$16:OFFSET('Interior - Space-By-Space'!$AI$65,-1,0)),SUMIF('Interior - Space-By-Space'!$AK$16:OFFSET('Interior - Space-By-Space'!$AK$65,-1,0),$B140,'Interior - Space-By-Space'!$AM$16:OFFSET('Interior - Space-By-Space'!$AM$65,-1,0)),SUMIF('Interior - Space-By-Space'!$AO$16:OFFSET('Interior - Space-By-Space'!$AO$65,-1,0),$B140,'Interior - Space-By-Space'!$AQ$16:OFFSET('Interior - Space-By-Space'!$AQ$65,-1,0))),IF(ProjectMethod=BAM,SUM('Interior - Building Area Method'!$C151,'Interior - Building Area Method'!$E151,'Interior - Building Area Method'!$G151,'Interior - Building Area Method'!$I151,'Interior - Building Area Method'!$K151),0))+SUM(SUMIF(Exterior!$J$19:$J$53,$B140,Exterior!$K$19:$K$53),SUMIF(Exterior!$M$19:$M$53,$B140,Exterior!$N$19:$N$53),SUMIF(Exterior!$P$19:$P$53,$B140,Exterior!$Q$19:$Q$53),SUMIF(Exterior!$S$19:$S$53,$B140,Exterior!$T$19:$T$53),SUMIF(Exterior!$V$19:$V$53,$B140,Exterior!$W$19:$W$53))","v":0}]
[null,null,null,null,null,null,null,null,{"$f":"IF(ProjectMethod=SBS,SUM(SUMIF('Interior - Space-By-Space'!$M$16:OFFSET('Interior - Space-By-Space'!$M$65,-1,0),$B141,'Interior - Space-By-Space'!$O$16:OFFSET('Interior - Space-By-Space'!$O$65,-1,0)),SUMIF('Interior - Space-By-Space'!$Q$16:OFFSET('Interior - Space-By-Space'!$Q$65,-1,0),$B141,'Interior - Space-By-Space'!$S$16:OFFSET('Interior - Space-By-Space'!$S$65,-1,0)),SUMIF('Interior - Space-By-Space'!$U$16:OFFSET('Interior - Space-By-Space'!$U$65,-1,0),$B141,'Interior - Space-By-Space'!$W$16:OFFSET('Interior - Space-By-Space'!$W$65,-1,0)),SUMIF('Interior - Space-By-Space'!$Y$16:OFFSET('Interior - Space-By-Space'!$Y$65,-1,0),$B141,'Interior - Space-By-Space'!$AA$16:OFFSET('Interior - Space-By-Space'!$AA$65,-1,0)),SUMIF('Interior - Space-By-Space'!$AC$16:OFFSET('Interior - Space-By-Space'!$AC$65,-1,0),$B141,'Interior - Space-By-Space'!$AE$16:OFFSET('Interior - Space-By-Space'!$AE$65,-1,0)),SUMIF('Interior - Space-By-Space'!$AG$16:OFFSET('Interior - Space-By-Space'!$AG$65,-1,0),$B141,'Interior - Space-By-Space'!$AI$16:OFFSET('Interior - Space-By-Space'!$AI$65,-1,0)),SUMIF('Interior - Space-By-Space'!$AK$16:OFFSET('Interior - Space-By-Space'!$AK$65,-1,0),$B141,'Interior - Space-By-Space'!$AM$16:OFFSET('Interior - Space-By-Space'!$AM$65,-1,0)),SUMIF('Interior - Space-By-Space'!$AO$16:OFFSET('Interior - Space-By-Space'!$AO$65,-1,0),$B141,'Interior - Space-By-Space'!$AQ$16:OFFSET('Interior - Space-By-Space'!$AQ$65,-1,0))),IF(ProjectMethod=BAM,SUM('Interior - Building Area Method'!$C152,'Interior - Building Area Method'!$E152,'Interior - Building Area Method'!$G152,'Interior - Building Area Method'!$I152,'Interior - Building Area Method'!$K152),0))+SUM(SUMIF(Exterior!$J$19:$J$53,$B141,Exterior!$K$19:$K$53),SUMIF(Exterior!$M$19:$M$53,$B141,Exterior!$N$19:$N$53),SUMIF(Exterior!$P$19:$P$53,$B141,Exterior!$Q$19:$Q$53),SUMIF(Exterior!$S$19:$S$53,$B141,Exterior!$T$19:$T$53),SUMIF(Exterior!$V$19:$V$53,$B141,Exterior!$W$19:$W$53))","v":0}]
[null,null,null,null,null,null,null,null,{"$f":"IF(ProjectMethod=SBS,SUM(SUMIF('Interior - Space-By-Space'!$M$16:OFFSET('Interior - Space-By-Space'!$M$65,-1,0),$B142,'Interior - Space-By-Space'!$O$16:OFFSET('Interior - Space-By-Space'!$O$65,-1,0)),SUMIF('Interior - Space-By-Space'!$Q$16:OFFSET('Interior - Space-By-Space'!$Q$65,-1,0),$B142,'Interior - Space-By-Space'!$S$16:OFFSET('Interior - Space-By-Space'!$S$65,-1,0)),SUMIF('Interior - Space-By-Space'!$U$16:OFFSET('Interior - Space-By-Space'!$U$65,-1,0),$B142,'Interior - Space-By-Space'!$W$16:OFFSET('Interior - Space-By-Space'!$W$65,-1,0)),SUMIF('Interior - Space-By-Space'!$Y$16:OFFSET('Interior - Space-By-Space'!$Y$65,-1,0),$B142,'Interior - Space-By-Space'!$AA$16:OFFSET('Interior - Space-By-Space'!$AA$65,-1,0)),SUMIF('Interior - Space-By-Space'!$AC$16:OFFSET('Interior - Space-By-Space'!$AC$65,-1,0),$B142,'Interior - Space-By-Space'!$AE$16:OFFSET('Interior - Space-By-Space'!$AE$65,-1,0)),SUMIF('Interior - Space-By-Space'!$AG$16:OFFSET('Interior - Space-By-Space'!$AG$65,-1,0),$B142,'Interior - Space-By-Space'!$AI$16:OFFSET('Interior - Space-By-Space'!$AI$65,-1,0)),SUMIF('Interior - Space-By-Space'!$AK$16:OFFSET('Interior - Space-By-Space'!$AK$65,-1,0),$B142,'Interior - Space-By-Space'!$AM$16:OFFSET('Interior - Space-By-Space'!$AM$65,-1,0)),SUMIF('Interior - Space-By-Space'!$AO$16:OFFSET('Interior - Space-By-Space'!$AO$65,-1,0),$B142,'Interior - Space-By-Space'!$AQ$16:OFFSET('Interior - Space-By-Space'!$AQ$65,-1,0))),IF(ProjectMethod=BAM,SUM('Interior - Building Area Method'!$C153,'Interior - Building Area Method'!$E153,'Interior - Building Area Method'!$G153,'Interior - Building Area Method'!$I153,'Interior - Building Area Method'!$K153),0))+SUM(SUMIF(Exterior!$J$19:$J$53,$B142,Exterior!$K$19:$K$53),SUMIF(Exterior!$M$19:$M$53,$B142,Exterior!$N$19:$N$53),SUMIF(Exterior!$P$19:$P$53,$B142,Exterior!$Q$19:$Q$53),SUMIF(Exterior!$S$19:$S$53,$B142,Exterior!$T$19:$T$53),SUMIF(Exterior!$V$19:$V$53,$B142,Exterior!$W$19:$W$53))","v":0}]
[null,null,null,null,null,null,null,null,{"$f":"IF(ProjectMethod=SBS,SUM(SUMIF('Interior - Space-By-Space'!$M$16:OFFSET('Interior - Space-By-Space'!$M$65,-1,0),$B143,'Interior - Space-By-Space'!$O$16:OFFSET('Interior - Space-By-Space'!$O$65,-1,0)),SUMIF('Interior - Space-By-Space'!$Q$16:OFFSET('Interior - Space-By-Space'!$Q$65,-1,0),$B143,'Interior - Space-By-Space'!$S$16:OFFSET('Interior - Space-By-Space'!$S$65,-1,0)),SUMIF('Interior - Space-By-Space'!$U$16:OFFSET('Interior - Space-By-Space'!$U$65,-1,0),$B143,'Interior - Space-By-Space'!$W$16:OFFSET('Interior - Space-By-Space'!$W$65,-1,0)),SUMIF('Interior - Space-By-Space'!$Y$16:OFFSET('Interior - Space-By-Space'!$Y$65,-1,0),$B143,'Interior - Space-By-Space'!$AA$16:OFFSET('Interior - Space-By-Space'!$AA$65,-1,0)),SUMIF('Interior - Space-By-Space'!$AC$16:OFFSET('Interior - Space-By-Space'!$AC$65,-1,0),$B143,'Interior - Space-By-Space'!$AE$16:OFFSET('Interior - Space-By-Space'!$AE$65,-1,0)),SUMIF('Interior - Space-By-Space'!$AG$16:OFFSET('Interior - Space-By-Space'!$AG$65,-1,0),$B143,'Interior - Space-By-Space'!$AI$16:OFFSET('Interior - Space-By-Space'!$AI$65,-1,0)),SUMIF('Interior - Space-By-Space'!$AK$16:OFFSET('Interior - Space-By-Space'!$AK$65,-1,0),$B143,'Interior - Space-By-Space'!$AM$16:OFFSET('Interior - Space-By-Space'!$AM$65,-1,0)),SUMIF('Interior - Space-By-Space'!$AO$16:OFFSET('Interior - Space-By-Space'!$AO$65,-1,0),$B143,'Interior - Space-By-Space'!$AQ$16:OFFSET('Interior - Space-By-Space'!$AQ$65,-1,0))),IF(ProjectMethod=BAM,SUM('Interior - Building Area Method'!$C154,'Interior - Building Area Method'!$E154,'Interior - Building Area Method'!$G154,'Interior - Building Area Method'!$I154,'Interior - Building Area Method'!$K154),0))+SUM(SUMIF(Exterior!$J$19:$J$53,$B143,Exterior!$K$19:$K$53),SUMIF(Exterior!$M$19:$M$53,$B143,Exterior!$N$19:$N$53),SUMIF(Exterior!$P$19:$P$53,$B143,Exterior!$Q$19:$Q$53),SUMIF(Exterior!$S$19:$S$53,$B143,Exterior!$T$19:$T$53),SUMIF(Exterior!$V$19:$V$53,$B143,Exterior!$W$19:$W$53))","v":0}]
[null,null,null,null,null,null,null,null,{"$f":"IF(ProjectMethod=SBS,SUM(SUMIF('Interior - Space-By-Space'!$M$16:OFFSET('Interior - Space-By-Space'!$M$65,-1,0),$B144,'Interior - Space-By-Space'!$O$16:OFFSET('Interior - Space-By-Space'!$O$65,-1,0)),SUMIF('Interior - Space-By-Space'!$Q$16:OFFSET('Interior - Space-By-Space'!$Q$65,-1,0),$B144,'Interior - Space-By-Space'!$S$16:OFFSET('Interior - Space-By-Space'!$S$65,-1,0)),SUMIF('Interior - Space-By-Space'!$U$16:OFFSET('Interior - Space-By-Space'!$U$65,-1,0),$B144,'Interior - Space-By-Space'!$W$16:OFFSET('Interior - Space-By-Space'!$W$65,-1,0)),SUMIF('Interior - Space-By-Space'!$Y$16:OFFSET('Interior - Space-By-Space'!$Y$65,-1,0),$B144,'Interior - Space-By-Space'!$AA$16:OFFSET('Interior - Space-By-Space'!$AA$65,-1,0)),SUMIF('Interior - Space-By-Space'!$AC$16:OFFSET('Interior - Space-By-Space'!$AC$65,-1,0),$B144,'Interior - Space-By-Space'!$AE$16:OFFSET('Interior - Space-By-Space'!$AE$65,-1,0)),SUMIF('Interior - Space-By-Space'!$AG$16:OFFSET('Interior - Space-By-Space'!$AG$65,-1,0),$B144,'Interior - Space-By-Space'!$AI$16:OFFSET('Interior - Space-By-Space'!$AI$65,-1,0)),SUMIF('Interior - Space-By-Space'!$AK$16:OFFSET('Interior - Space-By-Space'!$AK$65,-1,0),$B144,'Interior - Space-By-Space'!$AM$16:OFFSET('Interior - Space-By-Space'!$AM$65,-1,0)),SUMIF('Interior - Space-By-Space'!$AO$16:OFFSET('Interior - Space-By-Space'!$AO$65,-1,0),$B144,'Interior - Space-By-Space'!$AQ$16:OFFSET('Interior - Space-By-Space'!$AQ$65,-1,0))),IF(ProjectMethod=BAM,SUM('Interior - Building Area Method'!$C155,'Interior - Building Area Method'!$E155,'Interior - Building Area Method'!$G155,'Interior - Building Area Method'!$I155,'Interior - Building Area Method'!$K155),0))+SUM(SUMIF(Exterior!$J$19:$J$53,$B144,Exterior!$K$19:$K$53),SUMIF(Exterior!$M$19:$M$53,$B144,Exterior!$N$19:$N$53),SUMIF(Exterior!$P$19:$P$53,$B144,Exterior!$Q$19:$Q$53),SUMIF(Exterior!$S$19:$S$53,$B144,Exterior!$T$19:$T$53),SUMIF(Exterior!$V$19:$V$53,$B144,Exterior!$W$19:$W$53))","v":0}]
[null,null,null,null,null,null,null,null,{"$f":"IF(ProjectMethod=SBS,SUM(SUMIF('Interior - Space-By-Space'!$M$16:OFFSET('Interior - Space-By-Space'!$M$65,-1,0),$B145,'Interior - Space-By-Space'!$O$16:OFFSET('Interior - Space-By-Space'!$O$65,-1,0)),SUMIF('Interior - Space-By-Space'!$Q$16:OFFSET('Interior - Space-By-Space'!$Q$65,-1,0),$B145,'Interior - Space-By-Space'!$S$16:OFFSET('Interior - Space-By-Space'!$S$65,-1,0)),SUMIF('Interior - Space-By-Space'!$U$16:OFFSET('Interior - Space-By-Space'!$U$65,-1,0),$B145,'Interior - Space-By-Space'!$W$16:OFFSET('Interior - Space-By-Space'!$W$65,-1,0)),SUMIF('Interior - Space-By-Space'!$Y$16:OFFSET('Interior - Space-By-Space'!$Y$65,-1,0),$B145,'Interior - Space-By-Space'!$AA$16:OFFSET('Interior - Space-By-Space'!$AA$65,-1,0)),SUMIF('Interior - Space-By-Space'!$AC$16:OFFSET('Interior - Space-By-Space'!$AC$65,-1,0),$B145,'Interior - Space-By-Space'!$AE$16:OFFSET('Interior - Space-By-Space'!$AE$65,-1,0)),SUMIF('Interior - Space-By-Space'!$AG$16:OFFSET('Interior - Space-By-Space'!$AG$65,-1,0),$B145,'Interior - Space-By-Space'!$AI$16:OFFSET('Interior - Space-By-Space'!$AI$65,-1,0)),SUMIF('Interior - Space-By-Space'!$AK$16:OFFSET('Interior - Space-By-Space'!$AK$65,-1,0),$B145,'Interior - Space-By-Space'!$AM$16:OFFSET('Interior - Space-By-Space'!$AM$65,-1,0)),SUMIF('Interior - Space-By-Space'!$AO$16:OFFSET('Interior - Space-By-Space'!$AO$65,-1,0),$B145,'Interior - Space-By-Space'!$AQ$16:OFFSET('Interior - Space-By-Space'!$AQ$65,-1,0))),IF(ProjectMethod=BAM,SUM('Interior - Building Area Method'!$C156,'Interior - Building Area Method'!$E156,'Interior - Building Area Method'!$G156,'Interior - Building Area Method'!$I156,'Interior - Building Area Method'!$K156),0))+SUM(SUMIF(Exterior!$J$19:$J$53,$B145,Exterior!$K$19:$K$53),SUMIF(Exterior!$M$19:$M$53,$B145,Exterior!$N$19:$N$53),SUMIF(Exterior!$P$19:$P$53,$B145,Exterior!$Q$19:$Q$53),SUMIF(Exterior!$S$19:$S$53,$B145,Exterior!$T$19:$T$53),SUMIF(Exterior!$V$19:$V$53,$B145,Exterior!$W$19:$W$53))","v":0}]
[null,null,null,null,null,null,null,null,{"$f":"IF(ProjectMethod=SBS,SUM(SUMIF('Interior - Space-By-Space'!$M$16:OFFSET('Interior - Space-By-Space'!$M$65,-1,0),$B146,'Interior - Space-By-Space'!$O$16:OFFSET('Interior - Space-By-Space'!$O$65,-1,0)),SUMIF('Interior - Space-By-Space'!$Q$16:OFFSET('Interior - Space-By-Space'!$Q$65,-1,0),$B146,'Interior - Space-By-Space'!$S$16:OFFSET('Interior - Space-By-Space'!$S$65,-1,0)),SUMIF('Interior - Space-By-Space'!$U$16:OFFSET('Interior - Space-By-Space'!$U$65,-1,0),$B146,'Interior - Space-By-Space'!$W$16:OFFSET('Interior - Space-By-Space'!$W$65,-1,0)),SUMIF('Interior - Space-By-Space'!$Y$16:OFFSET('Interior - Space-By-Space'!$Y$65,-1,0),$B146,'Interior - Space-By-Space'!$AA$16:OFFSET('Interior - Space-By-Space'!$AA$65,-1,0)),SUMIF('Interior - Space-By-Space'!$AC$16:OFFSET('Interior - Space-By-Space'!$AC$65,-1,0),$B146,'Interior - Space-By-Space'!$AE$16:OFFSET('Interior - Space-By-Space'!$AE$65,-1,0)),SUMIF('Interior - Space-By-Space'!$AG$16:OFFSET('Interior - Space-By-Space'!$AG$65,-1,0),$B146,'Interior - Space-By-Space'!$AI$16:OFFSET('Interior - Space-By-Space'!$AI$65,-1,0)),SUMIF('Interior - Space-By-Space'!$AK$16:OFFSET('Interior - Space-By-Space'!$AK$65,-1,0),$B146,'Interior - Space-By-Space'!$AM$16:OFFSET('Interior - Space-By-Space'!$AM$65,-1,0)),SUMIF('Interior - Space-By-Space'!$AO$16:OFFSET('Interior - Space-By-Space'!$AO$65,-1,0),$B146,'Interior - Space-By-Space'!$AQ$16:OFFSET('Interior - Space-By-Space'!$AQ$65,-1,0))),IF(ProjectMethod=BAM,SUM('Interior - Building Area Method'!$C157,'Interior - Building Area Method'!$E157,'Interior - Building Area Method'!$G157,'Interior - Building Area Method'!$I157,'Interior - Building Area Method'!$K157),0))+SUM(SUMIF(Exterior!$J$19:$J$53,$B146,Exterior!$K$19:$K$53),SUMIF(Exterior!$M$19:$M$53,$B146,Exterior!$N$19:$N$53),SUMIF(Exterior!$P$19:$P$53,$B146,Exterior!$Q$19:$Q$53),SUMIF(Exterior!$S$19:$S$53,$B146,Exterior!$T$19:$T$53),SUMIF(Exterior!$V$19:$V$53,$B146,Exterior!$W$19:$W$53))","v":0}]
[null,null,null,null,null,null,null,null,{"$f":"IF(ProjectMethod=SBS,SUM(SUMIF('Interior - Space-By-Space'!$M$16:OFFSET('Interior - Space-By-Space'!$M$65,-1,0),$B147,'Interior - Space-By-Space'!$O$16:OFFSET('Interior - Space-By-Space'!$O$65,-1,0)),SUMIF('Interior - Space-By-Space'!$Q$16:OFFSET('Interior - Space-By-Space'!$Q$65,-1,0),$B147,'Interior - Space-By-Space'!$S$16:OFFSET('Interior - Space-By-Space'!$S$65,-1,0)),SUMIF('Interior - Space-By-Space'!$U$16:OFFSET('Interior - Space-By-Space'!$U$65,-1,0),$B147,'Interior - Space-By-Space'!$W$16:OFFSET('Interior - Space-By-Space'!$W$65,-1,0)),SUMIF('Interior - Space-By-Space'!$Y$16:OFFSET('Interior - Space-By-Space'!$Y$65,-1,0),$B147,'Interior - Space-By-Space'!$AA$16:OFFSET('Interior - Space-By-Space'!$AA$65,-1,0)),SUMIF('Interior - Space-By-Space'!$AC$16:OFFSET('Interior - Space-By-Space'!$AC$65,-1,0),$B147,'Interior - Space-By-Space'!$AE$16:OFFSET('Interior - Space-By-Space'!$AE$65,-1,0)),SUMIF('Interior - Space-By-Space'!$AG$16:OFFSET('Interior - Space-By-Space'!$AG$65,-1,0),$B147,'Interior - Space-By-Space'!$AI$16:OFFSET('Interior - Space-By-Space'!$AI$65,-1,0)),SUMIF('Interior - Space-By-Space'!$AK$16:OFFSET('Interior - Space-By-Space'!$AK$65,-1,0),$B147,'Interior - Space-By-Space'!$AM$16:OFFSET('Interior - Space-By-Space'!$AM$65,-1,0)),SUMIF('Interior - Space-By-Space'!$AO$16:OFFSET('Interior - Space-By-Space'!$AO$65,-1,0),$B147,'Interior - Space-By-Space'!$AQ$16:OFFSET('Interior - Space-By-Space'!$AQ$65,-1,0))),IF(ProjectMethod=BAM,SUM('Interior - Building Area Method'!$C158,'Interior - Building Area Method'!$E158,'Interior - Building Area Method'!$G158,'Interior - Building Area Method'!$I158,'Interior - Building Area Method'!$K158),0))+SUM(SUMIF(Exterior!$J$19:$J$53,$B147,Exterior!$K$19:$K$53),SUMIF(Exterior!$M$19:$M$53,$B147,Exterior!$N$19:$N$53),SUMIF(Exterior!$P$19:$P$53,$B147,Exterior!$Q$19:$Q$53),SUMIF(Exterior!$S$19:$S$53,$B147,Exterior!$T$19:$T$53),SUMIF(Exterior!$V$19:$V$53,$B147,Exterior!$W$19:$W$53))","v":0}]
[null,null,null,null,null,null,null,null,{"$f":"IF(ProjectMethod=SBS,SUM(SUMIF('Interior - Space-By-Space'!$M$16:OFFSET('Interior - Space-By-Space'!$M$65,-1,0),$B148,'Interior - Space-By-Space'!$O$16:OFFSET('Interior - Space-By-Space'!$O$65,-1,0)),SUMIF('Interior - Space-By-Space'!$Q$16:OFFSET('Interior - Space-By-Space'!$Q$65,-1,0),$B148,'Interior - Space-By-Space'!$S$16:OFFSET('Interior - Space-By-Space'!$S$65,-1,0)),SUMIF('Interior - Space-By-Space'!$U$16:OFFSET('Interior - Space-By-Space'!$U$65,-1,0),$B148,'Interior - Space-By-Space'!$W$16:OFFSET('Interior - Space-By-Space'!$W$65,-1,0)),SUMIF('Interior - Space-By-Space'!$Y$16:OFFSET('Interior - Space-By-Space'!$Y$65,-1,0),$B148,'Interior - Space-By-Space'!$AA$16:OFFSET('Interior - Space-By-Space'!$AA$65,-1,0)),SUMIF('Interior - Space-By-Space'!$AC$16:OFFSET('Interior - Space-By-Space'!$AC$65,-1,0),$B148,'Interior - Space-By-Space'!$AE$16:OFFSET('Interior - Space-By-Space'!$AE$65,-1,0)),SUMIF('Interior - Space-By-Space'!$AG$16:OFFSET('Interior - Space-By-Space'!$AG$65,-1,0),$B148,'Interior - Space-By-Space'!$AI$16:OFFSET('Interior - Space-By-Space'!$AI$65,-1,0)),SUMIF('Interior - Space-By-Space'!$AK$16:OFFSET('Interior - Space-By-Space'!$AK$65,-1,0),$B148,'Interior - Space-By-Space'!$AM$16:OFFSET('Interior - Space-By-Space'!$AM$65,-1,0)),SUMIF('Interior - Space-By-Space'!$AO$16:OFFSET('Interior - Space-By-Space'!$AO$65,-1,0),$B148,'Interior - Space-By-Space'!$AQ$16:OFFSET('Interior - Space-By-Space'!$AQ$65,-1,0))),IF(ProjectMethod=BAM,SUM('Interior - Building Area Method'!$C159,'Interior - Building Area Method'!$E159,'Interior - Building Area Method'!$G159,'Interior - Building Area Method'!$I159,'Interior - Building Area Method'!$K159),0))+SUM(SUMIF(Exterior!$J$19:$J$53,$B148,Exterior!$K$19:$K$53),SUMIF(Exterior!$M$19:$M$53,$B148,Exterior!$N$19:$N$53),SUMIF(Exterior!$P$19:$P$53,$B148,Exterior!$Q$19:$Q$53),SUMIF(Exterior!$S$19:$S$53,$B148,Exterior!$T$19:$T$53),SUMIF(Exterior!$V$19:$V$53,$B148,Exterior!$W$19:$W$53))","v":0}]
[null,null,null,null,null,null,null,null,{"$f":"IF(ProjectMethod=SBS,SUM(SUMIF('Interior - Space-By-Space'!$M$16:OFFSET('Interior - Space-By-Space'!$M$65,-1,0),$B149,'Interior - Space-By-Space'!$O$16:OFFSET('Interior - Space-By-Space'!$O$65,-1,0)),SUMIF('Interior - Space-By-Space'!$Q$16:OFFSET('Interior - Space-By-Space'!$Q$65,-1,0),$B149,'Interior - Space-By-Space'!$S$16:OFFSET('Interior - Space-By-Space'!$S$65,-1,0)),SUMIF('Interior - Space-By-Space'!$U$16:OFFSET('Interior - Space-By-Space'!$U$65,-1,0),$B149,'Interior - Space-By-Space'!$W$16:OFFSET('Interior - Space-By-Space'!$W$65,-1,0)),SUMIF('Interior - Space-By-Space'!$Y$16:OFFSET('Interior - Space-By-Space'!$Y$65,-1,0),$B149,'Interior - Space-By-Space'!$AA$16:OFFSET('Interior - Space-By-Space'!$AA$65,-1,0)),SUMIF('Interior - Space-By-Space'!$AC$16:OFFSET('Interior - Space-By-Space'!$AC$65,-1,0),$B149,'Interior - Space-By-Space'!$AE$16:OFFSET('Interior - Space-By-Space'!$AE$65,-1,0)),SUMIF('Interior - Space-By-Space'!$AG$16:OFFSET('Interior - Space-By-Space'!$AG$65,-1,0),$B149,'Interior - Space-By-Space'!$AI$16:OFFSET('Interior - Space-By-Space'!$AI$65,-1,0)),SUMIF('Interior - Space-By-Space'!$AK$16:OFFSET('Interior - Space-By-Space'!$AK$65,-1,0),$B149,'Interior - Space-By-Space'!$AM$16:OFFSET('Interior - Space-By-Space'!$AM$65,-1,0)),SUMIF('Interior - Space-By-Space'!$AO$16:OFFSET('Interior - Space-By-Space'!$AO$65,-1,0),$B149,'Interior - Space-By-Space'!$AQ$16:OFFSET('Interior - Space-By-Space'!$AQ$65,-1,0))),IF(ProjectMethod=BAM,SUM('Interior - Building Area Method'!$C160,'Interior - Building Area Method'!$E160,'Interior - Building Area Method'!$G160,'Interior - Building Area Method'!$I160,'Interior - Building Area Method'!$K160),0))+SUM(SUMIF(Exterior!$J$19:$J$53,$B149,Exterior!$K$19:$K$53),SUMIF(Exterior!$M$19:$M$53,$B149,Exterior!$N$19:$N$53),SUMIF(Exterior!$P$19:$P$53,$B149,Exterior!$Q$19:$Q$53),SUMIF(Exterior!$S$19:$S$53,$B149,Exterior!$T$19:$T$53),SUMIF(Exterior!$V$19:$V$53,$B149,Exterior!$W$19:$W$53))","v":0}]
[null,null,null,null,null,null,null,null,{"$f":"IF(ProjectMethod=SBS,SUM(SUMIF('Interior - Space-By-Space'!$M$16:OFFSET('Interior - Space-By-Space'!$M$65,-1,0),$B150,'Interior - Space-By-Space'!$O$16:OFFSET('Interior - Space-By-Space'!$O$65,-1,0)),SUMIF('Interior - Space-By-Space'!$Q$16:OFFSET('Interior - Space-By-Space'!$Q$65,-1,0),$B150,'Interior - Space-By-Space'!$S$16:OFFSET('Interior - Space-By-Space'!$S$65,-1,0)),SUMIF('Interior - Space-By-Space'!$U$16:OFFSET('Interior - Space-By-Space'!$U$65,-1,0),$B150,'Interior - Space-By-Space'!$W$16:OFFSET('Interior - Space-By-Space'!$W$65,-1,0)),SUMIF('Interior - Space-By-Space'!$Y$16:OFFSET('Interior - Space-By-Space'!$Y$65,-1,0),$B150,'Interior - Space-By-Space'!$AA$16:OFFSET('Interior - Space-By-Space'!$AA$65,-1,0)),SUMIF('Interior - Space-By-Space'!$AC$16:OFFSET('Interior - Space-By-Space'!$AC$65,-1,0),$B150,'Interior - Space-By-Space'!$AE$16:OFFSET('Interior - Space-By-Space'!$AE$65,-1,0)),SUMIF('Interior - Space-By-Space'!$AG$16:OFFSET('Interior - Space-By-Space'!$AG$65,-1,0),$B150,'Interior - Space-By-Space'!$AI$16:OFFSET('Interior - Space-By-Space'!$AI$65,-1,0)),SUMIF('Interior - Space-By-Space'!$AK$16:OFFSET('Interior - Space-By-Space'!$AK$65,-1,0),$B150,'Interior - Space-By-Space'!$AM$16:OFFSET('Interior - Space-By-Space'!$AM$65,-1,0)),SUMIF('Interior - Space-By-Space'!$AO$16:OFFSET('Interior - Space-By-Space'!$AO$65,-1,0),$B150,'Interior - Space-By-Space'!$AQ$16:OFFSET('Interior - Space-By-Space'!$AQ$65,-1,0))),IF(ProjectMethod=BAM,SUM('Interior - Building Area Method'!$C161,'Interior - Building Area Method'!$E161,'Interior - Building Area Method'!$G161,'Interior - Building Area Method'!$I161,'Interior - Building Area Method'!$K161),0))+SUM(SUMIF(Exterior!$J$19:$J$53,$B150,Exterior!$K$19:$K$53),SUMIF(Exterior!$M$19:$M$53,$B150,Exterior!$N$19:$N$53),SUMIF(Exterior!$P$19:$P$53,$B150,Exterior!$Q$19:$Q$53),SUMIF(Exterior!$S$19:$S$53,$B150,Exterior!$T$19:$T$53),SUMIF(Exterior!$V$19:$V$53,$B150,Exterior!$W$19:$W$53))","v":0}]
[null,null,null,null,null,null,null,null,{"$f":"IF(ProjectMethod=SBS,SUM(SUMIF('Interior - Space-By-Space'!$M$16:OFFSET('Interior - Space-By-Space'!$M$65,-1,0),$B151,'Interior - Space-By-Space'!$O$16:OFFSET('Interior - Space-By-Space'!$O$65,-1,0)),SUMIF('Interior - Space-By-Space'!$Q$16:OFFSET('Interior - Space-By-Space'!$Q$65,-1,0),$B151,'Interior - Space-By-Space'!$S$16:OFFSET('Interior - Space-By-Space'!$S$65,-1,0)),SUMIF('Interior - Space-By-Space'!$U$16:OFFSET('Interior - Space-By-Space'!$U$65,-1,0),$B151,'Interior - Space-By-Space'!$W$16:OFFSET('Interior - Space-By-Space'!$W$65,-1,0)),SUMIF('Interior - Space-By-Space'!$Y$16:OFFSET('Interior - Space-By-Space'!$Y$65,-1,0),$B151,'Interior - Space-By-Space'!$AA$16:OFFSET('Interior - Space-By-Space'!$AA$65,-1,0)),SUMIF('Interior - Space-By-Space'!$AC$16:OFFSET('Interior - Space-By-Space'!$AC$65,-1,0),$B151,'Interior - Space-By-Space'!$AE$16:OFFSET('Interior - Space-By-Space'!$AE$65,-1,0)),SUMIF('Interior - Space-By-Space'!$AG$16:OFFSET('Interior - Space-By-Space'!$AG$65,-1,0),$B151,'Interior - Space-By-Space'!$AI$16:OFFSET('Interior - Space-By-Space'!$AI$65,-1,0)),SUMIF('Interior - Space-By-Space'!$AK$16:OFFSET('Interior - Space-By-Space'!$AK$65,-1,0),$B151,'Interior - Space-By-Space'!$AM$16:OFFSET('Interior - Space-By-Space'!$AM$65,-1,0)),SUMIF('Interior - Space-By-Space'!$AO$16:OFFSET('Interior - Space-By-Space'!$AO$65,-1,0),$B151,'Interior - Space-By-Space'!$AQ$16:OFFSET('Interior - Space-By-Space'!$AQ$65,-1,0))),IF(ProjectMethod=BAM,SUM('Interior - Building Area Method'!$C162,'Interior - Building Area Method'!$E162,'Interior - Building Area Method'!$G162,'Interior - Building Area Method'!$I162,'Interior - Building Area Method'!$K162),0))+SUM(SUMIF(Exterior!$J$19:$J$53,$B151,Exterior!$K$19:$K$53),SUMIF(Exterior!$M$19:$M$53,$B151,Exterior!$N$19:$N$53),SUMIF(Exterior!$P$19:$P$53,$B151,Exterior!$Q$19:$Q$53),SUMIF(Exterior!$S$19:$S$53,$B151,Exterior!$T$19:$T$53),SUMIF(Exterior!$V$19:$V$53,$B151,Exterior!$W$19:$W$53))","v":0}]
[null,null,null,null,null,null,null,null,{"$f":"IF(ProjectMethod=SBS,SUM(SUMIF('Interior - Space-By-Space'!$M$16:OFFSET('Interior - Space-By-Space'!$M$65,-1,0),$B152,'Interior - Space-By-Space'!$O$16:OFFSET('Interior - Space-By-Space'!$O$65,-1,0)),SUMIF('Interior - Space-By-Space'!$Q$16:OFFSET('Interior - Space-By-Space'!$Q$65,-1,0),$B152,'Interior - Space-By-Space'!$S$16:OFFSET('Interior - Space-By-Space'!$S$65,-1,0)),SUMIF('Interior - Space-By-Space'!$U$16:OFFSET('Interior - Space-By-Space'!$U$65,-1,0),$B152,'Interior - Space-By-Space'!$W$16:OFFSET('Interior - Space-By-Space'!$W$65,-1,0)),SUMIF('Interior - Space-By-Space'!$Y$16:OFFSET('Interior - Space-By-Space'!$Y$65,-1,0),$B152,'Interior - Space-By-Space'!$AA$16:OFFSET('Interior - Space-By-Space'!$AA$65,-1,0)),SUMIF('Interior - Space-By-Space'!$AC$16:OFFSET('Interior - Space-By-Space'!$AC$65,-1,0),$B152,'Interior - Space-By-Space'!$AE$16:OFFSET('Interior - Space-By-Space'!$AE$65,-1,0)),SUMIF('Interior - Space-By-Space'!$AG$16:OFFSET('Interior - Space-By-Space'!$AG$65,-1,0),$B152,'Interior - Space-By-Space'!$AI$16:OFFSET('Interior - Space-By-Space'!$AI$65,-1,0)),SUMIF('Interior - Space-By-Space'!$AK$16:OFFSET('Interior - Space-By-Space'!$AK$65,-1,0),$B152,'Interior - Space-By-Space'!$AM$16:OFFSET('Interior - Space-By-Space'!$AM$65,-1,0)),SUMIF('Interior - Space-By-Space'!$AO$16:OFFSET('Interior - Space-By-Space'!$AO$65,-1,0),$B152,'Interior - Space-By-Space'!$AQ$16:OFFSET('Interior - Space-By-Space'!$AQ$65,-1,0))),IF(ProjectMethod=BAM,SUM('Interior - Building Area Method'!$C163,'Interior - Building Area Method'!$E163,'Interior - Building Area Method'!$G163,'Interior - Building Area Method'!$I163,'Interior - Building Area Method'!$K163),0))+SUM(SUMIF(Exterior!$J$19:$J$53,$B152,Exterior!$K$19:$K$53),SUMIF(Exterior!$M$19:$M$53,$B152,Exterior!$N$19:$N$53),SUMIF(Exterior!$P$19:$P$53,$B152,Exterior!$Q$19:$Q$53),SUMIF(Exterior!$S$19:$S$53,$B152,Exterior!$T$19:$T$53),SUMIF(Exterior!$V$19:$V$53,$B152,Exterior!$W$19:$W$53))","v":0}]
[null,null,null,null,null,null,null,null,{"$f":"IF(ProjectMethod=SBS,SUM(SUMIF('Interior - Space-By-Space'!$M$16:OFFSET('Interior - Space-By-Space'!$M$65,-1,0),$B153,'Interior - Space-By-Space'!$O$16:OFFSET('Interior - Space-By-Space'!$O$65,-1,0)),SUMIF('Interior - Space-By-Space'!$Q$16:OFFSET('Interior - Space-By-Space'!$Q$65,-1,0),$B153,'Interior - Space-By-Space'!$S$16:OFFSET('Interior - Space-By-Space'!$S$65,-1,0)),SUMIF('Interior - Space-By-Space'!$U$16:OFFSET('Interior - Space-By-Space'!$U$65,-1,0),$B153,'Interior - Space-By-Space'!$W$16:OFFSET('Interior - Space-By-Space'!$W$65,-1,0)),SUMIF('Interior - Space-By-Space'!$Y$16:OFFSET('Interior - Space-By-Space'!$Y$65,-1,0),$B153,'Interior - Space-By-Space'!$AA$16:OFFSET('Interior - Space-By-Space'!$AA$65,-1,0)),SUMIF('Interior - Space-By-Space'!$AC$16:OFFSET('Interior - Space-By-Space'!$AC$65,-1,0),$B153,'Interior - Space-By-Space'!$AE$16:OFFSET('Interior - Space-By-Space'!$AE$65,-1,0)),SUMIF('Interior - Space-By-Space'!$AG$16:OFFSET('Interior - Space-By-Space'!$AG$65,-1,0),$B153,'Interior - Space-By-Space'!$AI$16:OFFSET('Interior - Space-By-Space'!$AI$65,-1,0)),SUMIF('Interior - Space-By-Space'!$AK$16:OFFSET('Interior - Space-By-Space'!$AK$65,-1,0),$B153,'Interior - Space-By-Space'!$AM$16:OFFSET('Interior - Space-By-Space'!$AM$65,-1,0)),SUMIF('Interior - Space-By-Space'!$AO$16:OFFSET('Interior - Space-By-Space'!$AO$65,-1,0),$B153,'Interior - Space-By-Space'!$AQ$16:OFFSET('Interior - Space-By-Space'!$AQ$65,-1,0))),IF(ProjectMethod=BAM,SUM('Interior - Building Area Method'!$C164,'Interior - Building Area Method'!$E164,'Interior - Building Area Method'!$G164,'Interior - Building Area Method'!$I164,'Interior - Building Area Method'!$K164),0))+SUM(SUMIF(Exterior!$J$19:$J$53,$B153,Exterior!$K$19:$K$53),SUMIF(Exterior!$M$19:$M$53,$B153,Exterior!$N$19:$N$53),SUMIF(Exterior!$P$19:$P$53,$B153,Exterior!$Q$19:$Q$53),SUMIF(Exterior!$S$19:$S$53,$B153,Exterior!$T$19:$T$53),SUMIF(Exterior!$V$19:$V$53,$B153,Exterior!$W$19:$W$53))","v":0}]
[null,null,null,null,null,null,null,null,{"$f":"IF(ProjectMethod=SBS,SUM(SUMIF('Interior - Space-By-Space'!$M$16:OFFSET('Interior - Space-By-Space'!$M$65,-1,0),$B154,'Interior - Space-By-Space'!$O$16:OFFSET('Interior - Space-By-Space'!$O$65,-1,0)),SUMIF('Interior - Space-By-Space'!$Q$16:OFFSET('Interior - Space-By-Space'!$Q$65,-1,0),$B154,'Interior - Space-By-Space'!$S$16:OFFSET('Interior - Space-By-Space'!$S$65,-1,0)),SUMIF('Interior - Space-By-Space'!$U$16:OFFSET('Interior - Space-By-Space'!$U$65,-1,0),$B154,'Interior - Space-By-Space'!$W$16:OFFSET('Interior - Space-By-Space'!$W$65,-1,0)),SUMIF('Interior - Space-By-Space'!$Y$16:OFFSET('Interior - Space-By-Space'!$Y$65,-1,0),$B154,'Interior - Space-By-Space'!$AA$16:OFFSET('Interior - Space-By-Space'!$AA$65,-1,0)),SUMIF('Interior - Space-By-Space'!$AC$16:OFFSET('Interior - Space-By-Space'!$AC$65,-1,0),$B154,'Interior - Space-By-Space'!$AE$16:OFFSET('Interior - Space-By-Space'!$AE$65,-1,0)),SUMIF('Interior - Space-By-Space'!$AG$16:OFFSET('Interior - Space-By-Space'!$AG$65,-1,0),$B154,'Interior - Space-By-Space'!$AI$16:OFFSET('Interior - Space-By-Space'!$AI$65,-1,0)),SUMIF('Interior - Space-By-Space'!$AK$16:OFFSET('Interior - Space-By-Space'!$AK$65,-1,0),$B154,'Interior - Space-By-Space'!$AM$16:OFFSET('Interior - Space-By-Space'!$AM$65,-1,0)),SUMIF('Interior - Space-By-Space'!$AO$16:OFFSET('Interior - Space-By-Space'!$AO$65,-1,0),$B154,'Interior - Space-By-Space'!$AQ$16:OFFSET('Interior - Space-By-Space'!$AQ$65,-1,0))),IF(ProjectMethod=BAM,SUM('Interior - Building Area Method'!$C165,'Interior - Building Area Method'!$E165,'Interior - Building Area Method'!$G165,'Interior - Building Area Method'!$I165,'Interior - Building Area Method'!$K165),0))+SUM(SUMIF(Exterior!$J$19:$J$53,$B154,Exterior!$K$19:$K$53),SUMIF(Exterior!$M$19:$M$53,$B154,Exterior!$N$19:$N$53),SUMIF(Exterior!$P$19:$P$53,$B154,Exterior!$Q$19:$Q$53),SUMIF(Exterior!$S$19:$S$53,$B154,Exterior!$T$19:$T$53),SUMIF(Exterior!$V$19:$V$53,$B154,Exterior!$W$19:$W$53))","v":0}]
[null,null,null,null,null,null,null,null,{"$f":"IF(ProjectMethod=SBS,SUM(SUMIF('Interior - Space-By-Space'!$M$16:OFFSET('Interior - Space-By-Space'!$M$65,-1,0),$B155,'Interior - Space-By-Space'!$O$16:OFFSET('Interior - Space-By-Space'!$O$65,-1,0)),SUMIF('Interior - Space-By-Space'!$Q$16:OFFSET('Interior - Space-By-Space'!$Q$65,-1,0),$B155,'Interior - Space-By-Space'!$S$16:OFFSET('Interior - Space-By-Space'!$S$65,-1,0)),SUMIF('Interior - Space-By-Space'!$U$16:OFFSET('Interior - Space-By-Space'!$U$65,-1,0),$B155,'Interior - Space-By-Space'!$W$16:OFFSET('Interior - Space-By-Space'!$W$65,-1,0)),SUMIF('Interior - Space-By-Space'!$Y$16:OFFSET('Interior - Space-By-Space'!$Y$65,-1,0),$B155,'Interior - Space-By-Space'!$AA$16:OFFSET('Interior - Space-By-Space'!$AA$65,-1,0)),SUMIF('Interior - Space-By-Space'!$AC$16:OFFSET('Interior - Space-By-Space'!$AC$65,-1,0),$B155,'Interior - Space-By-Space'!$AE$16:OFFSET('Interior - Space-By-Space'!$AE$65,-1,0)),SUMIF('Interior - Space-By-Space'!$AG$16:OFFSET('Interior - Space-By-Space'!$AG$65,-1,0),$B155,'Interior - Space-By-Space'!$AI$16:OFFSET('Interior - Space-By-Space'!$AI$65,-1,0)),SUMIF('Interior - Space-By-Space'!$AK$16:OFFSET('Interior - Space-By-Space'!$AK$65,-1,0),$B155,'Interior - Space-By-Space'!$AM$16:OFFSET('Interior - Space-By-Space'!$AM$65,-1,0)),SUMIF('Interior - Space-By-Space'!$AO$16:OFFSET('Interior - Space-By-Space'!$AO$65,-1,0),$B155,'Interior - Space-By-Space'!$AQ$16:OFFSET('Interior - Space-By-Space'!$AQ$65,-1,0))),IF(ProjectMethod=BAM,SUM('Interior - Building Area Method'!$C166,'Interior - Building Area Method'!$E166,'Interior - Building Area Method'!$G166,'Interior - Building Area Method'!$I166,'Interior - Building Area Method'!$K166),0))+SUM(SUMIF(Exterior!$J$19:$J$53,$B155,Exterior!$K$19:$K$53),SUMIF(Exterior!$M$19:$M$53,$B155,Exterior!$N$19:$N$53),SUMIF(Exterior!$P$19:$P$53,$B155,Exterior!$Q$19:$Q$53),SUMIF(Exterior!$S$19:$S$53,$B155,Exterior!$T$19:$T$53),SUMIF(Exterior!$V$19:$V$53,$B155,Exterior!$W$19:$W$53))","v":0}]
[null,null,null,null,null,null,null,null,{"$f":"IF(ProjectMethod=SBS,SUM(SUMIF('Interior - Space-By-Space'!$M$16:OFFSET('Interior - Space-By-Space'!$M$65,-1,0),$B156,'Interior - Space-By-Space'!$O$16:OFFSET('Interior - Space-By-Space'!$O$65,-1,0)),SUMIF('Interior - Space-By-Space'!$Q$16:OFFSET('Interior - Space-By-Space'!$Q$65,-1,0),$B156,'Interior - Space-By-Space'!$S$16:OFFSET('Interior - Space-By-Space'!$S$65,-1,0)),SUMIF('Interior - Space-By-Space'!$U$16:OFFSET('Interior - Space-By-Space'!$U$65,-1,0),$B156,'Interior - Space-By-Space'!$W$16:OFFSET('Interior - Space-By-Space'!$W$65,-1,0)),SUMIF('Interior - Space-By-Space'!$Y$16:OFFSET('Interior - Space-By-Space'!$Y$65,-1,0),$B156,'Interior - Space-By-Space'!$AA$16:OFFSET('Interior - Space-By-Space'!$AA$65,-1,0)),SUMIF('Interior - Space-By-Space'!$AC$16:OFFSET('Interior - Space-By-Space'!$AC$65,-1,0),$B156,'Interior - Space-By-Space'!$AE$16:OFFSET('Interior - Space-By-Space'!$AE$65,-1,0)),SUMIF('Interior - Space-By-Space'!$AG$16:OFFSET('Interior - Space-By-Space'!$AG$65,-1,0),$B156,'Interior - Space-By-Space'!$AI$16:OFFSET('Interior - Space-By-Space'!$AI$65,-1,0)),SUMIF('Interior - Space-By-Space'!$AK$16:OFFSET('Interior - Space-By-Space'!$AK$65,-1,0),$B156,'Interior - Space-By-Space'!$AM$16:OFFSET('Interior - Space-By-Space'!$AM$65,-1,0)),SUMIF('Interior - Space-By-Space'!$AO$16:OFFSET('Interior - Space-By-Space'!$AO$65,-1,0),$B156,'Interior - Space-By-Space'!$AQ$16:OFFSET('Interior - Space-By-Space'!$AQ$65,-1,0))),IF(ProjectMethod=BAM,SUM('Interior - Building Area Method'!$C167,'Interior - Building Area Method'!$E167,'Interior - Building Area Method'!$G167,'Interior - Building Area Method'!$I167,'Interior - Building Area Method'!$K167),0))+SUM(SUMIF(Exterior!$J$19:$J$53,$B156,Exterior!$K$19:$K$53),SUMIF(Exterior!$M$19:$M$53,$B156,Exterior!$N$19:$N$53),SUMIF(Exterior!$P$19:$P$53,$B156,Exterior!$Q$19:$Q$53),SUMIF(Exterior!$S$19:$S$53,$B156,Exterior!$T$19:$T$53),SUMIF(Exterior!$V$19:$V$53,$B156,Exterior!$W$19:$W$53))","v":0}]
[null,null,null,null,null,null,null,null,{"$f":"IF(ProjectMethod=SBS,SUM(SUMIF('Interior - Space-By-Space'!$M$16:OFFSET('Interior - Space-By-Space'!$M$65,-1,0),$B157,'Interior - Space-By-Space'!$O$16:OFFSET('Interior - Space-By-Space'!$O$65,-1,0)),SUMIF('Interior - Space-By-Space'!$Q$16:OFFSET('Interior - Space-By-Space'!$Q$65,-1,0),$B157,'Interior - Space-By-Space'!$S$16:OFFSET('Interior - Space-By-Space'!$S$65,-1,0)),SUMIF('Interior - Space-By-Space'!$U$16:OFFSET('Interior - Space-By-Space'!$U$65,-1,0),$B157,'Interior - Space-By-Space'!$W$16:OFFSET('Interior - Space-By-Space'!$W$65,-1,0)),SUMIF('Interior - Space-By-Space'!$Y$16:OFFSET('Interior - Space-By-Space'!$Y$65,-1,0),$B157,'Interior - Space-By-Space'!$AA$16:OFFSET('Interior - Space-By-Space'!$AA$65,-1,0)),SUMIF('Interior - Space-By-Space'!$AC$16:OFFSET('Interior - Space-By-Space'!$AC$65,-1,0),$B157,'Interior - Space-By-Space'!$AE$16:OFFSET('Interior - Space-By-Space'!$AE$65,-1,0)),SUMIF('Interior - Space-By-Space'!$AG$16:OFFSET('Interior - Space-By-Space'!$AG$65,-1,0),$B157,'Interior - Space-By-Space'!$AI$16:OFFSET('Interior - Space-By-Space'!$AI$65,-1,0)),SUMIF('Interior - Space-By-Space'!$AK$16:OFFSET('Interior - Space-By-Space'!$AK$65,-1,0),$B157,'Interior - Space-By-Space'!$AM$16:OFFSET('Interior - Space-By-Space'!$AM$65,-1,0)),SUMIF('Interior - Space-By-Space'!$AO$16:OFFSET('Interior - Space-By-Space'!$AO$65,-1,0),$B157,'Interior - Space-By-Space'!$AQ$16:OFFSET('Interior - Space-By-Space'!$AQ$65,-1,0))),IF(ProjectMethod=BAM,SUM('Interior - Building Area Method'!$C168,'Interior - Building Area Method'!$E168,'Interior - Building Area Method'!$G168,'Interior - Building Area Method'!$I168,'Interior - Building Area Method'!$K168),0))+SUM(SUMIF(Exterior!$J$19:$J$53,$B157,Exterior!$K$19:$K$53),SUMIF(Exterior!$M$19:$M$53,$B157,Exterior!$N$19:$N$53),SUMIF(Exterior!$P$19:$P$53,$B157,Exterior!$Q$19:$Q$53),SUMIF(Exterior!$S$19:$S$53,$B157,Exterior!$T$19:$T$53),SUMIF(Exterior!$V$19:$V$53,$B157,Exterior!$W$19:$W$53))","v":0}]

{"sheet":"Interior - Building Area Method","index":3,"n_rows":168,"n_cols":16,"rows_kept":168,"cut":false,"hidden":false,"merged":[[49,14,49,15],[10,1,10,4],[0,1,0,12],[1,1,1,12],[15,1,15,4],[16,13,16,15],[3,1,3,2],[17,14,17,15],[25,14,25,15],[33,14,33,15],[41,14,41,15],[6,2,6,4],[7,2,7,4],[8,2,8,4],[5,1,5,6]]}
[null,"BC Hydro Power Smart Commercial New Construction Program"]
[null,"New Construction Lighting Calculator"]
[null,{"$f":"'Basic Lists'!A100","v":"BC Hydro Power Smart CNC LC v.3.1"}]
[null,"Interior Lighting Calculator"]
[]
[null,"Interior Totals"]
[null,"LPD Savings",{"$f":"IF(SUM($C$14:$K$14)=0,0,(C8*1000)/SUM($C$14:$K$14))","v":0},null,null,null,{"$f":"IF(ProjectUnits=\"Imperial\",\"W/sqft\",\"W/sqm\")","v":"W/sqm"}]
[null,"Demand Savings",{"$f":"O59-O61","v":0},null,null,null,"kW"]
[null,"Energy Savings",{"$f":"O60-O62","v":0},null,null,null,"kWh"]
[]
[null,"Input: Building Type Information"]
[null,null,"Primary Type",null,"Type #2",null,"Type #3",null,"Type #4",null,"Type #5"]
[null,"Building Type",{"$f":"IF(ISBLANK(ProjectBuilding),\"\",ProjectBuilding)","v":""}]
[null,{"$f":"IF(ProjectUnits=\"Imperial\",\"Type Area (sqft)\",\"Type Area (sqm)\")","v":"Type Area (sqm)"}]
[null,{"$f":"IF(NOT(OR(C13=ASHRAE!$O$23,E13=ASHRAE!$O$23,G13=ASHRAE!$O$23,I13=ASHRAE!$O$23,K13=ASHRAE!$O$23,C13=NECB!$N$23,E13=NECB!$N$23,G13=NECB!$N$23,I13=NECB!$N$23,K13=NECB!$N$23)),\"\",'Basic Lists'!$A$103)","v":""}]
[null,"Input: Luminaire Quantities"]
[null,"Luminaire Type",{"$f":"IF(ISBLANK(ProjectBuilding),\"\",$C$13)","v":""},"Tot. W",{"$f":"IF(ISBLANK($E$13),\"\",$E$13)","v":""},"Tot. W",{"$f":"IF(ISBLANK($G$13),\"\",$G$13)","v":""},"Tot. W",{"$f":"IF(ISBLANK($I$13),\"\",$I$13)","v":""},"Tot. W",{"$f":"IF(ISBLANK($K$13),\"\",$K$13)","v":""},"Tot. W",null,"Building Type Calculated Values"]
[null,{"$f":"IF('Luminaire Schedule'!B7=\"\",\"\",'Luminaire Schedule'!B7)","v":""},null,{"$f":"IF($B18=\"\",\"\",$C18*INDEX(Luminaire_Table,MATCH($B18,Luminaire_Types,0),7))","v":""},null,{"$f":"IF($B18=\"\",\"\",$E18*INDEX(Luminaire_Table,MATCH($B18,Luminaire_Types,0),7))","v":""},null,{"$f":"IF($B18=\"\",\"\",$G18*INDEX(Luminaire_Table,MATCH($B18,Luminaire_Types,0),7))","v":""},null,{"$f":"IF($B18=\"\",\"\",$I18*INDEX(Luminaire_Table,MATCH($B18,Luminaire_Types,0),7))","v":""},null,{"$f":"IF($B18=\"\",\"\",$K18*INDEX(Luminaire_Table,MATCH($B18,Luminaire_Types,0),7))","v":""},null,"Primary Building Type",{"$f":"IF(ISBLANK(ProjectBuilding),\"\",ProjectBuilding)","v":""}]
[null,{"$f":"IF('Luminaire Schedule'!B8=\"\",\"\",'Luminaire Schedule'!B8)","v":""},null,"",null,"",null,"",null,"",null,"",null,"Annual Operation Hours",{"$f":"IF(ISBLANK(ProjectBuilding),\"\",IF(ProjectCode=NECB,INDEX(NECB_BuildingTable,MATCH($C13,NECB_BuildingTypes,0),4),IF(ProjectCode=ASHRAE,INDEX(ASHRAE_BuildingTable,MATCH($C13,ASHRAE_BuildingTypes,0),4),\"\")))","v":""},"hrs"]
[null,{"$f":"IF('Luminaire Schedule'!B9=\"\",\"\",'Luminaire Schedule'!B9)","v":""},null,"",null,"",null,"",null,"",null,"",null,"Baseline LPD",{"$f":"IF(ISBLANK(ProjectBuilding),\"\",IF(ProjectCode=NECB,INDEX(NECB_BuildingTable,MATCH($C13,NECB_BuildingTypes,0),3),IF(ProjectCode=ASHRAE,INDEX(ASHRAE_BuildingTable,MATCH($C13,ASHRAE_BuildingTypes,0),3),\"\")))","v":""},{"$f":"IF(ProjectUnits=\"Imperial\",\"W/sqft\",\"W/sqm\")","v":"W/sqm"}]
[null,{"$f":"IF('Luminaire Schedule'!B10=\"\",\"\",'Luminaire Schedule'!B10)","v":""},null,"",null,"",null,"",null,"",null,"",null,"Baseline Demand",{"$f":"IF(ISBLANK(ProjectBuilding),\"\",ROUND(O20*C14/1000,2))","v":""},"kW"]
[null,{"$f":"IF('Luminaire Schedule'!B11=\"\",\"\",'Luminaire Schedule'!B11)","v":""},null,"",null,"",null,"",null,"",null,"",null,"Baseline Lighting Energy",{"$f":"IF(ISBLANK(ProjectBuilding),\"\",O21*O19)","v":""},"kWh"]
[null,{"$f":"IF('Luminaire Schedule'!B12=\"\",\"\",'Luminaire Schedule'!B12)","v":""},null,"",null,"",null,"",null,"",null,"",null,"Design LPD",{"$f":"IF(ISBLANK(ProjectBuilding),\"\",(O24*1000)/C14)","v":""},{"$f":"IF(ProjectUnits=\"Imperial\",\"W/sqft\",\"W/sqm\")","v":"W/sqm"}]
[null,{"$f":"IF('Luminaire Schedule'!B13=\"\",\"\",'Luminaire Schedule'!B13)","v":""},null,"",null,"",null,"",null,"",null,"",null,"Design Demand",{"$f":"IF(ISBLANK(ProjectBuilding),\"\",ROUND(SUM($D$18:$D$168)/1000,2))","v":""},"kW"]
[null,{"$f":"IF('Luminaire Schedule'!B14=\"\",\"\",'Luminaire Schedule'!B14)","v":""},null,"",null,"",null,"",null,"",null,"",null,"Design Lighting Energy",{"$f":"IF(ISBLANK(ProjectBuilding),\"\",O24*O19)","v":""},"kWh"]
[null,{"$f":"IF('Luminaire Schedule'!B15=\"\",\"\",'Luminaire Schedule'!B15)","v":""},null,"",null,"",null,"",null,"",null,"",null,"Building Type #2",{"$f":"IF(ISBLANK($E$13),\"\",$E$13)","v":""}]
[null,{"$f":"IF('Luminaire Schedule'!B16=\"\",\"\",'Luminaire Schedule'!B16)","v":""},null,"",null,"",null,"",null,"",null,"",null,"Annual Operation Hours",{"$f":"IF(ISBLANK(E13),\"\",IF(ProjectCode=NECB,INDEX(NECB_BuildingTable,MATCH($E13,NECB_BuildingTypes,0),4),IF(ProjectCode=ASHRAE,INDEX(ASHRAE_BuildingTable,MATCH($E13,ASHRAE_BuildingTypes,0),4),\"\")))","v":""},"hrs"]
[null,{"$f":"IF('Luminaire Schedule'!B17=\"\",\"\",'Luminaire Schedule'!B17)","v":""},null,"",null,"",null,"",null,"",null,"",null,"Baseline LPD",{"$f":"IF(ISBLANK(E13),\"\",IF(ProjectCode=NECB,INDEX(NECB_BuildingTable,MATCH($E13,NECB_BuildingTypes,0),3),IF(ProjectCode=ASHRAE,INDEX(ASHRAE_BuildingTable,MATCH($E13,ASHRAE_BuildingTypes,0),3),\"\")))","v":""},{"$f":"IF(ProjectUnits=\"Imperial\",\"W/sqft\",\"W/sqm\")","v":"W/sqm"}]
[null,{"$f":"IF('Luminaire Schedule'!B18=\"\",\"\",'Luminaire Schedule'!B18)","v":""},null,"",null,"",null,"",null,"",null,"",null,"Baseline Demand",{"$f":"IF(ISBLANK(E13),\"\",ROUND(O28*E14/1000,2))","v":""},"kW"]
[null,{"$f":"IF('Luminaire Schedule'!B19=\"\",\"\",'Luminaire Schedule'!B19)","v":""},null,"",null,"",null,"",null,"",null,"",null,"Baseline Lighting Energy",{"$f":"IF(ISBLANK(E13),\"\",O29*O27)","v":""},"kWh"]
[null,{"$f":"IF('Luminaire Schedule'!B20=\"\",\"\",'Luminaire Schedule'!B20)","v":""},null,"",null,"",null,"",null,"",null,"",null,"Design LPD",{"$f":"IF(ISBLANK(E13),\"\",(O32*1000)/E14)","v":""},{"$f":"IF(ProjectUnits=\"Imperial\",\"W/sqft\",\"W/sqm\")","v":"W/sqm"}]
[null,{"$f":"IF('Luminaire Schedule'!B21=\"\",\"\",'Luminaire Schedule'!B21)","v":""},null,"",null,"",null,"",null,"",null,"",null,"Design Demand",{"$f":"IF(ISBLANK(E13),\"\",ROUND(SUM($F$18:$F$168)/1000,2))","v":""},"kW"]
[null,{"$f":"IF('Luminaire Schedule'!B22=\"\",\"\",'Luminaire Schedule'!B22)","v":""},null,"",null,"",null,"",null,"",null,"",null,"Design Lighting Energy",{"$f":"IF(ISBLANK(E13),\"\",O32*O27)","v":""},"kWh"]
[null,{"$f":"IF('Luminaire Schedule'!B23=\"\",\"\",'Luminaire Schedule'!B23)","v":""},null,"",null,"",null,"",null,"",null,"",null,"Building Type #3",{"$f":"IF(ISBLANK($G$13),\"\",$G$13)","v":""}]
[null,{"$f":"IF('Luminaire Schedule'!B24=\"\",\"\",'Luminaire Schedule'!B24)","v":""},null,"",null,"",null,"",null,"",null,"",null,"Annual Operation Hours",{"$f":"IF(ISBLANK(G13),\"\",IF(ProjectCode=NECB,INDEX(NECB_BuildingTable,MATCH($G13,NECB_BuildingTypes,0),4),IF(ProjectCode=ASHRAE,INDEX(ASHRAE_BuildingTable,MATCH($G13,ASHRAE_BuildingTypes,0),4),\"\")))","v":""},"hrs"]
[null,{"$f":"IF('Luminaire Schedule'!B25=\"\",\"\",'Luminaire Schedule'!B25)","v":""},null,"",null,"",null,"",null,"",null,"",null,"Baseline LPD",{"$f":"IF(ISBLANK(G13),\"\",IF(ProjectCode=NECB,INDEX(NECB_BuildingTable,MATCH($G13,NECB_BuildingTypes,0),3),IF(ProjectCode=ASHRAE,INDEX(ASHRAE_BuildingTable,MATCH($G13,ASHRAE_BuildingTypes,0),3),\"\")))","v":""},{"$f":"IF(ProjectUnits=\"Imperial\",\"W/sqft\",\"W/sqm\")","v":"W/sqm"}]
[null,{"$f":"IF('Luminaire Schedule'!B26=\"\",\"\",'Luminaire Schedule'!B26)","v":""},null,"",null,"",null,"",null,"",null,"",null,"Baseline Demand",{"$f":"IF(ISBLANK(G13),\"\",ROUND(O36*G14/1000,2))","v":""},"kW"]
[null,{"$f":"IF('Luminaire Schedule'!B27=\"\",\"\",'Luminaire Schedule'!B27)","v":""},null,"",null,"",null,"",null,"",null,"",null,"Baseline Lighting Energy",{"$f":"IF(ISBLANK(G13),\"\",O37*O35)","v":""},"kWh"]
[null,{"$f":"IF('Luminaire Schedule'!B28=\"\",\"\",'Luminaire Schedule'!B28)","v":""},null,"",null,"",null,"",null,"",null,"",null,"Design LPD",{"$f":"IF(ISBLANK(G13),\"\",(O40*1000)/G14)","v":""},{"$f":"IF(ProjectUnits=\"Imperial\",\"W/sqft\",\"W/sqm\")","v":"W/sqm"}]
[null,{"$f":"IF('Luminaire Schedule'!B29=\"\",\"\",'Luminaire Schedule'!B29)","v":""},null,"",null,"",null,"",null,"",null,"",null,"Design Demand",{"$f":"IF(ISBLANK(G13),\"\",ROUND(SUM($H$18:$H$168)/1000,2))","v":""},"kW"]
[null,{"$f":"IF('Luminaire Schedule'!B30=\"\",\"\",'Luminaire Schedule'!B30)","v":""},null,"",null,"",null,"",null,"",null,"",null,"Design Lighting Energy",{"$f":"IF(ISBLANK(G13),\"\",O40*O35)","v":""},"kWh"]
[null,{"$f":"IF('Luminaire Schedule'!B31=\"\",\"\",'Luminaire Schedule'!B31)","v":""},null,"",null,"",null,"",null,"",null,"",null,"Building Type #4",{"$f":"IF(ISBLANK($I$13),\"\",$I$13)","v":""}]
[null,{"$f":"IF('Luminaire Schedule'!B32=\"\",\"\",'Luminaire Schedule'!B32)","v":""},null,"",null,"",null,"",null,"",null,"",null,"Annual Operation Hours",{"$f":"IF(ISBLANK(I13),\"\",IF(ProjectCode=NECB,INDEX(NECB_BuildingTable,MATCH($I13,NECB_BuildingTypes,0),4),IF(ProjectCode=ASHRAE,INDEX(ASHRAE_BuildingTable,MATCH($I13,ASHRAE_BuildingTypes,0),4),\"\")))","v":""},"hrs"]
[null,{"$f":"IF('Luminaire Schedule'!B33=\"\",\"\",'Luminaire Schedule'!B33)","v":""},null,"",null,"",null,"",null,"",null,"",null,"Baseline LPD",{"$f":"IF(ISBLANK(I13),\"\",IF(ProjectCode=NECB,INDEX(NECB_BuildingTable,MATCH($I13,NECB_BuildingTypes,0),3),IF(ProjectCode=ASHRAE,INDEX(ASHRAE_BuildingTable,MATCH($I13,ASHRAE_BuildingTypes,0),3),\"\")))","v":""},{"$f":"IF(ProjectUnits=\"Imperial\",\"W/sqft\",\"W/sqm\")","v":"W/sqm"}]
[null,{"$f":"IF('Luminaire Schedule'!B34=\"\",\"\",'Luminaire Schedule'!B34)","v":""},null,"",null,"",null,"",null,"",null,"",null,"Baseline Demand",{"$f":"IF(ISBLANK(I13),\"\",ROUND(O44*I14/1000,2))","v":""},"kW"]
[null,{"$f":"IF('Luminaire Schedule'!B35=\"\",\"\",'Luminaire Schedule'!B35)","v":""},null,"",null,"",null,"",null,"",null,"",null,"Baseline Lighting Energy",{"$f":"IF(ISBLANK(I13),\"\",O45*O43)","v":""},"kWh"]
[null,{"$f":"IF('Luminaire Schedule'!B36=\"\",\"\",'Luminaire Schedule'!B36)","v":""},null,"",null,"",null,"",null,"",null,"",null,"Design LPD",{"$f":"IF(ISBLANK(I13),\"\",(O48*1000)/I14)","v":""},{"$f":"IF(ProjectUnits=\"Imperial\",\"W/sqft\",\"W/sqm\")","v":"W/sqm"}]
[null,{"$f":"IF('Luminaire Schedule'!B37=\"\",\"\",'Luminaire Schedule'!B37)","v":""},null,"",null,"",null,"",null,"",null,"",null,"Design Demand",{"$f":"IF(ISBLANK(I13),\"\",ROUND(SUM($J$18:$J$168)/1000,2))","v":""},"kW"]
[null,{"$f":"IF('Luminaire Schedule'!B38=\"\",\"\",'Luminaire Schedule'!B38)","v":""},null,"",null,"",null,"",null,"",null,"",null,"Design Lighting Energy",{"$f":"IF(ISBLANK(I13),\"\",O48*O43)","v":""},"kWh"]
[null,{"$f":"IF('Luminaire Schedule'!B39=\"\",\"\",'Luminaire Schedule'!B39)","v":""},null,"",null,"",null,"",null,"",null,"",null,"Building Type #5",{"$f":"IF(ISBLANK($K$13),\"\",$K$13)","v":""}]
[null,{"$f":"IF('Luminaire Schedule'!B40=\"\",\"\",'Luminaire Schedule'!B40)","v":""},null,"",null,"",null,"",null,"",null,"",null,"Annual Operation Hours",{"$f":"IF(ISBLANK(K13),\"\",IF(ProjectCode=NECB,INDEX(NECB_BuildingTable,MATCH($K13,NECB_BuildingTypes,0),4),IF(ProjectCode=ASHRAE,INDEX(ASHRAE_BuildingTable,MATCH($K13,ASHRAE_BuildingTypes,0),4),\"\")))","v":""},"hrs"]
[null,{"$f":"IF('Luminaire Schedule'!B41=\"\",\"\",'Luminaire Schedule'!B41)","v":""},null,"",null,"",null,"",null,"",null,"",null,"Baseline LPD",{"$f":"IF(ISBLANK(K13),\"\",IF(ProjectCode=NECB,INDEX(NECB_BuildingTable,MATCH($K13,NECB_BuildingTypes,0),3),IF(ProjectCode=ASHRAE,INDEX(ASHRAE_BuildingTable,MATCH($K13,ASHRAE_BuildingTypes,0),3),\"\")))","v":""},{"$f":"IF(ProjectUnits=\"Imperial\",\"W/sqft\",\"W/sqm\")","v":"W/sqm"}]
[null,{"$f":"IF('Luminaire Schedule'!B42=\"\",\"\",'Luminaire Schedule'!B42)","v":""},null,"",null,"",null,"",null,"",null,"",null,"Baseline Demand",{"$f":"IF(ISBLANK(K13),\"\",ROUND(O52*K14/1000,2))","v":""},"kW"]
[null,{"$f":"IF('Luminaire Schedule'!B43=\"\",\"\",'Luminaire Schedule'!B43)","v":""},null,"",null,"",null,"",null,"",null,"",null,"Baseline Lighting Energy",{"$f":"IF(ISBLANK(K13),\"\",O53*O51)","v":""},"kWh"]
[null,{"$f":"IF('Luminaire Schedule'!B44=\"\",\"\",'Luminaire Schedule'!B44)","v":""},null,"",null,"",null,"",null,"",null,"",null,"Design LPD",{"$f":"IF(ISBLANK(K13),\"\",(O56*1000)/K14)","v":""},{"$f":"IF(ProjectUnits=\"Imperial\",\"W/sqft\",\"W/sqm\")","v":"W/sqm"}]
[null,{"$f":"IF('Luminaire Schedule'!B45=\"\",\"\",'Luminaire Schedule'!B45)","v":""},null,"",null,"",null,"",null,"",null,"",null,"Design Demand",{"$f":"IF(ISBLANK(K13),\"\",ROUND(SUM($L$18:$L$168)/1000,2))","v":""},"kW"]
[null,{"$f":"IF('Luminaire Schedule'!B46=\"\",\"\",'Luminaire Schedule'!B46)","v":""},null,"",null,"",null,"",null,"",null,"",null,"Design Lighting Energy",{"$f":"IF(ISBLANK(K13),\"\",O56*O51)","v":""},"kWh"]
[null,{"$f":"IF('Luminaire Schedule'!B47=\"\",\"\",'Luminaire Schedule'!B47)","v":""},null,"",null,"",null,"",null,"",null,""]
[null,{"$f":"IF('Luminaire Schedule'!B48=\"\",\"\",'Luminaire Schedule'!B48)","v":""},null,"",null,"",null,"",null,"",null,"",null,"Total Baseline Demand",{"$f":"SUM(O21,O29,O37,O45,O53)","v":0},"kW"]
[null,{"$f":"IF('Luminaire Schedule'!B49=\"\",\"\",'Luminaire Schedule'!B49)","v":""},null,"",null,"",null,"",null,"",null,"",null,"Total Baseline Energy",{"$f":"SUM(O22,O30,O38,O46,O54,)","v":0},"kWh"]
[null,{"$f":"IF('Luminaire Schedule'!B50=\"\",\"\",'Luminaire Schedule'!B50)","v":""},null,"",null,"",null,"",null,"",null,"",null,"Total Design Demand",{"$f":"SUM(O24,O32,O40,O48,O56)","v":0},"kW"]
[null,{"$f":"IF('Luminaire Schedule'!B51=\"\",\"\",'Luminaire Schedule'!B51)","v":""},null,"",null,"",null,"",null,"",null,"",null,"Total Design Energy",{"$f":"SUM(O25,O33,O41,O49,O57)","v":0},"kWh"]
[null,{"$f":"IF('Luminaire Schedule'!B52=\"\",\"\",'Luminaire Schedule'!B52)","v":""},null,"",null,"",null,"",null,"",null,""]
[null,{"$f":"IF('Luminaire Schedule'!B53=\"\",\"\",'Luminaire Schedule'!B53)","v":""},null,"",null,"",null,"",null,"",null,""]
[null,{"$f":"IF('Luminaire Schedule'!B54=\"\",\"\",'Luminaire Schedule'!B54)","v":""},null,"",null,"",null,"",null,"",null,""]
[null,{"$f":"IF('Luminaire Schedule'!B55=\"\",\"\",'Luminaire Schedule'!B55)","v":""},null,"",null,"",null,"",null,"",null,""]
[null,{"$f":"IF('Luminaire Schedule'!B56=\"\",\"\",'Luminaire Schedule'!B56)","v":""},null,"",null,"",null,"",null,"",null,""]
[null,{"$f":"IF('Luminaire Schedule'!B57=\"\",\"\",'Luminaire Schedule'!B57)","v":""},null,"",null,"",null,"",null,"",null,""]
[null,{"$f":"IF('Luminaire Schedule'!B58=\"\",\"\",'Luminaire Schedule'!B58)","v":""},null,"",null,"",null,"",null,"",null,""]
[null,{"$f":"IF('Luminaire Schedule'!B59=\"\",\"\",'Luminaire Schedule'!B59)","v":""},null,"",null,"",null,"",null,"",null,""]
[null,{"$f":"IF('Luminaire Schedule'!B60=\"\",\"\",'Luminaire Schedule'!B60)","v":""},null,"",null,"",null,"",null,"",null,""]
[null,{"$f":"IF('Luminaire Schedule'!B61=\"\",\"\",'Luminaire Schedule'!B61)","v":""},null,"",null,"",null,"",null,"",null,""]
[null,{"$f":"IF('Luminaire Schedule'!B62=\"\",\"\",'Luminaire Schedule'!B62)","v":""},null,"",null,"",null,"",null,"",null,""]
[null,{"$f":"IF('Luminaire Schedule'!B63=\"\",\"\",'Luminaire Schedule'!B63)","v":""},null,"",null,"",null,"",null,"",null,""]
[null,{"$f":"IF('Luminaire Schedule'!B64=\"\",\"\",'Luminaire Schedule'!B64)","v":""},null,"",null,"",null,"",null,"",null,""]
[null,{"$f":"IF('Luminaire Schedule'!B65=\"\",\"\",'Luminaire Schedule'!B65)","v":""},null,"",null,"",null,"",null,"",null,""]
[null,{"$f":"IF('Luminaire Schedule'!B66=\"\",\"\",'Luminaire Schedule'!B66)","v":""},null,"",null,"",null,"",null,"",null,""]
[null,{"$f":"IF('Luminaire Schedule'!B67=\"\",\"\",'Luminaire Schedule'!B67)","v":""},null,"",null,"",null,"",null,"",null,""]
[null,{"$f":"IF('Luminaire Schedule'!B68=\"\",\"\",'Luminaire Schedule'!B68)","v":""},null,"",null,"",null,"",null,"",null,""]
[null,{"$f":"IF('Luminaire Schedule'!B69=\"\",\"\",'Luminaire Schedule'!B69)","v":""},null,"",null,"",null,"",null,"",null,""]
[null,{"$f":"IF('Luminaire Schedule'!B70=\"\",\"\",'Luminaire Schedule'!B70)","v":""},null,"",null,"",null,"",null,"",null,""]
[null,{"$f":"IF('Luminaire Schedule'!B71=\"\",\"\",'Luminaire Schedule'!B71)","v":""},null,"",null,"",null,"",null,"",null,{"$f":"IF($B82=\"\",\"\",$K82*INDEX(Luminaire_Table,MATCH($B82,Luminaire_Types,0),7))","v":""}]
[null,{"$f":"IF('Luminaire Schedule'!B72=\"\",\"\",'Luminaire Schedule'!B72)","v":""},null,"",null,"",null,"",null,"",null,""]
[null,{"$f":"IF('Luminaire Schedule'!B73=\"\",\"\",'Luminaire Schedule'!B73)","v":""},null,"",null,"",null,"",null,"",null,""]
[null,{"$f":"IF('Luminaire Schedule'!B74=\"\",\"\",'Luminaire Schedule'!B74)","v":""},null,"",null,"",null,"",null,"",null,""]
[null,{"$f":"IF('Luminaire Schedule'!B75=\"\",\"\",'Luminaire Schedule'!B75)","v":""},null,{"$f":"IF($B86=\"\",\"\",$C86*INDEX(Luminaire_Table,MATCH($B86,Luminaire_Types,0),7))","v":""},null,{"$f":"IF($B86=\"\",\"\",$E86*INDEX(Luminaire_Table,MATCH($B86,Luminaire_Types,0),7))","v":""},null,{"$f":"IF($B86=\"\",\"\",$G86*INDEX(Luminaire_Table,MATCH($B86,Luminaire_Types,0),7))","v":""},null,{"$f":"IF($B86=\"\",\"\",$I86*INDEX(Luminaire_Table,MATCH($B86,Luminaire_Types,0),7))","v":""},null,""]
[null,{"$f":"IF('Luminaire Schedule'!B76=\"\",\"\",'Luminaire Schedule'!B76)","v":""},null,"",null,"",null,"",null,"",null,""]
[null,{"$f":"IF('Luminaire Schedule'!B77=\"\",\"\",'Luminaire Schedule'!B77)","v":""},null,"",null,"",null,"",null,"",null,""]
[null,{"$f":"IF('Luminaire Schedule'!B78=\"\",\"\",'Luminaire Schedule'!B78)","v":""},null,"",null,"",null,"",null,"",null,""]
[null,{"$f":"IF('Luminaire Schedule'!B79=\"\",\"\",'Luminaire Schedule'!B79)","v":""},null,"",null,"",null,"",null,"",null,""]
[null,{"$f":"IF('Luminaire Schedule'!B80=\"\",\"\",'Luminaire Schedule'!B80)","v":""},null,"",null,"",null,"",null,"",null,""]
[null,{"$f":"IF('Luminaire Schedule'!B81=\"\",\"\",'Luminaire Schedule'!B81)","v":""},null,"",null,"",null,"",null,"",null,""]
[null,{"$f":"IF('Luminaire Schedule'!B82=\"\",\"\",'Luminaire Schedule'!B82)","v":""},null,"",null,"",null,"",null,"",null,""]
[null,{"$f":"IF('Luminaire Schedule'!B83=\"\",\"\",'Luminaire Schedule'!B83)","v":""},null,"",null,"",null,"",null,"",null,""]
[null,{"$f":"IF('Luminaire Schedule'!B84=\"\",\"\",'Luminaire Schedule'!B84)","v":""},null,"",null,"",null,"",null,"",null,""]
[null,{"$f":"IF('Luminaire Schedule'!B85=\"\",\"\",'Luminaire Schedule'!B85)","v":""},null,"",null,"",null,"",null,"",null,""]
[null,{"$f":"IF('Luminaire Schedule'!B86=\"\",\"\",'Luminaire Schedule'!B86)","v":""},null,"",null,"",null,"",null,"",null,""]
[null,{"$f":"IF('Luminaire Schedule'!B87=\"\",\"\",'Luminaire Schedule'!B87)","v":""},null,"",null,"",null,"",null,"",null,""]
[null,{"$f":"IF('Luminaire Schedule'!B88=\"\",\"\",'Luminaire Schedule'!B88)","v":""},null,"",null,"",null,"",null,"",null,""]
[null,{"$f":"IF('Luminaire Schedule'!B89=\"\",\"\",'Luminaire Schedule'!B89)","v":""},null,"",null,"",null,"",null,"",null,""]
[null,{"$f":"IF('Luminaire Schedule'!B90=\"\",\"\",'Luminaire Schedule'!B90)","v":""},null,"",null,"",null,"",null,"",null,""]
[null,{"$f":"IF('Luminaire Schedule'!B91=\"\",\"\",'Luminaire Schedule'!B91)","v":""},null,"",null,"",null,"",null,"",null,""]
[null,{"$f":"IF('Luminaire Schedule'!B92=\"\",\"\",'Luminaire Schedule'!B92)","v":""},null,"",null,"",null,"",null,"",null,""]
[null,{"$f":"IF('Luminaire Schedule'!B93=\"\",\"\",'Luminaire Schedule'!B93)","v":""},null,"",null,"",null,"",null,"",null,""]
[null,{"$f":"IF('Luminaire Schedule'!B94=\"\",\"\",'Luminaire Schedule'!B94)","v":""},null,"",null,"",null,"",null,"",null,""]
[null,{"$f":"IF('Luminaire Schedule'!B95=\"\",\"\",'Luminaire Schedule'!B95)","v":""},null,"",null,"",null,"",null,"",null,""]
[null,{"$f":"IF('Luminaire Schedule'!B96=\"\",\"\",'Luminaire Schedule'!B96)","v":""},null,"",null,"",null,"",null,"",null,""]
[null,{"$f":"IF('Luminaire Schedule'!B97=\"\",\"\",'Luminaire Schedule'!B97)","v":""},null,"",null,"",null,"",null,"",null,""]
[null,{"$f":"IF('Luminaire Schedule'!B98=\"\",\"\",'Luminaire Schedule'!B98)","v":""},null,"",null,"",null,"",null,"",null,""]
[null,{"$f":"IF('Luminaire Schedule'!B99=\"\",\"\",'Luminaire Schedule'!B99)","v":""},null,"",null,"",null,"",null,"",null,""]
[null,{"$f":"IF('Luminaire Schedule'!B100=\"\",\"\",'Luminaire Schedule'!B100)","v":""},null,"",null,"",null,"",null,"",null,""]
[null,{"$f":"IF('Luminaire Schedule'!B101=\"\",\"\",'Luminaire Schedule'!B101)","v":""},null,"",null,"",null,"",null,"",null,""]
[null,{"$f":"IF('Luminaire Schedule'!B102=\"\",\"\",'Luminaire Schedule'!B102)","v":""},null,"",null,"",null,"",null,"",null,""]
[null,{"$f":"IF('Luminaire Schedule'!B103=\"\",\"\",'Luminaire Schedule'!B103)","v":""},null,"",null,"",null,"",null,"",null,""]
[null,{"$f":"IF('Luminaire Schedule'!B104=\"\",\"\",'Luminaire Schedule'!B104)","v":""},null,"",null,"",null,"",null,"",null,""]
[null,{"$f":"IF('Luminaire Schedule'!B105=\"\",\"\",'Luminaire Schedule'!B105)","v":""},null,"",null,"",null,"",null,"",null,""]
[null,{"$f":"IF('Luminaire Schedule'!B106=\"\",\"\",'Luminaire Schedule'!B106)","v":""},null,"",null,"",null,"",null,"",null,""]
[null,{"$f":"IF('Luminaire Schedule'!B107=\"\",\"\",'Luminaire Schedule'!B107)","v":""},null,"",null,"",null,"",null,"",null,""]
[null,{"$f":"IF('Luminaire Schedule'!B108=\"\",\"\",'Luminaire Schedule'!B108)","v":""},null,"",null,"",null,"",null,"",null,""]
[null,{"$f":"IF('Luminaire Schedule'!B109=\"\",\"\",'Luminaire Schedule'!B109)","v":""},null,"",null,"",null,"",null,"",null,""]
[null,{"$f":"IF('Luminaire Schedule'!B110=\"\",\"\",'Luminaire Schedule'!B110)","v":""},null,"",null,"",null,"",null,"",null,""]
[null,{"$f":"IF('Luminaire Schedule'!B111=\"\",\"\",'Luminaire Schedule'!B111)","v":""},null,"",null,"",null,"",null,"",null,""]
[null,{"$f":"IF('Luminaire Schedule'!B112=\"\",\"\",'Luminaire Schedule'!B112)","v":""},null,"",null,"",null,"",null,"",null,""]
[null,{"$f":"IF('Luminaire Schedule'!B113=\"\",\"\",'Luminaire Schedule'!B113)","v":""},null,"",null,"",null,"",null,"",null,""]
[null,{"$f":"IF('Luminaire Schedule'!B114=\"\",\"\",'Luminaire Schedule'!B114)","v":""},null,"",null,"",null,"",null,"",null,""]
[null,{"$f":"IF('Luminaire Schedule'!B115=\"\",\"\",'Luminaire Schedule'!B115)","v":""},null,"",null,"",null,"",null,"",null,""]
[null,{"$f":"IF('Luminaire Schedule'!B116=\"\",\"\",'Luminaire Schedule'!B116)","v":""},null,"",null,"",null,"",null,"",null,""]
[null,{"$f":"IF('Luminaire Schedule'!B117=\"\",\"\",'Luminaire Schedule'!B117)","v":""},null,"",null,"",null,"",null,"",null,""]
[null,{"$f":"IF('Luminaire Schedule'!B118=\"\",\"\",'Luminaire Schedule'!B118)","v":""},null,"",null,"",null,"",null,"",null,""]
[null,{"$f":"IF('Luminaire Schedule'!B119=\"\",\"\",'Luminaire Schedule'!B119)","v":""},null,"",null,"",null,"",null,"",null,""]
[null,{"$f":"IF('Luminaire Schedule'!B120=\"\",\"\",'Luminaire Schedule'!B120)","v":""},null,"",null,"",null,"",null,"",null,""]
[null,{"$f":"IF('Luminaire Schedule'!B121=\"\",\"\",'Luminaire Schedule'!B121)","v":""},null,"",null,"",null,"",null,"",null,""]
[null,{"$f":"IF('Luminaire Schedule'!B122=\"\",\"\",'Luminaire Schedule'!B122)","v":""},null,"",null,"",null,"",null,"",null,""]
[null,{"$f":"IF('Luminaire Schedule'!B123=\"\",\"\",'Luminaire Schedule'!B123)","v":""},null,"",null,"",null,"",null,"",null,""]
[null,{"$f":"IF('Luminaire Schedule'!B124=\"\",\"\",'Luminaire Schedule'!B124)","v":""},null,"",null,"",null,"",null,"",null,""]
[null,{"$f":"IF('Luminaire Schedule'!B125=\"\",\"\",'Luminaire Schedule'!B125)","v":""},null,"",null,"",null,"",null,"",null,""]
[null,{"$f":"IF('Luminaire Schedule'!B126=\"\",\"\",'Luminaire Schedule'!B126)","v":""},null,"",null,"",null,"",null,"",null,""]
[null,{"$f":"IF('Luminaire Schedule'!B127=\"\",\"\",'Luminaire Schedule'!B127)","v":""},null,"",null,"",null,"",null,"",null,""]
[null,{"$f":"IF('Luminaire Schedule'!B128=\"\",\"\",'Luminaire Schedule'!B128)","v":""},null,"",null,"",null,"",null,"",null,""]
[null,{"$f":"IF('Luminaire Schedule'!B129=\"\",\"\",'Luminaire Schedule'!B129)","v":""},null,"",null,"",null,"",null,"",null,""]
[null,{"$f":"IF('Luminaire Schedule'!B130=\"\",\"\",'Luminaire Schedule'!B130)","v":""},null,"",null,"",null,"",null,"",null,""]
[null,{"$f":"IF('Luminaire Schedule'!B131=\"\",\"\",'Luminaire Schedule'!B131)","v":""},null,"",null,"",null,"",null,"",null,""]
[null,{"$f":"IF('Luminaire Schedule'!B132=\"\",\"\",'Luminaire Schedule'!B132)","v":""},null,"",null,"",null,"",null,"",null,""]
[null,{"$f":"IF('Luminaire Schedule'!B133=\"\",\"\",'Luminaire Schedule'!B133)","v":""},null,"",null,"",null,"",null,"",null,""]
[null,{"$f":"IF('Luminaire Schedule'!B134=\"\",\"\",'Luminaire Schedule'!B134)","v":""},null,"",null,"",null,"",null,"",null,""]
[null,{"$f":"IF('Luminaire Schedule'!B135=\"\",\"\",'Luminaire Schedule'!B135)","v":""},null,"",null,"",null,"",null,"",null,{"$f":"IF($B146=\"\",\"\",$K146*INDEX(Luminaire_Table,MATCH($B146,Luminaire_Types,0),7))","v":""}]
[null,{"$f":"IF('Luminaire Schedule'!B136=\"\",\"\",'Luminaire Schedule'!B136)","v":""},null,"",null,"",null,"",null,"",null,""]
[null,{"$f":"IF('Luminaire Schedule'!B137=\"\",\"\",'Luminaire Schedule'!B137)","v":""},null,"",null,"",null,"",null,"",null,""]
[null,{"$f":"IF('Luminaire Schedule'!B138=\"\",\"\",'Luminaire Schedule'!B138)","v":""},null,"",null,"",null,"",null,"",null,""]
[null,{"$f":"IF('Luminaire Schedule'!B139=\"\",\"\",'Luminaire Schedule'!B139)","v":""},null,{"$f":"IF($B150=\"\",\"\",$C150*INDEX(Luminaire_Table,MATCH($B150,Luminaire_Types,0),7))","v":""},null,{"$f":"IF($B150=\"\",\"\",$E150*INDEX(Luminaire_Table,MATCH($B150,Luminaire_Types,0),7))","v":""},null,{"$f":"IF($B150=\"\",\"\",$G150*INDEX(Luminaire_Table,MATCH($B150,Luminaire_Types,0),7))","v":""},null,{"$f":"IF($B150=\"\",\"\",$I150*INDEX(Luminaire_Table,MATCH($B150,Luminaire_Types,0),7))","v":""},null,""]
[null,{"$f":"IF('Luminaire Schedule'!B140=\"\",\"\",'Luminaire Schedule'!B140)","v":""},null,"",null,"",null,"",null,"",null,""]
[null,{"$f":"IF('Luminaire Schedule'!B141=\"\",\"\",'Luminaire Schedule'!B141)","v":""},null,"",null,"",null,"",null,"",null,""]
[null,{"$f":"IF('Luminaire Schedule'!B142=\"\",\"\",'Luminaire Schedule'!B142)","v":""},null,"",null,"",null,"",null,"",null,""]
[null,{"$f":"IF('Luminaire Schedule'!B143=\"\",\"\",'Luminaire Schedule'!B143)","v":""},null,"",null,"",null,"",null,"",null,""]
[null,{"$f":"IF('Luminaire Schedule'!B144=\"\",\"\",'Luminaire Schedule'!B144)","v":""},null,"",null,"",null,"",null,"",null,""]
[null,{"$f":"IF('Luminaire Schedule'!B145=\"\",\"\",'Luminaire Schedule'!B145)","v":""},null,"",null,"",null,"",null,"",null,""]
[null,{"$f":"IF('Luminaire Schedule'!B146=\"\",\"\",'Luminaire Schedule'!B146)","v":""},null,"",null,"",null,"",null,"",null,""]
[null,{"$f":"IF('Luminaire Schedule'!B147=\"\",\"\",'Luminaire Schedule'!B147)","v":""},null,"",null,"",null,"",null,"",null,""]
[null,{"$f":"IF('Luminaire Schedule'!B148=\"\",\"\",'Luminaire Schedule'!B148)","v":""},null,"",null,"",null,"",null,"",null,""]
[null,{"$f":"IF('Luminaire Schedule'!B149=\"\",\"\",'Luminaire Schedule'!B149)","v":""},null,"",null,"",null,"",null,"",null,""]
[null,{"$f":"IF('Luminaire Schedule'!B150=\"\",\"\",'Luminaire Schedule'!B150)","v":""},null,"",null,"",null,"",null,"",null,""]
[null,{"$f":"IF('Luminaire Schedule'!B151=\"\",\"\",'Luminaire Schedule'!B151)","v":""},null,"",null,"",null,"",null,"",null,""]
[null,{"$f":"IF('Luminaire Schedule'!B152=\"\",\"\",'Luminaire Schedule'!B152)","v":""},null,"",null,"",null,"",null,"",null,""]
[null,{"$f":"IF('Luminaire Schedule'!B153=\"\",\"\",'Luminaire Schedule'!B153)","v":""},null,"",null,"",null,"",null,"",null,""]
[null,{"$f":"IF('Luminaire Schedule'!B154=\"\",\"\",'Luminaire Schedule'!B154)","v":""},null,"",null,"",null,"",null,"",null,""]
[null,{"$f":"IF('Luminaire Schedule'!B155=\"\",\"\",'Luminaire Schedule'!B155)","v":""},null,"",null,"",null,"",null,"",null,""]
[null,{"$f":"IF('Luminaire Schedule'!B156=\"\",\"\",'Luminaire Schedule'!B156)","v":""},null,"",null,"",null,"",null,"",null,""]
[null,{"$f":"IF('Luminaire Schedule'!B157=\"\",\"\",'Luminaire Schedule'!B157)","v":""},null,"",null,"",null,"",null,"",null,""]

{"sheet":"Interior - Space-By-Space","index":4,"n_rows":65,"n_cols":55,"rows_kept":65,"cut":false,"hidden":false,"merged":[[12,44,12,45],[12,49,12,50],[0,2,0,12],[1,2,1,12],[12,12,12,13],[5,2,5,5],[6,2,6,3],[7,2,7,3],[8,2,8,3],[9,2,9,3],[8,8,9,10],[8,12,9,12]]}
[null,null,"BC Hydro Power Smart Commercial New Construction Program"]
[null,null,"New Construction Lighting Calculator"]
[null,null,{"$f":"'Basic Lists'!A100","v":"BC Hydro Power Smart CNC LC v.3.1"}]
[null,null,"Interior Lighting Calculator"]
[]
[null,null,"Interior Totals"]
[null,null,"Demand Savings",null,{"$f":"$AY$65","v":0},"kW"]
[null,null,"Energy Savings - LPD",null,{"$f":"$AZ$65","v":0},"kWh"]
[null,null,"Energy Savings - LIGHTING CONTROLS",null,{"$f":"$BA$65","v":0},"kWh",null,null,"Number of Luminaire Columns to Show:",null,null,null,4]
[null,null,"Energy Savings - TOTAL",null,{"$f":"$BB$65","v":0},"kWh"]
[]
[]
[null,null,"Space Info",null,null,null,null,null,null,null,null,"hide","Lighting Info",null,"hide",null,null,null,"hide",null,null,null,"hide",null,null,null,"hide",null,null,null,"hide",null,null,null,"hide",null,null,null,"hide",null,null,null,"hide",null,"Calculated Values",null,null,null,null,"Savings Info"]
[null,"Space","Area Name","Number of Identical Areas","Space Type",{"$f":"IF(ProjectUnits=\"Imperial\",\"RCR / Corridor Width (ft)\",\"RCR / Corridor Width (m)\")","v":"RCR / Corridor Width (m)"},"Meets RCR Threshold","Baseline LPD","Annual Hours","Surface Area","Local Automated\nLighting Control Type","Lighting Controls Hour Reduction","Luminaire [Type 1]","Quantity [Type 1]","Total Quantity [Type 1]","W [Type 1]","Luminaire [Type 2]","Quantity [Type 2]","Total Quantity [Type 2]","W [Type 2]","Luminaire [Type 3]","Quantity [Type 3]","Total Quantity [Type 3]","W [Type 3]","Luminaire [Type 4]","Quantity [Type 4]","Total Quantity [Type 4]","W [Type 4]","Luminaire [Type 5]","Quantity [Type 5]","Total Quantity [Type 5]","W [Type 5]","Luminaire [Type 6]","Quantity [Type 6]","Total Quantity [Type 6]","W [Type 6]","Luminaire [Type 7]","Quantity [Type 7]","Total Quantity [Type 7]","W [Type 7]","Luminaire [Type 8]","Quantity [Type 8]","Total Quantity [Type 8]","W [Type 8]","Design LPD","Baseline Annual Lighting Energy","Design Annual Lighting Energy","Baseline Demand Allowance","Design Demand","LPD Savings","Demand Savings","Energy Savings - HARDWIRED","Energy Savings - CONTROL","Energy Savings - TOTAL","Meets Retail Allowance Check"]
[null,"#",null,"#",null,"Optional",null,{"$f":"IF(ProjectUnits=\"Imperial\",\"W/sqft\",\"W/sqm\")","v":"W/sqm"},"hrs",{"$f":"IF(ProjectUnits=\"Imperial\",\"sqft\",\"sqm\")","v":"sqm"},null,"%",null,"#","#","W",null,"#","#","W",null,"#","#","W",null,"#","#","W",null,"#","#","W",null,"#","#","W",null,"#","#","W",null,"#","#","W",{"$f":"IF(ProjectUnits=\"Imperial\",\"W/sqft\",\"W/sqm\")","v":"W/sqm"},"kWh","kWh","kW","kW",{"$f":"IF(ProjectUnits=\"Imperial\",\"W/sqft\",\"W/sqm\")","v":"W/sqm"},"kW","kWh","kWh","kWh"]
[null,{"$f":"ROW()-22","v":-6},null,null,null,null,{"$f":"IF(OR(ISBLANK($E16),$D16=0),\"\",AND(NOT(ISBLANK($F16)),ProjectCode=ASHRAE,OR(AND(ISNUMBER(FIND(\"Corridor\",$E16)),$F16<INDEX(ASHRAE_InteriorTable,MATCH($E16,ASHRAE_InteriorSpaces,0),6)),AND(NOT(ISNUMBER(FIND(\"Corridor\",$E16))),$F16>INDEX(ASHRAE_InteriorTable,MATCH($E16,ASHRAE_InteriorSpaces,0),6)))))","v":""},{"$f":"IF(OR(ISBLANK($E16),$D16=0),\"\",IF(ProjectCode=NECB,INDEX(NECB_InteriorTable,MATCH($E16,NECB_InteriorSpaces,0),3),IF(ProjectCode=ASHRAE,INDEX(ASHRAE_InteriorTable,MATCH($E16,ASHRAE_InteriorSpaces,0),3)*IF($G16,1.2,1),0)))","v":""},{"$f":"IF(OR(ISBLANK($E16),$D16=0),\"\",IF(ProjectCode=NECB,INDEX(NECB_InteriorTable,MATCH($E16,NECB_InteriorSpaces,0),4),IF(ProjectCode=ASHRAE,INDEX(ASHRAE_InteriorTable,MATCH($E16,ASHRAE_InteriorSpaces,0),4),\"\")))","v":""},null,null,{"$f":"IF(ISBLANK($K16),\"\",IF($E16=\"Parking Garage Area\",0,INDEX(Interior_ControlsTable,MATCH($K16,Interior_ControlsTypes,0),IF(ISNUMBER(MATCH($E16,OSRequired_Spaces,0)),3,2))))","v":""},null,null,{"$f":"IF(OR(ISBLANK($E16),$D16=0),\"\",N16*$D16)","v":""},{"$f":"IF(OR(ISBLANK($E16),$D16=0), \"\",IF(ISBLANK(M16),0,INDEX(Luminaire_Table,MATCH(M16,Luminaire_Types,0),7)))","v":""},null,null,{"$f":"IF(OR(ISBLANK($E16),$D16=0),\"\",R16*$D16)","v":""},{"$f":"IF(OR(ISBLANK($E16),$D16=0), \"\",IF(ISBLANK(Q16),0,INDEX(Luminaire_Table,MATCH(Q16,Luminaire_Types,0),7)))","v":""},null,null,{"$f":"IF(OR(ISBLANK($E16),$D16=0),\"\",V16*$D16)","v":""},{"$f":"IF(OR(ISBLANK($E16),$D16=0), \"\",IF(ISBLANK(U16),0,INDEX(Luminaire_Table,MATCH(U16,Luminaire_Types,0),7)))","v":""},null,null,{"$f":"IF(OR(ISBLANK($E16),$D16=0),\"\",Z16*$D16)","v":""},{"$f":"IF(OR(ISBLANK($E16),$D16=0), \"\",IF(ISBLANK(Y16),0,INDEX(Luminaire_Table,MATCH(Y16,Luminaire_Types,0),7)))","v":""},null,null,{"$f":"IF(OR(ISBLANK($E16),$D16=0),\"\",AD16*$D16)","v":""},{"$f":"IF(OR(ISBLANK($E16),$D16=0), \"\",IF(ISBLANK(AC16),0,INDEX(Luminaire_Table,MATCH(AC16,Luminaire_Types,0),7)))","v":""},null,null,{"$f":"IF(OR(ISBLANK($E16),$D16=0),\"\",AH16*$D16)","v":""},{"$f":"IF(OR(ISBLANK($E16),$D16=0), \"\",IF(ISBLANK(AG16),0,INDEX(Luminaire_Table,MATCH(AG16,Luminaire_Types,0),7)))","v":""},null,null,{"$f":"IF(OR(ISBLANK($E16),$D16=0),\"\",AL16*$D16)","v":""},{"$f":"IF(OR(ISBLANK($E16),$D16=0), \"\",IF(ISBLANK(AK16),0,INDEX(Luminaire_Table,MATCH(AK16,Luminaire_Types,0),7)))","v":""},null,null,{"$f":"IF(OR(ISBLANK($E16),$D16=0),\"\",AP16*$D16)","v":""},{"$f":"IF(OR(ISBLANK($E16),$D16=0), \"\",IF(ISBLANK(AO16),0,INDEX(Luminaire_Table,MATCH(AO16,Luminaire_Types,0),7)))","v":""},{"$f":"IF(OR(ISBLANK($E16),$D16=0),\"\",AW16*1000/(J16*D16))","v":""},{"$f":"IF(OR(ISBLANK($E16),$D16=0),\"\",AV16*I16)","v":""},{"$f":"IF(OR(ISBLANK($E16),$D16=0),\"\",AW16*I16*(1-L16))","v":""},{"$f":"IF(OR(ISBLANK($E16),$D16=0),\"\",D16*H16*J16/1000)","v":""},{"$f":"IF(OR(ISBLANK($E16),$D16=0),\"\",D16*(N16*P16+R16*T16+V16*X16+Z16*AB16+AD16*AF16+AH16*AJ16+AL16*AN16+AP16*AR16)/1000)","v":""},{"$f":"IF(OR(ISBLANK($E16),$D16=0,$AW16=0),\"\",H16-AS16)","v":""},{"$f":"IF(OR(ISBLANK($E16),$D16=0,$AW16=0),\"\",AV16-AW16)","v":""},{"$f":"IF(OR(ISBLANK($E16),$D16=0,$AW16=0),\"\",AY16*I16)","v":""},{"$f":"IF(OR(ISBLANK($E16),$D16=0,$AW16=0),\"\",AW16*I16*L16)","v":""},{"$f":"IF(OR(ISBLANK($E16),$D16=0,$AW16=0),\"\",AT16-AU16)","v":""},{"$f":"AND(OR($E16=\"Retail - Sales Area\",$E16=\"Sales Area\"),$D16>0,$J16>0)","v":false}]
[null,{"$f":"ROW()-22","v":-5},null,null,null,null,{"$f":"IF(OR(ISBLANK($E17),$D17=0),\"\",AND(NOT(ISBLANK($F17)),ProjectCode=ASHRAE,OR(AND(ISNUMBER(FIND(\"Corridor\",$E17)),$F17<INDEX(ASHRAE_InteriorTable,MATCH($E17,ASHRAE_InteriorSpaces,0),6)),AND(NOT(ISNUMBER(FIND(\"Corridor\",$E17))),$F17>INDEX(ASHRAE_InteriorTable,MATCH($E17,ASHRAE_InteriorSpaces,0),6)))))","v":""},"","",null,null,"",null,null,{"$f":"IF(OR(ISBLANK($E17),$D17=0),\"\",N17*$D17)","v":""},{"$f":"IF(OR(ISBLANK($E17),$D17=0), \"\",IF(ISBLANK(M17),0,INDEX(Luminaire_Table,MATCH(M17,Luminaire_Types,0),7)))","v":""},null,null,{"$f":"IF(OR(ISBLANK($E17),$D17=0),\"\",R17*$D17)","v":""},{"$f":"IF(OR(ISBLANK($E17),$D17=0), \"\",IF(ISBLANK(Q17),0,INDEX(Luminaire_Table,MATCH(Q17,Luminaire_Types,0),7)))","v":""},null,null,{"$f":"IF(OR(ISBLANK($E17),$D17=0),\"\",V17*$D17)","v":""},{"$f":"IF(OR(ISBLANK($E17),$D17=0), \"\",IF(ISBLANK(U17),0,INDEX(Luminaire_Table,MATCH(U17,Luminaire_Types,0),7)))","v":""},null,null,{"$f":"IF(OR(ISBLANK($E17),$D17=0),\"\",Z17*$D17)","v":""},{"$f":"IF(OR(ISBLANK($E17),$D17=0), \"\",IF(ISBLANK(Y17),0,INDEX(Luminaire_Table,MATCH(Y17,Luminaire_Types,0),7)))","v":""},null,null,{"$f":"IF(OR(ISBLANK($E17),$D17=0),\"\",AD17*$D17)","v":""},{"$f":"IF(OR(ISBLANK($E17),$D17=0), \"\",IF(ISBLANK(AC17),0,INDEX(Luminaire_Table,MATCH(AC17,Luminaire_Types,0),7)))","v":""},null,null,{"$f":"IF(OR(ISBLANK($E17),$D17=0),\"\",AH17*$D17)","v":""},{"$f":"IF(OR(ISBLANK($E17),$D17=0), \"\",IF(ISBLANK(AG17),0,INDEX(Luminaire_Table,MATCH(AG17,Luminaire_Types,0),7)))","v":""},null,null,{"$f":"IF(OR(ISBLANK($E17),$D17=0),\"\",AL17*$D17)","v":""},{"$f":"IF(OR(ISBLANK($E17),$D17=0), \"\",IF(ISBLANK(AK17),0,INDEX(Luminaire_Table,MATCH(AK17,Luminaire_Types,0),7)))","v":""},null,null,{"$f":"IF(OR(ISBLANK($E17),$D17=0),\"\",AP17*$D17)","v":""},{"$f":"IF(OR(ISBLANK($E17),$D17=0), \"\",IF(ISBLANK(AO17),0,INDEX(Luminaire_Table,MATCH(AO17,Luminaire_Types,0),7)))","v":""},{"$f":"IF(OR(ISBLANK($E17),$D17=0),\"\",AW17*1000/(J17*D17))","v":""},"","",{"$f":"IF(OR(ISBLANK($E17),$D17=0),\"\",D17*H17*J17/1000)","v":""},{"$f":"IF(OR(ISBLANK($E17),$D17=0),\"\",D17*(N17*P17+R17*T17+V17*X17+Z17*AB17+AD17*AF17+AH17*AJ17+AL17*AN17+AP17*AR17)/1000)","v":""},{"$f":"IF(OR(ISBLANK($E17),$D17=0,$AW17=0),\"\",H17-AS17)","v":""},{"$f":"IF(OR(ISBLANK($E17),$D17=0,$AW17=0),\"\",AV17-AW17)","v":""},{"$f":"IF(OR(ISBLANK($E17),$D17=0,$AW17=0),\"\",AY17*I17)","v":""},{"$f":"IF(OR(ISBLANK($E17),$D17=0,$AW17=0),\"\",AW17*I17*L17)","v":""},{"$f":"IF(OR(ISBLANK($E17),$D17=0,$AW17=0),\"\",AT17-AU17)","v":""},{"$f":"AND(OR($E17=\"Retail - Sales Area\",$E17=\"Sales Area\"),$D17>0,$J17>0)","v":false}]
[null,{"$f":"ROW()-22","v":-4},null,null,null,null,{"$f":"IF(ISBLANK($E18),\"\",AND(NOT(ISBLANK($F18)),ProjectCode=ASHRAE,OR(AND(ISNUMBER(FIND(\"Corridor\",$E18)),$F18<INDEX(ASHRAE_InteriorTable,MATCH($E18,ASHRAE_InteriorSpaces,0),6)),AND(NOT(ISNUMBER(FIND(\"Corridor\",$E18))),$F18>INDEX(ASHRAE_InteriorTable,MATCH($E18,ASHRAE_InteriorSpaces,0),6)))))","v":""},"","",null,null,"",null,null,{"$f":"IF(ISBLANK($E18),\"\",N18*$D18)","v":""},"",null,null,{"$f":"IF(ISBLANK($E18),\"\",R18*$D18)","v":""},"",null,null,{"$f":"IF(ISBLANK($E18),\"\",V18*$D18)","v":""},"",null,null,{"$f":"IF(ISBLANK($E18),\"\",Z18*$D18)","v":""},"",null,null,{"$f":"IF(ISBLANK($E18),\"\",AD18*$D18)","v":""},"",null,null,{"$f":"IF(ISBLANK($E18),\"\",AH18*$D18)","v":""},"",null,null,{"$f":"IF(ISBLANK($E18),\"\",AL18*$D18)","v":""},"",null,null,{"$f":"IF(ISBLANK($E18),\"\",AP18*$D18)","v":""},"","","","","","","","","","","",{"$f":"AND(OR($E18=\"Retail - Sales Area\",$E18=\"Sales Area\"),$D18>0,$J18>0)","v":false}]
[null,-3,null,null,null,null,"","","",null,null,"",null,null,{"$f":"IF(ISBLANK($E19),\"\",N19*$D19)","v":""},{"$f":"IF(OR(ISBLANK($E19),$D19=0), \"\",IF(ISBLANK(M19),0,INDEX(Luminaire_Table,MATCH(M19,Luminaire_Types,0),7)))","v":""},null,null,{"$f":"IF(ISBLANK($E19),\"\",R19*$D19)","v":""},{"$f":"IF(OR(ISBLANK($E19),$D19=0), \"\",IF(ISBLANK(Q19),0,INDEX(Luminaire_Table,MATCH(Q19,Luminaire_Types,0),7)))","v":""},null,null,{"$f":"IF(ISBLANK($E19),\"\",V19*$D19)","v":""},{"$f":"IF(OR(ISBLANK($E19),$D19=0), \"\",IF(ISBLANK(U19),0,INDEX(Luminaire_Table,MATCH(U19,Luminaire_Types,0),7)))","v":""},null,null,{"$f":"IF(ISBLANK($E19),\"\",Z19*$D19)","v":""},{"$f":"IF(OR(ISBLANK($E19),$D19=0), \"\",IF(ISBLANK(Y19),0,INDEX(Luminaire_Table,MATCH(Y19,Luminaire_Types,0),7)))","v":""},null,null,{"$f":"IF(ISBLANK($E19),\"\",AD19*$D19)","v":""},{"$f":"IF(OR(ISBLANK($E19),$D19=0), \"\",IF(ISBLANK(AC19),0,INDEX(Luminaire_Table,MATCH(AC19,Luminaire_Types,0),7)))","v":""},null,null,{"$f":"IF(ISBLANK($E19),\"\",AH19*$D19)","v":""},{"$f":"IF(OR(ISBLANK($E19),$D19=0), \"\",IF(ISBLANK(AG19),0,INDEX(Luminaire_Table,MATCH(AG19,Luminaire_Types,0),7)))","v":""},null,null,{"$f":"IF(ISBLANK($E19),\"\",AL19*$D19)","v":""},{"$f":"IF(OR(ISBLANK($E19),$D19=0), \"\",IF(ISBLANK(AK19),0,INDEX(Luminaire_Table,MATCH(AK19,Luminaire_Types,0),7)))","v":""},null,null,{"$f":"IF(ISBLANK($E19),\"\",AP19*$D19)","v":""},{"$f":"IF(OR(ISBLANK($E19),$D19=0), \"\",IF(ISBLANK(AO19),0,INDEX(Luminaire_Table,MATCH(AO19,Luminaire_Types,0),7)))","v":""},{"$f":"IF(OR(ISBLANK($E19),$D19=0),\"\",AW19*1000/(J19*D19))","v":""},"","",{"$f":"IF(OR(ISBLANK($E19),$D19=0),\"\",D19*H19*J19/1000)","v":""},"","","","","","",false]
[null,-2,null,null,null,null,"","","",null,null,"",null,null,"","",null,null,"","",null,null,"","",null,null,"","",null,null,"","",null,null,"","",null,null,"","",null,null,"","","","","","","","","","","","",false]
[null,-1,null,null,null,null,"","","",null,null,"",null,null,"","",null,null,"","",null,null,"","",null,null,"","",null,null,"","",null,null,"","",null,null,"","",null,null,"","","","","","","","","","","","",false]
[null,0,null,null,null,null,"","","",null,null,"",null,null,"","",null,null,"","",null,null,"","",null,null,"","",null,null,"","",null,null,"","",null,null,"","",null,null,"","","","","","","","","","","","",false]
[null,1,null,null,null,null,"","","",null,null,"",null,null,"","",null,null,"","",null,null,"","",null,null,"","",null,null,"","",null,null,"","",null,null,"","",null,null,"","","","","","","","","","","","",false]
[null,2,null,null,null,null,"","","",null,null,"",null,null,"","",null,null,"","",null,null,"","",null,null,"","",null,null,"","",null,null,"","",null,null,"","",null,null,"","","","","","","","","","","","",false]
[null,3,null,null,null,null,"","","",null,null,"",null,null,"","",null,null,"","",null,null,"","",null,null,"","",null,null,"","",null,null,"","",null,null,"","",null,null,"","","","","","","","","","","","",false]
[null,4,null,null,null,null,"","","",null,null,"",null,null,"","",null,null,"","",null,null,"","",null,null,"","",null,null,"","",null,null,"","",null,null,"","",null,null,"","","","","","","","","","","","",false]
[null,5,null,null,null,null,"","","",null,null,"",null,null,"","",null,null,"","",null,null,"","",null,null,"","",null,null,"","",null,null,"","",null,null,"","",null,null,"","","","","","","","","","","","",false]
[null,6,null,null,null,null,"","","",null,null,"",null,null,"","",null,null,"","",null,null,"","",null,null,"","",null,null,"","",null,null,"","",null,null,"","",null,null,"","","","","","","","","","","","",false]
[null,7,null,null,null,null,"","","",null,null,"",null,null,"","",null,null,"","",null,null,"","",null,null,"","",null,null,"","",null,null,"","",null,null,"","",null,null,"","","","","","","","","","","","",false]
[null,8,null,null,null,null,"","","",null,null,"",null,null,"","",null,null,"","",null,null,"","",null,null,"","",null,null,"","",null,null,"","",null,null,"","",null,null,"","","","","","","","","","","","",false]
[null,9,null,null,null,null,"","","",null,null,"",null,null,"","",null,null,"","",null,null,"","",null,null,"","",null,null,"","",null,null,"","",null,null,"","",null,null,"","","","","","","","","","","","",false]
[null,10,null,null,null,null,"","","",null,null,"",null,null,"","",null,null,"","",null,null,"","",null,null,"","",null,null,"","",null,null,"","",null,null,"","",null,null,"","","","","","","","","","","","",false]
[null,11,null,null,null,null,"","","",null,null,"",null,null,"","",null,null,"","",null,null,"","",null,null,"","",null,null,"","",null,null,"","",null,null,"","",null,null,"","","","","","","","","","","","",false]
[null,12,null,null,null,null,"","","",null,null,"",null,null,"","",null,null,"","",null,null,"","",null,null,"","",null,null,"","",null,null,"","",null,null,"","",null,null,"","","","","","","","","","","","",false]
[null,13,null,null,null,null,"","","",null,null,"",null,null,"","",null,null,"","",null,null,"","",null,null,"","",null,null,"","",null,null,"","",null,null,"","",null,null,"","","","","","","","","","","","",false]
[null,14,null,null,null,null,"","","",null,null,"",null,null,"","",null,null,"","",null,null,"","",null,null,"","",null,null,"","",null,null,"","",null,null,"","",null,null,"","","","","","","","","","","","",false]
[null,15,null,null,null,null,"","","",null,null,"",null,null,"","",null,null,"","",null,null,"","",null,null,"","",null,null,"","",null,null,"","",null,null,"","",null,null,"","","","","","","","","","","","",false]
[null,16,null,null,null,null,"","","",null,null,"",null,null,"","",null,null,"","",null,null,"","",null,null,"","",null,null,"","",null,null,"","",null,null,"","",null,null,"","","","","","","","","","","","",false]
[null,17,null,null,null,null,"","","",null,null,"",null,null,"","",null,null,"","",null,null,"","",null,null,"","",null,null,"","",null,null,"","",null,null,"","",null,null,"","","","","","","","","","","","",false]
[null,18,null,null,null,null,"","","",null,null,"",null,null,"","",null,null,"","",null,null,"","",null,null,"","",null,null,"","",null,null,"","",null,null,"","",null,null,"","","","","","","","","","","","",false]
[null,19,null,null,null,null,"","","",null,null,"",null,null,"","",null,null,"","",null,null,"","",null,null,"","",null,null,"","",null,null,"","",null,null,"","",null,null,"","","","","","","","","","","","",false]
[null,20,null,null,null,null,"","","",null,null,"",null,null,"","",null,null,"","",null,null,"","",null,null,"","",null,null,"","",null,null,"","",null,null,"","",null,null,"","","","","","","","","","","","",false]
[null,21,null,null,null,null,"","","",null,null,"",null,null,"","",null,null,"","",null,null,"","",null,null,"","",null,null,"","",null,null,"","",null,null,"","",null,null,"","","","","","","","","","","","",false]
[null,22,null,null,null,null,"","","",null,null,"",null,null,"","",null,null,"","",null,null,"","",null,null,"","",null,null,"","",null,null,"","",null,null,"","",null,null,"","","","","","","","","","","","",false]
[null,23,null,null,null,null,"","","",null,null,"",null,null,"","",null,null,"","",null,null,"","",null,null,"","",null,null,"","",null,null,"","",null,null,"","",null,null,"","","","","","","","","","","","",false]
[null,24,null,null,null,null,"","","",null,null,"",null,null,"","",null,null,"","",null,null,"","",null,null,"","",null,null,"","",null,null,"","",null,null,"","",null,null,"","","","","","","","","","","","",false]
[null,25,null,null,null,null,"","","",null,null,"",null,null,"","",null,null,"","",null,null,"","",null,null,"","",null,null,"","",null,null,"","",null,null,"","",null,null,"","","","","","","","","","","","",false]
[null,26,null,null,null,null,"","","",null,null,{"$f":"IF(ISBLANK($K48),\"\",IF($E48=\"Parking Garage Area\",0,INDEX(Interior_ControlsTable,MATCH($K48,Interior_ControlsTypes,0),IF(ISNUMBER(MATCH($E48,OSRequired_Spaces,0)),3,2))))","v":""},null,null,"","",null,null,"","",null,null,"","",null,null,"","",null,null,"","",null,null,"","",null,null,"","",null,null,"","","",{"$f":"IF(OR(ISBLANK($E48),$D48=0),\"\",AV48*I48)","v":""},{"$f":"IF(OR(ISBLANK($E48),$D48=0),\"\",AW48*I48*(1-L48))","v":""},"","","","","","","",false]
[null,27,null,null,null,null,"","","",null,null,"",null,null,"","",null,null,"","",null,null,"","",null,null,"","",null,null,"","",null,null,"","",null,null,"","",null,null,"","",{"$f":"IF(OR(ISBLANK($E49),$D49=0),\"\",AW49*1000/(J49*D49))","v":""},"","",{"$f":"IF(OR(ISBLANK($E49),$D49=0),\"\",D49*H49*J49/1000)","v":""},"","","","","","",false]
[null,28,null,null,null,null,"","","",null,null,"",null,null,"","",null,null,"","",null,null,"","",null,null,"","",null,null,"","",null,null,"","",null,null,"","",null,null,"","","","","","","","","","","","",false]
[null,29,null,null,null,null,"","","",null,null,"",null,null,"","",null,null,"","",null,null,"","",null,null,"","",null,null,"","",null,null,"","",null,null,"","",null,null,"","","","","","","","","","","","",false]
[null,30,null,null,null,null,"","","",null,null,"",null,null,{"$f":"IF(ISBLANK($E52),\"\",N52*$D52)","v":""},"",null,null,{"$f":"IF(ISBLANK($E52),\"\",R52*$D52)","v":""},"",null,null,{"$f":"IF(ISBLANK($E52),\"\",V52*$D52)","v":""},"",null,null,{"$f":"IF(ISBLANK($E52),\"\",Z52*$D52)","v":""},"",null,null,{"$f":"IF(ISBLANK($E52),\"\",AD52*$D52)","v":""},"",null,null,{"$f":"IF(ISBLANK($E52),\"\",AH52*$D52)","v":""},"",null,null,{"$f":"IF(ISBLANK($E52),\"\",AL52*$D52)","v":""},"",null,null,{"$f":"IF(ISBLANK($E52),\"\",AP52*$D52)","v":""},"","","","","","","","","","","",false]
[null,31,null,null,null,null,"","","",null,null,"",null,null,{"$f":"IF(ISBLANK($E53),\"\",N53*$D53)","v":""},"",null,null,{"$f":"IF(ISBLANK($E53),\"\",R53*$D53)","v":""},"",null,null,{"$f":"IF(ISBLANK($E53),\"\",V53*$D53)","v":""},"",null,null,{"$f":"IF(ISBLANK($E53),\"\",Z53*$D53)","v":""},"",null,null,{"$f":"IF(ISBLANK($E53),\"\",AD53*$D53)","v":""},"",null,null,{"$f":"IF(ISBLANK($E53),\"\",AH53*$D53)","v":""},"",null,null,{"$f":"IF(ISBLANK($E53),\"\",AL53*$D53)","v":""},"",null,null,{"$f":"IF(ISBLANK($E53),\"\",AP53*$D53)","v":""},"","","","","","","","","","","",false]
[null,32,null,null,null,null,"","","",null,null,"",null,null,{"$f":"IF(ISBLANK($E54),\"\",N54*$D54)","v":""},{"$f":"IF(OR(ISBLANK($E54),$D54=0), \"\",IF(ISBLANK(M54),0,INDEX(Luminaire_Table,MATCH(M54,Luminaire_Types,0),7)))","v":""},null,null,{"$f":"IF(ISBLANK($E54),\"\",R54*$D54)","v":""},{"$f":"IF(OR(ISBLANK($E54),$D54=0), \"\",IF(ISBLANK(Q54),0,INDEX(Luminaire_Table,MATCH(Q54,Luminaire_Types,0),7)))","v":""},null,null,{"$f":"IF(ISBLANK($E54),\"\",V54*$D54)","v":""},{"$f":"IF(OR(ISBLANK($E54),$D54=0), \"\",IF(ISBLANK(U54),0,INDEX(Luminaire_Table,MATCH(U54,Luminaire_Types,0),7)))","v":""},null,null,{"$f":"IF(ISBLANK($E54),\"\",Z54*$D54)","v":""},{"$f":"IF(OR(ISBLANK($E54),$D54=0), \"\",IF(ISBLANK(Y54),0,INDEX(Luminaire_Table,MATCH(Y54,Luminaire_Types,0),7)))","v":""},null,null,{"$f":"IF(ISBLANK($E54),\"\",AD54*$D54)","v":""},{"$f":"IF(OR(ISBLANK($E54),$D54=0), \"\",IF(ISBLANK(AC54),0,INDEX(Luminaire_Table,MATCH(AC54,Luminaire_Types,0),7)))","v":""},null,null,{"$f":"IF(ISBLANK($E54),\"\",AH54*$D54)","v":""},{"$f":"IF(OR(ISBLANK($E54),$D54=0), \"\",IF(ISBLANK(AG54),0,INDEX(Luminaire_Table,MATCH(AG54,Luminaire_Types,0),7)))","v":""},null,null,{"$f":"IF(ISBLANK($E54),\"\",AL54*$D54)","v":""},{"$f":"IF(OR(ISBLANK($E54),$D54=0), \"\",IF(ISBLANK(AK54),0,INDEX(Luminaire_Table,MATCH(AK54,Luminaire_Types,0),7)))","v":""},null,null,{"$f":"IF(ISBLANK($E54),\"\",AP54*$D54)","v":""},{"$f":"IF(OR(ISBLANK($E54),$D54=0), \"\",IF(ISBLANK(AO54),0,INDEX(Luminaire_Table,MATCH(AO54,Luminaire_Types,0),7)))","v":""},"","","","","","","","","","",false]
[null,33,null,null,null,null,"","","",null,null,"",null,null,{"$f":"IF(ISBLANK($E55),\"\",N55*$D55)","v":""},{"$f":"IF(OR(ISBLANK($E55),$D55=0), \"\",IF(ISBLANK(M55),0,INDEX(Luminaire_Table,MATCH(M55,Luminaire_Types,0),7)))","v":""},null,null,{"$f":"IF(ISBLANK($E55),\"\",R55*$D55)","v":""},{"$f":"IF(OR(ISBLANK($E55),$D55=0), \"\",IF(ISBLANK(Q55),0,INDEX(Luminaire_Table,MATCH(Q55,Luminaire_Types,0),7)))","v":""},null,null,{"$f":"IF(ISBLANK($E55),\"\",V55*$D55)","v":""},{"$f":"IF(OR(ISBLANK($E55),$D55=0), \"\",IF(ISBLANK(U55),0,INDEX(Luminaire_Table,MATCH(U55,Luminaire_Types,0),7)))","v":""},null,null,{"$f":"IF(ISBLANK($E55),\"\",Z55*$D55)","v":""},{"$f":"IF(OR(ISBLANK($E55),$D55=0), \"\",IF(ISBLANK(Y55),0,INDEX(Luminaire_Table,MATCH(Y55,Luminaire_Types,0),7)))","v":""},null,null,{"$f":"IF(ISBLANK($E55),\"\",AD55*$D55)","v":""},{"$f":"IF(OR(ISBLANK($E55),$D55=0), \"\",IF(ISBLANK(AC55),0,INDEX(Luminaire_Table,MATCH(AC55,Luminaire_Types,0),7)))","v":""},null,null,{"$f":"IF(ISBLANK($E55),\"\",AH55*$D55)","v":""},{"$f":"IF(OR(ISBLANK($E55),$D55=0), \"\",IF(ISBLANK(AG55),0,INDEX(Luminaire_Table,MATCH(AG55,Luminaire_Types,0),7)))","v":""},null,null,{"$f":"IF(ISBLANK($E55),\"\",AL55*$D55)","v":""},{"$f":"IF(OR(ISBLANK($E55),$D55=0), \"\",IF(ISBLANK(AK55),0,INDEX(Luminaire_Table,MATCH(AK55,Luminaire_Types,0),7)))","v":""},null,null,{"$f":"IF(ISBLANK($E55),\"\",AP55*$D55)","v":""},{"$f":"IF(OR(ISBLANK($E55),$D55=0), \"\",IF(ISBLANK(AO55),0,INDEX(Luminaire_Table,MATCH(AO55,Luminaire_Types,0),7)))","v":""},"","","","","","","","","","",false]
[null,34,null,null,null,null,"","","",null,null,"",null,null,{"$f":"IF(ISBLANK($E56),\"\",N56*$D56)","v":""},{"$f":"IF(OR(ISBLANK($E56),$D56=0), \"\",IF(ISBLANK(M56),0,INDEX(Luminaire_Table,MATCH(M56,Luminaire_Types,0),7)))","v":""},null,null,{"$f":"IF(ISBLANK($E56),\"\",R56*$D56)","v":""},{"$f":"IF(OR(ISBLANK($E56),$D56=0), \"\",IF(ISBLANK(Q56),0,INDEX(Luminaire_Table,MATCH(Q56,Luminaire_Types,0),7)))","v":""},null,null,{"$f":"IF(ISBLANK($E56),\"\",V56*$D56)","v":""},{"$f":"IF(OR(ISBLANK($E56),$D56=0), \"\",IF(ISBLANK(U56),0,INDEX(Luminaire_Table,MATCH(U56,Luminaire_Types,0),7)))","v":""},null,null,{"$f":"IF(ISBLANK($E56),\"\",Z56*$D56)","v":""},{"$f":"IF(OR(ISBLANK($E56),$D56=0), \"\",IF(ISBLANK(Y56),0,INDEX(Luminaire_Table,MATCH(Y56,Luminaire_Types,0),7)))","v":""},null,null,{"$f":"IF(ISBLANK($E56),\"\",AD56*$D56)","v":""},{"$f":"IF(OR(ISBLANK($E56),$D56=0), \"\",IF(ISBLANK(AC56),0,INDEX(Luminaire_Table,MATCH(AC56,Luminaire_Types,0),7)))","v":""},null,null,{"$f":"IF(ISBLANK($E56),\"\",AH56*$D56)","v":""},{"$f":"IF(OR(ISBLANK($E56),$D56=0), \"\",IF(ISBLANK(AG56),0,INDEX(Luminaire_Table,MATCH(AG56,Luminaire_Types,0),7)))","v":""},null,null,{"$f":"IF(ISBLANK($E56),\"\",AL56*$D56)","v":""},{"$f":"IF(OR(ISBLANK($E56),$D56=0), \"\",IF(ISBLANK(AK56),0,INDEX(Luminaire_Table,MATCH(AK56,Luminaire_Types,0),7)))","v":""},null,null,{"$f":"IF(ISBLANK($E56),\"\",AP56*$D56)","v":""},{"$f":"IF(OR(ISBLANK($E56),$D56=0), \"\",IF(ISBLANK(AO56),0,INDEX(Luminaire_Table,MATCH(AO56,Luminaire_Types,0),7)))","v":""},"","","","","","","","","","",false]
[null,35,null,null,null,null,"","","",null,null,"",null,null,{"$f":"IF(ISBLANK($E57),\"\",N57*$D57)","v":""},{"$f":"IF(OR(ISBLANK($E57),$D57=0), \"\",IF(ISBLANK(M57),0,INDEX(Luminaire_Table,MATCH(M57,Luminaire_Types,0),7)))","v":""},null,null,{"$f":"IF(ISBLANK($E57),\"\",R57*$D57)","v":""},{"$f":"IF(OR(ISBLANK($E57),$D57=0), \"\",IF(ISBLANK(Q57),0,INDEX(Luminaire_Table,MATCH(Q57,Luminaire_Types,0),7)))","v":""},null,null,{"$f":"IF(ISBLANK($E57),\"\",V57*$D57)","v":""},{"$f":"IF(OR(ISBLANK($E57),$D57=0), \"\",IF(ISBLANK(U57),0,INDEX(Luminaire_Table,MATCH(U57,Luminaire_Types,0),7)))","v":""},null,null,{"$f":"IF(ISBLANK($E57),\"\",Z57*$D57)","v":""},{"$f":"IF(OR(ISBLANK($E57),$D57=0), \"\",IF(ISBLANK(Y57),0,INDEX(Luminaire_Table,MATCH(Y57,Luminaire_Types,0),7)))","v":""},null,null,{"$f":"IF(ISBLANK($E57),\"\",AD57*$D57)","v":""},{"$f":"IF(OR(ISBLANK($E57),$D57=0), \"\",IF(ISBLANK(AC57),0,INDEX(Luminaire_Table,MATCH(AC57,Luminaire_Types,0),7)))","v":""},null,null,{"$f":"IF(ISBLANK($E57),\"\",AH57*$D57)","v":""},{"$f":"IF(OR(ISBLANK($E57),$D57=0), \"\",IF(ISBLANK(AG57),0,INDEX(Luminaire_Table,MATCH(AG57,Luminaire_Types,0),7)))","v":""},null,null,{"$f":"IF(ISBLANK($E57),\"\",AL57*$D57)","v":""},{"$f":"IF(OR(ISBLANK($E57),$D57=0), \"\",IF(ISBLANK(AK57),0,INDEX(Luminaire_Table,MATCH(AK57,Luminaire_Types,0),7)))","v":""},null,null,{"$f":"IF(ISBLANK($E57),\"\",AP57*$D57)","v":""},{"$f":"IF(OR(ISBLANK($E57),$D57=0), \"\",IF(ISBLANK(AO57),0,INDEX(Luminaire_Table,MATCH(AO57,Luminaire_Types,0),7)))","v":""},"","","","","","","","","","",false]
[null,36,null,null,null,null,"","","",null,null,"",null,null,{"$f":"IF(ISBLANK($E58),\"\",N58*$D58)","v":""},{"$f":"IF(OR(ISBLANK($E58),$D58=0), \"\",IF(ISBLANK(M58),0,INDEX(Luminaire_Table,MATCH(M58,Luminaire_Types,0),7)))","v":""},null,null,{"$f":"IF(ISBLANK($E58),\"\",R58*$D58)","v":""},"",null,null,{"$f":"IF(ISBLANK($E58),\"\",V58*$D58)","v":""},{"$f":"IF(OR(ISBLANK($E58),$D58=0), \"\",IF(ISBLANK(U58),0,INDEX(Luminaire_Table,MATCH(U58,Luminaire_Types,0),7)))","v":""},null,null,{"$f":"IF(ISBLANK($E58),\"\",Z58*$D58)","v":""},{"$f":"IF(OR(ISBLANK($E58),$D58=0), \"\",IF(ISBLANK(Y58),0,INDEX(Luminaire_Table,MATCH(Y58,Luminaire_Types,0),7)))","v":""},null,null,{"$f":"IF(ISBLANK($E58),\"\",AD58*$D58)","v":""},{"$f":"IF(OR(ISBLANK($E58),$D58=0), \"\",IF(ISBLANK(AC58),0,INDEX(Luminaire_Table,MATCH(AC58,Luminaire_Types,0),7)))","v":""},null,null,{"$f":"IF(ISBLANK($E58),\"\",AH58*$D58)","v":""},{"$f":"IF(OR(ISBLANK($E58),$D58=0), \"\",IF(ISBLANK(AG58),0,INDEX(Luminaire_Table,MATCH(AG58,Luminaire_Types,0),7)))","v":""},null,null,{"$f":"IF(ISBLANK($E58),\"\",AL58*$D58)","v":""},{"$f":"IF(OR(ISBLANK($E58),$D58=0), \"\",IF(ISBLANK(AK58),0,INDEX(Luminaire_Table,MATCH(AK58,Luminaire_Types,0),7)))","v":""},null,null,{"$f":"IF(ISBLANK($E58),\"\",AP58*$D58)","v":""},{"$f":"IF(OR(ISBLANK($E58),$D58=0), \"\",IF(ISBLANK(AO58),0,INDEX(Luminaire_Table,MATCH(AO58,Luminaire_Types,0),7)))","v":""},"","","","","","","","","","",false]
[null,37,null,null,null,null,"","","",null,null,"",null,null,{"$f":"IF(ISBLANK($E59),\"\",N59*$D59)","v":""},{"$f":"IF(OR(ISBLANK($E59),$D59=0), \"\",IF(ISBLANK(M59),0,INDEX(Luminaire_Table,MATCH(M59,Luminaire_Types,0),7)))","v":""},null,null,{"$f":"IF(ISBLANK($E59),\"\",R59*$D59)","v":""},"",null,null,{"$f":"IF(ISBLANK($E59),\"\",V59*$D59)","v":""},{"$f":"IF(OR(ISBLANK($E59),$D59=0), \"\",IF(ISBLANK(U59),0,INDEX(Luminaire_Table,MATCH(U59,Luminaire_Types,0),7)))","v":""},null,null,{"$f":"IF(ISBLANK($E59),\"\",Z59*$D59)","v":""},{"$f":"IF(OR(ISBLANK($E59),$D59=0), \"\",IF(ISBLANK(Y59),0,INDEX(Luminaire_Table,MATCH(Y59,Luminaire_Types,0),7)))","v":""},null,null,{"$f":"IF(ISBLANK($E59),\"\",AD59*$D59)","v":""},{"$f":"IF(OR(ISBLANK($E59),$D59=0), \"\",IF(ISBLANK(AC59),0,INDEX(Luminaire_Table,MATCH(AC59,Luminaire_Types,0),7)))","v":""},null,null,{"$f":"IF(ISBLANK($E59),\"\",AH59*$D59)","v":""},{"$f":"IF(OR(ISBLANK($E59),$D59=0), \"\",IF(ISBLANK(AG59),0,INDEX(Luminaire_Table,MATCH(AG59,Luminaire_Types,0),7)))","v":""},null,null,{"$f":"IF(ISBLANK($E59),\"\",AL59*$D59)","v":""},{"$f":"IF(OR(ISBLANK($E59),$D59=0), \"\",IF(ISBLANK(AK59),0,INDEX(Luminaire_Table,MATCH(AK59,Luminaire_Types,0),7)))","v":""},null,null,{"$f":"IF(ISBLANK($E59),\"\",AP59*$D59)","v":""},{"$f":"IF(OR(ISBLANK($E59),$D59=0), \"\",IF(ISBLANK(AO59),0,INDEX(Luminaire_Table,MATCH(AO59,Luminaire_Types,0),7)))","v":""},"","","","","","","","","","",false]
[null,38,null,null,null,null,"","","",null,null,"",null,null,{"$f":"IF(ISBLANK($E60),\"\",N60*$D60)","v":""},{"$f":"IF(OR(ISBLANK($E60),$D60=0), \"\",IF(ISBLANK(M60),0,INDEX(Luminaire_Table,MATCH(M60,Luminaire_Types,0),7)))","v":""},null,null,{"$f":"IF(ISBLANK($E60),\"\",R60*$D60)","v":""},"",null,null,{"$f":"IF(ISBLANK($E60),\"\",V60*$D60)","v":""},{"$f":"IF(OR(ISBLANK($E60),$D60=0), \"\",IF(ISBLANK(U60),0,INDEX(Luminaire_Table,MATCH(U60,Luminaire_Types,0),7)))","v":""},null,null,{"$f":"IF(ISBLANK($E60),\"\",Z60*$D60)","v":""},{"$f":"IF(OR(ISBLANK($E60),$D60=0), \"\",IF(ISBLANK(Y60),0,INDEX(Luminaire_Table,MATCH(Y60,Luminaire_Types,0),7)))","v":""},null,null,{"$f":"IF(ISBLANK($E60),\"\",AD60*$D60)","v":""},{"$f":"IF(OR(ISBLANK($E60),$D60=0), \"\",IF(ISBLANK(AC60),0,INDEX(Luminaire_Table,MATCH(AC60,Luminaire_Types,0),7)))","v":""},null,null,{"$f":"IF(ISBLANK($E60),\"\",AH60*$D60)","v":""},{"$f":"IF(OR(ISBLANK($E60),$D60=0), \"\",IF(ISBLANK(AG60),0,INDEX(Luminaire_Table,MATCH(AG60,Luminaire_Types,0),7)))","v":""},null,null,{"$f":"IF(ISBLANK($E60),\"\",AL60*$D60)","v":""},{"$f":"IF(OR(ISBLANK($E60),$D60=0), \"\",IF(ISBLANK(AK60),0,INDEX(Luminaire_Table,MATCH(AK60,Luminaire_Types,0),7)))","v":""},null,null,{"$f":"IF(ISBLANK($E60),\"\",AP60*$D60)","v":""},{"$f":"IF(OR(ISBLANK($E60),$D60=0), \"\",IF(ISBLANK(AO60),0,INDEX(Luminaire_Table,MATCH(AO60,Luminaire_Types,0),7)))","v":""},"","","","","","","","","","",false]
[null,39,null,null,null,null,"","","",null,null,"",null,null,{"$f":"IF(ISBLANK($E61),\"\",N61*$D61)","v":""},{"$f":"IF(OR(ISBLANK($E61),$D61=0), \"\",IF(ISBLANK(M61),0,INDEX(Luminaire_Table,MATCH(M61,Luminaire_Types,0),7)))","v":""},null,null,{"$f":"IF(ISBLANK($E61),\"\",R61*$D61)","v":""},"",null,null,{"$f":"IF(ISBLANK($E61),\"\",V61*$D61)","v":""},{"$f":"IF(OR(ISBLANK($E61),$D61=0), \"\",IF(ISBLANK(U61),0,INDEX(Luminaire_Table,MATCH(U61,Luminaire_Types,0),7)))","v":""},null,null,{"$f":"IF(ISBLANK($E61),\"\",Z61*$D61)","v":""},{"$f":"IF(OR(ISBLANK($E61),$D61=0), \"\",IF(ISBLANK(Y61),0,INDEX(Luminaire_Table,MATCH(Y61,Luminaire_Types,0),7)))","v":""},null,null,{"$f":"IF(ISBLANK($E61),\"\",AD61*$D61)","v":""},{"$f":"IF(OR(ISBLANK($E61),$D61=0), \"\",IF(ISBLANK(AC61),0,INDEX(Luminaire_Table,MATCH(AC61,Luminaire_Types,0),7)))","v":""},null,null,{"$f":"IF(ISBLANK($E61),\"\",AH61*$D61)","v":""},{"$f":"IF(OR(ISBLANK($E61),$D61=0), \"\",IF(ISBLANK(AG61),0,INDEX(Luminaire_Table,MATCH(AG61,Luminaire_Types,0),7)))","v":""},null,null,{"$f":"IF(ISBLANK($E61),\"\",AL61*$D61)","v":""},{"$f":"IF(OR(ISBLANK($E61),$D61=0), \"\",IF(ISBLANK(AK61),0,INDEX(Luminaire_Table,MATCH(AK61,Luminaire_Types,0),7)))","v":""},null,null,{"$f":"IF(ISBLANK($E61),\"\",AP61*$D61)","v":""},{"$f":"IF(OR(ISBLANK($E61),$D61=0), \"\",IF(ISBLANK(AO61),0,INDEX(Luminaire_Table,MATCH(AO61,Luminaire_Types,0),7)))","v":""},"","","","","","","","","","",false]
[null,40,null,null,null,null,"","","",null,null,"",null,null,{"$f":"IF(ISBLANK($E62),\"\",N62*$D62)","v":""},{"$f":"IF(OR(ISBLANK($E62),$D62=0), \"\",IF(ISBLANK(M62),0,INDEX(Luminaire_Table,MATCH(M62,Luminaire_Types,0),7)))","v":""},null,null,{"$f":"IF(ISBLANK($E62),\"\",R62*$D62)","v":""},"",null,null,{"$f":"IF(ISBLANK($E62),\"\",V62*$D62)","v":""},{"$f":"IF(OR(ISBLANK($E62),$D62=0), \"\",IF(ISBLANK(U62),0,INDEX(Luminaire_Table,MATCH(U62,Luminaire_Types,0),7)))","v":""},null,null,{"$f":"IF(ISBLANK($E62),\"\",Z62*$D62)","v":""},{"$f":"IF(OR(ISBLANK($E62),$D62=0), \"\",IF(ISBLANK(Y62),0,INDEX(Luminaire_Table,MATCH(Y62,Luminaire_Types,0),7)))","v":""},null,null,{"$f":"IF(ISBLANK($E62),\"\",AD62*$D62)","v":""},{"$f":"IF(OR(ISBLANK($E62),$D62=0), \"\",IF(ISBLANK(AC62),0,INDEX(Luminaire_Table,MATCH(AC62,Luminaire_Types,0),7)))","v":""},null,null,{"$f":"IF(ISBLANK($E62),\"\",AH62*$D62)","v":""},{"$f":"IF(OR(ISBLANK($E62),$D62=0), \"\",IF(ISBLANK(AG62),0,INDEX(Luminaire_Table,MATCH(AG62,Luminaire_Types,0),7)))","v":""},null,null,{"$f":"IF(ISBLANK($E62),\"\",AL62*$D62)","v":""},{"$f":"IF(OR(ISBLANK($E62),$D62=0), \"\",IF(ISBLANK(AK62),0,INDEX(Luminaire_Table,MATCH(AK62,Luminaire_Types,0),7)))","v":""},null,null,{"$f":"IF(ISBLANK($E62),\"\",AP62*$D62)","v":""},{"$f":"IF(OR(ISBLANK($E62),$D62=0), \"\",IF(ISBLANK(AO62),0,INDEX(Luminaire_Table,MATCH(AO62,Luminaire_Types,0),7)))","v":""},{"$f":"IF(OR(ISBLANK($E62),$D62=0),\"\",AW62*1000/(J62*D62))","v":""},"","",{"$f":"IF(OR(ISBLANK($E62),$D62=0),\"\",D62*H62*J62/1000)","v":""},"","","","","","",false]
[null,41,null,null,null,null,"","","",null,null,"",null,null,{"$f":"IF(ISBLANK($E63),\"\",N63*$D63)","v":""},{"$f":"IF(OR(ISBLANK($E63),$D63=0), \"\",IF(ISBLANK(M63),0,INDEX(Luminaire_Table,MATCH(M63,Luminaire_Types,0),7)))","v":""},null,null,{"$f":"IF(ISBLANK($E63),\"\",R63*$D63)","v":""},{"$f":"IF(OR(ISBLANK($E63),$D63=0), \"\",IF(ISBLANK(Q63),0,INDEX(Luminaire_Table,MATCH(Q63,Luminaire_Types,0),7)))","v":""},null,null,{"$f":"IF(ISBLANK($E63),\"\",V63*$D63)","v":""},{"$f":"IF(OR(ISBLANK($E63),$D63=0), \"\",IF(ISBLANK(U63),0,INDEX(Luminaire_Table,MATCH(U63,Luminaire_Types,0),7)))","v":""},null,null,{"$f":"IF(ISBLANK($E63),\"\",Z63*$D63)","v":""},{"$f":"IF(OR(ISBLANK($E63),$D63=0), \"\",IF(ISBLANK(Y63),0,INDEX(Luminaire_Table,MATCH(Y63,Luminaire_Types,0),7)))","v":""},null,null,{"$f":"IF(ISBLANK($E63),\"\",AD63*$D63)","v":""},{"$f":"IF(OR(ISBLANK($E63),$D63=0), \"\",IF(ISBLANK(AC63),0,INDEX(Luminaire_Table,MATCH(AC63,Luminaire_Types,0),7)))","v":""},null,null,{"$f":"IF(ISBLANK($E63),\"\",AH63*$D63)","v":""},{"$f":"IF(OR(ISBLANK($E63),$D63=0), \"\",IF(ISBLANK(AG63),0,INDEX(Luminaire_Table,MATCH(AG63,Luminaire_Types,0),7)))","v":""},null,null,{"$f":"IF(ISBLANK($E63),\"\",AL63*$D63)","v":""},{"$f":"IF(OR(ISBLANK($E63),$D63=0), \"\",IF(ISBLANK(AK63),0,INDEX(Luminaire_Table,MATCH(AK63,Luminaire_Types,0),7)))","v":""},null,null,{"$f":"IF(ISBLANK($E63),\"\",AP63*$D63)","v":""},{"$f":"IF(OR(ISBLANK($E63),$D63=0), \"\",IF(ISBLANK(AO63),0,INDEX(Luminaire_Table,MATCH(AO63,Luminaire_Types,0),7)))","v":""},{"$f":"IF(OR(ISBLANK($E63),$D63=0),\"\",AW63*1000/(J63*D63))","v":""},{"$f":"IF(OR(ISBLANK($E63),$D63=0),\"\",AV63*I63)","v":""},{"$f":"IF(OR(ISBLANK($E63),$D63=0),\"\",AW63*I63*(1-L63))","v":""},{"$f":"IF(OR(ISBLANK($E63),$D63=0),\"\",D63*H63*J63/1000)","v":""},"",{"$f":"IF(OR(ISBLANK($E63),$D63=0,$AW63=0),\"\",H63-AS63)","v":""},{"$f":"IF(OR(ISBLANK($E63),$D63=0,$AW63=0),\"\",AV63-AW63)","v":""},{"$f":"IF(OR(ISBLANK($E63),$D63=0,$AW63=0),\"\",AY63*I63)","v":""},{"$f":"IF(OR(ISBLANK($E63),$D63=0,$AW63=0),\"\",AW63*I63*L63)","v":""},{"$f":"IF(OR(ISBLANK($E63),$D63=0,$AW63=0),\"\",AT63-AU63)","v":""},false]
[null,42,null,null,null,null,"","","",null,null,"",null,null,{"$f":"IF(ISBLANK($E64),\"\",N64*$D64)","v":""},{"$f":"IF(OR(ISBLANK($E64),$D64=0), \"\",IF(ISBLANK(M64),0,INDEX(Luminaire_Table,MATCH(M64,Luminaire_Types,0),7)))","v":""},null,null,{"$f":"IF(ISBLANK($E64),\"\",R64*$D64)","v":""},{"$f":"IF(OR(ISBLANK($E64),$D64=0), \"\",IF(ISBLANK(Q64),0,INDEX(Luminaire_Table,MATCH(Q64,Luminaire_Types,0),7)))","v":""},null,null,{"$f":"IF(ISBLANK($E64),\"\",V64*$D64)","v":""},{"$f":"IF(OR(ISBLANK($E64),$D64=0), \"\",IF(ISBLANK(U64),0,INDEX(Luminaire_Table,MATCH(U64,Luminaire_Types,0),7)))","v":""},null,null,{"$f":"IF(ISBLANK($E64),\"\",Z64*$D64)","v":""},{"$f":"IF(OR(ISBLANK($E64),$D64=0), \"\",IF(ISBLANK(Y64),0,INDEX(Luminaire_Table,MATCH(Y64,Luminaire_Types,0),7)))","v":""},null,null,{"$f":"IF(ISBLANK($E64),\"\",AD64*$D64)","v":""},{"$f":"IF(OR(ISBLANK($E64),$D64=0), \"\",IF(ISBLANK(AC64),0,INDEX(Luminaire_Table,MATCH(AC64,Luminaire_Types,0),7)))","v":""},null,null,{"$f":"IF(ISBLANK($E64),\"\",AH64*$D64)","v":""},{"$f":"IF(OR(ISBLANK($E64),$D64=0), \"\",IF(ISBLANK(AG64),0,INDEX(Luminaire_Table,MATCH(AG64,Luminaire_Types,0),7)))","v":""},null,null,{"$f":"IF(ISBLANK($E64),\"\",AL64*$D64)","v":""},{"$f":"IF(OR(ISBLANK($E64),$D64=0), \"\",IF(ISBLANK(AK64),0,INDEX(Luminaire_Table,MATCH(AK64,Luminaire_Types,0),7)))","v":""},null,null,{"$f":"IF(ISBLANK($E64),\"\",AP64*$D64)","v":""},{"$f":"IF(OR(ISBLANK($E64),$D64=0), \"\",IF(ISBLANK(AO64),0,INDEX(Luminaire_Table,MATCH(AO64,Luminaire_Types,0),7)))","v":""},{"$f":"IF(OR(ISBLANK($E64),$D64=0),\"\",AW64*1000/(J64*D64))","v":""},{"$f":"IF(OR(ISBLANK($E64),$D64=0),\"\",AV64*I64)","v":""},{"$f":"IF(OR(ISBLANK($E64),$D64=0),\"\",AW64*I64*(1-L64))","v":""},{"$f":"IF(OR(ISBLANK($E64),$D64=0),\"\",D64*H64*J64/1000)","v":""},{"$f":"IF(OR(ISBLANK($E64),$D64=0),\"\",D64*(N64*P64+R64*T64+V64*X64+Z64*AB64+AD64*AF64+AH64*AJ64+AL64*AN64+AP64*AR64)/1000)","v":""},{"$f":"IF(OR(ISBLANK($E64),$D64=0,$AW64=0),\"\",H64-AS64)","v":""},{"$f":"IF(OR(ISBLANK($E64),$D64=0,$AW64=0),\"\",AV64-AW64)","v":""},{"$f":"IF(OR(ISBLANK($E64),$D64=0,$AW64=0),\"\",AY64*I64)","v":""},{"$f":"IF(OR(ISBLANK($E64),$D64=0,$AW64=0),\"\",AW64*I64*L64)","v":""},{"$f":"IF(OR(ISBLANK($E64),$D64=0,$AW64=0),\"\",AT64-AU64)","v":""},false]
[null,null,null,null,null,null,null,null,null,{"$f":"SUMPRODUCT(J16:OFFSET(J65,-1,0),D16:OFFSET(D65,-1,0))","v":0},null,null,null,null,null,null,null,null,null,null,null,null,null,null,null,null,null,null,null,null,null,null,null,null,null,null,null,null,null,null,null,null,null,null,null,{"$f":"SUM(AT16:OFFSET(AT65,-1,0))","v":0},{"$f":"SUM(AU16:OFFSET(AU65,-1,0))","v":0},{"$f":"SUM(AV16:OFFSET(AV65,-1,0))","v":0},{"$f":"SUM(AW16:OFFSET(AW65,-1,0))","v":0},null,{"$f":"SUM(AY16:OFFSET(AY65,-1,0))","v":0},{"$f":"SUM(AZ16:OFFSET(AZ65,-1,0))","v":0},{"$f":"SUM(BA16:OFFSET(BA65,-1,0))","v":0},{"$f":"SUM(BB16:OFFSET(BB65,-1,0))","v":0}]

{"sheet":"Exterior","index":5,"n_rows":54,"n_cols":34,"rows_kept":54,"cut":false,"hidden":false,"merged":[[15,29,15,30],[0,2,0,9],[1,2,1,9],[15,9,15,10],[15,24,15,25],[11,2,11,3],[6,4,6,5],[7,4,7,5],[8,4,8,5],[9,4,9,5],[6,2,6,3],[7,2,7,3],[8,2,8,3],[9,2,9,3],[5,2,5,6]]}
[null,null,"BC Hydro Power Smart Commercial New Construction Program"]
[null,null,"New Construction Lighting Calculator"]
[null,null,{"$f":"'Basic Lists'!A100","v":"BC Hydro Power Smart CNC LC v.3.1"}]
[null,null,"Exterior Lighting Calculator"]
[]
[null,null,"Exterior Totals"]
[null,null,"Demand Savings",null,{"$f":"$AE$54","v":{"$error":"#VALUE!"}},null,"kW"]
[null,null,"Energy Savings - LPD",null,{"$f":"$AF$54","v":{"$error":"#VALUE!"}},null,"kWh"]
[null,null,"Energy Savings - LIGHTING CONTROLS",null,{"$f":"$AG$54","v":0},null,"kWh"]
[null,null,"Energy Savings - TOTAL",null,{"$f":"$AH$54","v":{"$error":"#VALUE!"}},null,"kWh"]
[]
[null,null,"Lighting Zone"]
[null,null,"Lighting Zone"]
[null,null,null,null,null,null," "]
[]
[null,"hide","Space Info",null,null,null,null,null,"hide?","Lighting Info",null,null,null,null,null,null,null,null,null,null,null,null,null,null,"Calculated Values",null,null,null,null,"Savings Info"]
[null,"Space","Area Name","Space Type","Baseline LPD","Annual Hours","Surface Area / Linear Length","Lighting Control Type","Lighting Controls Hour Reduction","Luminaire [Type 1]","Quantity [Type 1]","W [Type 1]","Luminaire [Type 2]","Quantity [Type 2]","W [Type 2]","Luminaire [Type 3]","Quantity [Type 3]","W [Type 3]","Luminaire [Type 4]","Quantity [Type 4]","W [Type 4]","Luminaire [Type 5]","Quantity [Type 5]","W [Type 5]","Design LPD","Baseline Annual Lighting Energy","Design Annual Lighting Energy","Baseline Demand Allowance","Design Demand","LPD Savings","Demand Savings","Energy Savings - HARDWIRED","Energy Savings - CONTROL","Energy Savings - TOTAL"]
[null,"#",null,null,{"$f":"IF(ProjectUnits=\"Imperial\",\"W/sqft\",\"W/sqm\")","v":"W/sqm"},"hrs",{"$f":"IF(ProjectUnits=\"Imperial\",\"sqft\",\"sqm\")","v":"sqm"},null,"%",null,"#","W",null,"#","W",null,"#","W",null,"#","W",null,"#","W",{"$f":"IF(ProjectUnits=\"Imperial\",\"W/sqft\",\"W/sqm\")","v":"W/sqm"},"kWh","kWh","kW","kW",{"$f":"IF(ProjectUnits=\"Imperial\",\"W/sqft\",\"W/sqm\")","v":"W/sqm"},"kW","kWh","kWh","kWh"]
[null,{"$f":"ROW()-18","v":1},null,null,{"$f":"IF(ISBLANK($D19),\"\",IF(ProjectCode=NECB,INDEX(NECB_ExteriorTable,MATCH($D19,NECB_ExteriorSpaces,0),6),IF(ProjectCode=ASHRAE,INDEX(ASHRAE_ExteriorTable,MATCH($D19,ASHRAE_ExteriorSpaces,0),6),\"\")))","v":""},null,null,null,{"$f":"IF(ISBLANK($H19),\"\",INDEX(Exterior_ControlsTable,MATCH($H19,Exterior_ControlsTypes,0),2))","v":""},null,null,{"$f":"IF(ISBLANK($D19), \"\",IF(ISBLANK(J19),0,INDEX(Luminaire_Table,MATCH(J19,Luminaire_Types,0),7)))","v":""},null,null,{"$f":"IF(ISBLANK($D19), \"\",IF(ISBLANK(M19),0,INDEX(Luminaire_Table,MATCH(M19,Luminaire_Types,0),7)))","v":""},null,null,{"$f":"IF(ISBLANK($D19), \"\",IF(ISBLANK(P19),0,INDEX(Luminaire_Table,MATCH(P19,Luminaire_Types,0),7)))","v":""},null,null,{"$f":"IF(ISBLANK($D19), \"\",IF(ISBLANK(S19),0,INDEX(Luminaire_Table,MATCH(S19,Luminaire_Types,0),7)))","v":""},null,null,{"$f":"IF(ISBLANK($D19), \"\",IF(ISBLANK(V19),0,INDEX(Luminaire_Table,MATCH(V19,Luminaire_Types,0),7)))","v":""},{"$f":"IF(ISBLANK($D19),\"\",AC19*1000/G19)","v":""},{"$f":"IF(ISBLANK($D19),\"\",AB19*F19)","v":""},{"$f":"IF(ISBLANK($D19),\"\",AC19*F19*(1-I19))","v":""},{"$f":"IF(ISBLANK($D19),\"\",E19*G19/1000)","v":""},{"$f":"IF(ISBLANK($D19),\"\",(K19*L19+N19*O19+Q19*R19+T19*U19+W19*X19)/1000)","v":""},{"$f":"IF(ISBLANK($D19),\"\",E19-Y19)","v":""},{"$f":"IF(ISBLANK($D19),\"\",AB19-AC19)","v":""},{"$f":"IF(ISBLANK($D19),\"\",AE19*F19)","v":""},{"$f":"IF(ISBLANK($D19),\"\",AC19*F19*I19)","v":""},{"$f":"IF(ISBLANK($D19),\"\",Z19-AA19)","v":""}]
[null,{"$f":"ROW()-18","v":2},null,null,"",null,null,null,"",null,null,"",null,null,"",null,null,"",null,null,"",null,null,"","",{"$f":"IF(ISBLANK($D20),\"\",AB20*F20)","v":""},{"$f":"IF(ISBLANK($D20),\"\",AC20*F20*(1-I20))","v":""},"",{"$f":"IF(ISBLANK($D20),\"\",(K20*L20+N20*O20+Q20*R20+T20*U20+W20*X20)/1000)","v":""},"","",{"$f":"IF(ISBLANK($D20),\"\",AE20*F20)","v":""},{"$f":"IF(ISBLANK($D20),\"\",AC20*F20*I20)","v":""},""]
[null,3,null,null,"",null,null,null,"",null,null,"",null,null,"",null,null,"",null,null,"",null,null,"","","","","","","","","","",""]
[null,4,null,null,"",null,null,null,"",null,null,"",null,null,"",null,null,"",null,null,"",null,null,"","","","","","","","","","",""]
[null,5,null,null,"",null,null,null,"",null,null,"",null,null,"",null,null,"",null,null,"",null,null,"","","","","","","","","","",""]
[null,6,null,null,"",null,null,null,"",null,null,"",null,null,"",null,null,"",null,null,"",null,null,"","","","","","","","","","",""]
[null,7,null,null,"",null,null,null,"",null,null,"",null,null,"",null,null,"",null,null,"",null,null,"","","","","","","","","","",""]
[null,8,null,null,"",null,null,null,"",null,null,"",null,null,"",null,null,"",null,null,"",null,null,"","","","","","","","","","",""]
[null,9,null,null,"",null,null,null,"",null,null,"",null,null,"",null,null,"",null,null,"",null,null,"","","","","","","","","","",""]
[null,10,null,null,"",null,null,null,"",null,null,"",null,null,"",null,null,"",null,null,"",null,null,"","","","","","","","","","",""]
[null,11,null,null,"",null,null,null,"",null,null,"",null,null,"",null,null,"",null,null,"",null,null,"","","","","","","","","","",""]
[null,12,null,null,"",null,null,null,"",null,null,"",null,null,"",null,null,"",null,null,"",null,null,"","","","","","","","","","",""]
[null,13,null,null,"",null,null,null,"",null,null,"",null,null,"",null,null,"",null,null,"",null,null,"","","","","","","","","","",""]
[null,14,null,null,"",null,null,null,"",null,null,"",null,null,"",null,null,"",null,null,"",null,null,"","","","","","","","","","",""]
[null,15,null,null,"",null,null,null,"",null,null,"",null,null,"",null,null,"",null,null,"",null,null,"","","","","","","","","","",""]
[null,16,null,null,"",null,null,null,"",null,null,"",null,null,"",null,null,"",null,null,"",null,null,"","","","","","","","","","",""]
[null,17,null,null,"",null,null,null,"",null,null,"",null,null,"",null,null,"",null,null,"",null,null,"","","","","","","","","","",""]
[null,18,null,null,"",null,null,null,"",null,null,"",null,null,"",null,null,"",null,null,"",null,null,"","","","","","","","","","",""]
[null,19,null,null,"",null,null,null,"",null,null,"",null,null,"",null,null,"",null,null,"",null,null,"","","","","","","","","","",""]
[null,20,null,null,"",null,null,null,"",null,null,"",null,null,"",null,null,"",null,null,"",null,null,"","","","","","","","","","",""]
[null,21,null,null,"",null,null,null,"",null,null,"",null,null,"",null,null,"",null,null,"",null,null,"","","","","","","","","","",""]
[null,22,null,null,"",null,null,null,"",null,null,"",null,null,"",null,null,"",null,null,"",null,null,"","","","","","","","","","",""]
[null,23,null,null,"",null,null,null,"",null,null,"",null,null,"",null,null,"",null,null,"",null,null,"","","","","","","","","","",""]
[null,24,null,null,"",null,null,null,"",null,null,"",null,null,"",null,null,"",null,null,"",null,null,"","","","","","","","","","",""]
[null,25,null,null,"",null,null,null,"",null,null,"",null,null,"",null,null,"",null,null,"",null,null,"","","","","","","","","","",""]
[null,26,null,null,"",null,null,null,"",null,null,"",null,null,"",null,null,"",null,null,"",null,null,"","","","","","","","","","",""]
[null,27,null,null,"",null,null,null,"",null,null,"",null,null,"",null,null,"",null,null,"",null,null,"","","","","","","","","","",""]
[null,28,null,null,"",null,null,null,"",null,null,"",null,null,"",null,null,"",null,null,"",null,null,"","","","","","","","","","",""]
[null,29,null,null,"",null,null,null,"",null,null,"",null,null,"",null,null,"",null,null,"",null,null,"","","","","","","","","","",""]
[null,30,null,null,"",null,null,null,"",null,null,"",null,null,"",null,null,"",null,null,"",null,null,"","","","","","","","","","",""]
[null,31,null,null,"",null,null,null,"",null,null,"",null,null,"",null,null,"",null,null,"",null,null,"","","","","","","","","","",""]
[null,32,null,null,"",null,null,null,"",null,null,"",null,null,"",null,null,"",null,null,"",null,null,"","","","","","","","","","",""]
[null,33,null,null,"",null,null,null,"",null,null,"",null,null,"",null,null,"",null,null,"",null,null,"","","","","","","","","","",""]
[null,34,null,null,"",null,null,null,"",null,null,"",null,null,"",null,null,"",null,null,"",null,null,"","","","","","","","","","",""]
[null,35,null,null,"",null,null,null,"",null,null,"",null,null,"",null,null,"",null,null,"",null,null,"","","","","","","","","","",""]
[null,null,null,null,null,{"$f":"SUMPRODUCT($G$19:G53,$F$19:F53)/G54","v":{"$error":"#DIV/0!"}},{"$f":"SUM(G19:OFFSET(G54,-1,0))","v":0},null,null,null,null,null,null,null,null,null,null,null,null,null,null,null,null,null,null,{"$f":"AB54*F54","v":{"$error":"#VALUE!"}},{"$f":"SUM(AA19:OFFSET(AA54,-1,0))","v":0},{"$f":"SUM(AB19:OFFSET(AB54,-1,0))+ASHRAE!$M$18","v":{"$error":"#VALUE!"}},{"$f":"SUM(AC19:OFFSET(AC54,-1,0))","v":0},null,{"$f":"AB54-AC54","v":{"$error":"#VALUE!"}},{"$f":"AE54*F54","v":{"$error":"#VALUE!"}},{"$f":"SUM(AG19:OFFSET(AG54,-1,0))","v":0},{"$f":"Z54-AA54","v":{"$error":"#VALUE!"}}]

{"sheet":"ASHRAE","index":6,"n_rows":100,"n_cols":21,"rows_kept":100,"cut":false,"hidden":true,"merged":[]}
["ASHRAE/IES Standard 90.1-2010 Part 9 Lighting"]
[null,null,null,null,null,null,null,null,null,null,null,null,null,null,{"$f":"N2+1","v":1},{"$f":"O2+1","v":2},3,4,5,6,7]
["INTERIOR",null,null,null,null,null,null,"EXTERIOR",null,null,null,null,null,null,"BUILDING TYPES"]
["Proposed Effective Table",null,null,null,null,null,null,"Proposed Effective Table",null,null,null,null,null,null,"Proposed Effective Table",null,null,null,"*","*","*"]
["Proposed Space Names","LPD (W/sqft ) [default units]",{"$f":"IF(ProjectUnits=\"Imperial\",\"LPD (W/sqft) [active units]\",\"LPD (W/sqm) [active units]\")","v":"LPD (W/sqm) [active units]"},"Annual Hours","OS/ TC Required?","RCR Threshold",null,"Proposed Space Names","Zone 1 LPD (W/sqft ) [default units]","Zone 2 LPD (W/sqft ) [default units]","Zone 3 LPD (W/sqft ) [default units]","Zone 4 LPD (W/sqft ) [default units]",{"$f":"\"Zone \"&IF(ISBLANK(ProjectZone),\"N/A\",RIGHT(ProjectZone))&\" LPD \"&IF(ProjectUnits=\"Imperial\",\"(W/sqft)\",\"(W/sqm)\")&\" [active zone, active units]\"","v":"Zone N/A LPD (W/sqm) [active zone, active units]"},null,"Proposed Building Type Names","LPD (W/sqft) [default units]",{"$f":"IF(ProjectUnits=\"Imperial\",\"LPD (W/sqft) [active units]\",\"LPD (W/sqm) [active units]\")","v":"LPD (W/sqm) [active units]"},"Hours","Common areas","Washroom/ Locker room","Stairway"]
["Airport - Concourse",0.36,{"$f":"IF(ProjectUnits=\"Imperial\",B6,ROUND(B6*10.7639104,1))","v":3.9},8760,null,4,null,"Entry canopies",0.25,0.25,0.4,0.4,{"$f":"ROUND(IF(ProjectUnits=\"Imperial\",INDEX(ASHRAE_ExteriorTable,1,RIGHT(ProjectZone)+1),INDEX(ASHRAE_ExteriorTable,1,RIGHT(ProjectZone)+1)*10.7639104),2)","v":{"$error":"#VALUE!"}},null,"Automotive facility",0.82,{"$f":"IF(ProjectUnits=\"Imperial\",P6,ROUND(P6*10.7639104,1))","v":8.8000000000000007},3210,3880,3100,2910]
[{"$f":"IF(ProjectUnits = \"Imperial\", \"Atrium - First 40ft in height\", \"Atrium - First 13m in height\")","v":"Atrium - First 13m in height"},0.03,{"$f":"IF(ProjectUnits=\"Imperial\",B7,ROUND(B7*3.2808399,1))","v":0.1},3880,null,1000000,null,"Landscaping",0.04,0.05,0.05,0.05,{"$f":"ROUND(IF(ProjectUnits=\"Imperial\",INDEX(ASHRAE_ExteriorTable,2,RIGHT(ProjectZone)+1),INDEX(ASHRAE_ExteriorTable,2,RIGHT(ProjectZone)+1)*10.7639104),2)","v":{"$error":"#VALUE!"}},null,"Convention centre",1.08,11.6,3530,3880,3100,2910]
[{"$f":"IF(ProjectUnits = \"Imperial\", \"Atrium - Height above 40ft\", \"Atrium - Height above 13m\")","v":"Atrium - Height above 13m"},0.02,{"$f":"IF(ProjectUnits=\"Imperial\",B8,ROUND(B8*3.2808399,2))","v":7.0000000000000007E-2},3880,null,1000000,null,"Main entries [linear]",20,20,30,30,{"$f":"ROUND(IF(ProjectUnits=\"Imperial\",INDEX(ASHRAE_ExteriorTable,3,RIGHT(ProjectZone)+1),INDEX(ASHRAE_ExteriorTable,3,RIGHT(ProjectZone)+1)*'Basic Lists'!B106),2)","v":{"$error":"#VALUE!"}},null,"Courthouse",1.05,11.3,2820,2930,2340,2200]
["Audience/Seating Area - For auditorium",0.79,{"$f":"IF(ProjectUnits=\"Imperial\",B9,ROUND(B9*10.7639104,1))","v":8.5},2980,true,6,null,"Open outdoor sales areas, vehicle sales lots",0.25,0.25,0.5,0.7,{"$f":"ROUND(IF(ProjectUnits=\"Imperial\",INDEX(ASHRAE_ExteriorTable,4,RIGHT(ProjectZone)+1),INDEX(ASHRAE_ExteriorTable,4,RIGHT(ProjectZone)+1)*10.7639104),2)","v":{"$error":"#VALUE!"}},null,"Dining: bar lounge/leisure",0.99,10.7,4740,5220,4180,3920]
["Audience/Seating Area - For Convention Centre",0.82,8.8000000000000007,3880,null,4,null,"Other (non-main) entries [linear]",20,20,20,20,{"$f":"ROUND(IF(ProjectUnits=\"Imperial\",INDEX(ASHRAE_ExteriorTable,5,RIGHT(ProjectZone)+1),INDEX(ASHRAE_ExteriorTable,5,RIGHT(ProjectZone)+1)*'Basic Lists'!B106),2)","v":{"$error":"#VALUE!"}},null,"Dining: cafeteria/fast food",0.9,9.6999999999999993,4590,5220,4180,3920]
["Audience/Seating Area - For Gymnasium",0.43,4.5999999999999996,2950,null,6,null,"Parking areas and drives",0.04,0.06,0.1,0.13,{"$f":"ROUND(IF(ProjectUnits=\"Imperial\",INDEX(ASHRAE_ExteriorTable,6,RIGHT(ProjectZone)+1),INDEX(ASHRAE_ExteriorTable,6,RIGHT(ProjectZone)+1)*10.7639104),2)","v":{"$error":"#VALUE!"}},null,"Dining: family",0.89,9.6,4750,5220,4180,3920]
["Audience/Seating Area - For Motion Picture Theatre",1.1399999999999999,12.3,2180,null,4,null,"Pedestrian Tunnels",0.15,0.15,0.2,0.3,{"$f":"ROUND(IF(ProjectUnits=\"Imperial\",INDEX(ASHRAE_ExteriorTable,7,RIGHT(ProjectZone)+1),INDEX(ASHRAE_ExteriorTable,7,RIGHT(ProjectZone)+1)*10.7639104),2)","v":{"$error":"#VALUE!"}},null,"Dormitory",0.61,6.6,3870,8760,2380,5260]
["Audience/Seating Area - For Performing Arts Theatre",2.4300000000000002,26.2,1040,null,8,null,"Sales canopies",0.6,0.6,0.8,1,{"$f":"ROUND(IF(ProjectUnits=\"Imperial\",INDEX(ASHRAE_ExteriorTable,8,RIGHT(ProjectZone)+1),INDEX(ASHRAE_ExteriorTable,8,RIGHT(ProjectZone)+1)*10.7639104),2)","v":{"$error":"#VALUE!"}},null,"Exercise centre",0.88,9.5,2820,2950,2360,2660]
["Audience/Seating Area - For Sports Arena",0.43,4.5999999999999996,2950,null,4,null,"Stairways",0.75,1,1,1,{"$f":"ROUND(IF(ProjectUnits=\"Imperial\",INDEX(ASHRAE_ExteriorTable,9,RIGHT(ProjectZone)+1),INDEX(ASHRAE_ExteriorTable,9,RIGHT(ProjectZone)+1)*10.7639104),2)","v":{"$error":"#VALUE!"}},null,"Fire station",0.71,7.6,5880,8760,7010,6570]
["Audience/Seating Area - Penitentiary",0.43,4.5999999999999996,2930,null,4,null,"Street frontage for vehicle sales lots [linear]",0,10,10,30,{"$f":"ROUND(IF(ProjectUnits=\"Imperial\",INDEX(ASHRAE_ExteriorTable,10,RIGHT(ProjectZone)+1),INDEX(ASHRAE_ExteriorTable,10,RIGHT(ProjectZone)+1)*'Basic Lists'!B106),2)","v":{"$error":"#VALUE!"}},null,"Gymnasium",1,10.8,2870,2950,2360,2660]
["Automotive Repair Garage",0.67,7.2,3880,null,4,null,"Walkways 10ft wide or greater, plazas",0.14000000000000001,0.14000000000000001,0.16,0.2,{"$f":"ROUND(IF(ProjectUnits=\"Imperial\",INDEX(ASHRAE_ExteriorTable,11,RIGHT(ProjectZone)+1),INDEX(ASHRAE_ExteriorTable,11,RIGHT(ProjectZone)+1)*10.7639104),2)","v":{"$error":"#VALUE!"}},null,"Health-care clinic",0.87,9.4,3290,2930,2340,2200]
["Banking Activity Area/Bank Office",1.38,14.9,2930,null,6,null,"Walkways less than 10ft wide [linear]",0.7,0.7,0.8,1,{"$f":"ROUND(IF(ProjectUnits=\"Imperial\",INDEX(ASHRAE_ExteriorTable,12,RIGHT(ProjectZone)+1),INDEX(ASHRAE_ExteriorTable,12,RIGHT(ProjectZone)+1)*'Basic Lists'!B106),2)","v":{"$error":"#VALUE!"}},null,"Hospital",1.21,13,4720,8760,7010,6570]
["Classroom/Lecture/Training - for Penitentiary",1.34,14.4,2330,true,4,null,"Base site allowance, kW",0.5,0.6,0.75,1.3,{"$f":"INDEX(ASHRAE_ExteriorTable,13,RIGHT(ProjectZone)+1)","v":{"$error":"#VALUE!"}},null,"Hotel",1,10.8,3310,8760,1630,6570]
["Classroom/Lecture/Training - General",1.24,13.3,2330,true,4,null,null,null,null,null,null,null,null,"Library",1.18,12.7,3610,3880,3100,3490]
["Conference/Meeting/Multipurpose",1.23,13.2,3370,true,6,null,null,null,null,null,null,null,null,"Manufacturing facility",1.1100000000000001,11.9,3760,3880,3100,3490]
["Confinement Cells",1.1000000000000001,11.8,5820,null,6,null,null,null,null,null,null,null,null,"Motel",0.88,9.5,3620,8760,1630,6570]
["Corridor/Transition - For Hospital",0.89,9.6,8760,null,{"$f":"IF(ProjectUnits=\"Imperial\",8,8/3.28083989)","v":2.4384000037258748},null,null,null,null,null,null,null,null,"Motion picture theatre",0.83,8.9,2620,2980,1740,2680]
["Corridor/Transition - For Manufacturing",0.41,4.4000000000000004,3880,null,{"$f":"IF(ProjectUnits=\"Imperial\",8,8/3.28083989)","v":2.4384000037258748},null,null,null,null,null,null,null,null,"Multifamily*",0.78,8.4,6210,8760,7010,4820]
["Corridor/Transition - General",0.66,7.1,{"$f":"INDEX(ASHRAE_BuildingTable,MATCH(ProjectBuilding,ASHRAE_BuildingTypes,0),5)","v":{"$error":"#N/A"}},null,{"$f":"IF(ProjectUnits=\"Imperial\",8,8/3.28083989)","v":2.4384000037258748},null,null,null,null,null,null,null,null,"Museum",1.06,11.4,3500,3880,3100,3490]
["Court Sports Arena - Class 1",3.01,32.4,2950,null,4,null,null,null,null,null,null,null,null,"Office",0.9,9.6999999999999993,2870,2930,2340,2200]
["Court Sports Arena - Class 2",1.92,20.7,2950,null,4,null,null,null,null,null,null,null,null,"Parking garage",0.25,2.7,5760,8760,7010,5260]
["Court Sports Arena - Class 3",1.2,12.9,2950,null,4,null,null,null,null,null,null,null,null,"Penitentiary",0.97,10.4,4450,8760,2340,5260]
["Court Sports Arena - Class 4",0.72,7.8,2950,null,4,null,null,null,null,null,null,null,null,"Performing arts theatre",1.39,15,1940,2980,830,2680]
["Courtroom",1.72,18.5,2930,null,6,null,null,null,null,null,null,null,null,"Police station",0.96,10.3,4100,8760,7010,6570]
["Dining Area - For Bar Lounge/Leisure Dining",1.31,14.1,5220,null,4,null,null,null,null,null,null,null,null,"Post office",0.87,9.4,3140,3880,3100,2910]
["Dining Area - For Family Dining",0.89,9.6,5220,null,4,null,null,null,null,null,null,null,null,"Religious building",1.05,11.3,2350,2180,1740,1960]
["Dining Area - For Highway Lodging",0.88,9.5,5220,null,4,null,null,null,null,null,null,null,null,"Retail",1.4,15.1,3750,3880,3100,3490]
["Dining Area - For Hotel",0.82,8.8000000000000007,5220,null,4,null,null,null,null,null,null,null,null,"School/ university",0.99,10.7,2580,2930,2340,2200]
["Dining Area - Other",0.65,7,5220,null,4,null,null,null,null,null,null,null,null,"Sports arena",0.78,8.4,4170,5220,4180,4700]
["Dining Area - Penitentiary",1.07,11.5,5220,null,6,null,null,null,null,null,null,null,null,"Town hall",0.92,9.9,3040,3370,2700,2530]
["Dormitory - Living/Sleeping Quarters",0.38,4.0999999999999996,2970,null,8,null,null,null,null,null,null,null,null,"Transportation",0.77,8.3000000000000007,5190,8760,7010,7880]
["Dressing/Fitting Room - for Performance Arts Theatre",0.4,4.3,2800,true,6,null,null,null,null,null,null,null,null,"Warehouse",0.66,7.1,2830,2830,2260,2120]
["Dressing/Fitting Room - for Retail",0.87,9.4,3680,true,8,null,null,null,null,null,null,null,null,"Workshop",1.2,12.9,3580,3880,3100,2910]
["Electrical/Mechanical",0.95,10.199999999999999,1000,null,6]
["Exhibit Space - For Convention Centre",1.45,15.6,3880,null,4]
["Fire Station Engine Room",0.56000000000000005,{"$f":"IF(ProjectUnits=\"Imperial\",B41,ROUND(B41*10.7639104,1))","v":6},8760,null,4]
["Fire Station Sleeping Quarters",0.25,2.7,2970,null,6]
["Food Preparation",0.99,10.7,5220,null,6]
["Gym/Fitness Area",0.72,7.8,2950,null,4]
["Gymnasium/Fitness Centre Playing Area",1.2,12.9,2950,null,4]
["Highway Lodging - Guest Room",0.75,8.1,2040,null,6]
["Hospital - Emergency",2.2599999999999998,24.3,8760,null,6]
["Hospital - Exam/Treatment",1.66,17.899999999999999,3880,null,8]
["Hospital - Laundry/Washing",0.6,6.5,5220,null,4]
["Hospital - Lounge/Recreation",1.07,11.5,3880,null,6]
["Hospital - Medical Supply",1.27,13.7,8760,null,6]
["Hospital - Nursery",0.88,9.5,8760,null,6]
["Hospital - Nurses' Station",0.87,9.4,8760,null,6]
["Hospital - Operating Room",1.89,20.3,8760,null,6]
["Hospital - Patient Room",0.62,6.7,5820,null,6]
["Hospital - Pharmacy",1.1399999999999999,12.3,3880,null,6]
["Hospital - Physical Therapy",0.91,9.8000000000000007,3880,null,6]
["Hospital - Radiology/Imaging",1.32,14.2,8760,null,6]
["Hospital - Recovery",1.1499999999999999,12.4,8760,null,6]
["Hotel - Guest Room",1.1100000000000001,11.9,2040,null,6]
["Judges' Chambers",1.17,12.6,2930,null,8]
["Laboratory - For Classrooms",1.28,13.8,3020,null,6]
["Laboratory - For Medical/Industrial/Research",1.81,19.5,2930,null,6]
["Library - Card File and Cataloging",0.72,7.8,3880,null,4]
["Library - Reading Area",0.93,10,3880,null,4]
["Library - Stacks",1.71,18.399999999999999,3880,null,4]
["Lobby - For Elevator",0.64,6.9,{"$f":"INDEX(ASHRAE_BuildingTable,MATCH(ProjectBuilding,ASHRAE_BuildingTypes,0),5)","v":{"$error":"#N/A"}},null,6]
["Lobby - For Hotel",1.06,11.4,8760,null,4]
["Lobby - For Motion Picture Theatre",0.52,5.6,2950,null,4]
["Lobby - For Performing Arts Theatre",2,21.5,2950,null,6]
["Lobby - Other",0.9,9.6999999999999993,3880,null,4]
["Locker Room",0.75,8.1,{"$f":"INDEX(ASHRAE_BuildingTable,MATCH(ProjectBuilding,ASHRAE_BuildingTypes,0),6)","v":{"$error":"#N/A"}},true,6]
["Lounge/Recreation",0.73,{"$f":"IF(ProjectUnits=\"Imperial\",B73,ROUND(B73*10.7639104,1))","v":7.9},5220,true,4]
["Manufacturing - Detailed Manufacturing",1.29,13.9,3880,null,4]
["Manufacturing - Equipment Room",0.95,10.199999999999999,3880,null,6]
["Manufacturing - Extra High Bay (Ceiling Height >50ft)",1.05,11.3,3880,null,4]
["Manufacturing - High Bay (Ceiling Height 25-50ft)",1.23,13.2,3880,null,4]
["Manufacturing - Low Bay (Ceiling Height <25ft)",1.19,12.8,3880,null,4]
["Museum - General Exhibition",1.05,11.3,3880,null,6]
["Museum - Restoration",1.02,11,2930,null,6]
["Office - Enclosed",1.1100000000000001,11.9,2300,true,8]
["Office - Open Plan",0.98,10.5,2930,null,4]
["Parking Garage Area",0.19,2,6730,true,4]
["Post Office - Sorting Area",0.94,10.1,2930,null,4]
["Religious Building - Audience/Seating",1.53,16.5,2180,null,4]
["Religious Building - Fellowship Hall",0.64,6.9,2180,null,4]
["Religious Building - Worship Pulpit, Choir",1.53,16.5,2180,null,4]
["Retail - Mall Concourse",1.1000000000000001,11.8,3880,null,4]
["Retail - Sales Area",1.68,18.100000000000001,3880,null,6]
["Ring Sports Arena",2.68,28.8,2950,null,4]
["Sales Area",1.68,18.100000000000001,3880,null,6]
["Stairway",0.69,7.4,{"$f":"INDEX(ASHRAE_BuildingTable,MATCH(ProjectBuilding,ASHRAE_BuildingTypes,0),7)","v":{"$error":"#N/A"}},true,10]
["Storage",0.63,6.8,1910,true,6]
["Transportation - Audience/Seating",0.54,5.8,8760,null,4]
["Transportation - Baggage Area",0.76,8.1999999999999993,8760,null,4]
["Transportation - Terminal Ticket Counter",1.08,11.6,8760,null,4]
["Warehouse Storage - Fine Material Storage",0.95,10.199999999999999,2830,null,6]
["Warehouse Storage - Medium/Bulky Material Storage",0.57999999999999996,6.2,2830,null,4]
["Washroom",0.98,10.5,{"$f":"INDEX(ASHRAE_BuildingTable,MATCH(ProjectBuilding,ASHRAE_BuildingTypes,0),6)","v":{"$error":"#N/A"}},true,8]
["Workshop",1.59,17.100000000000001,3880,null,6]

{"sheet":"NECB","index":7,"n_rows":104,"n_cols":17,"rows_kept":104,"cut":false,"hidden":true,"merged":[]}
["National Energy Code of Canada for Buildings (NECB) 2011 Division B Part 4 Lighting"]
[null,null,null,null,null,null,null,null,null,null,null,null,null,{"$f":"M2+1","v":1},{"$f":"N2+1","v":2},3,4]
["INTERIOR",null,null,null,null,null,"EXTERIOR",null,null,null,null,null,null,"BUILDING TYPES"]
["Proposed Effective Table",null,null,null,null,null,"Proposed Effective Table",null,null,null,null,null,null,"Proposed Effective Table"]
["Proposed Space Names","LPD (W/sqm) [default units]",{"$f":"IF(ProjectUnits=\"Imperial\",\"LPD (W/sqft) [active units]\",\"LPD (W/sqm) [active units]\")","v":"LPD (W/sqm) [active units]"},"Annual hours","OS/ TC Required?",null,"Proposed Space Names","Zone 1 LPD (W/sqm ) [default units]","Zone 2 LPD (W/sqm ) [default units]","Zone 3 LPD (W/sqm ) [default units]","Zone 4 LPD (W/sqm ) [default units]",{"$f":"\"Zone \"&IF(ISBLANK(ProjectZone),\"N/A\",RIGHT(ProjectZone))&\" LPD \"&IF(ProjectUnits=\"Imperial\",\"(W/sqft)\",\"(W/sqm)\")&\" [active zone, active units]\"","v":"Zone N/A LPD (W/sqm) [active zone, active units]"},null,"Proposed Building Type Names","LPD (W/sqm) [default units]",{"$f":"IF(ProjectUnits=\"Imperial\",\"LPD (W/sqft) [active units]\",\"LPD (W/sqm) [active units]\")","v":"LPD (W/sqm) [active units]"},"Hours"]
["Airport - Concourse",3.9,{"$f":"IF(ProjectUnits=\"Imperial\",ROUND(B6/10.7639104,2),B6)","v":3.9},8760,null,null,"Entry canopies",2.7,2.7,4.3,4.3,{"$f":"IF(ProjectUnits=\"Imperial\",INDEX(NECB_ExteriorTable,1,RIGHT(ProjectZone)+1)/10.7639104,INDEX(NECB_ExteriorTable,1,RIGHT(ProjectZone)+1))","v":{"$error":"#VALUE!"}},null,"Automotive facility",8.8000000000000007,{"$f":"IF(ProjectUnits=\"Imperial\",ROUND(O6/10.7639104,2),O6)","v":8.8000000000000007},3210]
[{"$f":"IF(ProjectUnits = \"Imperial\", \"Atrium - First 40ft in height\", \"Atrium - First 13m in height\")","v":"Atrium - First 13m in height"},0.1,{"$f":"IF(ProjectUnits=\"Imperial\",ROUND(B7/3.2808399,2),B7)","v":0.1},3880,null,null,"Landscaping",0.4,0.5,0.5,0.5,{"$f":"IF(ProjectUnits=\"Imperial\",INDEX(NECB_ExteriorTable,2,RIGHT(ProjectZone)+1)/10.7639104,INDEX(NECB_ExteriorTable,2,RIGHT(ProjectZone)+1))","v":{"$error":"#VALUE!"}},null,"Convention centre",11.6,11.6,3530]
[{"$f":"IF(ProjectUnits = \"Imperial\", \"Atrium - Height above 40ft\", \"Atrium - Height above 13m\")","v":"Atrium - Height above 13m"},7.0000000000000007E-2,{"$f":"IF(ProjectUnits=\"Imperial\",ROUND(B8/3.2808399,2),B8)","v":7.0000000000000007E-2},3880,null,null,"Main entries [linear]",66,66,98,98,{"$f":"ROUND(IF(ProjectUnits=\"Imperial\",INDEX(NECB_ExteriorTable,3,RIGHT(ProjectZone)+1)/'Basic Lists'!$B106,INDEX(NECB_ExteriorTable,3,RIGHT(ProjectZone)+1)),2)","v":{"$error":"#VALUE!"}},null,"Courthouse",11.3,11.3,2820]
["Audience/Seating Area - For auditorium",8.5,{"$f":"IF(ProjectUnits=\"Imperial\",ROUND(B9/10.7639104,2),B9)","v":8.5},2980,true,null,"Open outdoor sales areas, vehicle sales lots",2.7,2.7,5.4,7.5,{"$f":"IF(ProjectUnits=\"Imperial\",INDEX(NECB_ExteriorTable,4,RIGHT(ProjectZone)+1)/10.7639104,INDEX(NECB_ExteriorTable,4,RIGHT(ProjectZone)+1))","v":{"$error":"#VALUE!"}},null,"Dining: bar lounge/leisure",10.7,10.7,4740]
["Audience/Seating Area - For Convention Centre",8.8000000000000007,8.8000000000000007,3880,null,null,"Other (non-main) entries [linear]",66,66,66,66,{"$f":"ROUND(IF(ProjectUnits=\"Imperial\",INDEX(NECB_ExteriorTable,5,RIGHT(ProjectZone)+1)/'Basic Lists'!$B106,INDEX(NECB_ExteriorTable,5,RIGHT(ProjectZone)+1)),2)","v":{"$error":"#VALUE!"}},null,"Dining: cafeteria/fast food",9.6999999999999993,9.6999999999999993,4590]
["Audience/Seating Area - For Gymnasium",4.5999999999999996,4.5999999999999996,2950,null,null,"Parking areas and drives",0.4,0.7,1.1000000000000001,1.4,{"$f":"IF(ProjectUnits=\"Imperial\",INDEX(NECB_ExteriorTable,6,RIGHT(ProjectZone)+1)/10.7639104,INDEX(NECB_ExteriorTable,6,RIGHT(ProjectZone)+1))","v":{"$error":"#VALUE!"}},null,"Dining: family",9.6,9.6,4750]
["Audience/Seating Area - For Motion Picture Theatre",12.3,12.3,2180,null,null,"Pedestrian Tunnels",1.6,1.6,2.2000000000000002,3.2,{"$f":"IF(ProjectUnits=\"Imperial\",INDEX(NECB_ExteriorTable,7,RIGHT(ProjectZone)+1)/10.7639104,INDEX(NECB_ExteriorTable,7,RIGHT(ProjectZone)+1))","v":{"$error":"#VALUE!"}},null,"Dormitory",6.6,6.6,3870]
["Audience/Seating Area - For Performing Arts Theatre",26.2,26.2,1040,null,null,"Sales canopies",6.5,6.5,8.6,11,{"$f":"IF(ProjectUnits=\"Imperial\",INDEX(NECB_ExteriorTable,8,RIGHT(ProjectZone)+1)/10.7639104,INDEX(NECB_ExteriorTable,8,RIGHT(ProjectZone)+1))","v":{"$error":"#VALUE!"}},null,"Exercise centre",9.5,9.5,2820]
["Audience/Seating Area - For Sports Arena",4.5999999999999996,4.5999999999999996,2950,null,null,"Stairways",8.1,11,11,11,{"$f":"ROUND(IF(ProjectUnits=\"Imperial\",INDEX(NECB_ExteriorTable,9,RIGHT(ProjectZone)+1)/'Basic Lists'!B107,INDEX(NECB_ExteriorTable,9,RIGHT(ProjectZone)+1)),2)","v":{"$error":"#VALUE!"}},null,"Fire station",7.6,7.6,5880]
["Audience/Seating Area - Penitentiary",4.5999999999999996,4.5999999999999996,2930,null,null,"Street frontage for vehicle sales lots [linear]",0,33,33,98,{"$f":"ROUND(IF(ProjectUnits=\"Imperial\",INDEX(NECB_ExteriorTable,10,RIGHT(ProjectZone)+1)/'Basic Lists'!B106,INDEX(NECB_ExteriorTable,10,RIGHT(ProjectZone)+1)),2)","v":{"$error":"#VALUE!"}},null,"Gymnasium",10.8,10.8,2870]
["Automotive Repair Garage",7.2,7.2,3880,null,null,"Walkways 10ft wide or greater, plazas",1.5,1.5,1.7,2.2000000000000002,{"$f":"IF(ProjectUnits=\"Imperial\",INDEX(NECB_ExteriorTable,11,RIGHT(ProjectZone)+1)/10.7639104,INDEX(NECB_ExteriorTable,11,RIGHT(ProjectZone)+1))","v":{"$error":"#VALUE!"}},null,"Health-care clinic",9.4,9.4,3290]
["Banking Activity Area/Bank Office",14.9,14.9,2930,null,null,"Walkways less than 10ft wide [linear]",2.2999999999999998,2.2999999999999998,2.6,3.3,{"$f":"ROUND(IF(ProjectUnits=\"Imperial\",INDEX(NECB_ExteriorTable,12,RIGHT(ProjectZone)+1)/'Basic Lists'!B106,INDEX(NECB_ExteriorTable,12,RIGHT(ProjectZone)+1)),2)","v":{"$error":"#VALUE!"}},null,"Hospital",13,13,4720]
["Classroom/Lecture/Training - for Penitentiary",14.4,14.4,2330,true,null,"Base site allowance, kW",0.5,0.6,0.75,1.3,{"$f":"INDEX(NECB_ExteriorTable,13,RIGHT(ProjectZone)+1)","v":{"$error":"#VALUE!"}},null,"Hotel",10.8,10.8,3310]
["Classroom/Lecture/Training - General",13.3,13.3,2330,true,null,null,null,null,null,null,null,null,"Library",12.7,12.7,3610]
["Conference/Meeting/Multipurpose",13.2,13.2,3370,true,null,null,null,null,null,null,null,null,"Manufacturing facility",11.9,11.9,3760]
["Confinement Cells",14.8,14.8,5820,null,null,null,null,null,null,null,null,null,"Motel",9.5,9.5,3620]
["Corridor/Transition < 2.4m wide - For Hospital",11.7,11.7,8760,null,null,null,null,null,null,null,null,null,"Motion picture theatre",8.9,8.9,2620]
["Corridor/Transition < 2.4m wide - For Manufacturing",4.4000000000000004,4.4000000000000004,3880,null,null,null,null,null,null,null,null,null,"Multifamily*",8.4,8.4,6210]
["Corridor/Transition < 2.4m wide - General",8.4,8.4,{"$f":"INDEX(ASHRAE_BuildingTable,MATCH(ProjectBuilding,ASHRAE_BuildingTypes,0),5)","v":{"$error":"#N/A"}},null,null,null,null,null,null,null,null,null,"Museum",11.4,11.4,3500]
["Corridor/Transition ≥ 2.4m wide - For Hospital",9.6,9.6,8760,null,null,null,null,null,null,null,null,null,"Office",9.6999999999999993,9.6999999999999993,2870]
["Corridor/Transition ≥ 2.4m wide - For Manufacturing",5.5,5.5,3880,null,null,null,null,null,null,null,null,null,"Parking garage",2.7,2.7,5760]
["Corridor/Transition ≥ 2.4m wide - General",7.1,7.1,{"$f":"INDEX(ASHRAE_BuildingTable,MATCH(ProjectBuilding,ASHRAE_BuildingTypes,0),5)","v":{"$error":"#N/A"}},null,null,null,null,null,null,null,null,null,"Penitentiary",10.4,10.4,4450]
["Court Sports Arena - Class 1",32.4,32.4,2950,null,null,null,null,null,null,null,null,null,"Performing arts theatre",15,15,1940]
["Court Sports Arena - Class 2",20.7,20.7,2950,null,null,null,null,null,null,null,null,null,"Police station",10.3,10.3,4100]
["Court Sports Arena - Class 3",12.9,12.9,2950,null,null,null,null,null,null,null,null,null,"Post office",9.4,9.4,3140]
["Court Sports Arena - Class 4",7.8,7.8,2950,null,null,null,null,null,null,null,null,null,"Religious building",11.3,11.3,2350]
["Courtroom",18.5,18.5,2930,null,null,null,null,null,null,null,null,null,"Retail",15.1,15.1,3750]
["Detailed Manufacturing - Equipment Room",13.4,13.4,3880,null,null,null,null,null,null,null,null,null,"School/ university",10.7,10.7,2580]
["Detailed Manufacturing - Extra High Bay (Ceiling Height > 15m)",11.3,11.3,3880,null,null,null,null,null,null,null,null,null,"Sports arena",8.4,8.4,4170]
["Detailed Manufacturing - High Bay (Ceiling Height 7.5-15m )",13.2,13.2,3880,null,null,null,null,null,null,null,null,null,"Town hall",9.9,9.9,3040]
["Detailed Manufacturing - Low Bay (Ceiling Height < 7.5 m )",12.8,12.8,3880,null,null,null,null,null,null,null,null,null,"Transportation",8.3000000000000007,8.3000000000000007,5190]
["Dining Area - For Bar Lounge/Leisure Dining",14.1,14.1,5220,null,null,null,null,null,null,null,null,null,"Warehouse",7.1,7.1,2830]
["Dining Area - For Family Dining",9.6,9.6,5220,null,null,null,null,null,null,null,null,null,"Workshop",12.9,12.9,3580]
["Dining Area - For Highway Lodging",9.5,9.5,5220]
["Dining Area - For Hotel",8.8000000000000007,8.8000000000000007,5220]
["Dining Area - Other",7,{"$f":"IF(ProjectUnits=\"Imperial\",ROUND(B41/10.7639104,2),B41)","v":7},5220]
["Dining Area - Penitentiary",11.5,11.5,5220]
["Dormitory - Living/Sleeping Quarters",4.0999999999999996,4.0999999999999996,2970]
["Dressing/Fitting Room - for Performance Arts Theatre",4.3,4.3,2800,true]
["Dressing/Fitting Room - for Retail",9.4,9.4,3680,true]
["Electrical/Mechanical",13.4,13.4,1000]
["Exhibit Space - For Convention Centre",15.6,15.6,3880]
["Fire Station Engine Room",6,6,8760]
["Fire Station Sleeping Quarters",3.4,3.4,2970]
["Food Preparation",10.7,10.7,5220]
["Gym/Fitness Area",9.8000000000000007,9.8000000000000007,2950]
["Gymnasium/Fitness Centre Playing Area",12.9,12.9,2950]
["Highway Lodging - Guest Room",8.1,8.1,2040]
["Hospital - Emergency",24.3,24.3,8760]
["Hospital - Exam/Treatment",17.899999999999999,17.899999999999999,3880]
["Hospital - Laundry/Washing",8,8,3880]
["Hospital - Lounge/Recreation",11.5,11.5,5220]
["Hospital - Medical Supply",13.7,13.7,8760]
["Hospital - Nursery",9.5,9.5,8760]
["Hospital - Nurses' Station",9.4,9.4,8760]
["Hospital - Operating Room",20.3,20.3,8760]
["Hospital - Patient Room",6.7,6.7,5820]
["Hospital - Pharmacy",12.3,12.3,3880]
["Hospital - Physical Therapy",9.8000000000000007,9.8000000000000007,3880]
["Hospital - Radiology/Imaging",14.2,14.2,8760]
["Hospital - Recovery",12.4,12.4,8760]
["Hotel - Guest Room",11.9,11.9,2040]
["Judges' Chambers",12.6,12.6,2930]
["Laboratory - For Classrooms",17.2,17.2,3020]
["Laboratory - For Medical/Industrial/Research",23.6,23.6,2930]
["Library - Card File and Cataloging",7.8,7.8,3880]
["Library - Reading Area",10,10,3880]
["Library - Stacks",22.9,{"$f":"IF(ProjectUnits=\"Imperial\",ROUND(B73/10.7639104,2),B73)","v":22.9},3880]
["Lobby - For Elevator",6.9,6.9,{"$f":"INDEX(ASHRAE_BuildingTable,MATCH(ProjectBuilding,ASHRAE_BuildingTypes,0),5)","v":{"$error":"#N/A"}}]
["Lobby - For Hotel",11.4,11.4,8760]
["Lobby - For Motion Picture Theatre",5.6,5.6,2950]
["Lobby - For Performing Arts Theatre",21.5,21.5,2950]
["Lobby - Other",9.6999999999999993,9.6999999999999993,3880]
["Locker Room",9.8000000000000007,9.8000000000000007,{"$f":"INDEX(ASHRAE_BuildingTable,MATCH(ProjectBuilding,ASHRAE_BuildingTypes,0),6)","v":{"$error":"#N/A"}},true]
["Lounge/Recreation",9.4,9.4,5220,true]
["Manufacturing - Detailed Manufacturing",13.9,13.9,3880]
["Museum - General Exhibition",11.3,11.3,3880]
["Museum - Restoration",11,11,2930]
["Office - Enclosed",11.9,11.9,2300,true]
["Office - Open Plan",11,11,2930]
["Parking Garage Area",2,2,6730,true]
["Post Office - Sorting Area",10.1,10.1,2930]
["Religious Building - Audience/Seating",18.2,18.2,2180]
["Religious Building - Fellowship Hall",6.9,6.9,2180]
["Religious Building - Worship Pulpit, Choir",18.2,18.2,2180]
["Retail - Mall Concourse",11.8,11.8,3880]
["Retail - Sales Area",18.100000000000001,18.100000000000001,3880]
["Ring Sports Arena",28.8,28.8,2950]
["Sales Area",18.100000000000001,18.100000000000001,3880]
["Stairway",7.4,7.4,{"$f":"INDEX(ASHRAE_BuildingTable,MATCH(ProjectBuilding,ASHRAE_BuildingTypes,0),7)","v":{"$error":"#N/A"}},true]
["Storage",6.8,6.8,1910,true]
["Transportation - Audience/Seating",5.8,5.8,8760]
["Transportation - Baggage Area",8.1999999999999993,8.1999999999999993,8760]
["Transportation - Terminal Ticket Counter",11.6,11.6,8760]
["Warehouse Storage - Fine Material Storage",10.199999999999999,10.199999999999999,2830]
["Warehouse Storage - Medium/Bulky Material Storage",6.3,6.3,2830]
["Warehouse Storage - Permanent shelving > 60% of ceiling height",10.199999999999999,10.199999999999999,2830]
["Washroom",10.5,10.5,{"$f":"INDEX(ASHRAE_BuildingTable,MATCH(ProjectBuilding,ASHRAE_BuildingTypes,0),6)","v":{"$error":"#N/A"}},true]
["Workshop",17.100000000000001,17.100000000000001,3880]

{"sheet":"Basic Lists","index":8,"n_rows":107,"n_cols":18,"rows_kept":107,"cut":false,"hidden":true,"merged":[]}
["Yes_No","Project_Types","Compliance_Types","Building_Zones","Units","Compliance_Code","Interior_ControlsTypes","Control Reduction","Control Reduction (OS Req)","Exterior_ControlsTypes","Control Reduction","OSRequired_Spaces","Technology_Types","Ballast List","BallastTypes_Linear","BallastTypes_HID","N_A","Luminaire_Count"]
["Yes","Energy-Efficient Lighting Design","Building Area Method","Zone 1","Imperial","ASHRAE/IES Standard 90.1-2010","None",0,0,"Photocell and/or Timer",0,"Audience/Seating Area - For auditorium","T8 Fluor linear ","BallastTypes_Linear","IS-NBF","Magn"," ",3]
["No","System Design","Space-By-Space Method","Zone 2","Metric","NECB 2011","DDC Controls",0,0,"Photocell + Timer + OS",0.25,"Classroom/Lecture/Training - for Penitentiary","T5/T5HO Fluor linear","BallastTypes_Linear","IS-LBF","Elec",null,4]
[null,"Whole Building Design",null,"Zone 3",null,null,"Timer (enclosed area)",0.2,0,null,null,"Classroom/Lecture/Training - General","Other Fluor linear ","BallastTypes_Linear","IS-HBF",null,null,5]
[null,null,null,"Zone 4",null,null,"Photocell (private or zoned area)",0.15,0.15,null,null,"Conference/Meeting/Multipurpose","CFL pin-based","BallastTypes_HID","HE-IS-NBF",null,null,6]
[null,null,null,null,null,null,"Individual Dimmer (private)",0.1,0.1,null,null,"Dressing/Fitting Room - for Performance Arts Theatre","CFL screw-in","N_A","HE-IS-LBF",null,null,7]
[null,null,null,null,null,null,"OS (open space)",0.15,0,null,null,"Dressing/Fitting Room - for Retail","Induction","N_A","HE-IS-HBF",null,null,8]
[null,null,null,null,null,null,"OS (private/zoned area)",0.3,0,null,null,"Locker Room","LED","N_A","PrS-NBF"]
[null,null,null,null,null,null,"OS + Photocell (open space)",0.2,0.1,null,null,"Lounge/Recreation","OLED","N_A","PrS-LBF"]
[null,null,null,null,null,null,"OS + Photocell (private/zoned area)",0.3,0.15,null,null,"Office - Enclosed","MH/CMH/PSMH","BallastTypes_HID","PrS-HBF"]
[null,null,null,null,null,null,"OS + Indiv. Dim. (private/zoned area)",0.3,0.1,null,null,"Parking garage area","HPS/LPS","BallastTypes_HID","HE-PrS-NBF"]
[null,null,null,null,null,null,"OS (open) + Indiv. Dim. (prvt/zoned)",0.2,0.1,null,null,"Stairway","Plasma","N_A","HE-PrS-LBF"]
[null,null,null,null,null,null,"OS + Photo + Indiv. Dim. (prvt/zoned)",0.45,0.25,null,null,"Storage","Incand/Halogen ","N_A","HE-PrS-HBF"]
[null,null,null,null,null,null,"Photo + Indiv. Dim. (prvt/zoned)",0.25,0.25,null,null,"Washroom","Halogen IR","N_A"]
[null,null,null,null,null,null,null,null,null,null,null,null,"Other","N_A"]
[]
[]
[]
[]
[]
[]
[]
[]
[]
[]
[]
[]
[]
[]
[]
[]
[]
[]
[]
[]
[]
[]
[]
[]
[]
[]
[]
[]
[]
[]
[]
[]
[]
[]
[]
[]
[]
[]
[]
[]
[]
[]
[]
[]
[]
[]
[]
[]
[]
[]
[]
[]
[]
[]
[]
[]
[]
[]
[]
[]
[]
[]
[]
[]
[]
[]
[]
[]
[]
[]
[]
[]
[]
[]
[]
[]
[]
[]
[]
[]
[]
[]
[]
[]
["BC Hydro Power Smart CNC LC v.3.1"]
[]
[]
["*For residential type buildings only the area of common spaces shall be included; no residential dwelling suites are eligible for lighting energy savings claim "]
[]
[]
["m/ft",3.2808399000000001]
["m2/ft2",10.7639104]